Workbook

Sheet 사용설명
A1: PharmOffice 자동화 엑셀서식 | AA1: 이파일은 약국 개인정보보호자율점검시 양호,보유로 해놓고 실제 구비하지못한
AA2: 서류들,근로 노무관련 양식들을 모아놓고 업무처리를 수월하게 할수 있도록
AA3: 제작한 엑셀 파일입니다.
AA4: 이밖에도 약국에서 필요한 각종 서식들과 필요한 기능들을 넣었습니다.
AA5: 한글로 라벨을 만들면 외국어로 번역해주는 다국어 라벨기능
AA6: 각종서식에서 사용할 PC용 도장 제작 기능
AA7: 오픈매대에서 사용할 가격표 자동화
AA8: 마스크 가격표 제작
AA9: 등등 여러기능을 넣었습니다.
AA11: 이파일은 엑셀시트 90여장으로 구성되어있습니다.
AA12: 많은 정보가 담겨있어서 로딩시간도 컴퓨터 사양에 따라 오래 걸릴수도 있습니다.
AA13: 이파일을 100%활용하시려면
AA14: 1. 요양기관기초정보시트에 입력사항을 빠짐 없이 입력하세요
AA15: 2.사원명부시트에 직원인적사항을 입력하시고 신규입사시에도 제일먼저 사원명부를 작성하세요
AA16: 3.인쇄에 사용할 프린터의 경로를 지정하세요
AA17: 프린터 설정방법은>> 엑셀좌측상단의 파일>인쇄>프린터선택하고
AA18: 나와서 프린터 경로 버튼을 클릭하면 됩니다.
AA21: 예시에 있는 것은 제 프린터의 절대경로이고 파일은 그곳이 비어있습니다.

Sheet PharmOffice시트
A1: PharmOfiice 시트모음
A2: 연번 | B2: 시트이름 | C2: 업무명칭 | D2: 업무내용 | E2: 인쇄권장
A3: 1 | B3: 사용설명 | C3: 공통 | D3: 입문
A4: =IF(B4="","",A3+1) -> 2 | B4: 요양기관기초정보 | C4: 개인정보보호 | D4: 기초정보
A5: =IF(B5="","",A4+1) -> 3 | B5: 사원명부 | C5: 개인정보보호 | D5: 기초정보
A6: 4 | B6: 요약 | C6: 개인정보보호 | D6: 요양기관 개인정보보호 상시 점검사항 요약 | E6: o
A7: 5 | B7: 개인정보점검갱신 | C7: 개인정보보호 | D7: 개인정보보호 자율점검후 보유서류 체크
A8: 6 | B8: 점검결과 | C8: 개인정보보호 | D8: 개인정보보호 자율점검 | E8: o
A9: 7 | B9: 필요서류 | C9: 개인정보보호 | D9: 필요서류와 시트명 Match
A10: 8 | B10: 보유 | C10: 개인정보보호 | D10: 개인정보보호 자율점검후 수식을 통해 보유서류 체크
A11: 9 | B11: 동의서 | C11: 개인정보보호 | D11: 개인정보 수집 이용 동의서 | E11: o
A12: 10 | B12: 열람기준 | C12: 개인정보보호 | D12: 조제기록부 열람 및 사본발급 기준/약사법.약사법시행령 | E12: o
A13: 11 | B13: 열람동의서 | C13: 개인정보보호 | D13: 조제기록부나 영수증발급시 동의서 | E13: o
A14: 12 | B14: 열람안내 | C14: 개인정보보호 | D14: 조제기록부나 영수증 발급시 필요 서류 안내문 | E14: o
A15: 13 | B15: 고지 | C15: 개인정보보호 | D15: 개인정보 수집 이용 고지 | E15: o
A16: 14 | B16: 용해증명서 | C16: 개인정보보호 | D16: 보존기간이 지난 개인정보를 용해하거나 소각하였음을 증명하는 서류 | E16: o
A17: 15 | B17: 파기 | C17: 개인정보보호 | D17: 개인정보 파기 관리대장 | E17: o
A18: 16 | B18: 민감 | C18: 개인정보보호 | D18: 민감정보 수집‧이용 동의서 | E18: o
A19: 17 | B19: 영상관리 | C19: 개인정보보호 | D19: 영상정보처리기기(CCTV) 운영·관리 방침 | E19: o
A20: 18 | B20: CCTV안내 | C20: 개인정보보호 | D20: 영상정보처리기기(CCTV) 설치 안내판 | E20: o
A21: 19 | B21: CCTV인증샷 | C21: 개인정보보호 | D21: 영상정보처리기기(CCTV) 설치 안내판을 부착하고 있을 알리는 인증샷 | E21: o
A22: 20 | B22: 영상정보관리 | C22: 개인정보보호 | D22: 영상정보 제공에 관한 사항 | E22: o
A23: 21 | B23: 위탁계약서 | C23: 개인정보보호 | D23: 개인정보처리위탁계약서
A24: 22 | B24: 업체점검 | C24: 개인정보보호 | D24: 위탁업체 개인정보보호 책임자 교육여부등 점검부
A25: 23 | B25: 처리방침 | C25: 개인정보보호 | D25: 개인정보처리방침 | E25: o
A26: 24 | B26: 업무분장표 | C26: 개인정보보호 | D26: 부서별 업무분장표
A27: 25 | B27: 서약 | C27: 개인정보보호 | D27: 보안서약서,근로계약서 작성시 같이 작성 | E27: o
A28: 26 | B28: 교육 | C28: 개인정보보호 | D28: 직원 개인정보보호교육 이수여부확인 | E28: o
A29: 27 | B29: 관리계획 | C29: 개인정보보호 | D29: 개인정보보호를 위한 내부 관리 계획 | E29: o
A30: 28 | B30: 필수 | C30: 개인정보보호 | D30: 내부관리계획 수립시 필수 사항 | E30: o
A31: 29 | B31: ID | C31: 개인정보보호 | D31: 개인정보처리시스템(청구 S/W)사용자 관리 | E31: o
A32: 30 | B32: 출입 | C32: 개인정보보호 | D32: 개인정보 보관장소 출입일지 | E32: o
A33: 31 | B33: 체크 | C33: 개인정보보호 | D33: 개인정보 정기 점검 체크리스트 | E33: o
A34: 32 | B34: 컴퓨터관리 | C34: 개인정보보호 | D34: 개인정보처리시스템(청구 S/W)이 설치된 컴퓨터 관리 대장 | E34: o
A35: 33 | B35: 백신 | C35: 개인정보보호 | D35: 백신이나 방화벽 프로그램 유상구입시 증빙 영수증 | E35: o
A36: 34 | B36: 네트워크장비 | C36: 개인정보보호 | D36: 네트워크 시스템관리 | E36: o
A37: 35 | B37: wifi | C37: 개인정보보호 | D37: Wifi비공개 | E37: o
A38: 36 | B38: 유출 | C38: 개인정보보호 | D38: 개인정보 유출시 조치요령 | E38: o
A39: 37 | B39: 유형 | C39: 개인정보보호 | D39: 개인정보 보유량에 따른 유형
A40: 38 | B40: 양도 | C40: 개인정보보호 | D40: 영업 양도 합병시 개인정보 처리 방법,게시서식
A41: 연번 | B41: 시트이름 | C41: 업무명칭 | D41: 업무내용 | E41: 인쇄권장
A42: =A40+1 -> 39 | B42: 근로기준법 해석 | C42: 근로,노무 | D42: 5인미만 사업장
A43: =IF(B43="","",A42+1) -> 40 | B43: 근로기준법상보관서류 | C43: 근로,노무 | D43: 근로기준법에 따른 필수 보관 서류 | E43: o
A44: =IF(B44="","",A43+1) -> 41 | B44: 요양기관기초정보 | C44: 근로,노무 | D44: 기초정보
A45: 42 | B45: 사원명부 | C45: 근로,노무 | D45: 기초정보
A46: 43 | B46: 근로계약서상세 | C46: 근로,노무 | D46: 근로계약서 | E46: o
A47: 44 | B47: 단기근로계약서 | C47: 근로,노무 | D47: 기간제 계약서
A48: 45 | B48: 계약변경 | C48: 근로,노무 | D48: 계약 연장시
A49: 46 | B49: 서약 | C49: 근로,노무 | D49: 근로계약서 작성시 보안서약서 같이 작성
A50: 47 | B50: 근로자명부 | C50: 근로,노무 | D50: 근로자명부-근로계약서 작성시 같이 작성
A51: 48 | B51: 업무분장내역 | C51: 근로,노무 | D51: 전체 업무 분장표 | E51: o
A52: 49 | B52: 업무분장표 | C52: 근로,노무 | D52: 부서별 업무분장표 | E52: o
A53: 50 | B53: 인사 | C53: 근로,노무 | D53: 인사위원회 활동시 필요서류
A54: 51 | B54: 취업규칙신고서 | C54: 근로,노무 | D54: 취업규칙 노동부 신고시
A55: 52 | B55: 취업규칙 | C55: 근로,노무 | D55: 상시근로자 10인이상시 노동부 신고 필수/10인미만시..비치,직원동의 권장 | E55: o
A56: 53 | B56: 의견청취서 | C56: 근로,노무 | D56: 취업규칙에 대한 근로자 의견서-10인이상
A57: 54 | B57: 근로자동의서 | C57: 근로,노무 | D57: 취업규칙에 대한 근로자 동의서-10인이하라도 신규입사시 열람 사인용으로도 활용 | E57: o
A58: 55 | B58: 휴가력 | C58: 근로,노무 | D58: 달력/공휴일,토요일 근무자명단 작성용.인쇄하여 휴가에 관한서류로 비치 | E58: o
A59: 56 | B59: 휴가계획서 | C59: 근로,노무 | D59: 익월의 휴가 계획서를 미리 작성하여 비치/근로법상 반드시 갖춰야 할서류 | E59: o
A60: 57 | B60: 경력증명서 | C60: 근로,노무 | D60: 근로,노무관련서류
A61: 58 | B61: 재직증명서 | C61: 근로,노무 | D61: 근로,노무관련서류
A62: 59 | B62: 위임장 | C62: 근로,노무 | D62: 근로,노무관련서류
A63: 60 | B63: 사직서 | C63: 근로,노무 | D63: 근로,노무관련서류
A64: 61 | B64: 해고예정통보서 | C64: 근로,노무 | D64: 근로,노무관련서류
A65: 연번 | B65: 시트이름 | C65: 업무명칭 | D65: 업무내용 | E65: 인쇄권장
A66: =A64+1 -> 62 | B66: 견적서 | C66: 약국사무 | D66: 납품시
A67: =IF(B67="","",A66+1) -> 63 | B67: 거래명세서 | C67: 약국사무 | D67: 납품시
A68: =IF(B68="","",A67+1) -> 64 | B68: 세금계산서 | C68: 약국사무 | D68: 납품시
A69: 65 | B69: 간이영수증 | C69: 약국사무 | D69: 갑자기 필요한데 찾아보니 없을수도 있는 간이영수증
A70: 66 | B70: 당뇨위임장 | C70: 약국사무 | D70: 당뇨병 소모성재료 EDI청구시 위임장
A71: 67 | B71: 당뇨국민공단 | C71: 약국사무 | D71: 당뇨병 소모성재료 청구서-국민건강보험공단,차상위용
A72: 68 | B72: 당뇨의료급여 | C72: 약국사무 | D72: 당뇨병 소모성재료 청구서-국민건강보험공단,의료급여용
A73: 69 | B73: 마약류시설점검부 | C73: 약국사무 | D73: 마약류 시설 점검부
A74: 70 | B74: 마약류양도 | C74: 약국사무 | D74: 마약류양도(구입한 도매업체로 원통단위로 반품)
A75: 71 | B75: 양도계약서 | C75: 약국사무 | D75: 마약류양도(구입한 도매업체로 원통단위로 반품)
A76: 72 | B76: 폐기신청 | C76: 약국사무 | D76: 소분재고,유효임박등등의 사유로 마약류 폐기시
A77: 73 | B77: 사고마약발생 | C77: 약국사무 | D77: 도난이나 침수등의 피해발생시
A78: 74 | B78: 발생별첨 | C78: 약국사무 | D78: 도난이나 침수등의 피해발생시
A79: 75 | B79: 희귀의약품발주서 | C79: 약국사무 | D79: 희귀의약품센터로 의약품 발주시-사업자 등록증 첨부
A80: 76 | B80: 약국간거래 | C80: 약국사무 | D80: 약국간 거래
A81: =IF(B81="","",A80+1) -> 77 | B81: 도장제작 | C81: 약국사무 | D81: 각종 서식화일에 사용할 도장제작/도장스캔이미지가 없을때 사용
A82: 78 | B82: 목차제작 | C82: 약국사무 | D82: 각종서류를 바인딩철에 보관할때 첫페이지 목록 만들기
A83: =IF(B83="","",A82+1) -> 79 | B83: 목차제작1 | C83: 약국사무 | D83: 각종서류를 바인딩철에 보관할때 첫페이지 목록 만들기
A84: 연번 | B84: 시트이름 | C84: 업무명칭 | D84: 업무내용 | E84: 인쇄권장
A85: =IF(B85="","",A83+1) -> 80 | B85: 가격1 | C85: POP,라벨 | D85: 오픈매대에서 쓸수 있는 깔끔한 가격표 DB1
A86: 81 | B86: 가격1인쇄 | C86: POP,라벨 | D86: 가격표 인쇄양식1
A87: 82 | B87: 가격2 | C87: POP,라벨 | D87: 오픈매대에서 쓸수 있는 깔끔한 가격표 DB2
A88: 83 | B88: 가격2인쇄 | C88: POP,라벨 | D88: 가격표 인쇄양식2
A89: 84 | B89: 가격표A4 | C89: POP,라벨 | D89: 마스크 판매POP/이벤트,세일행사시 가격표
A90: 85 | B90: 안내문 | C90: POP,라벨 | D90: 각종안내문,홍보문
A91: 86 | B91: 다국어라벨 | C91: POP,라벨 | D91: 다국어 라벨만들기 NEW
A92: 87 | B92: 라벨인쇄양식 | C92: POP,라벨 | D92: 각종 라벨 인쇄양식-미리보기를 통해 인쇄여백을 설정하세요
A93: 88 | B93: 일반약라벨 | C93: POP,라벨 | D93: 일반의약품 복약라벨
A94: 89 | B94: 상세복약지도 | C94: POP,라벨 | D94: 상세복약지도 라벨,외용제나 긴설명이 필요할때
A95: 90 | B95: 주소라벨 | C95: POP,라벨 | D95: 우편물 발송시 주소라벨
A96: 91 | B96: 큰글씨라벨 | C96: POP,라벨 | D96: 기성라벨의 글씨가 작아 큰글씨로된 복약시간이 필요할때
A97: =IF(B97="","",A96+1) -> 

Sheet 요양기관기초정보
D1: =IFBLANK(C5) -> 팜오피스약국
B4: 요양기관기초정보 | E4: A4용지 인쇄 프린터 경로
B5: 요양기관명 | C5: 팜오피스약국
B6: 대표 | C6: 홍길동 | E6: 라벨 프린터 경로
B7: 주민등록번호 | C7: 680623-1234567
B8: 개설일 | C8: 2009-01-02 | D8: "2000-01-02"형식으로 입력하세요
B9: 개설등록번호 | C9: 제3443호
B10: 휴대전화 | C10: 010-1234-5678
B11: 주소 | C11: 서울 서대문구 연세로 41 (창천동 78-14)
B12: 전화 | C12: 02-324-4650
B13: 팩스 | C13: 0505-324-4662
B14: 사업자등록번호 | C14: 307-06-71688
B15: 업태 | C15: 소매
B16: 종목 | C16: 양약,의료기기
B17: 요양기관기호 | C17: 12345678
B18: 면허번호 | C18: 40587
B19: 마약류 | C19: D00001610
B20: 이메일 | C20: azerci@hanmail.net
B21: 관할보건소 | C21: 서대문구
B22: 관할노동지청 | C22: 서울
B23: 청구용소프트웨어ID | C23: jm000
B25: 요양기관조직도-근로 노무관련 서류작성시 필요
B26: 관리부 | C26: 일반약품구매,전문약주문
B27: 판매부 | C27: 접수,수납
B28: 조제실 | C28: 조제,ATC관리
B35: 개인정보관리책임자-요양기관내 관리자(미지정도 가능)
B36: 이름
B37: 직급
B38: 연락처
B40: 영상정보위탁사-경비보안업체(공란가능)
B41: 위탁회사 | C41: 에이디티캡스
B42: 대표번호 | C42: 1588-6400
B43: 담당자 | C43: 출동대원
B44: 연락처
B45: 청구소프트웨어-개인정보처리시스템
B46: 프로그램명칭 | C46: Upharm
B47: 회사명 | C47: 유비케어
B48: 대표 | C48: 이상경
B49: 주소 | C49: 서울시 구로구 디지털로 33길 28 우림 e-biz center 1차 10층
B50: 사업자등록번호
B51: 대표번호 | C51: 02-2222-5200
B52: 담당자이름 | C52: 황인명
B53: 연락처
B54: 처방전 보관 및 폐기업체
B55: 위탁회사 | C55: ㈜태웅(선자원)
B56: 대표번호 | C56: 031-403-1432
B57: 담당자 | C57: 박종익
B58: 연락처

Sheet 요약
A1: 약국개인정보보호 상시 점검사항
H6: 약국개인정보보호관련 최신 지침

Sheet 개인정보점검갱신

Sheet 필요서류
A1: 관리번호 | B1: 항목번호 | C1: 증빙자료 | D1: 팜오피스 시트명칭
A2: 1 | B2: 1.1.1 | C2: 개인정보수집동의서, 회원가입신청서 등 개인정보수집 양식 | D2: 동의서
A3: 2 | B3: 1.1.2 | C3: 개인정보수집동의서, 회원가입신청서 등 개인정보수집 양식 | D3: 동의서
A4: 3 | B4: 1.2.1 | C4: 개인정보수집동의서, 회원가입신청서 등 개인정보수집 양식 | D4: 동의서
A5: 4 | B5: 1.2.2 | C5: 개인정보수집동의서, 회원가입신청서 등 개인정보수집 양식 | D5: 동의서
A6: 5 | B6: 1.2.3 | C6: 개인정보수집동의서, 회원가입신청서 등 개인정보수집 양식 | D6: 동의서
A7: 6 | B7: 1.3.1 | C7: 법령에 근거하지 않은 제3자 제공 사례가 있는 경우 - 제3자 개인정보 제공 동의서(필수고지내용 ①~⑤ 포함된 동의서) | D7: 동의서
A8: 7 | B8: 1.5.1 | C8: 파기 사실 확인서 등 증빙자료 | D8: 파기
A9: 8 | B9: 1.5.2 | C9: 파기 사실 확인서 등 증빙자료 | D9: 용해증명서
A10: 9 | B10: 1.5.3 | C10: 동 항목은 별도의 증빙자료가 없어도 점검기준을 만족하는 경우에 인정
A11: 10 | B11: 1.5.4 | C11: 타 법령의 근거에 따라 별도 분리 보관하는 개인정보가 있는 경우, 개인정보처리시스템내 분리 저장된 화면캡처 또는 물리적 보관사진 등 | D11: 화면캡처
A12: 11 | B12: 2.1.1 | C12: 개인정보수집동의서, 민감정보 수집 동의서 등 민감정보 수집 양식 | D12: 민감
A13: 12 | B13: 2.2.1 | C13: 「약사법」 등 법령에 근거한 고유식별정보 수집 및 처리만 하는 경우 별도의 증빙자료 없이 점검결과를 양호로 선택
A14: 13 | B14: 2.3.1 | C14: 영상정보처리기기(CCTV) 운영・관리 방침(필수 기재사항 ①~⑧ 포함 수립) | D14: 영상관리
A15: 14 | B15: 2.3.2 | C15: 안내판 설치 장소 및 내용 | D15: CCTV안내
A16: 15 | B16: 2.3.3 | C16: 개인영상정보 관리대장 | D16: 영상정보관리
A17: 16 | B17: 2.3.4 | C17: 영상정보처리기기(CCTV) 녹화장비(DVR) 등 물리적 보관과 관련한 직·간접적 시건장치된 사진 및 접속계정(ID) 등록화면 캡처 | D17: 화면캡처
A18: 17 | B18: 2.4.1 | C18: 위탁사업자별 계약서(필수사항이 포함된 위‧수탁 계약서, 협약서, 특약서 등) | D18: 위탁계약서
A19: 18 | B19: 2.4.2 | C19: 수탁업체 대상 관리‧감독 및 개인정보보호 교육 결과 등 | D19: 업체점검
A20: 19 | B20: 2.4.3 | C20: 위탁에 관한 사실을 공개한 증빙자료(개인정보 처리방침 등) | D20: 처리방침
A21: 20 | B21: 2.5.1 | C21: 인정보취급자 보안서약서 등 관리‧감독 증빙자료 | D21: 서약
A22: 21 | B22: 2.5.2 | C22: 개인정보보호 교육 결과(교육 수료증, 교육 참석서명록 등) | D22: 교육
A23: 22 | B23: 3.1.1 | C23: 내부관리계획서(필수 반영 사항 포함) | D23: 관리계획
A24: 23 | B24: 3.2.1 | C24: 접속계정(ID) 등록 현황 및 부여된 권한내역 자료 또는 화면 캡처 | D24: 화면캡처
A25: 24 | B25: 3.2.2 | C25: 업무별 권한의 부여, 변경, 말소내역을 확인할 수 있는 관리 기록 | D25: ID
A26: 25 | B26: 3.2.3 | C26: 비밀번호 부여 시 자동으로 최소길이와 문자 및 숫자의 구성을 확인하는 화면기능 캡처 등 | D26: 화면캡처
A27: 26 | B27: 3.2.4 | C27: 컴퓨터 운영체제(Windows OS 등) 및 백신프로그램에서 제공하는 방화벽 설정 화면 캡처, 침입통제시스템을 도입한 경우 정책적용 내역 등 | D27: 화면캡처
A28: 27 | B28: 3.2.5 | C28: ※ 개인정보처리시스템(청구S/W 등)에 로그인하는 방식을 알 수 있는 화면 캡처 등 | D28: 화면캡처
A29: 28 | B29: 3.2.6 | C29: 인터넷 접속 브라우저(Explore, Chrome 등)에서 제공하는 사이트 차단 목록 화면 캡처 등 | D29: 화면캡처
A30: 29 | B30: 3.2.7 | C30: 홈페이지 개인정보 노출방지 점검, 웹 취약점 점검 수행 결과
A31: 30 | B31: 3.2.8 | C31: 일정 횟수 이상의 접속계정(ID), 비밀번호 오류 시 안내되는 메시지 화면 캡처 등 | D31: 화면캡처
A32: 31 | B32: 3.2.9 | C32: 개인정보처리시스템에 접속 후 일정시간 활동이 없는 경우, 자동 로그아웃 처리되는 화면 또는 기능적용 화면 캡처 | D32: 화면캡처
A33: 32 | B33: 3.3.1 | C33: 개인정보처리시스템내 고유식별정보, 비밀번호, 바이오정보의 암호화 저장된 화면 캡처 등 | D33: 화면캡처
A34: 33 | B34: 3.3.2 | C34: 업무용 컴퓨터(모바일기기 포함)에 저장된 파일 더블클릭 시 비밀번호를 물어보는 화면 캡처 등 | D34: 화면캡처
A35: 34 | B35: 3.3.3 | C35: 보조저장매체(외장형 하드디스크, USB메모리 등)에 저장된 파일 더블클릭 시 비밀번호를 물어보는 화면 캡처 등 | D35: 화면캡처
A36: 35 | B36: 3.3.4 | C36: 개인정보처리시스템내 데이터베이스(DB)에 저장된 값 또는 알고리즘 적용을 위한 프로그램 소스 화면 캡처 등 | D36: 화면캡처
A37: 36 | B37: 3.3.5 | C37: 중간지점(DMZ) 구간에서 운영하는 개인정보처리시스템내 데이터베이스(DB)에 저장된 값 등 캡처 | D37: 화면캡처
A38: 37 | B38: 3.4.1 | C38: 접속기록 생성일자를 확인할 수 있는 자료 또는 화면 캡처 등 | D38: 화면캡처
A39: 38 | B39: 3.4.2 | C39: 접속기록을 별도의 저장매체(외장형 하드디스크, USB메모리 등)에 저장하여 보관하고 있는 사진 등 | D39: 사진
A40: 39 | B40: 3.5.1 | C40: 업무용 PC에 설치된 백신프로그램의 최근 업데이트 날짜 등 화면 캡처 | D40: 화면캡처
A41: 40 | B41: 3.6.1 | C41: 산실‧자료보관실 출입통제 절차(절차가 반영된 규정, 계획), 출입통제 관리대장 | D41: 출입
A42: 41 | B42: 3.6.2 | C42: 물리적 보관장소 또는 시건장치에 대한 사진 등 | D42: 사진
A43: 42 | B43: 3.7.1 | C43: 수립된 개인정보 처리방침 | D43: 처리방침
A44: 43 | B44: 3.7.2 | C44: 개인정보 처리방침 공개 사실을 확인할 수 있는 자료 | D44: 처리방침
A45: 44 | B45: 3.8.1 | C45: 개인정보 보호책임자 지정 및 역할 확인이 가능한 문서(다음 중 택일 하여 증빙) - 내부관리계획, 업무 분장표, 직제표, 개인정보 처리방침 등 | D45: 처리방침
A46: 45 | B46: 3.8.2 | C46: 개인정보 보호책임자 교육 이수 실적 - 교육 참석확인증, 수료증 등  개인정보 보호책임자 관리・감독 및 제도개선 활동 실적 | D46: 교육
A47: 46 | B47: 3.9.1 | C47: 동 항목은 별도의 증빙자료가 없어도 점검기준을 준수하는 경우에 점검결과를 양호로 선택하실 수 있습니다 | D47: 체크

Sheet 점검결과
A1: =IFBLANK(요양기관기초정보!D1)&" 개인정보보호 자율점검 결과" -> 팜오피스약국 개인정보보호 자율점검 결과
F2: 점검일 | G2: =TODAY() -> 2021-05-31
A3: 순번 | B3: 항목번호 | C3: 항목 | D3: 점검결과 | E3: 증빙자료 | F3: 이행예정일자 | G3: 증빙자료명칭 | H3: 이행방법 | I3: 참조
A4: =IFBLANK(개인정보점검갱신!A5) ->  | B4: =IF(개인정보점검갱신!B5="","",SUBSTITUTE(LEFT(개인정보점검갱신!B5,6)," ","")) ->  | C4: =IF(개인정보점검갱신!B5="","",SUBSTITUTE(개인정보점검갱신!B5,점검결과!B4,"")) ->  | D4: =IF(개인정보점검갱신!C5="","",SUBSTITUTE(개인정보점검갱신!C5,점검결과!C4,"")) ->  | E4: =IF(개인정보점검갱신!D5="","",SUBSTITUTE(개인정보점검갱신!D5,점검결과!D4,"")) ->  | F4: =IF(개인정보점검갱신!E5="","",SUBSTITUTE(개인정보점검갱신!E5,점검결과!E4,"")) ->  | G4: =IF(E4="보유",VLOOKUP(B4,필요서류!$B$6:$C$49,2),"") ->  | I4: =IF(E4="보유",VLOOKUP(B4,필요서류!$B$6:$D$49,3),"") -> 
A5: =IFBLANK(개인정보점검갱신!A6) ->  | B5: =IF(개인정보점검갱신!B6="","",SUBSTITUTE(LEFT(개인정보점검갱신!B6,6)," ","")) ->  | C5: =IF(개인정보점검갱신!B6="","",SUBSTITUTE(개인정보점검갱신!B6,점검결과!B5,"")) ->  | D5: =IF(개인정보점검갱신!C6="","",SUBSTITUTE(개인정보점검갱신!C6,점검결과!C5,"")) ->  | E5: =IF(개인정보점검갱신!D6="","",SUBSTITUTE(개인정보점검갱신!D6,점검결과!D5,"")) ->  | F5: =IF(개인정보점검갱신!E6="","",SUBSTITUTE(개인정보점검갱신!E6,점검결과!E5,"")) ->  | G5: =IF(E5="보유",VLOOKUP(B5,필요서류!$B$6:$C$49,2),"") ->  | I5: =IF(E5="보유",VLOOKUP(B5,필요서류!$B$6:$D$49,3),"") -> 
A6: =IFBLANK(개인정보점검갱신!A7) ->  | B6: =IF(개인정보점검갱신!B7="","",SUBSTITUTE(LEFT(개인정보점검갱신!B7,6)," ","")) ->  | C6: =IF(개인정보점검갱신!B7="","",SUBSTITUTE(개인정보점검갱신!B7,점검결과!B6,"")) ->  | D6: =IF(개인정보점검갱신!C7="","",SUBSTITUTE(개인정보점검갱신!C7,점검결과!C6,"")) ->  | E6: =IF(개인정보점검갱신!D7="","",SUBSTITUTE(개인정보점검갱신!D7,점검결과!D6,"")) ->  | F6: =IF(개인정보점검갱신!E7="","",SUBSTITUTE(개인정보점검갱신!E7,점검결과!E6,"")) ->  | G6: =IF(E6="보유",VLOOKUP(B6,필요서류!$B$6:$C$49,2),"") ->  | I6: =IF(E6="보유",VLOOKUP(B6,필요서류!$B$6:$D$49,3),"") -> 
A7: =IFBLANK(개인정보점검갱신!A8) ->  | B7: =IF(개인정보점검갱신!B8="","",SUBSTITUTE(LEFT(개인정보점검갱신!B8,6)," ","")) ->  | C7: =IF(개인정보점검갱신!B8="","",SUBSTITUTE(개인정보점검갱신!B8,점검결과!B7,"")) ->  | D7: =IF(개인정보점검갱신!C8="","",SUBSTITUTE(개인정보점검갱신!C8,점검결과!C7,"")) ->  | E7: =IF(개인정보점검갱신!D8="","",SUBSTITUTE(개인정보점검갱신!D8,점검결과!D7,"")) ->  | F7: =IF(개인정보점검갱신!E8="","",SUBSTITUTE(개인정보점검갱신!E8,점검결과!E7,"")) ->  | G7: =IF(E7="보유",VLOOKUP(B7,필요서류!$B$6:$C$49,2),"") ->  | I7: =IF(E7="보유",VLOOKUP(B7,필요서류!$B$6:$D$49,3),"") -> 
A8: =IFBLANK(개인정보점검갱신!A9) ->  | B8: =IF(개인정보점검갱신!B9="","",SUBSTITUTE(LEFT(개인정보점검갱신!B9,6)," ","")) ->  | C8: =IF(개인정보점검갱신!B9="","",SUBSTITUTE(개인정보점검갱신!B9,점검결과!B8,"")) ->  | D8: =IF(개인정보점검갱신!C9="","",SUBSTITUTE(개인정보점검갱신!C9,점검결과!C8,"")) ->  | E8: =IF(개인정보점검갱신!D9="","",SUBSTITUTE(개인정보점검갱신!D9,점검결과!D8,"")) ->  | F8: =IF(개인정보점검갱신!E9="","",SUBSTITUTE(개인정보점검갱신!E9,점검결과!E8,"")) ->  | G8: =IF(E8="보유",VLOOKUP(B8,필요서류!$B$6:$C$49,2),"") ->  | I8: =IF(E8="보유",VLOOKUP(B8,필요서류!$B$6:$D$49,3),"") -> 
A9: =IFBLANK(개인정보점검갱신!A10) ->  | B9: =IF(개인정보점검갱신!B10="","",SUBSTITUTE(LEFT(개인정보점검갱신!B10,6)," ","")) ->  | C9: =IF(개인정보점검갱신!B10="","",SUBSTITUTE(개인정보점검갱신!B10,점검결과!B9,"")) ->  | D9: =IF(개인정보점검갱신!C10="","",SUBSTITUTE(개인정보점검갱신!C10,점검결과!C9,"")) ->  | E9: =IF(개인정보점검갱신!D10="","",SUBSTITUTE(개인정보점검갱신!D10,점검결과!D9,"")) ->  | F9: =IF(개인정보점검갱신!E10="","",SUBSTITUTE(개인정보점검갱신!E10,점검결과!E9,"")) ->  | G9: =IF(E9="보유",VLOOKUP(B9,필요서류!$B$6:$C$49,2),"") ->  | I9: =IF(E9="보유",VLOOKUP(B9,필요서류!$B$6:$D$49,3),"") -> 
A10: =IFBLANK(개인정보점검갱신!A11) ->  | B10: =IF(개인정보점검갱신!B11="","",SUBSTITUTE(LEFT(개인정보점검갱신!B11,6)," ","")) ->  | C10: =IF(개인정보점검갱신!B11="","",SUBSTITUTE(개인정보점검갱신!B11,점검결과!B10,"")) ->  | D10: =IF(개인정보점검갱신!C11="","",SUBSTITUTE(개인정보점검갱신!C11,점검결과!C10,"")) ->  | E10: =IF(개인정보점검갱신!D11="","",SUBSTITUTE(개인정보점검갱신!D11,점검결과!D10,"")) ->  | F10: =IF(개인정보점검갱신!E11="","",SUBSTITUTE(개인정보점검갱신!E11,점검결과!E10,"")) ->  | G10: =IF(E10="보유",VLOOKUP(B10,필요서류!$B$6:$C$49,2),"") ->  | I10: =IF(E10="보유",VLOOKUP(B10,필요서류!$B$6:$D$49,3),"") -> 
A11: =IFBLANK(개인정보점검갱신!A12) ->  | B11: =IF(개인정보점검갱신!B12="","",SUBSTITUTE(LEFT(개인정보점검갱신!B12,6)," ","")) ->  | C11: =IF(개인정보점검갱신!B12="","",SUBSTITUTE(개인정보점검갱신!B12,점검결과!B11,"")) ->  | D11: =IF(개인정보점검갱신!C12="","",SUBSTITUTE(개인정보점검갱신!C12,점검결과!C11,"")) ->  | E11: =IF(개인정보점검갱신!D12="","",SUBSTITUTE(개인정보점검갱신!D12,점검결과!D11,"")) ->  | F11: =IF(개인정보점검갱신!E12="","",SUBSTITUTE(개인정보점검갱신!E12,점검결과!E11,"")) ->  | G11: =IF(E11="보유",VLOOKUP(B11,필요서류!$B$6:$C$49,2),"") ->  | I11: =IF(E11="보유",VLOOKUP(B11,필요서류!$B$6:$D$49,3),"") -> 
A12: =IFBLANK(개인정보점검갱신!A13) ->  | B12: =IF(개인정보점검갱신!B13="","",SUBSTITUTE(LEFT(개인정보점검갱신!B13,6)," ","")) ->  | C12: =IF(개인정보점검갱신!B13="","",SUBSTITUTE(개인정보점검갱신!B13,점검결과!B12,"")) ->  | D12: =IF(개인정보점검갱신!C13="","",SUBSTITUTE(개인정보점검갱신!C13,점검결과!C12,"")) ->  | E12: =IF(개인정보점검갱신!D13="","",SUBSTITUTE(개인정보점검갱신!D13,점검결과!D12,"")) ->  | F12: =IF(개인정보점검갱신!E13="","",SUBSTITUTE(개인정보점검갱신!E13,점검결과!E12,"")) ->  | G12: =IF(E12="보유",VLOOKUP(B12,필요서류!$B$6:$C$49,2),"") ->  | I12: =IF(E12="보유",VLOOKUP(B12,필요서류!$B$6:$D$49,3),"") -> 
A13: =IFBLANK(개인정보점검갱신!A14) ->  | B13: =IF(개인정보점검갱신!B14="","",SUBSTITUTE(LEFT(개인정보점검갱신!B14,6)," ","")) ->  | C13: =IF(개인정보점검갱신!B14="","",SUBSTITUTE(개인정보점검갱신!B14,점검결과!B13,"")) ->  | D13: =IF(개인정보점검갱신!C14="","",SUBSTITUTE(개인정보점검갱신!C14,점검결과!C13,"")) ->  | E13: =IF(개인정보점검갱신!D14="","",SUBSTITUTE(개인정보점검갱신!D14,점검결과!D13,"")) ->  | F13: =IF(개인정보점검갱신!E14="","",SUBSTITUTE(개인정보점검갱신!E14,점검결과!E13,"")) ->  | G13: =IF(E13="보유",VLOOKUP(B13,필요서류!$B$6:$C$49,2),"") ->  | I13: =IF(E13="보유",VLOOKUP(B13,필요서류!$B$6:$D$49,3),"") -> 
A14: =IFBLANK(개인정보점검갱신!A15) ->  | B14: =IF(개인정보점검갱신!B15="","",SUBSTITUTE(LEFT(개인정보점검갱신!B15,6)," ","")) ->  | C14: =IF(개인정보점검갱신!B15="","",SUBSTITUTE(개인정보점검갱신!B15,점검결과!B14,"")) ->  | D14: =IF(개인정보점검갱신!C15="","",SUBSTITUTE(개인정보점검갱신!C15,점검결과!C14,"")) ->  | E14: =IF(개인정보점검갱신!D15="","",SUBSTITUTE(개인정보점검갱신!D15,점검결과!D14,"")) ->  | F14: =IF(개인정보점검갱신!E15="","",SUBSTITUTE(개인정보점검갱신!E15,점검결과!E14,"")) ->  | G14: =IF(E14="보유",VLOOKUP(B14,필요서류!$B$6:$C$49,2),"") ->  | I14: =IF(E14="보유",VLOOKUP(B14,필요서류!$B$6:$D$49,3),"") -> 
A15: =IFBLANK(개인정보점검갱신!A16) ->  | B15: =IF(개인정보점검갱신!B16="","",SUBSTITUTE(LEFT(개인정보점검갱신!B16,6)," ","")) ->  | C15: =IF(개인정보점검갱신!B16="","",SUBSTITUTE(개인정보점검갱신!B16,점검결과!B15,"")) ->  | D15: =IF(개인정보점검갱신!C16="","",SUBSTITUTE(개인정보점검갱신!C16,점검결과!C15,"")) ->  | E15: =IF(개인정보점검갱신!D16="","",SUBSTITUTE(개인정보점검갱신!D16,점검결과!D15,"")) ->  | F15: =IF(개인정보점검갱신!E16="","",SUBSTITUTE(개인정보점검갱신!E16,점검결과!E15,"")) ->  | G15: =IF(E15="보유",VLOOKUP(B15,필요서류!$B$6:$C$49,2),"") ->  | I15: =IF(E15="보유",VLOOKUP(B15,필요서류!$B$6:$D$49,3),"") -> 
A16: =IFBLANK(개인정보점검갱신!A17) ->  | B16: =IF(개인정보점검갱신!B17="","",SUBSTITUTE(LEFT(개인정보점검갱신!B17,6)," ","")) ->  | C16: =IF(개인정보점검갱신!B17="","",SUBSTITUTE(개인정보점검갱신!B17,점검결과!B16,"")) ->  | D16: =IF(개인정보점검갱신!C17="","",SUBSTITUTE(개인정보점검갱신!C17,점검결과!C16,"")) ->  | E16: =IF(개인정보점검갱신!D17="","",SUBSTITUTE(개인정보점검갱신!D17,점검결과!D16,"")) ->  | F16: =IF(개인정보점검갱신!E17="","",SUBSTITUTE(개인정보점검갱신!E17,점검결과!E16,"")) ->  | G16: =IF(E16="보유",VLOOKUP(B16,필요서류!$B$6:$C$49,2),"") ->  | I16: =IF(E16="보유",VLOOKUP(B16,필요서류!$B$6:$D$49,3),"") -> 
A17: =IFBLANK(개인정보점검갱신!A18) ->  | B17: =IF(개인정보점검갱신!B18="","",SUBSTITUTE(LEFT(개인정보점검갱신!B18,6)," ","")) ->  | C17: =IF(개인정보점검갱신!B18="","",SUBSTITUTE(개인정보점검갱신!B18,점검결과!B17,"")) ->  | D17: =IF(개인정보점검갱신!C18="","",SUBSTITUTE(개인정보점검갱신!C18,점검결과!C17,"")) ->  | E17: =IF(개인정보점검갱신!D18="","",SUBSTITUTE(개인정보점검갱신!D18,점검결과!D17,"")) ->  | F17: =IF(개인정보점검갱신!E18="","",SUBSTITUTE(개인정보점검갱신!E18,점검결과!E17,"")) ->  | G17: =IF(E17="보유",VLOOKUP(B17,필요서류!$B$6:$C$49,2),"") ->  | I17: =IF(E17="보유",VLOOKUP(B17,필요서류!$B$6:$D$49,3),"") -> 
A18: =IFBLANK(개인정보점검갱신!A19) ->  | B18: =IF(개인정보점검갱신!B19="","",SUBSTITUTE(LEFT(개인정보점검갱신!B19,6)," ","")) ->  | C18: =IF(개인정보점검갱신!B19="","",SUBSTITUTE(개인정보점검갱신!B19,점검결과!B18,"")) ->  | D18: =IF(개인정보점검갱신!C19="","",SUBSTITUTE(개인정보점검갱신!C19,점검결과!C18,"")) ->  | E18: =IF(개인정보점검갱신!D19="","",SUBSTITUTE(개인정보점검갱신!D19,점검결과!D18,"")) ->  | F18: =IF(개인정보점검갱신!E19="","",SUBSTITUTE(개인정보점검갱신!E19,점검결과!E18,"")) ->  | G18: =IF(E18="보유",VLOOKUP(B18,필요서류!$B$6:$C$49,2),"") ->  | I18: =IF(E18="보유",VLOOKUP(B18,필요서류!$B$6:$D$49,3),"") -> 
A19: =IFBLANK(개인정보점검갱신!A20) ->  | B19: =IF(개인정보점검갱신!B20="","",SUBSTITUTE(LEFT(개인정보점검갱신!B20,6)," ","")) ->  | C19: =IF(개인정보점검갱신!B20="","",SUBSTITUTE(개인정보점검갱신!B20,점검결과!B19,"")) ->  | D19: =IF(개인정보점검갱신!C20="","",SUBSTITUTE(개인정보점검갱신!C20,점검결과!C19,"")) ->  | E19: =IF(개인정보점검갱신!D20="","",SUBSTITUTE(개인정보점검갱신!D20,점검결과!D19,"")) ->  | F19: =IF(개인정보점검갱신!E20="","",SUBSTITUTE(개인정보점검갱신!E20,점검결과!E19,"")) ->  | G19: =IF(E19="보유",VLOOKUP(B19,필요서류!$B$6:$C$49,2),"") ->  | I19: =IF(E19="보유",VLOOKUP(B19,필요서류!$B$6:$D$49,3),"") -> 
A20: =IFBLANK(개인정보점검갱신!A21) ->  | B20: =IF(개인정보점검갱신!B21="","",SUBSTITUTE(LEFT(개인정보점검갱신!B21,6)," ","")) ->  | C20: =IF(개인정보점검갱신!B21="","",SUBSTITUTE(개인정보점검갱신!B21,점검결과!B20,"")) ->  | D20: =IF(개인정보점검갱신!C21="","",SUBSTITUTE(개인정보점검갱신!C21,점검결과!C20,"")) ->  | E20: =IF(개인정보점검갱신!D21="","",SUBSTITUTE(개인정보점검갱신!D21,점검결과!D20,"")) ->  | F20: =IF(개인정보점검갱신!E21="","",SUBSTITUTE(개인정보점검갱신!E21,점검결과!E20,"")) ->  | G20: =IF(E20="보유",VLOOKUP(B20,필요서류!$B$6:$C$49,2),"") ->  | I20: =IF(E20="보유",VLOOKUP(B20,필요서류!$B$6:$D$49,3),"") -> 
A21: =IFBLANK(개인정보점검갱신!A22) ->  | B21: =IF(개인정보점검갱신!B22="","",SUBSTITUTE(LEFT(개인정보점검갱신!B22,6)," ","")) ->  | C21: =IF(개인정보점검갱신!B22="","",SUBSTITUTE(개인정보점검갱신!B22,점검결과!B21,"")) ->  | D21: =IF(개인정보점검갱신!C22="","",SUBSTITUTE(개인정보점검갱신!C22,점검결과!C21,"")) ->  | E21: =IF(개인정보점검갱신!D22="","",SUBSTITUTE(개인정보점검갱신!D22,점검결과!D21,"")) ->  | F21: =IF(개인정보점검갱신!E22="","",SUBSTITUTE(개인정보점검갱신!E22,점검결과!E21,"")) ->  | G21: =IF(E21="보유",VLOOKUP(B21,필요서류!$B$6:$C$49,2),"") ->  | I21: =IF(E21="보유",VLOOKUP(B21,필요서류!$B$6:$D$49,3),"") -> 
A22: =IFBLANK(개인정보점검갱신!A23) ->  | B22: =IF(개인정보점검갱신!B23="","",SUBSTITUTE(LEFT(개인정보점검갱신!B23,6)," ","")) ->  | C22: =IF(개인정보점검갱신!B23="","",SUBSTITUTE(개인정보점검갱신!B23,점검결과!B22,"")) ->  | D22: =IF(개인정보점검갱신!C23="","",SUBSTITUTE(개인정보점검갱신!C23,점검결과!C22,"")) ->  | E22: =IF(개인정보점검갱신!D23="","",SUBSTITUTE(개인정보점검갱신!D23,점검결과!D22,"")) ->  | F22: =IF(개인정보점검갱신!E23="","",SUBSTITUTE(개인정보점검갱신!E23,점검결과!E22,"")) ->  | G22: =IF(E22="보유",VLOOKUP(B22,필요서류!$B$6:$C$49,2),"") ->  | I22: =IF(E22="보유",VLOOKUP(B22,필요서류!$B$6:$D$49,3),"") -> 
A23: =IFBLANK(개인정보점검갱신!A24) ->  | B23: =IF(개인정보점검갱신!B24="","",SUBSTITUTE(LEFT(개인정보점검갱신!B24,6)," ","")) ->  | C23: =IF(개인정보점검갱신!B24="","",SUBSTITUTE(개인정보점검갱신!B24,점검결과!B23,"")) ->  | D23: =IF(개인정보점검갱신!C24="","",SUBSTITUTE(개인정보점검갱신!C24,점검결과!C23,"")) ->  | E23: =IF(개인정보점검갱신!D24="","",SUBSTITUTE(개인정보점검갱신!D24,점검결과!D23,"")) ->  | F23: =IF(개인정보점검갱신!E24="","",SUBSTITUTE(개인정보점검갱신!E24,점검결과!E23,"")) ->  | G23: =IF(E23="보유",VLOOKUP(B23,필요서류!$B$6:$C$49,2),"") ->  | I23: =IF(E23="보유",VLOOKUP(B23,필요서류!$B$6:$D$49,3),"") -> 
A24: =IFBLANK(개인정보점검갱신!A25) ->  | B24: =IF(개인정보점검갱신!B25="","",SUBSTITUTE(LEFT(개인정보점검갱신!B25,6)," ","")) ->  | C24: =IF(개인정보점검갱신!B25="","",SUBSTITUTE(개인정보점검갱신!B25,점검결과!B24,"")) ->  | D24: =IF(개인정보점검갱신!C25="","",SUBSTITUTE(개인정보점검갱신!C25,점검결과!C24,"")) ->  | E24: =IF(개인정보점검갱신!D25="","",SUBSTITUTE(개인정보점검갱신!D25,점검결과!D24,"")) ->  | F24: =IF(개인정보점검갱신!E25="","",SUBSTITUTE(개인정보점검갱신!E25,점검결과!E24,"")) ->  | G24: =IF(E24="보유",VLOOKUP(B24,필요서류!$B$6:$C$49,2),"") ->  | I24: =IF(E24="보유",VLOOKUP(B24,필요서류!$B$6:$D$49,3),"") -> 
A25: =IFBLANK(개인정보점검갱신!A26) ->  | B25: =IF(개인정보점검갱신!B26="","",SUBSTITUTE(LEFT(개인정보점검갱신!B26,6)," ","")) ->  | C25: =IF(개인정보점검갱신!B26="","",SUBSTITUTE(개인정보점검갱신!B26,점검결과!B25,"")) ->  | D25: =IF(개인정보점검갱신!C26="","",SUBSTITUTE(개인정보점검갱신!C26,점검결과!C25,"")) ->  | E25: =IF(개인정보점검갱신!D26="","",SUBSTITUTE(개인정보점검갱신!D26,점검결과!D25,"")) ->  | F25: =IF(개인정보점검갱신!E26="","",SUBSTITUTE(개인정보점검갱신!E26,점검결과!E25,"")) ->  | G25: =IF(E25="보유",VLOOKUP(B25,필요서류!$B$6:$C$49,2),"") ->  | I25: =IF(E25="보유",VLOOKUP(B25,필요서류!$B$6:$D$49,3),"") -> 
A26: =IFBLANK(개인정보점검갱신!A27) ->  | B26: =IF(개인정보점검갱신!B27="","",SUBSTITUTE(LEFT(개인정보점검갱신!B27,6)," ","")) ->  | C26: =IF(개인정보점검갱신!B27="","",SUBSTITUTE(개인정보점검갱신!B27,점검결과!B26,"")) ->  | D26: =IF(개인정보점검갱신!C27="","",SUBSTITUTE(개인정보점검갱신!C27,점검결과!C26,"")) ->  | E26: =IF(개인정보점검갱신!D27="","",SUBSTITUTE(개인정보점검갱신!D27,점검결과!D26,"")) ->  | F26: =IF(개인정보점검갱신!E27="","",SUBSTITUTE(개인정보점검갱신!E27,점검결과!E26,"")) ->  | G26: =IF(E26="보유",VLOOKUP(B26,필요서류!$B$6:$C$49,2),"") ->  | I26: =IF(E26="보유",VLOOKUP(B26,필요서류!$B$6:$D$49,3),"") -> 
A27: =IFBLANK(개인정보점검갱신!A28) ->  | B27: =IF(개인정보점검갱신!B28="","",SUBSTITUTE(LEFT(개인정보점검갱신!B28,6)," ","")) ->  | C27: =IF(개인정보점검갱신!B28="","",SUBSTITUTE(개인정보점검갱신!B28,점검결과!B27,"")) ->  | D27: =IF(개인정보점검갱신!C28="","",SUBSTITUTE(개인정보점검갱신!C28,점검결과!C27,"")) ->  | E27: =IF(개인정보점검갱신!D28="","",SUBSTITUTE(개인정보점검갱신!D28,점검결과!D27,"")) ->  | F27: =IF(개인정보점검갱신!E28="","",SUBSTITUTE(개인정보점검갱신!E28,점검결과!E27,"")) ->  | G27: =IF(E27="보유",VLOOKUP(B27,필요서류!$B$6:$C$49,2),"") ->  | I27: =IF(E27="보유",VLOOKUP(B27,필요서류!$B$6:$D$49,3),"") -> 
A28: =IFBLANK(개인정보점검갱신!A29) ->  | B28: =IF(개인정보점검갱신!B29="","",SUBSTITUTE(LEFT(개인정보점검갱신!B29,6)," ","")) ->  | C28: =IF(개인정보점검갱신!B29="","",SUBSTITUTE(개인정보점검갱신!B29,점검결과!B28,"")) ->  | D28: =IF(개인정보점검갱신!C29="","",SUBSTITUTE(개인정보점검갱신!C29,점검결과!C28,"")) ->  | E28: =IF(개인정보점검갱신!D29="","",SUBSTITUTE(개인정보점검갱신!D29,점검결과!D28,"")) ->  | F28: =IF(개인정보점검갱신!E29="","",SUBSTITUTE(개인정보점검갱신!E29,점검결과!E28,"")) ->  | G28: =IF(E28="보유",VLOOKUP(B28,필요서류!$B$6:$C$49,2),"") ->  | I28: =IF(E28="보유",VLOOKUP(B28,필요서류!$B$6:$D$49,3),"") -> 
A29: =IFBLANK(개인정보점검갱신!A30) ->  | B29: =IF(개인정보점검갱신!B30="","",SUBSTITUTE(LEFT(개인정보점검갱신!B30,6)," ","")) ->  | C29: =IF(개인정보점검갱신!B30="","",SUBSTITUTE(개인정보점검갱신!B30,점검결과!B29,"")) ->  | D29: =IF(개인정보점검갱신!C30="","",SUBSTITUTE(개인정보점검갱신!C30,점검결과!C29,"")) ->  | E29: =IF(개인정보점검갱신!D30="","",SUBSTITUTE(개인정보점검갱신!D30,점검결과!D29,"")) ->  | F29: =IF(개인정보점검갱신!E30="","",SUBSTITUTE(개인정보점검갱신!E30,점검결과!E29,"")) ->  | G29: =IF(E29="보유",VLOOKUP(B29,필요서류!$B$6:$C$49,2),"") ->  | I29: =IF(E29="보유",VLOOKUP(B29,필요서류!$B$6:$D$49,3),"") -> 
A30: =IFBLANK(개인정보점검갱신!A31) ->  | B30: =IF(개인정보점검갱신!B31="","",SUBSTITUTE(LEFT(개인정보점검갱신!B31,6)," ","")) ->  | C30: =IF(개인정보점검갱신!B31="","",SUBSTITUTE(개인정보점검갱신!B31,점검결과!B30,"")) ->  | D30: =IF(개인정보점검갱신!C31="","",SUBSTITUTE(개인정보점검갱신!C31,점검결과!C30,"")) ->  | E30: =IF(개인정보점검갱신!D31="","",SUBSTITUTE(개인정보점검갱신!D31,점검결과!D30,"")) ->  | F30: =IF(개인정보점검갱신!E31="","",SUBSTITUTE(개인정보점검갱신!E31,점검결과!E30,"")) ->  | G30: =IF(E30="보유",VLOOKUP(B30,필요서류!$B$6:$C$49,2),"") ->  | I30: =IF(E30="보유",VLOOKUP(B30,필요서류!$B$6:$D$49,3),"") -> 
A31: =IFBLANK(개인정보점검갱신!A32) ->  | B31: =IF(개인정보점검갱신!B32="","",SUBSTITUTE(LEFT(개인정보점검갱신!B32,6)," ","")) ->  | C31: =IF(개인정보점검갱신!B32="","",SUBSTITUTE(개인정보점검갱신!B32,점검결과!B31,"")) ->  | D31: =IF(개인정보점검갱신!C32="","",SUBSTITUTE(개인정보점검갱신!C32,점검결과!C31,"")) ->  | E31: =IF(개인정보점검갱신!D32="","",SUBSTITUTE(개인정보점검갱신!D32,점검결과!D31,"")) ->  | F31: =IF(개인정보점검갱신!E32="","",SUBSTITUTE(개인정보점검갱신!E32,점검결과!E31,"")) ->  | G31: =IF(E31="보유",VLOOKUP(B31,필요서류!$B$6:$C$49,2),"") ->  | I31: =IF(E31="보유",VLOOKUP(B31,필요서류!$B$6:$D$49,3),"") -> 
A32: =IFBLANK(개인정보점검갱신!A33) ->  | B32: =IF(개인정보점검갱신!B33="","",SUBSTITUTE(LEFT(개인정보점검갱신!B33,6)," ","")) ->  | C32: =IF(개인정보점검갱신!B33="","",SUBSTITUTE(개인정보점검갱신!B33,점검결과!B32,"")) ->  | D32: =IF(개인정보점검갱신!C33="","",SUBSTITUTE(개인정보점검갱신!C33,점검결과!C32,"")) ->  | E32: =IF(개인정보점검갱신!D33="","",SUBSTITUTE(개인정보점검갱신!D33,점검결과!D32,"")) ->  | F32: =IF(개인정보점검갱신!E33="","",SUBSTITUTE(개인정보점검갱신!E33,점검결과!E32,"")) ->  | G32: =IF(E32="보유",VLOOKUP(B32,필요서류!$B$6:$C$49,2),"") ->  | I32: =IF(E32="보유",VLOOKUP(B32,필요서류!$B$6:$D$49,3),"") -> 
A33: =IFBLANK(개인정보점검갱신!A34) ->  | B33: =IF(개인정보점검갱신!B34="","",SUBSTITUTE(LEFT(개인정보점검갱신!B34,6)," ","")) ->  | C33: =IF(개인정보점검갱신!B34="","",SUBSTITUTE(개인정보점검갱신!B34,점검결과!B33,"")) ->  | D33: =IF(개인정보점검갱신!C34="","",SUBSTITUTE(개인정보점검갱신!C34,점검결과!C33,"")) ->  | E33: =IF(개인정보점검갱신!D34="","",SUBSTITUTE(개인정보점검갱신!D34,점검결과!D33,"")) ->  | F33: =IF(개인정보점검갱신!E34="","",SUBSTITUTE(개인정보점검갱신!E34,점검결과!E33,"")) ->  | G33: =IF(E33="보유",VLOOKUP(B33,필요서류!$B$6:$C$49,2),"") ->  | I33: =IF(E33="보유",VLOOKUP(B33,필요서류!$B$6:$D$49,3),"") -> 
A34: =IFBLANK(개인정보점검갱신!A35) ->  | B34: =IF(개인정보점검갱신!B35="","",SUBSTITUTE(LEFT(개인정보점검갱신!B35,6)," ","")) ->  | C34: =IF(개인정보점검갱신!B35="","",SUBSTITUTE(개인정보점검갱신!B35,점검결과!B34,"")) ->  | D34: =IF(개인정보점검갱신!C35="","",SUBSTITUTE(개인정보점검갱신!C35,점검결과!C34,"")) ->  | E34: =IF(개인정보점검갱신!D35="","",SUBSTITUTE(개인정보점검갱신!D35,점검결과!D34,"")) ->  | F34: =IF(개인정보점검갱신!E35="","",SUBSTITUTE(개인정보점검갱신!E35,점검결과!E34,"")) ->  | G34: =IF(E34="보유",VLOOKUP(B34,필요서류!$B$6:$C$49,2),"") ->  | I34: =IF(E34="보유",VLOOKUP(B34,필요서류!$B$6:$D$49,3),"") -> 
A35: =IFBLANK(개인정보점검갱신!A36) ->  | B35: =IF(개인정보점검갱신!B36="","",SUBSTITUTE(LEFT(개인정보점검갱신!B36,6)," ","")) ->  | C35: =IF(개인정보점검갱신!B36="","",SUBSTITUTE(개인정보점검갱신!B36,점검결과!B35,"")) ->  | D35: =IF(개인정보점검갱신!C36="","",SUBSTITUTE(개인정보점검갱신!C36,점검결과!C35,"")) ->  | E35: =IF(개인정보점검갱신!D36="","",SUBSTITUTE(개인정보점검갱신!D36,점검결과!D35,"")) ->  | F35: =IF(개인정보점검갱신!E36="","",SUBSTITUTE(개인정보점검갱신!E36,점검결과!E35,"")) ->  | G35: =IF(E35="보유",VLOOKUP(B35,필요서류!$B$6:$C$49,2),"") ->  | I35: =IF(E35="보유",VLOOKUP(B35,필요서류!$B$6:$D$49,3),"") -> 
A36: =IFBLANK(개인정보점검갱신!A37) ->  | B36: =IF(개인정보점검갱신!B37="","",SUBSTITUTE(LEFT(개인정보점검갱신!B37,6)," ","")) ->  | C36: =IF(개인정보점검갱신!B37="","",SUBSTITUTE(개인정보점검갱신!B37,점검결과!B36,"")) ->  | D36: =IF(개인정보점검갱신!C37="","",SUBSTITUTE(개인정보점검갱신!C37,점검결과!C36,"")) ->  | E36: =IF(개인정보점검갱신!D37="","",SUBSTITUTE(개인정보점검갱신!D37,점검결과!D36,"")) ->  | F36: =IF(개인정보점검갱신!E37="","",SUBSTITUTE(개인정보점검갱신!E37,점검결과!E36,"")) ->  | G36: =IF(E36="보유",VLOOKUP(B36,필요서류!$B$6:$C$49,2),"") ->  | I36: =IF(E36="보유",VLOOKUP(B36,필요서류!$B$6:$D$49,3),"") -> 
A37: =IFBLANK(개인정보점검갱신!A38) ->  | B37: =IF(개인정보점검갱신!B38="","",SUBSTITUTE(LEFT(개인정보점검갱신!B38,6)," ","")) ->  | C37: =IF(개인정보점검갱신!B38="","",SUBSTITUTE(개인정보점검갱신!B38,점검결과!B37,"")) ->  | D37: =IF(개인정보점검갱신!C38="","",SUBSTITUTE(개인정보점검갱신!C38,점검결과!C37,"")) ->  | E37: =IF(개인정보점검갱신!D38="","",SUBSTITUTE(개인정보점검갱신!D38,점검결과!D37,"")) ->  | F37: =IF(개인정보점검갱신!E38="","",SUBSTITUTE(개인정보점검갱신!E38,점검결과!E37,"")) ->  | G37: =IF(E37="보유",VLOOKUP(B37,필요서류!$B$6:$C$49,2),"") ->  | I37: =IF(E37="보유",VLOOKUP(B37,필요서류!$B$6:$D$49,3),"") -> 
A38: =IFBLANK(개인정보점검갱신!A39) ->  | B38: =IF(개인정보점검갱신!B39="","",SUBSTITUTE(LEFT(개인정보점검갱신!B39,6)," ","")) ->  | C38: =IF(개인정보점검갱신!B39="","",SUBSTITUTE(개인정보점검갱신!B39,점검결과!B38,"")) ->  | D38: =IF(개인정보점검갱신!C39="","",SUBSTITUTE(개인정보점검갱신!C39,점검결과!C38,"")) ->  | E38: =IF(개인정보점검갱신!D39="","",SUBSTITUTE(개인정보점검갱신!D39,점검결과!D38,"")) ->  | F38: =IF(개인정보점검갱신!E39="","",SUBSTITUTE(개인정보점검갱신!E39,점검결과!E38,"")) ->  | G38: =IF(E38="보유",VLOOKUP(B38,필요서류!$B$6:$C$49,2),"") ->  | I38: =IF(E38="보유",VLOOKUP(B38,필요서류!$B$6:$D$49,3),"") -> 
A39: =IFBLANK(개인정보점검갱신!A40) ->  | B39: =IF(개인정보점검갱신!B40="","",SUBSTITUTE(LEFT(개인정보점검갱신!B40,6)," ","")) ->  | C39: =IF(개인정보점검갱신!B40="","",SUBSTITUTE(개인정보점검갱신!B40,점검결과!B39,"")) ->  | D39: =IF(개인정보점검갱신!C40="","",SUBSTITUTE(개인정보점검갱신!C40,점검결과!C39,"")) ->  | E39: =IF(개인정보점검갱신!D40="","",SUBSTITUTE(개인정보점검갱신!D40,점검결과!D39,"")) ->  | F39: =IF(개인정보점검갱신!E40="","",SUBSTITUTE(개인정보점검갱신!E40,점검결과!E39,"")) ->  | G39: =IF(E39="보유",VLOOKUP(B39,필요서류!$B$6:$C$49,2),"") ->  | I39: =IF(E39="보유",VLOOKUP(B39,필요서류!$B$6:$D$49,3),"") -> 
A40: =IFBLANK(개인정보점검갱신!A41) ->  | B40: =IF(개인정보점검갱신!B41="","",SUBSTITUTE(LEFT(개인정보점검갱신!B41,6)," ","")) ->  | C40: =IF(개인정보점검갱신!B41="","",SUBSTITUTE(개인정보점검갱신!B41,점검결과!B40,"")) ->  | D40: =IF(개인정보점검갱신!C41="","",SUBSTITUTE(개인정보점검갱신!C41,점검결과!C40,"")) ->  | E40: =IF(개인정보점검갱신!D41="","",SUBSTITUTE(개인정보점검갱신!D41,점검결과!D40,"")) ->  | F40: =IF(개인정보점검갱신!E41="","",SUBSTITUTE(개인정보점검갱신!E41,점검결과!E40,"")) ->  | G40: =IF(E40="보유",VLOOKUP(B40,필요서류!$B$6:$C$49,2),"") ->  | I40: =IF(E40="보유",VLOOKUP(B40,필요서류!$B$6:$D$49,3),"") -> 
A41: =IFBLANK(개인정보점검갱신!A42) ->  | B41: =IF(개인정보점검갱신!B42="","",SUBSTITUTE(LEFT(개인정보점검갱신!B42,6)," ","")) ->  | C41: =IF(개인정보점검갱신!B42="","",SUBSTITUTE(개인정보점검갱신!B42,점검결과!B41,"")) ->  | D41: =IF(개인정보점검갱신!C42="","",SUBSTITUTE(개인정보점검갱신!C42,점검결과!C41,"")) ->  | E41: =IF(개인정보점검갱신!D42="","",SUBSTITUTE(개인정보점검갱신!D42,점검결과!D41,"")) ->  | F41: =IF(개인정보점검갱신!E42="","",SUBSTITUTE(개인정보점검갱신!E42,점검결과!E41,"")) ->  | G41: =IF(E41="보유",VLOOKUP(B41,필요서류!$B$6:$C$49,2),"") ->  | I41: =IF(E41="보유",VLOOKUP(B41,필요서류!$B$6:$D$49,3),"") -> 
A42: =IFBLANK(개인정보점검갱신!A43) ->  | B42: =IF(개인정보점검갱신!B43="","",SUBSTITUTE(LEFT(개인정보점검갱신!B43,6)," ","")) ->  | C42: =IF(개인정보점검갱신!B43="","",SUBSTITUTE(개인정보점검갱신!B43,점검결과!B42,"")) ->  | D42: =IF(개인정보점검갱신!C43="","",SUBSTITUTE(개인정보점검갱신!C43,점검결과!C42,"")) ->  | E42: =IF(개인정보점검갱신!D43="","",SUBSTITUTE(개인정보점검갱신!D43,점검결과!D42,"")) ->  | F42: =IF(개인정보점검갱신!E43="","",SUBSTITUTE(개인정보점검갱신!E43,점검결과!E42,"")) ->  | G42: =IF(E42="보유",VLOOKUP(B42,필요서류!$B$6:$C$49,2),"") ->  | I42: =IF(E42="보유",VLOOKUP(B42,필요서류!$B$6:$D$49,3),"") -> 
A43: =IFBLANK(개인정보점검갱신!A44) ->  | B43: =IF(개인정보점검갱신!B44="","",SUBSTITUTE(LEFT(개인정보점검갱신!B44,6)," ","")) ->  | C43: =IF(개인정보점검갱신!B44="","",SUBSTITUTE(개인정보점검갱신!B44,점검결과!B43,"")) ->  | D43: =IF(개인정보점검갱신!C44="","",SUBSTITUTE(개인정보점검갱신!C44,점검결과!C43,"")) ->  | E43: =IF(개인정보점검갱신!D44="","",SUBSTITUTE(개인정보점검갱신!D44,점검결과!D43,"")) ->  | F43: =IF(개인정보점검갱신!E44="","",SUBSTITUTE(개인정보점검갱신!E44,점검결과!E43,"")) ->  | G43: =IF(E43="보유",VLOOKUP(B43,필요서류!$B$6:$C$49,2),"") ->  | I43: =IF(E43="보유",VLOOKUP(B43,필요서류!$B$7:$D$49,3),"") -> 
A44: =IFBLANK(개인정보점검갱신!A45) ->  | B44: =IF(개인정보점검갱신!B45="","",SUBSTITUTE(LEFT(개인정보점검갱신!B45,6)," ","")) ->  | C44: =IF(개인정보점검갱신!B45="","",SUBSTITUTE(개인정보점검갱신!B45,점검결과!B44,"")) ->  | D44: =IF(개인정보점검갱신!C45="","",SUBSTITUTE(개인정보점검갱신!C45,점검결과!C44,"")) ->  | E44: =IF(개인정보점검갱신!D45="","",SUBSTITUTE(개인정보점검갱신!D45,점검결과!D44,"")) ->  | F44: =IF(개인정보점검갱신!E45="","",SUBSTITUTE(개인정보점검갱신!E45,점검결과!E44,"")) ->  | G44: =IF(E44="보유",VLOOKUP(B44,필요서류!$B$6:$C$49,2),"") ->  | I44: =IF(E44="보유",VLOOKUP(B44,필요서류!$B$7:$D$49,3),"") -> 
A45: =IFBLANK(개인정보점검갱신!A46) ->  | B45: =IF(개인정보점검갱신!B46="","",SUBSTITUTE(LEFT(개인정보점검갱신!B46,6)," ","")) ->  | C45: =IF(개인정보점검갱신!B46="","",SUBSTITUTE(개인정보점검갱신!B46,점검결과!B45,"")) ->  | D45: =IF(개인정보점검갱신!C46="","",SUBSTITUTE(개인정보점검갱신!C46,점검결과!C45,"")) ->  | E45: =IF(개인정보점검갱신!D46="","",SUBSTITUTE(개인정보점검갱신!D46,점검결과!D45,"")) ->  | F45: =IF(개인정보점검갱신!E46="","",SUBSTITUTE(개인정보점검갱신!E46,점검결과!E45,"")) ->  | G45: =IF(E45="보유",VLOOKUP(B45,필요서류!$B$6:$C$49,2),"") ->  | I45: =IF(E45="보유",VLOOKUP(B45,필요서류!$B$7:$D$49,3),"") -> 
A46: =IFBLANK(개인정보점검갱신!A47) ->  | B46: =IF(개인정보점검갱신!B47="","",LEFT(개인정보점검갱신!B47,6)) ->  | C46: =IF(개인정보점검갱신!B47="","",SUBSTITUTE(개인정보점검갱신!B47,점검결과!B46,"")) ->  | D46: =IF(개인정보점검갱신!C47="","",SUBSTITUTE(개인정보점검갱신!C47,점검결과!C46,"")) ->  | E46: =IF(개인정보점검갱신!D47="","",SUBSTITUTE(개인정보점검갱신!D47,점검결과!D46,"")) ->  | F46: =IF(개인정보점검갱신!E47="","",SUBSTITUTE(개인정보점검갱신!E47,점검결과!E46,"")) ->  | G46: =IF(E46="보유",VLOOKUP(B46,필요서류!$B$6:$C$49,2),"") -> 
A47: =IFBLANK(개인정보점검갱신!A48) ->  | B47: =IF(개인정보점검갱신!B48="","",LEFT(개인정보점검갱신!B48,6)) ->  | C47: =IF(개인정보점검갱신!B48="","",SUBSTITUTE(개인정보점검갱신!B48,점검결과!B47,"")) ->  | D47: =IF(개인정보점검갱신!C48="","",SUBSTITUTE(개인정보점검갱신!C48,점검결과!C47,"")) ->  | E47: =IF(개인정보점검갱신!D48="","",SUBSTITUTE(개인정보점검갱신!D48,점검결과!D47,"")) ->  | F47: =IF(개인정보점검갱신!E48="","",SUBSTITUTE(개인정보점검갱신!E48,점검결과!E47,"")) ->  | G47: =IF(E47="보유",VLOOKUP(B47,필요서류!$B$6:$C$49,2),"") -> 
A48: =IFBLANK(개인정보점검갱신!A49) ->  | B48: =IF(개인정보점검갱신!B49="","",LEFT(개인정보점검갱신!B49,6)) ->  | C48: =IF(개인정보점검갱신!B49="","",SUBSTITUTE(개인정보점검갱신!B49,점검결과!B48,"")) ->  | D48: =IF(개인정보점검갱신!C49="","",SUBSTITUTE(개인정보점검갱신!C49,점검결과!C48,"")) ->  | E48: =IF(개인정보점검갱신!D49="","",SUBSTITUTE(개인정보점검갱신!D49,점검결과!D48,"")) ->  | F48: =IF(개인정보점검갱신!E49="","",SUBSTITUTE(개인정보점검갱신!E49,점검결과!E48,"")) ->  | G48: =IF(E48="보유",VLOOKUP(B48,필요서류!$B$6:$C$49,2),"") -> 
A49: =IFBLANK(개인정보점검갱신!A50) ->  | B49: =IF(개인정보점검갱신!B50="","",LEFT(개인정보점검갱신!B50,6)) ->  | C49: =IF(개인정보점검갱신!B50="","",SUBSTITUTE(개인정보점검갱신!B50,점검결과!B49,"")) ->  | D49: =IF(개인정보점검갱신!C50="","",SUBSTITUTE(개인정보점검갱신!C50,점검결과!C49,"")) ->  | E49: =IF(개인정보점검갱신!D50="","",SUBSTITUTE(개인정보점검갱신!D50,점검결과!D49,"")) ->  | F49: =IF(개인정보점검갱신!E50="","",SUBSTITUTE(개인정보점검갱신!E50,점검결과!E49,"")) ->  | G49: =IF(E49="보유",VLOOKUP(B49,필요서류!$B$6:$C$49,2),"") -> 

Sheet 보유
A1: =IFBLANK(요양기관기초정보!D1)&" 개인정보보호 자율점검 결과-보유하고 있어야할 서류목록" -> 팜오피스약국 개인정보보호 자율점검 결과-보유하고 있어야할 서류목록
A3: 순번 | B3: 항목번호 | C3: 항목 | D3: 점검결과 | E3: 증빙자료 | F3: 이행예정일자 | G3: 증빙자료명칭 | H3: 이행방법 | I3: 참조 | K3: 순번 | L3: 시트이름 | M3: 증빙자료명칭
A4: 1 | K4: =IFBLANK(A4) -> 1 | L4: =IFBLANK(I4) ->  | M4: =IFBLANK(G4) -> 
A5: =IF(B5="","",A4+1) ->  | K5: =IFBLANK(A5) ->  | L5: =IFBLANK(I5) ->  | M5: =IFBLANK(G5) -> 
A6: =IF(B6="","",A5+1) -> 
K23: =IFBLANK(A23) ->  | L23: =IFBLANK(I23) ->  | M23: =IFBLANK(G23) -> 
A35: =IF(B35="","",A34+1) -> 

Sheet 고지
A1: 조제기록부 작성을 위한 개인정보 수집‧이용, 제공 고지
A2: =" "&IFERROR(Josa(요양기관기초정보!D1,1),요양기관기초정보!D1&"은")&" 조제기록부작성 위하여 아래와 같이 개인정보를 수집하고자 합니다." -> 팜오피스약국은 조제기록부작성 위하여 아래와 같이 개인정보를 수집하고자 합니다.
A3: 개인정보 보호법 제15조제1항제2호에 따라 정보주체의 동의 없이 개인정보를 수집‧이용합니다.
A4: 개인정보수집사유 | C4: 개인정보항목 | E4: 수집근거
A5: =IFBLANK(동의서!A22) -> 조제기록부 작성 | C5: 성명, 주민등록번호, 주소, 연락처 | E5: =IFBLANK(동의서!E22) -> ｢약사법｣ 제30조
A6: 수집된 개인정보는 복약 정보 제공 이외의 목적으로 사용하지 않습니다.
A7: 개인정보보호관련 서류 비치 및 열람안내
A8: =" "&IFERROR(Josa(요양기관기초정보!D1,1),요양기관기초정보!D1&"은")&" 고객의 개인정보보호에 최선을 다하고 있습니다" -> 팜오피스약국은 고객의 개인정보보호에 최선을 다하고 있습니다
A9: 관련법에 의거 다음의 서류를 비치하고 있으며 열람하실수 있습니다.
A10: ◈개인정보 내부관리 계획
A11: ◈개인정보 처리방침
A12: ◈영상정보처리기기(CCTV) 운영·관리 방침

Sheet 동의서
A1: =IF(I6="","○○○",I6&" 서비스를 위한 개인정보 수집‧이용, 제공 동의서") -> 건강정보안내 서비스를 위한 개인정보 수집‧이용, 제공 동의서
A2: =IFERROR(Josa(요양기관기초정보!D1,1),요양기관기초정보!D1&"은")&" "&IFBLANK(I6)&"서비스 제공을 위하여 아래와 같이 개인정보를 수집‧이용 및 제공하고자 합니다. 내용을 자세히 읽으신 후 동의 여부를 결정하여 주십시오." -> 팜오피스약국은 건강정보안내서비스 제공을 위하여 아래와 같이 개인정보를 수집‧이용 및 제공하고자 합니다. 내용을 자세히 읽으신 후 동의 여부를 결정하여 주십시오.
A3: □ 개인정보 수집‧이용 내역(필수사항)
A4: 항 목 | D4: 수집목적 | F4: 보유기간 | H4: 홈페이지운영이나 DM,문자메세지로 건강정보 제공시 필요
A5: 성명, 전화번호 | D5: =IFBLANK(I6) -> 건강정보안내 | F5: 1년
A6: ※ 위의 개인정보 수집‧이용에 대한 동의를 거부할 권리가 있습니다. 그러나 동의를 거부할 경우 원활한 서비스 제공에 일부 제한을 받을 수 있습니다. | H6: 개인정보 수집목적 | I6: 건강정보안내
A7: ☞ 위와 같이 개인정보를 수집·이용하는데 동의하십니까? ( )예 ( )아니오
A8: □ 선택적 개인정보 수집‧이용 내역(동의거부 가능)
A9: 항 목 | D9: 수집목적 | F9: 보유기간
A10: □ 성별 □ 결혼 여부 | D10: =IFBLANK(I6) -> 건강정보안내 | F10: 1년
A11: □ 연령 □ 관심 분야
A12: ="※ 위의 개인정보 수집‧이용에 대한 동의를 거부하셔도 "&IF(I6="","○○○",I6)&" 서비스는 받으실 수 있습니다." -> ※ 위의 개인정보 수집‧이용에 대한 동의를 거부하셔도 건강정보안내 서비스는 받으실 수 있습니다.
A13: ☞ 위와 같이 개인정보를 수집·이용하는데 동의하십니까? ( )예 ( )아니오
A14: □ 개인정보 제3자 제공 내역
A15: 제공받는 기관 | C15: 제공목적 | D15: 제공하는 항목 | F15: 보유기간
F16: 1년
A17: ※ 위의 개인정보 제공에 대한 동의를 거부할 권리가 있습니다. 그러나 동의를 거부할 경우 원활한 서비스 제공에 일부 제한을 받을 수 있습니다.
A18: ☞ 위와 같이 개인정보를 제3자 제공하는데 동의하십니까? ( )예 ( )아니오
A19: <기타 고지 사항>
A20: 개인정보 보호법 제15조제1항제2호에 따라 정보주체의 동의 없이 개인정보를 수집‧이용합니다.
A21: 개인정보 처리사유 | C21: 개인정보 항목 | E21: 수집 근거
A22: 조제기록부 작성 | C22: 성명, 주민등록번호, 주소, 연락처 | E22: ｢약사법｣ 제30조
D23: 본인 성명 | F23: (서명 또는 인)
D24: 법정대리인 성명 | F24: (서명 또는 인)
A25: =IFBLANK(요양기관기초정보!D1)&"장 귀중" -> 팜오피스약국장 귀중

Sheet 열람기준
A1: 조제기록부 열람 및 사본발급 기준
A2: 보건복지부 지침 제정 2017. 6. 23.
A4: 제1조(목적) 이 지침은 「약사법 시행규칙」 제18조의2제1항 및 제2항에 따라 약사가 작성한 조제기록부의 열람 및 사본발급에 필요한 제출 서류의 범위 및 기준 등에 관하여 필요한 사항을 정함을 목적으로 한다.
A6: 제2조(동의서) ① 「약사법 시행규칙」 제18조의2제1항제1호가목에 따른 “환자 본인의 동의서”란 환자가 자필 서명한 별지 제1호서식의 조제기록 열람 및 사본발급 동의서를 말한다.
A7: ② 제1항에도 불구하고 환자가 만 14세 미만의 미성년자인 경우에는 환자의 법정대리인이 작성할 수 있다.
A9: 제3조(신분증) ① 「약사법 시행규칙」 제18조의2제1항제1호나목에 따른 “환자 본인의 신분증 사본”이란 다음 각 호의 어느 하나를 말한다.
A10: 1. 주민등록증 사본
A11: 2. 여권 사본
A12: 3. 운전면허증 사본
A13: 4. 그 밖에 공공기관에서 발행한 것으로 환자 본인을 확인할 수 있는 신분증 사본
A14: ② 「약사법 시행규칙」 제18조의2제1항제1호다목에 따른 “요청인의 신분증 사본”이란 다음 각 호의 어느 하나를 말한다.
A15: 1. 제1항제1호부터 제3호까지의 서류 중 어느 하나에 해당하는 서류
A16: 2. 그 밖에 공공기관에서 발행한 것으로 요청인 본인을 확인할 수 있는 신분증 사본
A17: ③ 제1항에도 불구하고 환자가 만 17세 미만의 미성년자인 경우에는 환자 본인의 신분증 사본을 제출하지 아니할 수 있다.
A19: 제4조(친족관계에 관한 서류) ① 「약사법 시행규칙」 제18조의2제1항제1호라목에 따른 “요청인과 환자가 친족 관계임을 나타내는 서류”란 다음 각 호의 어느 하나를 말한다.
A20: 1. 가족관계증명서
A21: 2. 주민등록표 등본
A22: ② 「약사법 시행규칙」 제18조의2제1항제1호에 따라 환자의 형제․자매가 요청하는 경우에는 환자의 배우자 및 직계존속․비속, 배우자의 직계존속이 모두 없음을 증명할 수 있는 서류를 첨부하여야 한다.
A24: 제5조(지정대리권에 관한 서류) ① 「약사법 시행규칙」 제18조의2제1항제2호나목에 따른 “요청인에게 지정대리권이 있음을 증명하는 서류”란 환자가 자필 서명한 별지 제2호서식의 조제기록 열람 및 사본발급 위임장을 말한다.
A25: ② 제1항에도 불구하고 환자가 만 14세 미만의 미성년자인 경우에는 환자의 법정대리인이 작성할 수 있다. 이 경우 가족관계증명서 등 법정대리인임을 증명할 수 있는 서류를 첨부하여야 한다.
A27: 제6조(법정대리권에 관한 서류) 「약사법 시행규칙」 제18조의2제1항제3호나목에 따른 “요청인에게 법정대리권이 있음을 증명하는 서류”란 요청인이 「민법」 제928조 또는 제936조에 따른 후견인임을 확인할 수 있는 법원의 결정문 등을 말한다.
A29: 제7조(환자의 동의를 받을 수 없는 경우에 관한 서류) ①「약사법 시행규칙」 제18조의2제1항제4호나목에 따른 “환자가 사망하거나 의식이 없는 등 환자의 동의를 받을 수 없음을 증명하는 서류”란 다음 구분에 따른 서류를 말한다.
A30: 1. 환자가 사망한 경우: 가족관계증명서, 제적등본, 사망진단서 등 환자의 사망사실을 확인할 수 있는 서류
A31: 2. 환자가 의식불명 또는 중증의 질환․부상으로 자필서명을 할 수 없는 경우: 환자가 의식불명 또는 중증의 질환․부상으로 자필 서명을 할 수 없음을 확인할 수 있는 의사의 진단서
A32: 3. 환자가 행방불명인 경우: 주민등록표 등본, 법원의 실종선고 결정문 사본 등 행망불명 사실을 확인할 수 있는 서류
A33: 4. 환자가 의사무능력자인 경우: 의사무능력자임을 확인할 수 있는 정신과 전문의의 진단서
A34: ② 「약사법 시행규칙」 제18조의2제1항제4호에 따라 환자의 형제․자매가 요청하는 경우에는 환자의 배우자 및 직계존속․비속, 배우자의 직계존속이 모두 없음을 증명할 수 있는 서류를 첨부하여야 한다.
A36: 부 칙
A37: 이 지침은 2017. 6. 23.부터 시행한다.
A39: 약사법 제30조(조제기록부)
A40: ①약사는 약국에서 의약품을 조제(제23조제3항 각 호 외의 부분 단서 및 각 호에 따라 처방전 없이 조제하는 경우를 포함한다. 이하 이 조에서 같다)하면 환자의 인적 사항, 조제 연월일, 처방 약품명과 일수, 조제 내용 및 복약지도 내용, 그 밖에 보건복지부령으로 정하는 사항을 조제기록부(전자문서로 작성한 것을 포함한다)에 적어 5년 동안 보존하여야 한다. <개정 2008.2.29, 2010.1.18, 2011.3.30>
A41: ② 환자는 약사에게 본인에 관한 기록의 열람 또는 사본의 발급 등 그 내용의 확인을 요청할 수 있다. 이 경우 약사는 정당한 사유 없이 이를 거부하여서는 아니 된다. <개정 2015.12.29>
A42: ③ 약사는 환자가 아닌 다른 사람에게 환자에 관한 조제기록부를 열람하게 하거나 그 사본을 내주는 등 내용을 확인할 수 있게 하여서는 아니 된다. 다만, 다음 각 호의 어느 하나에 해당하는 경우에는 그 내용을 확인하게 할 수 있다. <신설 2015.12.29>
A43: 1. 환자의 배우자, 직계존속ㆍ비속, 형제ㆍ자매(환자의 배우자 및 직계존속ㆍ비속, 배우자의 직계존속이 모두 없는 경우에 한정한다) 또는 배우자의 직계존속이 환자 본인의 동의서와 친족관계임을 나타내는 증명서 등을 첨부하는 등 보건복지부령으로 정하는 요건을 갖추어 요청한 경우
A44: 2. 환자가 지정하는 대리인이 환자 본인의 동의서와 대리권이 있음을 증명하는 서류를 첨부하는 등 보건복지부령으로 정하는 요건을 갖추어 요청한 경우
A45: 3. 환자의 법정대리인(「민법」 제928조 또는 제936조에 따른 후견인으로 한정한다)이 대리권이 있음을 증명하는 서류를 첨부하는 등 보건복지부령으로 정하는 요건을 갖추어 요청한 경우
A46: 4. 환자가 사망하거나 의식이 없는 등 환자의 동의를 받을 수 없어 환자의 배우자, 직계존속ㆍ비속, 형제ㆍ자매(환자의 배우자 및 직계존속ㆍ비속, 배우자의 직계존속이 모두 없는 경우에 한정한다) 또는 배우자의 직계존속이 친족관계임을 나타내는 증명서 등을 첨부하는 등 보건복지부령으로 정하는 요건을 갖추어 요청한 경우
A47: 5. 「국민건강보험법」 제14조, 제47조, 제48조 및 제63조에 따라 급여비용 심사ㆍ지급ㆍ대상여부 확인ㆍ사후관리 및 요양급여의 적정성 평가ㆍ가감지급 등을 위하여 국민건강보험공단 또는 건강보험심사평가원에 제공하는 경우
A48: 6. 「의료급여법」 제5조, 제11조, 제11조의3 및 제33조에 따라 의료급여 수급권자 확인, 급여비용의 심사ㆍ지급, 사후관리 등 의료급여 업무를 위하여 보장기관(시ㆍ군ㆍ구), 국민건강보험공단, 건강보험심사평가원에 제공하는 경우
A49: 7. 「형사소송법」 제106조, 제215조 또는 제218조에 따른 경우
A50: 8. 「민사소송법」 제347조에 따라 문서제출을 명한 경우
A52: 약사법 시행규칙 제18조의2(조제기록부의 확인 등)
A53: ① 약사는 법 제30조제3항 단서에 따라 각 호의 구분에 따른 요청이 있는 경우에는 환자가 아닌 다른 사람에게 환자에 관한 조제기록부의 내용을 확인하게 할 수 있다.
A54: 1. 법 제30조제3항제1호에 따라 환자의 배우자 등이 요청하는 경우: 다음 각 목의 서류를 모두 제출할 것
A55: 가. 환자 본인의 동의서
A56: 나. 환자 본인의 신분증 사본
A57: 다. 요청인의 신분증 사본
A58: 라. 요청인과 환자가 친족 관계임을 나타내는 서류
A59: 2. 법 제30조제3항제2호에 따라 환자가 지정하는 대리인이 요청하는 경우: 다음 각 목의 서류를 모두 제출할 것
A60: 가. 제1호가목부터 다목까지의 서류
A61: 나. 요청인에게 지정대리권이 있음을 증명하는 서류
A62: 3. 법 제30조제3항제3호에 따라 환자의 법정대리인이 요청하는 경우: 다음 각 목의 서류를 모두 제출할 것
A63: 가. 제1호가목부터 다목까지의 서류
A64: 나. 요청인에게 법정대리권이 있음을 증명하는 서류
A65: 4. 법 제30조제3항제4호에 따라 환자의 배우자 등이 요청하는 경우: 다음 각 목의 서류를 모두 제출할 것
A66: 가. 제1호나목부터 라목까지의 서류
A67: 나. 환자가 사망하거나 의식이 없는 등 환자의 동의를 받을 수 없음을 증명하는 서류
A68: ② 제1항제1호부터 제4호까지의 규정에 따른 제출서류의 범위 및 기준 등에 관하여 필요한 세부 사항은 보건복지부장관이 정한다.

Sheet 열람동의서
A1: ■ [별지 제1호서식]
A2: 조제기록 열람 및 사본발급 동의서
A3: 환자 본인 | B3: 성 명 | D3: 연락처
B4: 생년월일 (외국인등록번호)
B5: 주 소
A6: 신청인 | B6: 성 명 | D6: 환자와의 관계
B7: 생년월일 (외국인등록번호) | D7: 연락처
B8: 주 소
A9: 열람 및 사본 발급 범위 | B9: 약국명칭 | C9: =요양기관기초정보!D1 -> 팜오피스약국 | D9: 팩스 | E9: =IFBLANK(요양기관기초정보!C13) -> 0505-324-4662
B10: 조제기간
B11: 발급사유
B12: 발급내용
B13: ㅁ 조제기록부 ㅁ 영수증
B14: ㅁ 기타 -
A15: 본인(또는 법정대리인)은 상기 신청인이 「약사법」 제30조제3항 및 같은 법 시행규칙 제18조의2에 따라 본인의 조제기록을 열람하거나 사본을 발급받는 것에 대하여 동의합니다.
A18: 년 월 일
A20: 본인(또는 법정대리인) (자필서명) | H20: 법 시행령 제41조(개인정보의 열람절차 등)
A21: *법정대리인-본인의배우자,본인의 직계존비속,배우자의직계존속
A22: *법정대리인 신청시 환자신분증사본+신청인신분증+가족관계증명서나 주민등록표등본
A23: ■ [별지 제2호서식] | H23: 개인정보 처리 방법에 관한 고시
A24: 조제기록 열람 및 사본발급 위임장
A25: 수임인 | B25: 성명 | D25: 전화번호
B26: 생년월일(외국인등록번호) | D26: 위임인과의 관계
B27: 주소
A28: 위임인 | B28: 성명 | D28: 전화번호 | H28: 관련뉴스
B29: 생년월일(외국인등록번호)
B30: 주소
A31: 위임인은 「약사법」제30조제3항 및 같은 법 시행규칙 제18조의2에 따라 「조제기록 열람 및 사본발급 동의서」에 기재된 사항에 대하여 일체 권한을 상기 수임인에게 위임합니다.
A34: 년 월 일
A36: 위임인 (자필서명)
A38: *위임받은자가 신청시 환자신분증사본+수임인(위임받은자)신분증 첨부
A39: 자료를 받을 팩스나 Email을 기록해주세요-

Sheet 열람안내
A1: 조제기록,영수증 -열람,사본 발급시 구비서류
A5: 관련법규 | B5: -- 개인정보보호법 35조/개인정보보호법시행령41조
B6: -- 약사법30조/약사법시행규칙 18조의2
A7: 환자본인발급시 | E7: 환자의 친족 | I7: 환자가 지정하는 대리인 | M7: 요청방법
A9: 1.신청인신분증 | E9: 1.신청인신분증 | I9: 1.신청인신분증 | M9: 1.방문
E11: 2.환자신분증사본 | I11: 2.환자신분증사본 | M11: 2.온라인
E13: 3.가족관계증명서 | I13: 3.환자자필동의서 | M13: -본인 친족만 가능
E15: 4.환자자필동의서 | I15: 4.환자자필위임장
E17: 친족이라도 위임장 작성하면 가족관계증명서 불필요 | I17: 형제,자매,자부,사위,보험회사나 병의원들에서 요청시
A21: ▣환자의친족-배우자,직계존속,직계비속,배우자의 직계존속 // 형제,자매,자부,사위는 위임장을 첨부해야 합니다.
A22: ▣관련법에 의거 5년이전의 자료는 복구불가능하게 삭제되므로 자료를 발급해 드릴수 없습니다.
A23: 자격이 없는 자가 요청하거나 서류가 구비 되지 않으면 발급이 거절됩니다.
A25: =요양기관기초정보!D1 -> 팜오피스약국

Sheet 표 (hidden)
A2: 연번
A3: 1
A7: 2
A11: 3
A15: 4
A19: 5
A23: 6
A27: 7

Sheet 용해증명서
A1: 용해,소각등 파기사실 증빙서류

Sheet 파기
A1: =IFBLANK(요양기관기초정보!D1)&" 개인정보 파기 관리대장" -> 팜오피스약국 개인정보 파기 관리대장
A3: 번호 | B3: 개인정보 파일명 | C3: 자료의 종류 | D3: 생성기간 | E3: 폐기일 | F3: 폐기사유 | G3: 폐기방법 | H3: 개인정보처리담당자
A4: =IF(B4="","",1) -> 1 | B4: 환자 종이 처방전 | C4: 종이처방전 | D4: 2012-03-31 | E4: 2015-03-31 | F4: 보존기간 경과 | G4: 용해/증빙서류 보관 | H4: =IF(E3="","",요양기관기초정보!$C$6) -> 홍길동
A5: =IF(B5="","",A4+1) -> 2 | B5: 환자 조제 내역 정보 | C5: 전산데이터 | D5: 2010-12-31 | E5: 2015-12-31 | F5: 보존기간 경과 | G5: 전산자료삭제 | H5: =IF(E4="","",요양기관기초정보!$C$6) -> 홍길동
A6: =IF(B6="","",A5+1) ->  | J6: 내용을 지우고 사용하세요
A16: =IF(B16="","",A15+1) -> 
H20: =IF(E17="","",요양기관기초정보!$C$6) -> 
A21: =IF(B21="","",A20+1) ->  | H21: =IF(E21="","",요양기관기초정보!$C$35) -> 
A22: =IFBLANK(요양기관기초정보!D1)&" 개인정보 파기 관리대장" -> 팜오피스약국 개인정보 파기 관리대장
A24: 번호 | B24: 개인정보 파일명 | C24: 자료의 종류 | D24: 생성기간 | E24: 폐기일 | F24: 폐기사유 | G24: 폐기방법 | H24: 개인정보처리담당자
A25: =IF(B25="","",A21+1) -> 
A26: =IF(B26="","",A22+1) -> 

Sheet 민감
A1: 민감정보 수집‧이용 동의서
A2: =IFERROR(Josa(요양기관기초정보!D1,1),요양기관기초정보!D1&"은")&" 개인정보보호법 등 관련 법령상의 개인정보 보호 규정을 준수하며 회원의 개인정 보 보호에 최선을 다하고 있습니다. "&IFERROR(Josa(요양기관기초정보!D1,1),요양기관기초정보!D1&"은")&" 개인정보보호법 제23조제1호에 근거하여, 다음과 같이 민감정보를 수집․이용하는데 동의를 받고자 합니다." -> 팜오피스약국은 개인정보보호법 등 관련 법령상의 개인정보 보호 규정을 준수하며 회원의 개인정 보 보호에 최선을 다하고 있습니다. 팜오피스약국은 개인정보보호법 제23조제1호에 근거하여, 다음과 같이 민감정보를 수집․이용하는데 동의를 받고자 합니다.
A3: 항목 | D3: 수집목적 | G3: 보유기간
A8: ※ 위와 같이 개인정보를 처리하는데 동의를 거부할 권리가 있습니다.
A9: 그러나 동의를 거부할 경우 일부 서비스 제공이 제한 될 수 있습니다.
A10: 위와 같이 민감정보를 처리하는데 동의하십니까? | G10: ( 예 , 아니오)
C11: 동의 일시 | F11: 년 | G11: 월 | H11: 일
C12: 본인 성명 | G12: (서명 또는 날인)
A13: ※ 정보주체가 만14세 미만의 아동인 경우
A14: 위와 같이 민감정보를 처리하는데 동의하십니까? | G14: ( 예 , 아니오)
C15: 본인 성명 | G15: (서명 또는 날인)
C16: 법정대리인 성명 | G16: (서명 또는 날인)
A18: =IFBLANK(요양기관기초정보!D1)&" 약국장 귀중" -> 팜오피스약국 약국장 귀중

Sheet 영상관리
A1: 【 영상정보처리기기(CCTV) 운영·관리 방침 】
A3: =IFERROR(Josa(요양기관기초정보!D1,1),요양기관기초정보!D1&"은")&"(이하 본사라 함) 영상정보처리기기 운영․관리 방침을 통해 본사에서 처리하는 영상정보가 어떠한 용도와 방식으로 이용․관리되고 있는지 알려드립니다." -> 팜오피스약국은(이하 본사라 함) 영상정보처리기기 운영․관리 방침을 통해 본사에서 처리하는 영상정보가 어떠한 용도와 방식으로 이용․관리되고 있는지 알려드립니다.
A5: 1. 영상정보처리기기의 설치 근거 및 설치 목적
A6: 본 사는 개인정보보호법 제25조 제1항에 따라 다음과 같은 목적으로 영상정보처리기기를 설치․운영 합니다.
A8: =IFBLANK(H12) -> - 시설안전 및 화재 예방
A9: =IFBLANK(H13) -> - 고객의 안전을 위한 범죄 예방
A11: 2. 설치 대수, 설치 위치 및 촬영범위 | F11: CCTV
F12: 설치목적 | H12: - 시설안전 및 화재 예방
A13: 설치 대수 | C13: 설치 위치 및 촬영 범위 | H13: - 고객의 안전을 위한 범죄 예방
A14: =IFBLANK(H14) ->  | C14: =IFBLANK(H15) ->  | F14: 설치대수
F15: 설치장소
A16: 3. 관리책임자 및 접근권한자 | F16: 접근권한자 | G16: 이름
G17: 직위
A18: 귀하의 영상정보를 보호하고 개인영상정보와 관련한 불만을 처리하기 위하여 아래와 같이 | G18: 연락처
A19: 개인영상정보 보호책임자를 두고 있습니다. | F19: 촬영시간 | H19: 24시간
F20: 보관기간 | H20: 촬영일로부터 300일
B21: 이름 | C21: 직위 | D21: 연락처 | F21: 보관장소 | H21: 1층
A22: 관리책임자 | B22: =IFBLANK(요양기관기초정보!C6) -> 홍길동 | C22: 약국장 | D22: =IFBLANK(요양기관기초정보!C12) -> 02-324-4650 | F22: 수탁업체 | G22: 업체명
A23: 접근권한자 | B23: =IFBLANK(H16) ->  | C23: =IFBLANK(H17) ->  | D23: =IFBLANK(H18) ->  | G23: 연락처
G24: 담당자
A25: 4. 영상정보의 촬영시간, 보관기간, 보관장소 및 처리방법 | G25: 휴대전화
A27: 촬영시간 | B27: 보관기간 | C27: 보관장소 | D27: 처리방법
A28: =IFBLANK(H19) -> 24시간 | B28: =IFBLANK(H20) -> 촬영일로부터 300일 | C28: =IFBLANK(H21) -> 1층 | D28: 아래
A29: 처리방법 : 개인영상정보의 목적 외 이용, 제3자 제공, 파기, 열람 등 요구에 관한 사항을 , 보관기간 만료 시 복원이 불가능한 방법으로 영구 삭제합니다.
A31: 5. 영상정보처리기기 설치 및 관리 등의 위탁에 관한 사항
A33: 본 사는 아래와 같이 영상정보처리기기 설치 및 관리 등을 위탁하고 있으며, 관계 법령에 따라 위탁계약 시 개인정보가 안전하게 관리될 수 있도록 필요한 사항을 규정하고 있습니다.
A35: 수탁업체 | B35: 대표번호 | C35: 담당자 | D35: 연락처
A36: =IFBLANK(H22) ->  | B36: =IFBLANK(H23) ->  | C36: =IFBLANK(H24) ->  | D36: =IFBLANK(H25) -> 

Sheet CCTV안내
H23: 설치목적 | AD23: 범죄 예방 및 시설물 관리,고객안전관리
H30: 설치장소 | AD30: 매장,계단,창고
H37: 촬영범위 | AD37: 매장 내외
H44: 촬영시간 | AD44: 24시간 연속 촬영 / 녹화
H51: 관리책임 | AD51: =" "&IFBLANK(요양기관기초정보!D1)&" 약국장" -> 팜오피스약국 약국장 | BT51: 연 락 처 | CP51: =" "&IFBLANK(요양기관기초정보!C12) -> 02-324-4650
AY80: =IFBLANK(요양기관기초정보!D1) -> 팜오피스약국

Sheet CCTV인증샷
A1: CCTV설치 인증샷
J11: 예시

Sheet 영상정보관리
A1: 개인영상정보 관리대장
A2: 번호 | B2: 구분 | C2: 일시 | D2: 파일명/형태 | E2: 담당자 | F2: 목적/사유 | G2: 이용․제공받는 제3자 열람등 요구자 | H2: 이용·제공·열람 거부시 구체적 사유 | I2: 사본제공사유
A3: 1 | B3: □ 이용
B4: □ 제공
B5: □ 열람
B6: □ 파기
A7: 2 | B7: □ 이용
B8: □ 제공
B9: □ 열람
B10: □ 파기
A11: 3 | B11: □ 이용
B12: □ 제공
B13: □ 열람
B14: □ 파기
A15: 4 | B15: □ 이용
B16: □ 제공
B17: □ 열람
B18: □ 파기
A19: 5 | B19: □ 이용
B20: □ 제공
B21: □ 열람
B22: □ 파기
F23: =요양기관기초정보!D1 -> 팜오피스약국

Sheet 위탁계약서
A1: 개인정보처리 위탁 계약서
A2: =IFBLANK(요양기관기초정보!D1)&"(이하 “갑”이라 한다)"&IFERROR(Josa1(요양기관기초정보!D1,4),"과")&" "&IFBLANK(요양기관기초정보!C47)&"(이하 “을”이라 한다)"&IFERROR(Josa1(요양기관기초정보!C47,1),"은(는)")&" “갑”의 개인정보 처리업무를 “을”에게 위탁함에 있어 다음과 같은 내용으로 본 업무위탁계약을 체결한다." -> 팜오피스약국(이하 “갑”이라 한다)과 유비케어(이하 “을”이라 한다)는 “갑”의 개인정보 처리업무를 “을”에게 위탁함에 있어 다음과 같은 내용으로 본 업무위탁계약을 체결한다.
A4: 제1조 (목적)
B5: 이 계약은 “갑”이 개인정보처리업무를 “을”에게 위탁하고, “을”은 이를 승낙하여 “을”의 책임아래 성실하게 업무를 완성하도록 하는데 필요한 사항을 정함을 목적으로 한다.
A7: 제2조 (용어의 정의)
B8: 본 계약에서 별도로 정의되지 아니한 용어는「개인정보 보호법」, 같은 법 시행령 및 시행규칙,「개인정보의 안전성 확보조치 기준」(행정안전부 고시 제2017-1호) 및「표준 개인정보 보호지침」(행정안전부 고시 제2017-1호)에서 정의된 바에 따른다.
A10: 제3조 (위탁업무의 목적 및 범위)
B11: ="“을”은 계약이 정하는 바에 따라 개인정보처리시스템 -"&요양기관기초정보!C46&"-으로 다음과 같은 개인정보처리업무를 수행한다." -> “을”은 계약이 정하는 바에 따라 개인정보처리시스템 -Upharm-으로 다음과 같은 개인정보처리업무를 수행한다.
C12: 1. 개인정보의 암호화
C13: 2. 프로그램의 유지보수
A15: 제4조 (재위탁 제한)
B16: ① “을”은 “갑”의 사전 승낙을 얻은 경우를 제외하고 “갑”과의 계약상의 권리와 의무의 전부 또는 일부를 제3자에게 양도하거나 재위탁할 수 없다.
B17: ② “을”이 다른 제3의 회사와 수탁계약을 할 경우에는 “을”은 해당 사실을 계약 체결 7일 이전에 “갑”에게 통보하고 협의하여야 한다.
A19: 제5조 (개인정보의 안전성 확보조치)
B20: “을”은「개인정보 보호법」제23조제2항 및 제24조제3항 및 제29조, 같은 법 시행령 제21조 및 제30조, 「개인정보의 안전성 확보조치 기준」(행정안전부 고시 제2017-1호)에 따라 개인정보의 안전성 확보에 필요한 관리적․기술적 조치를 취하여야 한다.
A22: 제6조 (개인정보의 처리제한)
B23: ① “을”은 계약기간은 물론 계약 종료 후에도 위탁업무 수행 목적 범위를 넘어 개인정보를 이용하거나 이를 제3자에게 제공 또는 누설하여서는 안 된다.
B24: ② “을”은 계약이 해지되거나 또는 계약기간이 만료된 경우 위탁업무와 관련하여 보유하고 있는 개인정보를 「개인정보 보호법」시행령 제16조 및「개인정보의 안전성 확보조치 기준」(행정안전부 고시 제2017-1호)에 따라 즉시 파기하거나 “갑”에게 반납하여야 한다.
B25: ③ 제2항에 따라 “을”이 개인정보를 파기한 경우 지체없이 “갑”에게 그 결과를 통보하여야 한다.
A27: 제7조 (수탁자에 대한 관리·감독 등)
B28: ① “갑”은 “을”에 대하여 다음 각 호의 사항을 관리하도록 요구할 수 있으며, “을”은 특별한 사유가 없는 한 이에 응하여야 한다.
C29: 1. 개인정보의 처리 현황
C30: 2. 개인정보의 접근 또는 접속현황
C31: 3. 개인정보 접근 또는 접속 대상자
C32: 4. 목적외 이용․제공 및 재위탁 금지 준수여부
C33: 5. 암호화 등 안전성 확보조치 이행여부
C34: 6. 그 밖에 개인정보의 보호를 위하여 필요한 사항
B35: ② “갑”은 “을”에 대하여 제1항 각 호의 사항에 대한 실태를 점검하여 시정을 요구할 수 있으며, “을”은 특별한 사유가 없는 한 이행하여야 한다.
B36: ③ “갑”은 처리위탁으로 인하여 정보주체의 개인정보가 분실·도난·유출·변조 또는 훼손되지 아니하도록 1년에 ( 1 )회 “을”을 교육할 수 있으며, “을”은 이에 응하여야 한다.
B37: ④ 제1항에 따른 교육의 시기와 방법 등에 대해서는 “갑”은 “을”과 협의하여 시행한다.
A39: 제8조 (손해배상)
B40: ① “을” 또는 “을”의 임직원 기타 “을”의 수탁자가 이 계약에 의하여 위탁 또는 재위탁받은 업무를 수행함에 있어 이 계약에 따른 의무를 위반하거나 “을” 또는 “을”의 임직원 기타 “을”의 수탁자의 귀책사유로 인하여 이 계약이 해지되어 “갑” 또는 개인정보주체 기타 제3자에게 손해가 발생한 경우 “을”은 그 손해를 배상하여야 한다.
B41: ② 제1항과 관련하여 개인정보주체 기타 제3자에게 발생한 손해에 대하여 “갑”이 전부 또는 일부를 배상한 때에는 “갑”은 이를 “을”에게 구상할 수 있다.
A43: 본 계약의 내용을 증명하기 위하여 계약서 2부를 작성하고, “갑”과 “을”이 서명 또는 날인한 후 각 1부씩 보관한다
B45: 갑 | E45: ="업체명 : "&요양기관기초정보!D1&" ("&요양기관기초정보!C14&")" -> 업체명 : 팜오피스약국 (307-06-71688)
E46: ="대표자 : "&요양기관기초정보!C6&" (인)" -> 대표자 : 홍길동 (인)
E47: ="주 소 : "&요양기관기초정보!C11 -> 주 소 : 서울 서대문구 연세로 41 (창천동 78-14)
E48: ="연락처 : "&요양기관기초정보!C12 -> 연락처 : 02-324-4650
B49: 을 | E49: ="업체명 : "&요양기관기초정보!C47&" ("&요양기관기초정보!C50&")" -> 업체명 : 유비케어 ()
E50: ="대표자 : "&요양기관기초정보!C48 -> 대표자 : 이상경
E51: ="주 소 : "&요양기관기초정보!C49 -> 주 소 : 서울시 구로구 디지털로 33길 28 우림 e-biz center 1차 10층
E52: ="연락처 : "&요양기관기초정보!C51 -> 연락처 : 02-2222-5200

Sheet 업체점검
A1: 수탁업체 개인정보 보호 실태 점검표
C2: ○ 업체명 :
C3: ○ 점검일 :
A4: 순번 | B4: 점검항목 | C4: 점검결과 | F4: 비고
C5: 양호 | D5: 취약 | E5: 해당없움
A6: 1 | B6: 개인정보 목적 외 이용제공 여부
A7: 2 | B7: 재위탁 여부
A8: 3 | B8: 안전성 확보조치 여부
A9: 4
A10: 5
A11: 6
A12: 7
A13: 8
A14: ※ 『개인정보의 안전성 확보조치 기준(행정안전부고시 제2017-1호)』 참조

Sheet 처리방침
A1: 【 개인정보 처리방침 】
A2: =IFERROR(Josa(요양기관기초정보!D1,1),요양기관기초정보!D1&"은")&" 은 귀하의 개인정보보호를 매우 중요시하며, 『개인정보보호법』을 준수하고 있습니다."&IFERROR(Josa(요양기관기초정보!D1,1),요양기관기초정보!D1&"은")&" 개인정보 처리방침을 통하여 귀하께서 제공하시는 개인정보가 어떠한 용도와 방식으로 이용되고 있으며 개인정보보호를 위해 어떠한 조치가 취해지고 있는지 알려드립니다." -> 팜오피스약국은 은 귀하의 개인정보보호를 매우 중요시하며, 『개인정보보호법』을 준수하고 있습니다.팜오피스약국은 개인정보 처리방침을 통하여 귀하께서 제공하시는 개인정보가 어떠한 용도와 방식으로 이용되고 있으며 개인정보보호를 위해 어떠한 조치가 취해지고 있는지 알려드립니다.
A3: 이 개인정보 처리방침의 순서는 다음과 같습니다.
A5: 1. 수집하는 개인정보의 항목 및 수집방법
A6: 2. 개인정보의 수집 및 이용목적
A7: 3. 개인정보의 보유 및 이용기간 및 파기절차 및 파기방법
A8: 4. 이용자 및 법정대리인의 권리와 그 행사방법
A9: 5. 개인정보의 제공 및 공유
A10: 6. 개인정보의 위탁
A11: 7. 개인정보 보호책임자
A12: 8. 개인정보의 안전성 확보조치
A13: 9. 정책 변경에 따른 공지의무
A15: 1. 수집하는 개인정보의 항목 및 수집방법
A16: =IFERROR(Josa(요양기관기초정보!D1,1),요양기관기초정보!D1&"은")&" 처방 조제와 투약과 청구에 필요한 최소한의 개인정보만을 수집합니다." -> 팜오피스약국은 처방 조제와 투약과 청구에 필요한 최소한의 개인정보만을 수집합니다.
A17: - 수집항목 : 성명, 주민등록번호, 주소, 연락처, (관련내용 등)
A18: - 수집방법 : 약사법에 의해 개인정보가 포함된 처방전을 접수(정보주체의 별도 동의 없이 수집 가능)
A20: 2. 개인정보의 수집 및 이용목적
A21: =IFERROR(Josa(요양기관기초정보!D1,1),요양기관기초정보!D1&"은")&" 수집하는 개인정보는 약사법, 국민건강보험법에 따른 업무(처방전, 조제기록부의 보관 등), 건강보험급여의 청구에만 사용하며 이용 목적이 변경될 시에는 사전 동의를 구할 것입니다." -> 팜오피스약국은 수집하는 개인정보는 약사법, 국민건강보험법에 따른 업무(처방전, 조제기록부의 보관 등), 건강보험급여의 청구에만 사용하며 이용 목적이 변경될 시에는 사전 동의를 구할 것입니다.
A23: 3. 개인정보의 보유 및 이용기간 및 파기절차 및 파기방법
A24: =IFBLANK(요양기관기초정보!D1)&"에서 수집한 개인정보는 의료법, 약사법, 건강보험법에서 정한 보유기간 동안 보유하며 그 이후는 지체 없이 파기합니다." -> 팜오피스약국에서 수집한 개인정보는 의료법, 약사법, 건강보험법에서 정한 보유기간 동안 보유하며 그 이후는 지체 없이 파기합니다.
A25: - 보유기간 : 처방전 2년(요양급여비용을 청구한 처방전은 3년), 건강보험청구 관련 자료 5년 (법령기간)
A26: - 파기절차 : 법정 보유기간 후 파기방법에 의하여 파기
A27: - 파기방법 : 전자적 파일형태로 저장된 개인정보는 기록을 재생할 수 없는 기술적 방법을 사용하여 삭제하고 종이에 출력된 처방전은 분쇄기로 분쇄하거나 소각하여 파기
A29: 4. 이용자 및 법정대리인의 권리와 그 행사방법
A30: ="이용자 및 법정대리인은 개인정보와 관련하여 인터넷, 전화, 서면 등을 이용하여 "&요양기관기초정보!D1&"에 연락을 하여 개인정보 열람 등의 권리를 행사할 수 있으며, "&요양기관기초정보!D1&"은 지체 없이 필요한 조치를 합니다." -> 이용자 및 법정대리인은 개인정보와 관련하여 인터넷, 전화, 서면 등을 이용하여 팜오피스약국에 연락을 하여 개인정보 열람 등의 권리를 행사할 수 있으며, 팜오피스약국은 지체 없이 필요한 조치를 합니다.
A31: =IFBLANK(요양기관기초정보!D1)&"에서 법에 따라 의무적으로 보관하고 있는 처방전, 건강보험청구 관련 자료는 이용자의 요청이 있더라도 법에서 정한 기간 동안은 변경, 삭제할 수 없습니다." -> 팜오피스약국에서 법에 따라 의무적으로 보관하고 있는 처방전, 건강보험청구 관련 자료는 이용자의 요청이 있더라도 법에서 정한 기간 동안은 변경, 삭제할 수 없습니다.
A33: 5. 개인정보의 제3자 제공
A34: 국민건강보험법에 의거 건강보험심사평가원에 요양급여비용 청구를 위해 진료기록을 제출합니다. | H34: 개인정보보호종합포털
A35: ※ 국민건강보험법에 의해 의무적으로 제출하는 사항이므로 별도의 제공 동의 불필요
A37: 6. 개인정보 처리의 위탁
A38: 개인정보를 정보시스템을 통해 관리하기 위해 다음의 회사에 개인정보를 위탁하고 있습니다.
A40: - 청구프로그램(A/S 등) : 프로그램명, 회사명(연락처) 기입
B41: 회사명 | C41: 프로그램명 | D41: 연락처
B42: =IFBLANK(요양기관기초정보!C46) -> Upharm | C42: =IFBLANK(요양기관기초정보!C47) -> 유비케어 | D42: =IFBLANK(요양기관기초정보!C51) -> 02-2222-5200
A43: - 폐기 : 업체명(연락처) 기입
B44: 회사명 | D44: 연락처
B45: =IFBLANK(요양기관기초정보!C55) -> ㈜태웅(선자원) | D45: =IFBLANK(요양기관기초정보!C56) -> 031-403-1432
A46: - CCTV: 업체명(연락처) 기입
B47: 회사명 | D47: 연락처
B48: =IFBLANK(요양기관기초정보!C41) -> 에이디티캡스 | D48: =IFBLANK(요양기관기초정보!C42) -> 1588-6400
A50: 7. 개인정보 보호책임자
B51: 담당자 | D51: 연락처
B52: =IF((요양기관기초정보!C36)="",IFBLANK(요양기관기초정보!C6),IFBLANK(요양기관기초정보!C36)) -> 홍길동 | D52: =IFBLANK(요양기관기초정보!C12) -> 02-324-4650
A54: 8. 개인정보의 안전성 확보조치
A55: =IFERROR(Josa(요양기관기초정보!D1,1),요양기관기초정보!D1&"은")&" 이용자의 개인정보보호를 위한 기술적 대책으로서 여러 보안장치를 마련하고 있습니다. 이용자께서 제공하신 모든 정보는 방화벽 등 보안장비에 의해 안전하게 보호/관리되고 있습니다." -> 팜오피스약국은 이용자의 개인정보보호를 위한 기술적 대책으로서 여러 보안장치를 마련하고 있습니다. 이용자께서 제공하신 모든 정보는 방화벽 등 보안장비에 의해 안전하게 보호/관리되고 있습니다.
A56: ="또한 "&IFERROR(Josa(요양기관기초정보!D1,1),요양기관기초정보!D1&"은")&" 이용자의 개인정보보호를 위한 관리적 대책으로서 이용자의 개인정보에 대한 접근 및 관리에 필요한 절차를 마련하고, 이용자의 개인정보를 처리하는 인원을 최소한으로 제한하고 개인정보를 처리하는 시스템의 사용자 비밀번호를 정기적으로 갱신하여 안전하게 관리합니다." -> 또한 팜오피스약국은 이용자의 개인정보보호를 위한 관리적 대책으로서 이용자의 개인정보에 대한 접근 및 관리에 필요한 절차를 마련하고, 이용자의 개인정보를 처리하는 인원을 최소한으로 제한하고 개인정보를 처리하는 시스템의 사용자 비밀번호를 정기적으로 갱신하여 안전하게 관리합니다.
A58: 9. 정책 변경에 따른 공지의무
A59: ="이 개인정보 처리방침은 "&IF(요양기관기초정보!C8<40997,"2012년3월30일",YEAR(요양기관기초정보!C8)&"년"&MONTH(요양기관기초정보!C8)&"월"&DAY(요양기관기초정보!C8)&"일")&"에 제정되었으며 법령ㆍ정책 또는 보안기술의 변경에 따라 내용의 추가ㆍ삭제 및 수정이 있을 시에는 변경되는 개인정보 처리방침을 시행하기 최소 7일전 처방전 접수대에 변경이유 및 내용 등을 공지하도록 하겠습니다." -> 이 개인정보 처리방침은 2012년3월30일에 제정되었으며 법령ㆍ정책 또는 보안기술의 변경에 따라 내용의 추가ㆍ삭제 및 수정이 있을 시에는 변경되는 개인정보 처리방침을 시행하기 최소 7일전 처방전 접수대에 변경이유 및 내용 등을 공지하도록 하겠습니다.
C61: 공고일자 | D61: =IF(요양기관기초정보!C8<40998,"2012년3월30일",YEAR(요양기관기초정보!C8)&"년"&MONTH(요양기관기초정보!C8)&"월"&DAY(요양기관기초정보!C8)&"일") -> 2012년3월30일
C62: 시행일자 | D62: =IF(요양기관기초정보!C8<40998,"2012년4월6일",YEAR(요양기관기초정보!C8+7)&"년"&MONTH(요양기관기초정보!C8+7)&"월"&DAY(요양기관기초정보!C8+7)&"일") -> 2012년4월6일

Sheet 서약
A1: 보안 서약서
A4: 성 명 | B4: =IF(J5="없어요","",VLOOKUP($J$4,사원명부!$A$2:$AB$150,2)) -> 테스트2 | D4: 주민등록번호 | E4: =IF(J5="없어요","",LEFT(VLOOKUP($J$4,사원명부!$A$2:$AB$150,4),8)&"******") -> 680623-1****** | H4: 사원번호 | J4: 2
A5: 소 속 | B5: =IFBLANK(요양기관기초정보!D1) -> 팜오피스약국 | D5: 직 위 | E5: =IF(J5="없어요","",VLOOKUP($J$4,사원명부!$A$2:$AB$150,8)&" "&VLOOKUP($J$4,사원명부!$A$2:$AB$150,9)) -> 조제실 실장 | H5: 이 름 | J5: =IFERROR(IF($J$4="","",VLOOKUP(J4,사원명부!A2:B100,2,FALSE)),"없어요") -> 테스트2
A6: 입사년월일 | B6: =IF(J5="없어요","",VLOOKUP($J$4,사원명부!$A$2:$AB$150,11)) -> 2021-01-01 | D6: 연락처 | E6: =IF(J5="없어요","",VLOOKUP($J$4,사원명부!$A$2:$AB$150,6)) -> 010-2345-6789
A7: 주 소 | B7: =IF(J5="없어요","",VLOOKUP($J$4,사원명부!$A$2:$AB$150,7)) -> 서울시 서대문구연세로 41
H8: 1 | J8: =IFERROR(IF(H8="","",VLOOKUP(H8,사원명부!$A$2:$B$100,2,FALSE)),"") -> 테스트1
A9: ="상기 본인은 "&IFBLANK(요양기관기초정보!D1)&"에 근무하면서 업무 중에 알게 된 환자의 개인정보에 대하여 업무 수행중이나 업무 수행 후에도 비밀을 지킬 것을 서약합니다. 또한 환자의 개인정보의 보호를 위해 "&IFBLANK(요양기관기초정보!D1)&"에서 정하는 개인정보처리방침 또는 내부관리계획을 준수할 것이며, 적법한 절차 없이 의원 및 환자의 개인정보를 무단으로 조회하거나 유출하지 않을 것을 서약합니다."&" "&"본인은 개인정보보호책임자로부터 개인정보 처리 및 보호의 법적 근거가 되는 “개인정보보호법” 관련 규정을 충분히 설명을 듣고 숙지하였습니다."&" "&"만약, 이러한 서약에도 불구하고 업무상 알게 된 사항에 대하여 비밀을 누설하거나 정당한 사유 없이 조회, 유출, 오용할 경우 민·형사상 처벌은 물론 징계처분을 받을 수 있음을 통고 받았으며, 이러한 제재에 대하여 이의를 제기하지 않을 것을 본인의 자의로 서약합니다." -> 상기 본인은 팜오피스약국에 근무하면서 업무 중에 알게 된 환자의 개인정보에 대하여 업무 수행중이나 업무 수행 후에도 비밀을 지킬 것을 서약합니다. 또한 환자의 개인정보의 보호를 위해 팜오피스약국에서 정하는 개인정보처리방침 또는 내부관리계획을 준수할 것이며, 적법한 절차 없이 의원 및 환자의 개인정보를 무단으로 조회하거나 유출하지 않을 것을 서약합니다. 본인은 개인정보보호책임자로부터 개인정보 처리 및 보호의 법적 근거가 되는 “개인정보보호법” 관련 규정을 충분히 설명을 듣고 숙지하였습니다. 만약, 이러한 서약에도 불구하고 업무상 알게 된 사항에 대하여 비밀을 누설하거나 정당한 사유 없이 조회, 유출, 오용할 경우 민·형사상 처벌은 물론 징계처분을 받을 수 있음을 통고 받았으며, 이러한 제재에 대하여 이의를 제기하지 않을 것을 본인의 자의로 서약합니다. | H9: 2 | J9: =IFERROR(IF(H9="","",VLOOKUP(H9,사원명부!$A$2:$B$100,2,FALSE)),"") -> 테스트2
H10: 3 | J10: =IFERROR(IF(H10="","",VLOOKUP(H10,사원명부!$A$2:$B$100,2,FALSE)),"") -> 
H11: 4 | J11: =IFERROR(IF(H11="","",VLOOKUP(H11,사원명부!$A$2:$B$100,2,FALSE)),"") -> 
H12: 5 | J12: =IFERROR(IF(H12="","",VLOOKUP(H12,사원명부!$A$2:$B$100,2,FALSE)),"") -> 
H13: 6 | J13: =IFERROR(IF(H13="","",VLOOKUP(H13,사원명부!$A$2:$B$100,2,FALSE)),"") -> 
H14: 7 | J14: =IFERROR(IF(H14="","",VLOOKUP(H14,사원명부!$A$2:$B$100,2,FALSE)),"") -> 
H15: 8 | J15: =IFERROR(IF(H15="","",VLOOKUP(H15,사원명부!$A$2:$B$100,2,FALSE)),"") -> 
H16: 9 | J16: =IFERROR(IF(H16="","",VLOOKUP(H16,사원명부!$A$2:$B$100,2,FALSE)),"") -> 
H17: 10 | J17: =IFERROR(IF(H17="","",VLOOKUP(H17,사원명부!$A$2:$B$100,2,FALSE)),"") -> 
H18: 11 | J18: =IFERROR(IF(H18="","",VLOOKUP(H18,사원명부!$A$2:$B$100,2,FALSE)),"") -> 
D19: 서약일 : | E19: =IFBLANK(B6) -> 2021-01-01 | H19: 12 | J19: =IFERROR(IF(H19="","",VLOOKUP(H19,사원명부!$A$2:$B$100,2,FALSE)),"") -> 
D20: 서약자 : | E20: =IFBLANK(B4) -> 테스트2 | F20: (서명 또는 날인) | H20: 13 | J20: =IFERROR(IF(H20="","",VLOOKUP(H20,사원명부!$A$2:$B$100,2,FALSE)),"") -> 
H21: 14 | J21: =IFERROR(IF(H21="","",VLOOKUP(H21,사원명부!$A$2:$B$100,2,FALSE)),"") -> 
A22: =IFBLANK(요양기관기초정보!D1)&" 약국장 귀중" -> 팜오피스약국 약국장 귀중 | H22: 15 | J22: =IFERROR(IF(H22="","",VLOOKUP(H22,사원명부!$A$2:$B$100,2,FALSE)),"") -> 
H23: 16 | J23: =IFERROR(IF(H23="","",VLOOKUP(H23,사원명부!$A$2:$B$100,2,FALSE)),"") -> 
H24: 17 | J24: =IFERROR(IF(H24="","",VLOOKUP(H24,사원명부!$A$2:$B$100,2,FALSE)),"") -> 
H25: 18 | J25: =IFERROR(IF(H25="","",VLOOKUP(H25,사원명부!$A$2:$B$100,2,FALSE)),"") -> 
H26: 19 | J26: =IFERROR(IF(H26="","",VLOOKUP(H26,사원명부!$A$2:$B$100,2,FALSE)),"") -> 
H27: 20 | J27: =IFERROR(IF(H27="","",VLOOKUP(H27,사원명부!$A$2:$B$100,2,FALSE)),"") -> 
H28: 21 | J28: =IFERROR(IF(H28="","",VLOOKUP(H28,사원명부!$A$2:$B$100,2,FALSE)),"") -> 
H29: 22 | J29: =IFERROR(IF(H29="","",VLOOKUP(H29,사원명부!$A$2:$B$100,2,FALSE)),"") -> 
H30: 23 | J30: =IFERROR(IF(H30="","",VLOOKUP(H30,사원명부!$A$2:$B$100,2,FALSE)),"") -> 
H31: 24 | J31: =IFERROR(IF(H31="","",VLOOKUP(H31,사원명부!$A$2:$B$100,2,FALSE)),"") -> 
H32: 25 | J32: =IFERROR(IF(H32="","",VLOOKUP(H32,사원명부!$A$2:$B$100,2,FALSE)),"") -> 
H33: 26 | J33: =IFERROR(IF(H33="","",VLOOKUP(H33,사원명부!$A$2:$B$100,2,FALSE)),"") -> 
H34: 27 | J34: =IFERROR(IF(H34="","",VLOOKUP(H34,사원명부!$A$2:$B$100,2,FALSE)),"") -> 
H35: 28 | J35: =IFERROR(IF(H35="","",VLOOKUP(H35,사원명부!$A$2:$B$100,2,FALSE)),"") -> 
H36: 29 | J36: =IFERROR(IF(H36="","",VLOOKUP(H36,사원명부!$A$2:$B$100,2,FALSE)),"") -> 
H37: 30 | J37: =IFERROR(IF(H37="","",VLOOKUP(H37,사원명부!$A$2:$B$100,2,FALSE)),"") -> 
H38: 31 | J38: =IFERROR(IF(H38="","",VLOOKUP(H38,사원명부!$A$2:$B$100,2,FALSE)),"") -> 
H39: 32 | J39: =IFERROR(IF(H39="","",VLOOKUP(H39,사원명부!$A$2:$B$100,2,FALSE)),"") -> 
H40: 33 | J40: =IFERROR(IF(H40="","",VLOOKUP(H40,사원명부!$A$2:$B$100,2,FALSE)),"") -> 
H41: 34 | J41: =IFERROR(IF(H41="","",VLOOKUP(H41,사원명부!$A$2:$B$100,2,FALSE)),"") -> 
H42: 35 | J42: =IFERROR(IF(H42="","",VLOOKUP(H42,사원명부!$A$2:$B$100,2,FALSE)),"") -> 
H43: 36 | J43: =IFERROR(IF(H43="","",VLOOKUP(H43,사원명부!$A$2:$B$100,2,FALSE)),"") -> 
H44: 37 | J44: =IFERROR(IF(H44="","",VLOOKUP(H44,사원명부!$A$2:$B$100,2,FALSE)),"") -> 
H45: 38 | J45: =IFERROR(IF(H45="","",VLOOKUP(H45,사원명부!$A$2:$B$100,2,FALSE)),"") -> 
H46: 39 | J46: =IFERROR(IF(H46="","",VLOOKUP(H46,사원명부!$A$2:$B$100,2,FALSE)),"") -> 
H47: 40 | J47: =IFERROR(IF(H47="","",VLOOKUP(H47,사원명부!$A$2:$B$100,2,FALSE)),"") -> 
H48: 41 | J48: =IFERROR(IF(H48="","",VLOOKUP(H48,사원명부!$A$2:$B$100,2,FALSE)),"") -> 
H49: 42 | J49: =IFERROR(IF(H49="","",VLOOKUP(H49,사원명부!$A$2:$B$100,2,FALSE)),"") -> 
H50: 43 | J50: =IFERROR(IF(H50="","",VLOOKUP(H50,사원명부!$A$2:$B$100,2,FALSE)),"") -> 
H51: 44 | J51: =IFERROR(IF(H51="","",VLOOKUP(H51,사원명부!$A$2:$B$100,2,FALSE)),"") -> 
H52: 45 | J52: =IFERROR(IF(H52="","",VLOOKUP(H52,사원명부!$A$2:$B$100,2,FALSE)),"") -> 
H53: 46 | J53: =IFERROR(IF(H53="","",VLOOKUP(H53,사원명부!$A$2:$B$100,2,FALSE)),"") -> 
H54: 47 | J54: =IFERROR(IF(H54="","",VLOOKUP(H54,사원명부!$A$2:$B$100,2,FALSE)),"") -> 
H55: 48 | J55: =IFERROR(IF(H55="","",VLOOKUP(H55,사원명부!$A$2:$B$100,2,FALSE)),"") -> 
H56: 49 | J56: =IFERROR(IF(H56="","",VLOOKUP(H56,사원명부!$A$2:$B$100,2,FALSE)),"") -> 
H57: 50 | J57: =IFERROR(IF(H57="","",VLOOKUP(H57,사원명부!$A$2:$B$100,2,FALSE)),"") -> 
H58: 51 | J58: =IFERROR(IF(H58="","",VLOOKUP(H58,사원명부!$A$2:$B$100,2,FALSE)),"") -> 
H59: 52 | J59: =IFERROR(IF(H59="","",VLOOKUP(H59,사원명부!$A$2:$B$100,2,FALSE)),"") -> 
H60: 53 | J60: =IFERROR(IF(H60="","",VLOOKUP(H60,사원명부!$A$2:$B$100,2,FALSE)),"") -> 
H61: 54 | J61: =IFERROR(IF(H61="","",VLOOKUP(H61,사원명부!$A$2:$B$100,2,FALSE)),"") -> 
H62: 55 | J62: =IFERROR(IF(H62="","",VLOOKUP(H62,사원명부!$A$2:$B$100,2,FALSE)),"") -> 
H63: 56 | J63: =IFERROR(IF(H63="","",VLOOKUP(H63,사원명부!$A$2:$B$100,2,FALSE)),"") -> 
H64: 57 | J64: =IFERROR(IF(H64="","",VLOOKUP(H64,사원명부!$A$2:$B$100,2,FALSE)),"") -> 
H65: 58 | J65: =IFERROR(IF(H65="","",VLOOKUP(H65,사원명부!$A$2:$B$100,2,FALSE)),"") -> 
H66: 59 | J66: =IFERROR(IF(H66="","",VLOOKUP(H66,사원명부!$A$2:$B$100,2,FALSE)),"") -> 
H67: 60 | J67: =IFERROR(IF(H67="","",VLOOKUP(H67,사원명부!$A$2:$B$100,2,FALSE)),"") -> 
H68: 61 | J68: =IFERROR(IF(H68="","",VLOOKUP(H68,사원명부!$A$2:$B$100,2,FALSE)),"") -> 
H69: 62 | J69: =IFERROR(IF(H69="","",VLOOKUP(H69,사원명부!$A$2:$B$100,2,FALSE)),"") -> 
H70: 63 | J70: =IFERROR(IF(H70="","",VLOOKUP(H70,사원명부!$A$2:$B$100,2,FALSE)),"") -> 
H71: 64 | J71: =IFERROR(IF(H71="","",VLOOKUP(H71,사원명부!$A$2:$B$100,2,FALSE)),"") -> 
H72: 65 | J72: =IFERROR(IF(H72="","",VLOOKUP(H72,사원명부!$A$2:$B$100,2,FALSE)),"") -> 
H73: 66 | J73: =IFERROR(IF(H73="","",VLOOKUP(H73,사원명부!$A$2:$B$100,2,FALSE)),"") -> 
H74: 67 | J74: =IFERROR(IF(H74="","",VLOOKUP(H74,사원명부!$A$2:$B$100,2,FALSE)),"") -> 
H75: 68 | J75: =IFERROR(IF(H75="","",VLOOKUP(H75,사원명부!$A$2:$B$100,2,FALSE)),"") -> 

Sheet 교육
A1: =IFBLANK(요양기관기초정보!D1)&" 개인 정보 보호 교육 서명록" -> 팜오피스약국 개인 정보 보호 교육 서명록
A2: 교육기간 : | C2: 2021-01-01 | D2: ~ | E2: 2020-12-31
A3: 교육장소 : | C3: 개인 PC및 업무용 PC 로 개인 정보 보호 교육 동영상 시청
A4: 교육내용 : | C4: 개인정보보호법 관련
A6: 사번 | B6: 이름 | C6: 부서명 | D6: 직급 | E6: 서명 | F6: 증빙 | P6: 개인정보보호종합포털
A7: 1 | B7: =IFERROR(IF(A7="","",VLOOKUP(A7,사원명부!A2:Z100,2,FALSE)),"") -> 테스트1 | C7: =IFERROR(IF(A7="","",VLOOKUP(A7,사원명부!A2:Z100,8,FALSE)),"") -> 관리부 | D7: =IFERROR(IF(A7="","",VLOOKUP(A7,사원명부!A2:Z100,9,FALSE)),"") -> 부장 | F7: =IF(B7="","","수료증") -> 수료증
A8: =IFBLANK(업무분장내역!B6) ->  | B8: =IFERROR(IF(A8="","",VLOOKUP(A8,사원명부!A3:Z101,2,FALSE)),"") ->  | C8: =IFERROR(IF(A8="","",VLOOKUP(A8,사원명부!A3:Z101,8,FALSE)),"") ->  | D8: =IFERROR(IF(A8="","",VLOOKUP(A8,사원명부!A3:Z101,9,FALSE)),"") ->  | F8: =IF(B8="","","수료증") -> 
A9: =IFBLANK(업무분장내역!B7) ->  | B9: =IFERROR(IF(A9="","",VLOOKUP(A9,사원명부!A4:Z102,2,FALSE)),"") ->  | C9: =IFERROR(IF(A9="","",VLOOKUP(A9,사원명부!A4:Z102,8,FALSE)),"") ->  | D9: =IFERROR(IF(A9="","",VLOOKUP(A9,사원명부!A4:Z102,9,FALSE)),"") -> 
A10: =IFBLANK(업무분장내역!B8) ->  | B10: =IFERROR(IF(A10="","",VLOOKUP(A10,사원명부!A5:Z103,2,FALSE)),"") ->  | C10: =IFERROR(IF(A10="","",VLOOKUP(A10,사원명부!A5:Z103,8,FALSE)),"") ->  | D10: =IFERROR(IF(A10="","",VLOOKUP(A10,사원명부!A5:Z103,9,FALSE)),"") -> 
A11: =IFBLANK(업무분장내역!B9) ->  | B11: =IFERROR(IF(A11="","",VLOOKUP(A11,사원명부!A6:Z104,2,FALSE)),"") ->  | C11: =IFERROR(IF(A11="","",VLOOKUP(A11,사원명부!A6:Z104,8,FALSE)),"") ->  | D11: =IFERROR(IF(A11="","",VLOOKUP(A11,사원명부!A6:Z104,9,FALSE)),"") -> 
A12: =IFBLANK(업무분장내역!B10) ->  | B12: =IFERROR(IF(A12="","",VLOOKUP(A12,사원명부!A7:Z105,2,FALSE)),"") ->  | C12: =IFERROR(IF(A12="","",VLOOKUP(A12,사원명부!A7:Z105,8,FALSE)),"") ->  | D12: =IFERROR(IF(A12="","",VLOOKUP(A12,사원명부!A7:Z105,9,FALSE)),"") -> 
A13: =IFBLANK(업무분장내역!B11) ->  | B13: =IFERROR(IF(A13="","",VLOOKUP(A13,사원명부!A8:Z106,2,FALSE)),"") ->  | C13: =IFERROR(IF(A13="","",VLOOKUP(A13,사원명부!A8:Z106,8,FALSE)),"") ->  | D13: =IFERROR(IF(A13="","",VLOOKUP(A13,사원명부!A8:Z106,9,FALSE)),"") -> 
A14: =IFBLANK(업무분장내역!B12) ->  | B14: =IFERROR(IF(A14="","",VLOOKUP(A14,사원명부!A9:Z107,2,FALSE)),"") ->  | C14: =IFERROR(IF(A14="","",VLOOKUP(A14,사원명부!A9:Z107,8,FALSE)),"") ->  | D14: =IFERROR(IF(A14="","",VLOOKUP(A14,사원명부!A9:Z107,9,FALSE)),"") -> 
A15: =IFBLANK(업무분장내역!B13) ->  | B15: =IFERROR(IF(A15="","",VLOOKUP(A15,사원명부!A10:Z108,2,FALSE)),"") ->  | C15: =IFERROR(IF(A15="","",VLOOKUP(A15,사원명부!A10:Z108,8,FALSE)),"") ->  | D15: =IFERROR(IF(A15="","",VLOOKUP(A15,사원명부!A10:Z108,9,FALSE)),"") -> 
A16: =IFBLANK(업무분장내역!B14) ->  | B16: =IFERROR(IF(A16="","",VLOOKUP(A16,사원명부!A11:Z109,2,FALSE)),"") ->  | C16: =IFERROR(IF(A16="","",VLOOKUP(A16,사원명부!A11:Z109,8,FALSE)),"") ->  | D16: =IFERROR(IF(A16="","",VLOOKUP(A16,사원명부!A11:Z109,9,FALSE)),"") -> 
A17: =IFBLANK(업무분장내역!B15) ->  | B17: =IFERROR(IF(A17="","",VLOOKUP(A17,사원명부!A12:Z110,2,FALSE)),"") ->  | C17: =IFERROR(IF(A17="","",VLOOKUP(A17,사원명부!A12:Z110,8,FALSE)),"") ->  | D17: =IFERROR(IF(A17="","",VLOOKUP(A17,사원명부!A12:Z110,9,FALSE)),"") -> 
A18: =IFBLANK(업무분장내역!B16) ->  | B18: =IFERROR(IF(A18="","",VLOOKUP(A18,사원명부!A13:Z111,2,FALSE)),"") ->  | C18: =IFERROR(IF(A18="","",VLOOKUP(A18,사원명부!A13:Z111,8,FALSE)),"") ->  | D18: =IFERROR(IF(A18="","",VLOOKUP(A18,사원명부!A13:Z111,9,FALSE)),"") ->  | F18: =IF(B18="","","수료증") -> 
A19: =IFBLANK(업무분장내역!B17) ->  | B19: =IFERROR(IF(A19="","",VLOOKUP(A19,사원명부!A14:Z112,2,FALSE)),"") ->  | C19: =IFERROR(IF(A19="","",VLOOKUP(A19,사원명부!A14:Z112,8,FALSE)),"") ->  | D19: =IFERROR(IF(A19="","",VLOOKUP(A19,사원명부!A14:Z112,9,FALSE)),"") -> 
A20: =IFBLANK(업무분장내역!B18) ->  | B20: =IFERROR(IF(A20="","",VLOOKUP(A20,사원명부!A15:Z113,2,FALSE)),"") ->  | C20: =IFERROR(IF(A20="","",VLOOKUP(A20,사원명부!A15:Z113,8,FALSE)),"") ->  | D20: =IFERROR(IF(A20="","",VLOOKUP(A20,사원명부!A15:Z113,9,FALSE)),"") -> 
A21: =IFBLANK(업무분장내역!B19) ->  | B21: =IFERROR(IF(A21="","",VLOOKUP(A21,사원명부!A16:Z114,2,FALSE)),"") ->  | C21: =IFERROR(IF(A21="","",VLOOKUP(A21,사원명부!A16:Z114,8,FALSE)),"") ->  | D21: =IFERROR(IF(A21="","",VLOOKUP(A21,사원명부!A16:Z114,9,FALSE)),"") -> 
A22: =IFBLANK(업무분장내역!B20) ->  | B22: =IFERROR(IF(A22="","",VLOOKUP(A22,사원명부!A17:Z115,2,FALSE)),"") ->  | C22: =IFERROR(IF(A22="","",VLOOKUP(A22,사원명부!A17:Z115,8,FALSE)),"") ->  | D22: =IFERROR(IF(A22="","",VLOOKUP(A22,사원명부!A17:Z115,9,FALSE)),"") -> 
A23: =IFBLANK(업무분장내역!B21) ->  | B23: =IFERROR(IF(A23="","",VLOOKUP(A23,사원명부!A18:Z116,2,FALSE)),"") ->  | C23: =IFERROR(IF(A23="","",VLOOKUP(A23,사원명부!A18:Z116,8,FALSE)),"") ->  | D23: =IFERROR(IF(A23="","",VLOOKUP(A23,사원명부!A18:Z116,9,FALSE)),"") -> 
A24: =IFBLANK(업무분장내역!B22) ->  | B24: =IFERROR(IF(A24="","",VLOOKUP(A24,사원명부!A19:Z117,2,FALSE)),"") ->  | C24: =IFERROR(IF(A24="","",VLOOKUP(A24,사원명부!A19:Z117,8,FALSE)),"") ->  | D24: =IFERROR(IF(A24="","",VLOOKUP(A24,사원명부!A19:Z117,9,FALSE)),"") -> 
A25: =IFBLANK(업무분장내역!B23) ->  | B25: =IFERROR(IF(A25="","",VLOOKUP(A25,사원명부!A20:Z118,2,FALSE)),"") ->  | C25: =IFERROR(IF(A25="","",VLOOKUP(A25,사원명부!A20:Z118,8,FALSE)),"") ->  | D25: =IFERROR(IF(A25="","",VLOOKUP(A25,사원명부!A20:Z118,9,FALSE)),"") -> 
A26: =IFBLANK(업무분장내역!B24) ->  | B26: =IFERROR(IF(A26="","",VLOOKUP(A26,사원명부!A21:Z119,2,FALSE)),"") ->  | C26: =IFERROR(IF(A26="","",VLOOKUP(A26,사원명부!A21:Z119,8,FALSE)),"") ->  | D26: =IFERROR(IF(A26="","",VLOOKUP(A26,사원명부!A21:Z119,9,FALSE)),"") -> 
A27: =IFBLANK(업무분장내역!B25) ->  | B27: =IFERROR(IF(A27="","",VLOOKUP(A27,사원명부!A22:Z120,2,FALSE)),"") ->  | C27: =IFERROR(IF(A27="","",VLOOKUP(A27,사원명부!A22:Z120,8,FALSE)),"") ->  | D27: =IFERROR(IF(A27="","",VLOOKUP(A27,사원명부!A22:Z120,9,FALSE)),"") -> 
A28: =IFBLANK(업무분장내역!B26) ->  | B28: =IFERROR(IF(A28="","",VLOOKUP(A28,사원명부!A23:Z121,2,FALSE)),"") ->  | C28: =IFERROR(IF(A28="","",VLOOKUP(A28,사원명부!A23:Z121,8,FALSE)),"") ->  | D28: =IFERROR(IF(A28="","",VLOOKUP(A28,사원명부!A23:Z121,9,FALSE)),"") -> 
A29: =IFBLANK(업무분장내역!B27) ->  | B29: =IFERROR(IF(A29="","",VLOOKUP(A29,사원명부!A24:Z122,2,FALSE)),"") ->  | C29: =IFERROR(IF(A29="","",VLOOKUP(A29,사원명부!A24:Z122,8,FALSE)),"") ->  | D29: =IFERROR(IF(A29="","",VLOOKUP(A29,사원명부!A24:Z122,9,FALSE)),"") -> 
A30: =IFBLANK(업무분장내역!B28) ->  | B30: =IFERROR(IF(A30="","",VLOOKUP(A30,사원명부!A25:Z123,2,FALSE)),"") ->  | C30: =IFERROR(IF(A30="","",VLOOKUP(A30,사원명부!A25:Z123,8,FALSE)),"") ->  | D30: =IFERROR(IF(A30="","",VLOOKUP(A30,사원명부!A25:Z123,9,FALSE)),"") -> 
A31: =IFBLANK(업무분장내역!B29) ->  | B31: =IFERROR(IF(A31="","",VLOOKUP(A31,사원명부!A26:Z124,2,FALSE)),"") ->  | C31: =IFERROR(IF(A31="","",VLOOKUP(A31,사원명부!A26:Z124,8,FALSE)),"") ->  | D31: =IFERROR(IF(A31="","",VLOOKUP(A31,사원명부!A26:Z124,9,FALSE)),"") -> 
A32: =IFBLANK(업무분장내역!B30) ->  | B32: =IFERROR(IF(A32="","",VLOOKUP(A32,사원명부!A27:Z125,2,FALSE)),"") ->  | C32: =IFERROR(IF(A32="","",VLOOKUP(A32,사원명부!A27:Z125,8,FALSE)),"") ->  | D32: =IFERROR(IF(A32="","",VLOOKUP(A32,사원명부!A27:Z125,9,FALSE)),"") -> 
A33: =IFBLANK(업무분장내역!B31) ->  | B33: =IFERROR(IF(A33="","",VLOOKUP(A33,사원명부!A28:Z126,2,FALSE)),"") ->  | C33: =IFERROR(IF(A33="","",VLOOKUP(A33,사원명부!A28:Z126,8,FALSE)),"") ->  | D33: =IFERROR(IF(A33="","",VLOOKUP(A33,사원명부!A28:Z126,9,FALSE)),"") -> 
A34: =IFBLANK(요양기관기초정보!D1)&" 개인 정보 보호 교육 서명록" -> 팜오피스약국 개인 정보 보호 교육 서명록
A35: 사번 | B35: 이름 | C35: 부서명 | D35: 직급 | E35: 서명 | F35: 증빙
A36: =IFBLANK(업무분장내역!B32) ->  | B36: =IFBLANK(업무분장내역!C32) ->  | C36: =IFBLANK(업무분장내역!D32) ->  | D36: =IFBLANK(업무분장내역!E32) ->  | E36: =IFBLANK(업무분장내역!F32) ->  | F36: =IF(B36="","","수료증") -> 
A37: =IFBLANK(업무분장내역!B33) ->  | B37: =IFBLANK(업무분장내역!C33) ->  | C37: =IFBLANK(업무분장내역!D33) ->  | D37: =IFBLANK(업무분장내역!E33) ->  | E37: =IFBLANK(업무분장내역!F33) ->  | F37: =IF(B37="","","수료증") -> 
A38: =IFBLANK(업무분장내역!B34) ->  | B38: =IFBLANK(업무분장내역!C34) ->  | C38: =IFBLANK(업무분장내역!D34) ->  | D38: =IFBLANK(업무분장내역!E34) ->  | E38: =IFBLANK(업무분장내역!F34) -> 
A39: =IFBLANK(업무분장내역!B35) ->  | B39: =IFBLANK(업무분장내역!C35) ->  | C39: =IFBLANK(업무분장내역!D35) ->  | D39: =IFBLANK(업무분장내역!E35) ->  | E39: =IFBLANK(업무분장내역!F35) -> 
A40: =IFBLANK(업무분장내역!B36) ->  | B40: =IFBLANK(업무분장내역!C36) ->  | C40: =IFBLANK(업무분장내역!D36) ->  | D40: =IFBLANK(업무분장내역!E36) ->  | E40: =IFBLANK(업무분장내역!F36) -> 
A41: =IFBLANK(업무분장내역!B37) ->  | B41: =IFBLANK(업무분장내역!C37) ->  | C41: =IFBLANK(업무분장내역!D37) ->  | D41: =IFBLANK(업무분장내역!E37) ->  | E41: =IFBLANK(업무분장내역!F37) -> 
A42: =IFBLANK(업무분장내역!B38) ->  | B42: =IFBLANK(업무분장내역!C38) ->  | C42: =IFBLANK(업무분장내역!D38) ->  | D42: =IFBLANK(업무분장내역!E38) ->  | E42: =IFBLANK(업무분장내역!F38) -> 
A43: =IFBLANK(업무분장내역!B39) ->  | B43: =IFBLANK(업무분장내역!C39) ->  | C43: =IFBLANK(업무분장내역!D39) ->  | D43: =IFBLANK(업무분장내역!E39) ->  | E43: =IFBLANK(업무분장내역!F39) -> 
A44: =IFBLANK(업무분장내역!B40) ->  | B44: =IFBLANK(업무분장내역!C40) ->  | C44: =IFBLANK(업무분장내역!D40) ->  | D44: =IFBLANK(업무분장내역!E40) ->  | E44: =IFBLANK(업무분장내역!F40) -> 
A45: =IFBLANK(업무분장내역!B41) ->  | B45: =IFBLANK(업무분장내역!C41) ->  | C45: =IFBLANK(업무분장내역!D41) ->  | D45: =IFBLANK(업무분장내역!E41) ->  | E45: =IFBLANK(업무분장내역!F41) -> 
A46: =IFBLANK(업무분장내역!B42) ->  | B46: =IFBLANK(업무분장내역!C42) ->  | C46: =IFBLANK(업무분장내역!D42) ->  | D46: =IFBLANK(업무분장내역!E42) ->  | E46: =IFBLANK(업무분장내역!F42) -> 
A47: =IFBLANK(업무분장내역!B43) ->  | B47: =IFBLANK(업무분장내역!C43) ->  | C47: =IFBLANK(업무분장내역!D43) ->  | D47: =IFBLANK(업무분장내역!E43) ->  | E47: =IFBLANK(업무분장내역!F43) -> 
A48: =IFBLANK(업무분장내역!B44) ->  | B48: =IFBLANK(업무분장내역!C44) ->  | C48: =IFBLANK(업무분장내역!D44) ->  | D48: =IFBLANK(업무분장내역!E44) ->  | E48: =IFBLANK(업무분장내역!F44) -> 
A49: =IFBLANK(업무분장내역!B45) ->  | B49: =IFBLANK(업무분장내역!C45) ->  | C49: =IFBLANK(업무분장내역!D45) ->  | D49: =IFBLANK(업무분장내역!E45) ->  | E49: =IFBLANK(업무분장내역!F45) -> 
A50: =IFBLANK(업무분장내역!B46) ->  | B50: =IFBLANK(업무분장내역!C46) ->  | C50: =IFBLANK(업무분장내역!D46) ->  | D50: =IFBLANK(업무분장내역!E46) ->  | E50: =IFBLANK(업무분장내역!F46) -> 
A51: =IFBLANK(업무분장내역!B47) ->  | B51: =IFBLANK(업무분장내역!C47) ->  | C51: =IFBLANK(업무분장내역!D47) ->  | D51: =IFBLANK(업무분장내역!E47) ->  | E51: =IFBLANK(업무분장내역!F47) -> 
A52: =IFBLANK(업무분장내역!B48) ->  | B52: =IFBLANK(업무분장내역!C48) ->  | C52: =IFBLANK(업무분장내역!D48) ->  | D52: =IFBLANK(업무분장내역!E48) ->  | E52: =IFBLANK(업무분장내역!F48) -> 
A53: =IFBLANK(업무분장내역!B49) ->  | B53: =IFBLANK(업무분장내역!C49) ->  | C53: =IFBLANK(업무분장내역!D49) ->  | D53: =IFBLANK(업무분장내역!E49) ->  | E53: =IFBLANK(업무분장내역!F49) -> 
A54: =IFBLANK(업무분장내역!B50) ->  | B54: =IFBLANK(업무분장내역!C50) ->  | C54: =IFBLANK(업무분장내역!D50) ->  | D54: =IFBLANK(업무분장내역!E50) ->  | E54: =IFBLANK(업무분장내역!F50) -> 
A55: =IFBLANK(업무분장내역!B51) ->  | B55: =IFBLANK(업무분장내역!C51) ->  | C55: =IFBLANK(업무분장내역!D51) ->  | D55: =IFBLANK(업무분장내역!E51) ->  | E55: =IFBLANK(업무분장내역!F51) -> 
A56: =IFBLANK(업무분장내역!B52) ->  | B56: =IFBLANK(업무분장내역!C52) ->  | C56: =IFBLANK(업무분장내역!D52) ->  | D56: =IFBLANK(업무분장내역!E52) ->  | E56: =IFBLANK(업무분장내역!F52) -> 
A57: =IFBLANK(업무분장내역!B53) ->  | B57: =IFBLANK(업무분장내역!C53) ->  | C57: =IFBLANK(업무분장내역!D53) ->  | D57: =IFBLANK(업무분장내역!E53) ->  | E57: =IFBLANK(업무분장내역!F53) -> 
A58: =IFBLANK(업무분장내역!B54) ->  | B58: =IFBLANK(업무분장내역!C54) ->  | C58: =IFBLANK(업무분장내역!D54) ->  | D58: =IFBLANK(업무분장내역!E54) ->  | E58: =IFBLANK(업무분장내역!F54) -> 
A59: =IFBLANK(업무분장내역!B55) ->  | B59: =IFBLANK(업무분장내역!C55) ->  | C59: =IFBLANK(업무분장내역!D55) ->  | D59: =IFBLANK(업무분장내역!E55) ->  | E59: =IFBLANK(업무분장내역!F55) -> 
A60: =IFBLANK(업무분장내역!B56) ->  | B60: =IFBLANK(업무분장내역!C56) ->  | C60: =IFBLANK(업무분장내역!D56) ->  | D60: =IFBLANK(업무분장내역!E56) ->  | E60: =IFBLANK(업무분장내역!F56) -> 
A61: =IFBLANK(업무분장내역!B57) ->  | B61: =IFBLANK(업무분장내역!C57) ->  | C61: =IFBLANK(업무분장내역!D57) ->  | D61: =IFBLANK(업무분장내역!E57) ->  | E61: =IFBLANK(업무분장내역!F57) -> 
A62: =IFBLANK(업무분장내역!B58) ->  | B62: =IFBLANK(업무분장내역!C58) ->  | C62: =IFBLANK(업무분장내역!D58) ->  | D62: =IFBLANK(업무분장내역!E58) ->  | E62: =IFBLANK(업무분장내역!F58) -> 
A63: =IFBLANK(업무분장내역!B59) ->  | B63: =IFBLANK(업무분장내역!C59) ->  | C63: =IFBLANK(업무분장내역!D59) ->  | D63: =IFBLANK(업무분장내역!E59) ->  | E63: =IFBLANK(업무분장내역!F59) -> 
A64: =IFBLANK(업무분장내역!B60) ->  | B64: =IFBLANK(업무분장내역!C60) ->  | C64: =IFBLANK(업무분장내역!D60) ->  | D64: =IFBLANK(업무분장내역!E60) ->  | E64: =IFBLANK(업무분장내역!F60) -> 
A65: =IFBLANK(업무분장내역!B61) ->  | B65: =IFBLANK(업무분장내역!C61) ->  | C65: =IFBLANK(업무분장내역!D61) ->  | D65: =IFBLANK(업무분장내역!E61) ->  | E65: =IFBLANK(업무분장내역!F61) -> 
A66: =IFBLANK(업무분장내역!B62) ->  | B66: =IFBLANK(업무분장내역!C62) ->  | C66: =IFBLANK(업무분장내역!D62) ->  | D66: =IFBLANK(업무분장내역!E62) ->  | E66: =IFBLANK(업무분장내역!F62) -> 
A67: =IFBLANK(업무분장내역!B63) ->  | B67: =IFBLANK(업무분장내역!C63) ->  | C67: =IFBLANK(업무분장내역!D63) ->  | D67: =IFBLANK(업무분장내역!E63) ->  | E67: =IFBLANK(업무분장내역!F63) -> 

Sheet 관리계획
A1: 개인정보 내부관리 계획
A2: ="["&IFBLANK(요양기관기초정보!D1)&"]" -> [팜오피스약국]
A3: =IF(요양기관기초정보!C8<40998,"2012년3월30일",YEAR(요양기관기초정보!C8)&"년"&MONTH(요양기관기초정보!C8)&"월"&DAY(요양기관기초정보!C8)&"일") -> 2012년3월30일
T5: 결재 | U5: 대 표 | V5: 관리책임자
A7: 목 차
A9: 제1장 총칙
A10: 제1조(목적)
A11: 제2조(적용범위)
A12: 제3조(용어 정의)
A14: 제2장 내부관리계획의 수립 및 시행
A15: 제4조(내부관리계획의 수립 및 승인)
A16: 제5조(내부관리계획의 공표)
A18: 제3장 개인정보보호책임자의 의무와 책임
A19: 제6조(개인정보보호책임자의 지정)
A20: 제7조(개인정보보호책임자의 의무와 책임)
A21: 제8조(개인정보취급자의 범위 및 의무와 책임)
A22: 제9조(개인정보보호 전담조직 구성 및 운영)
A24: 제4장 개인정보의 기술적·관리적 안전조치
A25: 제10조(개인정보취급자 접근 권한 관리 및 인증)
A26: 제11조(비밀번호 관리)
A27: 제12조(접근통제)
A28: 제13조(개인정보의 암호화)
A29: 제14조(접근기록의 위‧변조 방지)
A30: 제15조(보안프로그램의 설치 및 운영)
A31: 제16조(물리적 접근제한)
A33: 제5장 개인정보보호 교육
A34: 제17조(개인정보보호 교육 계획의 수립)
A35: 제18조(개인정보보호 교육의 실시)
A37: 제6장 개인정보 침해대응 및 피해구제
A38: 제19조(개인정보 유출사고 대응)
A39: 제20조(권익침해 구제방법)
A43: 제1장 총칙
A45: 제1조(목적)
A46: ="개인정보보호 내부관리계획은 개인정보보호법 제29조(안전조치의무) 내부관리계획의 수립 및 시행 의무에 따라 제정된 것으로 ["&IFBLANK(요양기관기초정보!D1)&"]에 근무하는 직원들이 취급하는 개인정보를 체계적으로 관리하여 개인정보가 분실, 도난, 누출, 변조, 훼손, 오․남용 등이 되지 아니하도록 함을 목적으로 한다." -> 개인정보보호 내부관리계획은 개인정보보호법 제29조(안전조치의무) 내부관리계획의 수립 및 시행 의무에 따라 제정된 것으로 [팜오피스약국]에 근무하는 직원들이 취급하는 개인정보를 체계적으로 관리하여 개인정보가 분실, 도난, 누출, 변조, 훼손, 오․남용 등이 되지 아니하도록 함을 목적으로 한다.
A48: 제2조(적용범위)
A49: 본 계획은 약국운영상 필요한 처방전, 직원인사기록 등을 통해 수집, 이용, 제공 또는 관리되는 개인정보에 대해서 적용되며, 이러한 개인정보를 취급하는 내부 직원 및 외부업체 직원에 대해 적용된다.
A51: 제3조(용어 정의)
A52: 1. “개인정보”란 살아 있는 개인에 관한 정보로서 성명, 주민등록번호 및 영상 등을 통하여 개인을 알아볼 수 있는 정보(해당 정보만으로는 특정 개인을 알아볼 수 없더라도 다른 정보와 쉽게 결합하여 알아볼 수 있는 것을 포함한다)를 말한다.
A53: 2. “처리”란 개인정보의 수집, 생성, 기록, 저장, 보유, 가공, 편집, 검색, 출력, 정정(訂正), 복구, 이용, 제공, 공개, 파기(破棄), 그 밖에 이와 유사한 행위를 말한다.
A54: 3. “정보주체”란 처리되는 정보에 의하여 알아볼 수 있는 사람으로서 그 정보의 주체가 되는 사람을 말한다.
A55: 4. “개인정보처리자”란 업무를 목적으로 개인정보파일을 운용하기 위하여 스스로 또는 다른 사람을 통하여 개인정보를 처리하는 공공기관, 법인, 단체 및 개인 등을 말한다.
A56: 5. “개인정보 보호책임자”란 개인정보처리자의 개인정보 처리에 관한 업무를 총괄해서 책임지거나 업무처리를 최종적으로 결정하는 자로서, 법 제31조에 따른 지위에 해당하는 자를 말한다.
A57: 6. “개인정보 보호담당자”란 개인정보책임자가 업무를 수행함에 있어 보조적인 역할을 하는 자를 말하며 개인정보보호 책임자가 일정 요건의 자격을 갖춘 이를 지정한다.
A58: 7. “개인정보취급자”란 개인정보처리자의 지휘ㆍ감독을 받아 개인정보를 처리하는 업무를 담당하는 자로서 직접 개인정보에 관한 업무를 담당하는 자와 그 밖에 업무상 필요에 의해 개인정보에 접근하여 처리하는 모든 자를 말한다.
A59: 8. “개인정보처리시스템”이라 함은 개인정보를 처리할 수 있도록 체계적으로 구성한 데이터베이스시스템을 말한다.
A60: 9. “영상정보처리기기”란 폐쇄회로텔레비전(CCTV), 네트워크카메라 등 일정한 공간에 지속적으로 설치되어 사람 또는 사물의 영상 등을 촬영하거나 이를 유․무선망을 통하여 전송하는 일체의 장치를 말한다.
A61: 10. “개인영상정보”라 함은 영상정보처리기기에 의하여 촬영․처리되는 영상정보 중 개인의 초상, 행동 등 사생활과 관련된 영상으로서 해당 개인의 동일성 여부를 식별할 수 있는 정보를 말한다.
A62: 11. “영상정보처리기기 운영자”라 함은 개인정보 보호법 제25조제1항 각호에 따라 영상정보처리기기를 설치․운영하는 자를 말한다.
A63: 12. “영상정보 보호책임자”라 함은 개인영상정보의 처리에 관한 업무를 총괄해서 책임지는 자로서, 표준지침 제41조에 따라 영상정보처리기기 운영자가 지정한 자를 말한다.
A65: 제2장(내부관리계획의 수립 및 시행)
A67: 제4조(내부관리계획의 수립 및 승인)
A68: ="1. 개인정보 보호책임자는 ["&IFBLANK(요양기관기초정보!D1)&"] 고객 및 직원의 개인정보보호를 위한 전반적인 사항을 포함하여 내부관리계획을 수립하여야 한다." -> 1. 개인정보 보호책임자는 [팜오피스약국] 고객 및 직원의 개인정보보호를 위한 전반적인 사항을 포함하여 내부관리계획을 수립하여야 한다.
A69: 2. 개인정보 보호책임자는 개인정보보호를 위한 내부관리계획의 수립 시 개인정보보호와 관련한 법령 및 관련 규정을 준수하도록 내부관리계획을 수립하여야 한다.
A70: 3. 개인정보 보호책임자는 개인정보 보호담당자가 수립한 내부관리계획의 타당성을 검토하여 개인정보보호를 위한 내부관리계획을 승인하여야 한다.
A71: 4. 개인정보 보호담당자는 개인정보보호 관련 법령의 제․개정 사항 등을 반영하기 위하여 매년 11월말까지 내부관리계획의 타당성과 개정 필요성을 검토하여야 한다.
A72: 5. 개인정보 보호담당자는 모든 항목의 타당성을 검토한 후 개정할 필요가 있다고 판단되는 경우 12월말까지 내부관리계획의 개정안을 작성하여 개인정보 보호책임자에게 보고하고 개인정보 보호책임자의 승인을 받아야 한다.
A74: 제5조(내부관리계획의 공표)
A75: ="1. 개인정보보호책임자는 전조에 따라 승인한 내부관리계획을 매년 1월말까지 ["&IFBLANK(요양기관기초정보!D1)&"] 전 직원에게 공표한다." -> 1. 개인정보보호책임자는 전조에 따라 승인한 내부관리계획을 매년 1월말까지 [팜오피스약국] 전 직원에게 공표한다.
A76: 2. 내부관리계획은 임직원이 언제든지 열람할 수 있는 방법으로 비치하여야 하며, 변경사항이 있는 경우에는 이를 공지하여야 한다.
A78: 제3장 개인정보보호책임자의 의무와 책임
A80: 제6조(개인정보보호책임자의 지정)
A81: ="1. ["&IFBLANK(요양기관기초정보!D1)&"]은 개인정보보호법 시행령 제32조제2항에 따라 해당하는 지위에 있는 자를 개인정보보호책임자로 임명한다." -> 1. [팜오피스약국]은 개인정보보호법 시행령 제32조제2항에 따라 해당하는 지위에 있는 자를 개인정보보호책임자로 임명한다.
A82: ="가. ["&IFBLANK(요양기관기초정보!D1)&"]의 행정사무를 총괄하는 사람 [약국장 "&IFBLANK(요양기관기초정보!C6)&"]" -> 가. [팜오피스약국]의 행정사무를 총괄하는 사람 [약국장 홍길동]
A83: ="나. 개인정보와 관련하여 고객의 고충처리를 담당하는 부서의 장 ["&IF(요양기관기초정보!D35="","약국장 "&IFBLANK(요양기관기초정보!C6),요양기관기초정보!D35&" "&요양기관기초정보!C35)&"]" -> 나. 개인정보와 관련하여 고객의 고충처리를 담당하는 부서의 장 [약국장 홍길동]
A84: 제7조(개인정보보호책임자의 의무와 책임)
A85: 1 개인정보보호책임자는 정보주체의 개인정보 보호를 위하여 다음 각 호의 업무를 수행한다.
A86: 가. 개인정보 보호 계획의 수립 및 시행
A87: 나. 개인정보 처리 실태 및 관행의 정기적인 조사 및 개선
A88: 다. 개인정보 처리와 관련한 불만의 처리 및 피해 구제
A89: 라. 개인정보 유출 및 오용‧남용 방지를 위한 내부통제시스템의 구축
A90: 마. 개인정보 보호 교육 계획의 수립 및 시행
A91: 바. 개인정보파일의 보호 및 관리 감독
A92: 사. 법 제30조에 따른 개인정보 처리방침의 수립‧변경 및 시행
A94: 2. 개인정보보호책임자는 업무를 수행함에 있어서 필요한 경우 개인정보 처리 현황, 처리 체계 등에 대하여 수시로 조사하거나 관련 당사자로부터 보고를 받을 수 있다.
A96: ="3. 개인정보보호책임자는 개인정보 보호와 관련하여 이법 및 다른 관계 법령의 위반 사실을 알게 된 경우에는 즉시 개선조치를 하여야 하며, 필요하면 ["&요양기관기초정보!D1&"] 약국장에게 개선조치를 보고하여야 한다." -> 3. 개인정보보호책임자는 개인정보 보호와 관련하여 이법 및 다른 관계 법령의 위반 사실을 알게 된 경우에는 즉시 개선조치를 하여야 하며, 필요하면 [팜오피스약국] 약국장에게 개선조치를 보고하여야 한다.
A98: 제8조(개인정보취급자의 범위 및 의무와 책임)
A99: 1. 개인정보취급자의 범위는 다음과 같다.
A100: ="가. ["&요양기관기초정보!D1&"] 내 직원 또는 위탁업무를 담당하는 직원들로서 정보주체의 개인정보를 처리하는 업무를 수행하는 자를 말하며, 정규직 이외에 임시직, 파견근로자, 시간제근로자 등 포함될 수 있다." -> 가. [팜오피스약국] 내 직원 또는 위탁업무를 담당하는 직원들로서 정보주체의 개인정보를 처리하는 업무를 수행하는 자를 말하며, 정규직 이외에 임시직, 파견근로자, 시간제근로자 등 포함될 수 있다.
A101: 나. 개인정보취급자의 의무와 책임
A102: (1). 내부관리계획의 준수 및 이행
A103: (2). 개인정보의 기술적‧관리적 보호조치 기준 이행
A104: (3). 업무상 알게 된 개인정보를 제3자에게 제공하지 않음
A106: 제9조(개인정보보호 전담조직 구성 및 운영)
A107: 1. 개인정보보호 활동을 수행하고 관리하는 인력들에 대한 책임, 권한 및 역할을 정의하여야 한다.
A108: 가.요양기관장은 개인정보 내부관리의 총괄 책임자이다.
A110: 제4장 개인정보의 기술적․관리적 보호조치
A112: 제10조(개인정보취급자 접근권한 관리 및 인증)
A113: 1. 개인정보처리자는 개인정보처리시스템에 대한 접근권한을 업무수행에 필요한 최소한의 범위로 업무 담당자에 따라 차등 부여하여야 한다.
A115: 2. 개인정보처리자는 휴직 또는 퇴직 등 인사이동이 발생하여 개인정보취급자가 변경되었을 경우 지체 없이 개인정보처리시스템의 접근권한을 변경 또는 말소하여야 하며, 또한 비밀유지의무 등에 대한 보안서약서를 받아야 한다.
A116: 3. 개인정보처리자는 제1항, 제2항에 의한 권한 부여, 변경 또는 말소에 대한 내역을 기록하고, 그 기록을 최소 3년간 보관하여야 한다.
A117: 4. 개인정보처리자는 개인정보처리시스템에 접속할 수 있는 사용자 계정을 발급하는 경우, 개인정보취급자 별로 한 개의 사용자계정을 발급하여야 하며, 다른 개인정보취급자와 공유되지 않도록 하여야 한다.
A118: 5. 개인정보처리자는 개인정보취급자가 정보통신망을 통해 외부에서 개인정보처리시스템에 접속하려는 경우에는 가상사설망 또는 전용선 등 안전한 접속수단을 적용하여야 한다.
A120: 제11조(비밀번호 관리)
A121: 1. 개인정보처리자는 개인정보취급자 또는 정보주체가 생일, 주민등록번호, 전화번호 등 추측하기 쉬운 숫자나 개인관련 정보를 패스워드로 이용하지 않도록 비밀번호 작성규칙을 수립하고, 이를 적용 및 운용하여야 한다.
A122: 2. 개인정보처리자는 비밀번호에 적정한 기간의 유효기간을 설정하여야 한다.
A124: 제12조(접근통제)
A125: 가. 개인정보처리시스템에 대한 접속 권한을 IP(Internet Protocol)주소 등으로 제한하여 인가받지 않은 접근을 제한
A126: 나. 개인정보처리시스템에 접속한 IP(Internet Protocol)주소 등을 재분석하여 불법적인 개인정보 유출 시도를 탐지
A127: 2. 개인정보처리자는 취급중인 개인정보가 인터넷 홈페이지, P2P, 공유설정 등을 통하여 열람권한이 없는 자에게 공개되거나 외부에 유출되지 않도록 개인정보처리시스템 및 업무용 컴퓨터에 조치를 취하여야 한다.
A129: 제13조(개인정보의 암호화)
A130: 1. 개인정보처리자는 주민등록번호, 비밀번호, 바이오정보에 대해서는 안전한 암호 알고리즘으로 암호화하여 저장하여야 한다. 단, 비밀번호를 저장하는 경우에는 복호화되지 아니하도록 일방향 암호화하여 저장하여야 한다.
A131: 2. 개인정보처리자는 정보주체의 개인정보를 정보통신망을 통하여 송‧수신하거나 보조저장매체 등을 통하여 전달하는 경우에는 이를 암호화하여야 한다.
A132: 3. 개인정보처리자는 인터넷 구간 및 인터넷 구간과 내부망의 중간 지점(DMZ)에 고유식별정보를 저장하는 경우에는 이를 암호화하여야 한다
A133: 4. 개인정보처리자 또는 개인정보취급자는 정보주체의 개인정보를 업무용 컴퓨터(PC)에 저장할 때에는 상용 암호화 소프트웨어 또는 안전한 암호화 알고리즘을 사용하여 암호화 저장하여야 한다.
A135: 제14조(접속기록의 위‧변조 방지)
A136: 1. 개인정보처리자는 개인정보취급자가 개인정보처리시스템에 접속한 기록을 최소 6개월 이상 보관하여야 한다.
A137: 2. 개인정보처리자는 개인정보취급자의 접속기록이 위‧변조 및 도난, 분실되지 않도록 해당 접속기록을 안전하게 보관하여야 한다.
A139: 제15조(보안프로그램 설치 및 운영)
A140: 1. 개인정보처리자는 개인정보처리시스템 또는 업무용 컴퓨터에 악성 프로그램 등을 방지‧치료할 수 있는 백신 소프트웨어 등의 보안 프로그램을 설치‧운영하여야 한다.
A141: 2. 보안 프로그램의 자동 업데이트 기능을 사용하거나, 또는 일 1회 이상 업데이트를 적용하여야 한다.
A142: 3. 악성 프로그램관련 경보가 발령된 경우 또는 사용 중인 응용프로그램이나 운영체제 소프트웨어의 제작업체에서 보안 업데이트 공지가 있는 경우, 즉시 이에 따른 업데이트를 적용하여야 한다.
A144: 제16조(물리적 접근제한 및 접근통제 방법)
A145: 1. 개인정보처리자는 개인정보를 보관하고 있는 물리적 보관 장소에는 이에 대한 출입통제 절차를 수립․운영하여야 한다.
A146: 2. 개인정보처리자는 개인정보가 포함된 서류, 보조저장매체 등을 잠금장치가 있는 안전한 장소에 보관하여야 한다.
A147: 3. 개인정보처리자는 물리적 접근방지를 위한 별도의 보호시설에 출입하거나 개인정보를 열람하는 경우, 그 출입자에 대한 출입사실 및 열람 내용에 관한 관리대장을 작성하도록 하여야 한다.
A149: 제5장 개인정보보호 교육
A151: 제17조(개인정보보호 교육 계획의 수립)
A152: 1. 개인정보보호책임자는 다음 각 호의 사항을 포함하는 연간 개인정보보호 교육계획을 매년 12월말까지 수립한다.
A153: 가. 교육목적 및 대상
A154: 나. 교육내용
A155: 다. 교육 일정 및 방법
A156: 2. 개인정보보호책임자는 수립한 개인정보보호 교육 계획을 실시한 이후에 교육의 성과와 개선 필요성을 검토하여 차년도 교육계획 수립에 반영하여야 한다.
A158: 제18조(개인정보보호 교육의 실시)
A159: 1. 개인정보보호책임자는 정보주체정보보호에 대한 직원들의 인식제고를 위해 노력해야 하며, 개인정보의 오․남용 또는 유출 등을 적극 예방하기 위해 임․직원을 대상으로 매년 정기적으로 연1회 이상의 개인정보보호 교육을 실시한다.
A160: 2. 교육 방법은 집체 교육뿐만 아니라, 인터넷 교육, 그룹웨어 교육 등 다양한 방법을 활용하여 실시하고, 필요한 경우 외부 전문기관이나 전문요원에 위탁하여 교육을 실시한다.
A161: 3. 개인정보보호에 대한 중요한 전파 사례가 있거나 개인정보보호 업무와 관련하여 변경된 사항이 있는 경우, 개인정보보호책임자는 직원 회의 등을 통해 수시 교육을 실시할 수 있다.
A163: 제6장 개인정보 침해대응 및 피해구제
A165: 제19조(개인정보 유출사고 대응)
A166: 1. 개인정보가 해킹, 분실, 도난 등으로 내‧외부자에 의하여 유출된 경우 아래와 같이 대응한다.
A168: 사고인지 및 긴급조치
A169: ○ 개인정보 유출사고 신고 접수 및 사고인지
A170: ○ 피해 최소화를 위한 긴급조치 수행
A171: ※ 유출된 개인정보 삭제조치 및 기술지원 요청
A172: ↓
A173: 정보주체 유출통지
A174: ○ 정보주체에게 개인정보 유출사실 통지(5일이내)
A175: ↓
A176: 개인정보 유출신고
A177: ○ 1천명 이상의 개인정보 유출시 행정안전부 또는 한국인터넷진흥원(privacy.go.kr)에 유출신고
A178: ↓
A179: 민원대응반 운영
A180: ○ 개인정보 유출사고 규모 및 성격에 따라 민원대응반 구성
A181: ↓
A182: 고객민원 대응
A183: ○ 2차 피해 방지를 위한 고객 민원 대응 및 고객 불안 해소 조치
A184: ↓
A185: 피해구제 절차
A186: ○ 개인정보 유출에 대한 피해구제 절차 안내
A187: ↓
A188: 보안기능 강화
A189: ○ 사고 원인 분석 및 보안 강화·기능 개선
A190: ↓
A191: 재발방지
A192: ○ 개인정보 유출사고 사례 전파 교육 및 개선 대책 시행
A194: 제20조(권익침해 구제방법)
A195: 1. 개인정보주체는 개인정보침해로 인한 구제를 받기 위하여 개인정보분쟁조정위원회, 한국인터넷진흥원 개인정보침해신고센터 등에 분쟁해결이나 상담 등을 신청한다.
A196: 이 밖에 기타 개인정보침해의 신고 및 상담에 대하여는 아래의 기관에 문의한다.
A197: 가. 개인분쟁조정위원회 : (국번없이)1336 [118] http://www.1336.or.kr | C197: 제개정시 신구 대조표
A198: 나. 정보보호마크인증위원회 : 02-580-0533~4 http://www.eprivacy.or.kr
A199: 다. 대검찰청 사이버범죄수사단 : 02-3480-3571 http://www.spo.go.kr
A200: 라. 경찰청 사이버테러대응센터 : 02-1566-0112 http://www.ctrc.go.kr

Sheet ID
A1: =IFBLANK(요양기관기초정보!D1)&" 개인 정보 처리 시스템(청구소프트웨어) 사용자 ID 관리대장" -> 팜오피스약국 개인 정보 처리 시스템(청구소프트웨어) 사용자 ID 관리대장
H2: 개인정보보호책임자
H3: 직급 | I3: =IF(요양기관기초정보!C37="","요양기관장",요양기관기초정보!C37) -> 요양기관장
H4: 이름 | I4: =IF(요양기관기초정보!C36="",요양기관기초정보!C6,요양기관기초정보!C36) -> 홍길동
A6: 연번 | B6: 사번 | C6: 사유 | D6: 유형 | E6: 날짜 | F6: 이름 | G6: 부서명 | H6: 직급 | I6: S/W 사용 권한 | J6: ID | L6: 사번 | M6: 이름
A7: =IF(B7="","",1) -> 1 | B7: 0 | C7: 입사 | D7: =IF(B7=0,"신규",IF(B7="","",IF(C7="","",IF(C7="입사","신규",IFERROR(IF(VLOOKUP(B7,사원명부!$A$2:$Z$100,7)="약사","변경","말소"),""))))) -> 신규 | E7: =IF(B7=0,요양기관기초정보!C8,IF(B7="","",IF(C7="퇴사",VLOOKUP(B7,사원명부!$A$2:$Z$100,12),VLOOKUP(B7,사원명부!$A$2:$Z$100,11)))) -> 2009-01-02 | F7: =IF(B7=0,요양기관기초정보!C6,IF(B7="","",VLOOKUP(B7,사원명부!$A$2:$Z$100,2))) -> 홍길동 | G7: =IF(B7=0,요양기관기초정보!D1,IF(B7="","""",VLOOKUP(B7,사원명부!$A$2:$Z$100,8))) -> 팜오피스약국 | H7: =IF(B7=0,"약국장",IF(B7="","",VLOOKUP(B7,사원명부!$A$2:$Z$100,9))) -> 약국장 | I7: =IF(B7=0,"전체관리감독",IF(B7="","",VLOOKUP(B7,사원명부!$A$2:$Z$100,14))) -> 전체관리감독 | J7: =IF(B7=0,요양기관기초정보!C23,IF(D7="말소","",IF(B7="","",VLOOKUP(B7,사원명부!$A$2:$Z$100,15)))) -> jm000 | L7: 1 | M7: =IF(L7="","",IFERROR(IFBLANK(VLOOKUP(L7,사원명부!$A$2:$Z$100,2,FALSE)),"")) -> 테스트1
A8: =IF(B8="","",A7+1) ->  | D8: =IF(B8="","",IF(C8="","",IF(C8="입사","신규",IFERROR(IF(VLOOKUP(B8,사원명부!$A$2:$Z$100,7)="약사","변경","말소"),"")))) ->  | E8: =IF(B8="","",IF(C8="입사",VLOOKUP(B8,사원명부!$A$2:$Z$100,11),VLOOKUP(B8,사원명부!$A$2:$Z$100,12))) ->  | F8: =IF(B8="","",VLOOKUP(B8,사원명부!$A$2:$Z$100,2)) ->  | G8: =IF(B8="","",VLOOKUP(B8,사원명부!$A$2:$Z$100,8)) ->  | H8: =IF(B8="","",VLOOKUP(B8,사원명부!$A$2:$Z$100,9)) ->  | I8: =IF(B8="","",VLOOKUP(B8,사원명부!$A$2:$Z$100,14)) ->  | J8: =IF(D8="말소","",IF(B8="","",VLOOKUP(B8,사원명부!$A$2:$Z$100,15))) ->  | L8: 2 | M8: =IF(L8="","",IFERROR(IFBLANK(VLOOKUP(L8,사원명부!$A$2:$Z$100,2,FALSE)),"")) -> 테스트2
A9: =IF(B9="","",A8+1) ->  | D9: =IF(B9="","",IF(C9="","",IF(C9="입사","신규",IFERROR(IF(VLOOKUP(B9,사원명부!$A$2:$Z$100,7)="약사","변경","말소"),"")))) ->  | E9: =IF(B9="","",IF(C9="입사",VLOOKUP(B9,사원명부!$A$2:$Z$100,11),VLOOKUP(B9,사원명부!$A$2:$Z$100,12))) ->  | F9: =IF(B9="","",VLOOKUP(B9,사원명부!$A$2:$Z$100,2)) ->  | G9: =IF(B9="","",VLOOKUP(B9,사원명부!$A$2:$Z$100,8)) ->  | H9: =IF(B9="","",VLOOKUP(B9,사원명부!$A$2:$Z$100,9)) ->  | I9: =IF(B9="","",VLOOKUP(B9,사원명부!$A$2:$Z$100,14)) ->  | J9: =IF(D9="말소","",IF(B9="","",VLOOKUP(B9,사원명부!$A$2:$Z$100,15))) ->  | L9: 3 | M9: =IF(L9="","",IFERROR(IFBLANK(VLOOKUP(L9,사원명부!$A$2:$Z$100,2,FALSE)),"")) -> 
D10: =IF(B10="","",IF(C10="","",IF(C10="입사","신규",IFERROR(IF(VLOOKUP(B10,사원명부!$A$2:$Z$100,7)="약사","변경","말소"),"")))) ->  | E10: =IF(B10="","",IF(C10="입사",VLOOKUP(B10,사원명부!$A$2:$Z$100,11),VLOOKUP(B10,사원명부!$A$2:$Z$100,12))) ->  | F10: =IF(B10="","",VLOOKUP(B10,사원명부!$A$2:$Z$100,2)) ->  | G10: =IF(B10="","",VLOOKUP(B10,사원명부!$A$2:$Z$100,8)) ->  | H10: =IF(B10="","",VLOOKUP(B10,사원명부!$A$2:$Z$100,9)) ->  | I10: =IF(B10="","",VLOOKUP(B10,사원명부!$A$2:$Z$100,14)) ->  | J10: =IF(D10="말소","",IF(B10="","",VLOOKUP(B10,사원명부!$A$2:$Z$100,15))) ->  | L10: 4 | M10: =IF(L10="","",IFERROR(IFBLANK(VLOOKUP(L10,사원명부!$A$2:$Z$100,2,FALSE)),"")) -> 
D11: =IF(B11="","",IF(C11="","",IF(C11="입사","신규",IFERROR(IF(VLOOKUP(B11,사원명부!$A$2:$Z$100,7)="약사","변경","말소"),"")))) ->  | E11: =IF(B11="","",IF(C11="입사",VLOOKUP(B11,사원명부!$A$2:$Z$100,11),VLOOKUP(B11,사원명부!$A$2:$Z$100,12))) ->  | F11: =IF(B11="","",VLOOKUP(B11,사원명부!$A$2:$Z$100,2)) ->  | G11: =IF(B11="","",VLOOKUP(B11,사원명부!$A$2:$Z$100,8)) ->  | H11: =IF(B11="","",VLOOKUP(B11,사원명부!$A$2:$Z$100,9)) ->  | I11: =IF(B11="","",VLOOKUP(B11,사원명부!$A$2:$Z$100,14)) ->  | J11: =IF(D11="말소","",IF(B11="","",VLOOKUP(B11,사원명부!$A$2:$Z$100,15))) ->  | L11: 5 | M11: =IF(L11="","",IFERROR(IFBLANK(VLOOKUP(L11,사원명부!$A$2:$Z$100,2,FALSE)),"")) -> 
D12: =IF(B12="","",IF(C12="","",IF(C12="입사","신규",IFERROR(IF(VLOOKUP(B12,사원명부!$A$2:$Z$100,7)="약사","변경","말소"),"")))) ->  | E12: =IF(B12="","",IF(C12="입사",VLOOKUP(B12,사원명부!$A$2:$Z$100,11),VLOOKUP(B12,사원명부!$A$2:$Z$100,12))) ->  | F12: =IF(B12="","",VLOOKUP(B12,사원명부!$A$2:$Z$100,2)) ->  | G12: =IF(B12="","",VLOOKUP(B12,사원명부!$A$2:$Z$100,8)) ->  | H12: =IF(B12="","",VLOOKUP(B12,사원명부!$A$2:$Z$100,9)) ->  | I12: =IF(B12="","",VLOOKUP(B12,사원명부!$A$2:$Z$100,14)) ->  | J12: =IF(D12="말소","",IF(B12="","",VLOOKUP(B12,사원명부!$A$2:$Z$100,15))) ->  | L12: 6 | M12: =IF(L12="","",IFERROR(IFBLANK(VLOOKUP(L12,사원명부!$A$2:$Z$100,2,FALSE)),"")) -> 
D13: =IF(B13="","",IF(C13="","",IF(C13="입사","신규",IFERROR(IF(VLOOKUP(B13,사원명부!$A$2:$Z$100,7)="약사","변경","말소"),"")))) ->  | E13: =IF(B13="","",IF(C13="입사",VLOOKUP(B13,사원명부!$A$2:$Z$100,11),VLOOKUP(B13,사원명부!$A$2:$Z$100,12))) ->  | F13: =IF(B13="","",VLOOKUP(B13,사원명부!$A$2:$Z$100,2)) ->  | G13: =IF(B13="","",VLOOKUP(B13,사원명부!$A$2:$Z$100,8)) ->  | H13: =IF(B13="","",VLOOKUP(B13,사원명부!$A$2:$Z$100,9)) ->  | I13: =IF(B13="","",VLOOKUP(B13,사원명부!$A$2:$Z$100,14)) ->  | J13: =IF(D13="말소","",IF(B13="","",VLOOKUP(B13,사원명부!$A$2:$Z$100,15))) ->  | L13: 7 | M13: =IF(L13="","",IFERROR(IFBLANK(VLOOKUP(L13,사원명부!$A$2:$Z$100,2,FALSE)),"")) -> 
D14: =IF(B14="","",IF(C14="","",IF(C14="입사","신규",IFERROR(IF(VLOOKUP(B14,사원명부!$A$2:$Z$100,7)="약사","변경","말소"),"")))) ->  | E14: =IF(B14="","",IF(C14="입사",VLOOKUP(B14,사원명부!$A$2:$Z$100,11),VLOOKUP(B14,사원명부!$A$2:$Z$100,12))) ->  | F14: =IF(B14="","",VLOOKUP(B14,사원명부!$A$2:$Z$100,2)) ->  | G14: =IF(B14="","",VLOOKUP(B14,사원명부!$A$2:$Z$100,8)) ->  | H14: =IF(B14="","",VLOOKUP(B14,사원명부!$A$2:$Z$100,9)) ->  | I14: =IF(B14="","",VLOOKUP(B14,사원명부!$A$2:$Z$100,14)) ->  | J14: =IF(D14="말소","",IF(B14="","",VLOOKUP(B14,사원명부!$A$2:$Z$100,15))) ->  | L14: 8 | M14: =IF(L14="","",IFERROR(IFBLANK(VLOOKUP(L14,사원명부!$A$2:$Z$100,2,FALSE)),"")) -> 
D15: =IF(B15="","",IF(C15="","",IF(C15="입사","신규",IFERROR(IF(VLOOKUP(B15,사원명부!$A$2:$Z$100,7)="약사","변경","말소"),"")))) ->  | E15: =IF(B15="","",IF(C15="입사",VLOOKUP(B15,사원명부!$A$2:$Z$100,11),VLOOKUP(B15,사원명부!$A$2:$Z$100,12))) ->  | F15: =IF(B15="","",VLOOKUP(B15,사원명부!$A$2:$Z$100,2)) ->  | G15: =IF(B15="","",VLOOKUP(B15,사원명부!$A$2:$Z$100,8)) ->  | H15: =IF(B15="","",VLOOKUP(B15,사원명부!$A$2:$Z$100,9)) ->  | I15: =IF(B15="","",VLOOKUP(B15,사원명부!$A$2:$Z$100,14)) ->  | J15: =IF(D15="말소","",IF(B15="","",VLOOKUP(B15,사원명부!$A$2:$Z$100,15))) ->  | L15: 9 | M15: =IF(L15="","",IFERROR(IFBLANK(VLOOKUP(L15,사원명부!$A$2:$Z$100,2,FALSE)),"")) -> 
D16: =IF(B16="","",IF(C16="","",IF(C16="입사","신규",IFERROR(IF(VLOOKUP(B16,사원명부!$A$2:$Z$100,7)="약사","변경","말소"),"")))) ->  | E16: =IF(B16="","",IF(C16="입사",VLOOKUP(B16,사원명부!$A$2:$Z$100,11),VLOOKUP(B16,사원명부!$A$2:$Z$100,12))) ->  | F16: =IF(B16="","",VLOOKUP(B16,사원명부!$A$2:$Z$100,2)) ->  | G16: =IF(B16="","",VLOOKUP(B16,사원명부!$A$2:$Z$100,8)) ->  | H16: =IF(B16="","",VLOOKUP(B16,사원명부!$A$2:$Z$100,9)) ->  | I16: =IF(B16="","",VLOOKUP(B16,사원명부!$A$2:$Z$100,14)) ->  | J16: =IF(D16="말소","",IF(B16="","",VLOOKUP(B16,사원명부!$A$2:$Z$100,15))) ->  | L16: 10 | M16: =IF(L16="","",IFERROR(IFBLANK(VLOOKUP(L16,사원명부!$A$2:$Z$100,2,FALSE)),"")) -> 
D17: =IF(B17="","",IF(C17="","",IF(C17="입사","신규",IFERROR(IF(VLOOKUP(B17,사원명부!$A$2:$Z$100,7)="약사","변경","말소"),"")))) ->  | E17: =IF(B17="","",IF(C17="입사",VLOOKUP(B17,사원명부!$A$2:$Z$100,11),VLOOKUP(B17,사원명부!$A$2:$Z$100,12))) ->  | F17: =IF(B17="","",VLOOKUP(B17,사원명부!$A$2:$Z$100,2)) ->  | G17: =IF(B17="","",VLOOKUP(B17,사원명부!$A$2:$Z$100,8)) ->  | H17: =IF(B17="","",VLOOKUP(B17,사원명부!$A$2:$Z$100,9)) ->  | I17: =IF(B17="","",VLOOKUP(B17,사원명부!$A$2:$Z$100,14)) ->  | J17: =IF(D17="말소","",IF(B17="","",VLOOKUP(B17,사원명부!$A$2:$Z$100,15))) ->  | L17: 11 | M17: =IF(L17="","",IFERROR(IFBLANK(VLOOKUP(L17,사원명부!$A$2:$Z$100,2,FALSE)),"")) -> 
D18: =IF(B18="","",IF(C18="","",IF(C18="입사","신규",IFERROR(IF(VLOOKUP(B18,사원명부!$A$2:$Z$100,7)="약사","변경","말소"),"")))) ->  | E18: =IF(B18="","",IF(C18="입사",VLOOKUP(B18,사원명부!$A$2:$Z$100,11),VLOOKUP(B18,사원명부!$A$2:$Z$100,12))) ->  | F18: =IF(B18="","",VLOOKUP(B18,사원명부!$A$2:$Z$100,2)) ->  | G18: =IF(B18="","",VLOOKUP(B18,사원명부!$A$2:$Z$100,8)) ->  | H18: =IF(B18="","",VLOOKUP(B18,사원명부!$A$2:$Z$100,9)) ->  | I18: =IF(B18="","",VLOOKUP(B18,사원명부!$A$2:$Z$100,14)) ->  | J18: =IF(D18="말소","",IF(B18="","",VLOOKUP(B18,사원명부!$A$2:$Z$100,15))) ->  | L18: 12 | M18: =IF(L18="","",IFERROR(IFBLANK(VLOOKUP(L18,사원명부!$A$2:$Z$100,2,FALSE)),"")) -> 
D19: =IF(B19="","",IF(C19="","",IF(C19="입사","신규",IFERROR(IF(VLOOKUP(B19,사원명부!$A$2:$Z$100,7)="약사","변경","말소"),"")))) ->  | E19: =IF(B19="","",IF(C19="입사",VLOOKUP(B19,사원명부!$A$2:$Z$100,11),VLOOKUP(B19,사원명부!$A$2:$Z$100,12))) ->  | F19: =IF(B19="","",VLOOKUP(B19,사원명부!$A$2:$Z$100,2)) ->  | G19: =IF(B19="","",VLOOKUP(B19,사원명부!$A$2:$Z$100,8)) ->  | H19: =IF(B19="","",VLOOKUP(B19,사원명부!$A$2:$Z$100,9)) ->  | I19: =IF(B19="","",VLOOKUP(B19,사원명부!$A$2:$Z$100,14)) ->  | J19: =IF(D19="말소","",IF(B19="","",VLOOKUP(B19,사원명부!$A$2:$Z$100,15))) ->  | L19: 13 | M19: =IF(L19="","",IFERROR(IFBLANK(VLOOKUP(L19,사원명부!$A$2:$Z$100,2,FALSE)),"")) -> 
D20: =IF(B20="","",IF(C20="","",IF(C20="입사","신규",IFERROR(IF(VLOOKUP(B20,사원명부!$A$2:$Z$100,7)="약사","변경","말소"),"")))) ->  | E20: =IF(B20="","",IF(C20="입사",VLOOKUP(B20,사원명부!$A$2:$Z$100,11),VLOOKUP(B20,사원명부!$A$2:$Z$100,12))) ->  | F20: =IF(B20="","",VLOOKUP(B20,사원명부!$A$2:$Z$100,2)) ->  | G20: =IF(B20="","",VLOOKUP(B20,사원명부!$A$2:$Z$100,8)) ->  | H20: =IF(B20="","",VLOOKUP(B20,사원명부!$A$2:$Z$100,9)) ->  | I20: =IF(B20="","",VLOOKUP(B20,사원명부!$A$2:$Z$100,14)) ->  | J20: =IF(D20="말소","",IF(B20="","",VLOOKUP(B20,사원명부!$A$2:$Z$100,15))) ->  | L20: 14 | M20: =IF(L20="","",IFERROR(IFBLANK(VLOOKUP(L20,사원명부!$A$2:$Z$100,2,FALSE)),"")) -> 
A21: =IFBLANK(요양기관기초정보!D1)&" 개인 정보 처리 시스템(청구소프트웨어) 사용자 ID 관리대장" -> 팜오피스약국 개인 정보 처리 시스템(청구소프트웨어) 사용자 ID 관리대장
H22: 개인정보보호책임자
H23: 직급 | I23: =IFBLANK(I3) -> 요양기관장
H24: 이름 | I24: =IFBLANK(I4) -> 홍길동
A26: 연번 | B26: 사번 | C26: 사유 | D26: 유형 | E26: 날짜 | F26: 이름 | G26: 부서명 | H26: 직급 | I26: S/W 사용 권한 | J26: ID | L26: 사번 | M26: 이름
A27: =IF(A20="","",A20+1) ->  | D27: =IF(B27="","",IF(C27="","",IF(C27="입사","신규",IFERROR(IF(VLOOKUP(B27,사원명부!$A$2:$Z$100,7)="약사","변경","말소"),"")))) ->  | E27: =IF(B27="","",IF(C27="입사",VLOOKUP(B27,사원명부!$A$2:$Z$100,11),VLOOKUP(B27,사원명부!$A$2:$Z$100,12))) ->  | F27: =IF(B27="","",VLOOKUP(B27,사원명부!$A$2:$Z$100,2)) ->  | G27: =IF(B27="","",VLOOKUP(B27,사원명부!$A$2:$Z$100,8)) ->  | H27: =IF(B27="","",VLOOKUP(B27,사원명부!$A$2:$Z$100,9)) ->  | I27: =IF(B27="","",VLOOKUP(B27,사원명부!$A$2:$Z$100,14)) ->  | J27: =IF(D27="말소","",IF(B27="","",VLOOKUP(B27,사원명부!$A$2:$Z$100,15))) ->  | L27: 15 | M27: =IF(L27="","",IFERROR(IFBLANK(VLOOKUP(L27,사원명부!$A$2:$Z$100,2,FALSE)),"")) -> 
D28: =IF(B28="","",IF(C28="","",IF(C28="입사","신규",IFERROR(IF(VLOOKUP(B28,사원명부!$A$2:$Z$100,7)="약사","변경","말소"),"")))) ->  | E28: =IF(B28="","",IF(C28="입사",VLOOKUP(B28,사원명부!$A$2:$Z$100,11),VLOOKUP(B28,사원명부!$A$2:$Z$100,12))) ->  | F28: =IF(B28="","",VLOOKUP(B28,사원명부!$A$2:$Z$100,2)) ->  | G28: =IF(B28="","",VLOOKUP(B28,사원명부!$A$2:$Z$100,8)) ->  | H28: =IF(B28="","",VLOOKUP(B28,사원명부!$A$2:$Z$100,9)) ->  | I28: =IF(B28="","",VLOOKUP(B28,사원명부!$A$2:$Z$100,14)) ->  | J28: =IF(D28="말소","",IF(B28="","",VLOOKUP(B28,사원명부!$A$2:$Z$100,15))) ->  | L28: 16 | M28: =IF(L28="","",IFERROR(IFBLANK(VLOOKUP(L28,사원명부!$A$2:$Z$100,2,FALSE)),"")) -> 
D29: =IF(B29="","",IF(C29="","",IF(C29="입사","신규",IFERROR(IF(VLOOKUP(B29,사원명부!$A$2:$Z$100,7)="약사","변경","말소"),"")))) ->  | E29: =IF(B29="","",IF(C29="입사",VLOOKUP(B29,사원명부!$A$2:$Z$100,11),VLOOKUP(B29,사원명부!$A$2:$Z$100,12))) ->  | F29: =IF(B29="","",VLOOKUP(B29,사원명부!$A$2:$Z$100,2)) ->  | G29: =IF(B29="","",VLOOKUP(B29,사원명부!$A$2:$Z$100,8)) ->  | H29: =IF(B29="","",VLOOKUP(B29,사원명부!$A$2:$Z$100,9)) ->  | I29: =IF(B29="","",VLOOKUP(B29,사원명부!$A$2:$Z$100,14)) ->  | J29: =IF(D29="말소","",IF(B29="","",VLOOKUP(B29,사원명부!$A$2:$Z$100,15))) ->  | L29: 17 | M29: =IF(L29="","",IFERROR(IFBLANK(VLOOKUP(L29,사원명부!$A$2:$Z$100,2,FALSE)),"")) -> 
D30: =IF(B30="","",IF(C30="","",IF(C30="입사","신규",IFERROR(IF(VLOOKUP(B30,사원명부!$A$2:$Z$100,7)="약사","변경","말소"),"")))) ->  | E30: =IF(B30="","",IF(C30="입사",VLOOKUP(B30,사원명부!$A$2:$Z$100,11),VLOOKUP(B30,사원명부!$A$2:$Z$100,12))) ->  | F30: =IF(B30="","",VLOOKUP(B30,사원명부!$A$2:$Z$100,2)) ->  | G30: =IF(B30="","",VLOOKUP(B30,사원명부!$A$2:$Z$100,8)) ->  | H30: =IF(B30="","",VLOOKUP(B30,사원명부!$A$2:$Z$100,9)) ->  | I30: =IF(B30="","",VLOOKUP(B30,사원명부!$A$2:$Z$100,14)) ->  | J30: =IF(D30="말소","",IF(B30="","",VLOOKUP(B30,사원명부!$A$2:$Z$100,15))) ->  | L30: 18 | M30: =IF(L30="","",IFERROR(IFBLANK(VLOOKUP(L30,사원명부!$A$2:$Z$100,2,FALSE)),"")) -> 
D31: =IF(B31="","",IF(C31="","",IF(C31="입사","신규",IFERROR(IF(VLOOKUP(B31,사원명부!$A$2:$Z$100,7)="약사","변경","말소"),"")))) ->  | E31: =IF(B31="","",IF(C31="입사",VLOOKUP(B31,사원명부!$A$2:$Z$100,11),VLOOKUP(B31,사원명부!$A$2:$Z$100,12))) ->  | F31: =IF(B31="","",VLOOKUP(B31,사원명부!$A$2:$Z$100,2)) ->  | G31: =IF(B31="","",VLOOKUP(B31,사원명부!$A$2:$Z$100,8)) ->  | H31: =IF(B31="","",VLOOKUP(B31,사원명부!$A$2:$Z$100,9)) ->  | I31: =IF(B31="","",VLOOKUP(B31,사원명부!$A$2:$Z$100,14)) ->  | J31: =IF(D31="말소","",IF(B31="","",VLOOKUP(B31,사원명부!$A$2:$Z$100,15))) ->  | L31: 19 | M31: =IF(L31="","",IFERROR(IFBLANK(VLOOKUP(L31,사원명부!$A$2:$Z$100,2,FALSE)),"")) -> 
D32: =IF(B32="","",IF(C32="","",IF(C32="입사","신규",IFERROR(IF(VLOOKUP(B32,사원명부!$A$2:$Z$100,7)="약사","변경","말소"),"")))) ->  | E32: =IF(B32="","",IF(C32="입사",VLOOKUP(B32,사원명부!$A$2:$Z$100,11),VLOOKUP(B32,사원명부!$A$2:$Z$100,12))) ->  | F32: =IF(B32="","",VLOOKUP(B32,사원명부!$A$2:$Z$100,2)) ->  | G32: =IF(B32="","",VLOOKUP(B32,사원명부!$A$2:$Z$100,8)) ->  | H32: =IF(B32="","",VLOOKUP(B32,사원명부!$A$2:$Z$100,9)) ->  | I32: =IF(B32="","",VLOOKUP(B32,사원명부!$A$2:$Z$100,14)) ->  | J32: =IF(D32="말소","",IF(B32="","",VLOOKUP(B32,사원명부!$A$2:$Z$100,15))) ->  | L32: 20 | M32: =IF(L32="","",IFERROR(IFBLANK(VLOOKUP(L32,사원명부!$A$2:$Z$100,2,FALSE)),"")) -> 
D33: =IF(B33="","",IF(C33="","",IF(C33="입사","신규",IFERROR(IF(VLOOKUP(B33,사원명부!$A$2:$Z$100,7)="약사","변경","말소"),"")))) ->  | E33: =IF(B33="","",IF(C33="입사",VLOOKUP(B33,사원명부!$A$2:$Z$100,11),VLOOKUP(B33,사원명부!$A$2:$Z$100,12))) ->  | F33: =IF(B33="","",VLOOKUP(B33,사원명부!$A$2:$Z$100,2)) ->  | G33: =IF(B33="","",VLOOKUP(B33,사원명부!$A$2:$Z$100,8)) ->  | H33: =IF(B33="","",VLOOKUP(B33,사원명부!$A$2:$Z$100,9)) ->  | I33: =IF(B33="","",VLOOKUP(B33,사원명부!$A$2:$Z$100,14)) ->  | J33: =IF(D33="말소","",IF(B33="","",VLOOKUP(B33,사원명부!$A$2:$Z$100,15))) ->  | L33: 21 | M33: =IF(L33="","",IFERROR(IFBLANK(VLOOKUP(L33,사원명부!$A$2:$Z$100,2,FALSE)),"")) -> 
D34: =IF(B34="","",IF(C34="","",IF(C34="입사","신규",IFERROR(IF(VLOOKUP(B34,사원명부!$A$2:$Z$100,7)="약사","변경","말소"),"")))) ->  | E34: =IF(B34="","",IF(C34="입사",VLOOKUP(B34,사원명부!$A$2:$Z$100,11),VLOOKUP(B34,사원명부!$A$2:$Z$100,12))) ->  | F34: =IF(B34="","",VLOOKUP(B34,사원명부!$A$2:$Z$100,2)) ->  | G34: =IF(B34="","",VLOOKUP(B34,사원명부!$A$2:$Z$100,8)) ->  | H34: =IF(B34="","",VLOOKUP(B34,사원명부!$A$2:$Z$100,9)) ->  | I34: =IF(B34="","",VLOOKUP(B34,사원명부!$A$2:$Z$100,14)) ->  | J34: =IF(D34="말소","",IF(B34="","",VLOOKUP(B34,사원명부!$A$2:$Z$100,15))) ->  | L34: 22 | M34: =IF(L34="","",IFERROR(IFBLANK(VLOOKUP(L34,사원명부!$A$2:$Z$100,2,FALSE)),"")) -> 
D35: =IF(B35="","",IF(C35="","",IF(C35="입사","신규",IFERROR(IF(VLOOKUP(B35,사원명부!$A$2:$Z$100,7)="약사","변경","말소"),"")))) ->  | E35: =IF(B35="","",IF(C35="입사",VLOOKUP(B35,사원명부!$A$2:$Z$100,11),VLOOKUP(B35,사원명부!$A$2:$Z$100,12))) ->  | F35: =IF(B35="","",VLOOKUP(B35,사원명부!$A$2:$Z$100,2)) ->  | G35: =IF(B35="","",VLOOKUP(B35,사원명부!$A$2:$Z$100,8)) ->  | H35: =IF(B35="","",VLOOKUP(B35,사원명부!$A$2:$Z$100,9)) ->  | I35: =IF(B35="","",VLOOKUP(B35,사원명부!$A$2:$Z$100,14)) ->  | J35: =IF(D35="말소","",IF(B35="","",VLOOKUP(B35,사원명부!$A$2:$Z$100,15))) ->  | L35: 23 | M35: =IF(L35="","",IFERROR(IFBLANK(VLOOKUP(L35,사원명부!$A$2:$Z$100,2,FALSE)),"")) -> 
D36: =IF(B36="","",IF(C36="","",IF(C36="입사","신규",IFERROR(IF(VLOOKUP(B36,사원명부!$A$2:$Z$100,7)="약사","변경","말소"),"")))) ->  | E36: =IF(B36="","",IF(C36="입사",VLOOKUP(B36,사원명부!$A$2:$Z$100,11),VLOOKUP(B36,사원명부!$A$2:$Z$100,12))) ->  | F36: =IF(B36="","",VLOOKUP(B36,사원명부!$A$2:$Z$100,2)) ->  | G36: =IF(B36="","",VLOOKUP(B36,사원명부!$A$2:$Z$100,8)) ->  | H36: =IF(B36="","",VLOOKUP(B36,사원명부!$A$2:$Z$100,9)) ->  | I36: =IF(B36="","",VLOOKUP(B36,사원명부!$A$2:$Z$100,14)) ->  | J36: =IF(D36="말소","",IF(B36="","",VLOOKUP(B36,사원명부!$A$2:$Z$100,15))) ->  | L36: 24 | M36: =IF(L36="","",IFERROR(IFBLANK(VLOOKUP(L36,사원명부!$A$2:$Z$100,2,FALSE)),"")) -> 
D37: =IF(B37="","",IF(C37="","",IF(C37="입사","신규",IFERROR(IF(VLOOKUP(B37,사원명부!$A$2:$Z$100,7)="약사","변경","말소"),"")))) ->  | E37: =IF(B37="","",IF(C37="입사",VLOOKUP(B37,사원명부!$A$2:$Z$100,11),VLOOKUP(B37,사원명부!$A$2:$Z$100,12))) ->  | F37: =IF(B37="","",VLOOKUP(B37,사원명부!$A$2:$Z$100,2)) ->  | G37: =IF(B37="","",VLOOKUP(B37,사원명부!$A$2:$Z$100,8)) ->  | H37: =IF(B37="","",VLOOKUP(B37,사원명부!$A$2:$Z$100,9)) ->  | I37: =IF(B37="","",VLOOKUP(B37,사원명부!$A$2:$Z$100,14)) ->  | J37: =IF(D37="말소","",IF(B37="","",VLOOKUP(B37,사원명부!$A$2:$Z$100,15))) ->  | L37: 25 | M37: =IF(L37="","",IFERROR(IFBLANK(VLOOKUP(L37,사원명부!$A$2:$Z$100,2,FALSE)),"")) -> 
D38: =IF(B38="","",IF(C38="","",IF(C38="입사","신규",IFERROR(IF(VLOOKUP(B38,사원명부!$A$2:$Z$100,7)="약사","변경","말소"),"")))) ->  | E38: =IF(B38="","",IF(C38="입사",VLOOKUP(B38,사원명부!$A$2:$Z$100,11),VLOOKUP(B38,사원명부!$A$2:$Z$100,12))) ->  | F38: =IF(B38="","",VLOOKUP(B38,사원명부!$A$2:$Z$100,2)) ->  | G38: =IF(B38="","",VLOOKUP(B38,사원명부!$A$2:$Z$100,8)) ->  | H38: =IF(B38="","",VLOOKUP(B38,사원명부!$A$2:$Z$100,9)) ->  | I38: =IF(B38="","",VLOOKUP(B38,사원명부!$A$2:$Z$100,14)) ->  | J38: =IF(D38="말소","",IF(B38="","",VLOOKUP(B38,사원명부!$A$2:$Z$100,15))) ->  | L38: 26 | M38: =IF(L38="","",IFERROR(IFBLANK(VLOOKUP(L38,사원명부!$A$2:$Z$100,2,FALSE)),"")) -> 
A39: =IF(B39="","",A38+1) ->  | D39: =IF(B39="","",IF(C39="","",IF(C39="입사","신규",IFERROR(IF(VLOOKUP(B39,사원명부!$A$2:$Z$100,7)="약사","변경","말소"),"")))) ->  | E39: =IF(B39="","",IF(C39="입사",VLOOKUP(B39,사원명부!$A$2:$Z$100,11),VLOOKUP(B39,사원명부!$A$2:$Z$100,12))) ->  | F39: =IF(B39="","",VLOOKUP(B39,사원명부!$A$2:$Z$100,2)) ->  | G39: =IF(B39="","",VLOOKUP(B39,사원명부!$A$2:$Z$100,8)) ->  | H39: =IF(B39="","",VLOOKUP(B39,사원명부!$A$2:$Z$100,9)) ->  | I39: =IF(B39="","",VLOOKUP(B39,사원명부!$A$2:$Z$100,14)) ->  | J39: =IF(D39="말소","",IF(B39="","",VLOOKUP(B39,사원명부!$A$2:$Z$100,15))) ->  | L39: 27 | M39: =IF(L39="","",IFERROR(IFBLANK(VLOOKUP(L39,사원명부!$A$2:$Z$100,2,FALSE)),"")) -> 
D40: =IF(B40="","",IF(C40="","",IF(C40="입사","신규",IFERROR(IF(VLOOKUP(B40,사원명부!$A$2:$Z$100,7)="약사","변경","말소"),"")))) ->  | E40: =IF(B40="","",IF(C40="입사",VLOOKUP(B40,사원명부!$A$2:$Z$100,11),VLOOKUP(B40,사원명부!$A$2:$Z$100,12))) ->  | F40: =IF(B40="","",VLOOKUP(B40,사원명부!$A$2:$Z$100,2)) ->  | G40: =IF(B40="","",VLOOKUP(B40,사원명부!$A$2:$Z$100,8)) ->  | H40: =IF(B40="","",VLOOKUP(B40,사원명부!$A$2:$Z$100,9)) ->  | I40: =IF(B40="","",VLOOKUP(B40,사원명부!$A$2:$Z$100,14)) ->  | J40: =IF(D40="말소","",IF(B40="","",VLOOKUP(B40,사원명부!$A$2:$Z$100,15))) ->  | L40: 28 | M40: =IF(L40="","",IFERROR(IFBLANK(VLOOKUP(L40,사원명부!$A$2:$Z$100,2,FALSE)),"")) -> 
A41: =IFBLANK(요양기관기초정보!D1)&" 개인 정보 처리 시스템(청구소프트웨어) 사용자 ID 관리대장" -> 팜오피스약국 개인 정보 처리 시스템(청구소프트웨어) 사용자 ID 관리대장
H42: 개인정보보호책임자
H43: 직급 | I43: =IFBLANK(I23) -> 요양기관장
H44: 이름 | I44: =IFBLANK(I24) -> 홍길동
A46: 연번 | B46: 사번 | C46: 사유 | D46: 유형 | E46: 날짜 | F46: 이름 | G46: 부서명 | H46: 직급 | I46: S/W 사용 권한 | J46: ID | L46: 사번 | M46: 이름
A47: =IF(B47="","",A40+1) ->  | D47: =IF(B47="","",IF(C47="","",IF(C47="입사","신규",IFERROR(IF(VLOOKUP(B47,사원명부!$A$2:$Z$100,7)="약사","변경","말소"),"")))) ->  | E47: =IF(B47="","",IF(C47="입사",VLOOKUP(B47,사원명부!$A$2:$Z$100,11),VLOOKUP(B47,사원명부!$A$2:$Z$100,12))) ->  | F47: =IF(B47="","",VLOOKUP(B47,사원명부!$A$2:$Z$100,2)) ->  | G47: =IF(B47="","",VLOOKUP(B47,사원명부!$A$2:$Z$100,8)) ->  | H47: =IF(B47="","",VLOOKUP(B47,사원명부!$A$2:$Z$100,9)) ->  | I47: =IF(B47="","",VLOOKUP(B47,사원명부!$A$2:$Z$100,14)) ->  | J47: =IF(D47="말소","",IF(B47="","",VLOOKUP(B47,사원명부!$A$2:$Z$100,15))) ->  | L47: 29 | M47: =IF(L47="","",IFERROR(IFBLANK(VLOOKUP(L47,사원명부!$A$2:$Z$100,2,FALSE)),"")) -> 
A48: =IF(B48="","",A41+1) ->  | D48: =IF(B48="","",IF(C48="","",IF(C48="입사","신규",IFERROR(IF(VLOOKUP(B48,사원명부!$A$2:$Z$100,7)="약사","변경","말소"),"")))) ->  | E48: =IF(B48="","",IF(C48="입사",VLOOKUP(B48,사원명부!$A$2:$Z$100,11),VLOOKUP(B48,사원명부!$A$2:$Z$100,12))) ->  | F48: =IF(B48="","",VLOOKUP(B48,사원명부!$A$2:$Z$100,2)) ->  | G48: =IF(B48="","",VLOOKUP(B48,사원명부!$A$2:$Z$100,8)) ->  | H48: =IF(B48="","",VLOOKUP(B48,사원명부!$A$2:$Z$100,9)) ->  | I48: =IF(B48="","",VLOOKUP(B48,사원명부!$A$2:$Z$100,14)) ->  | J48: =IF(D48="말소","",IF(B48="","",VLOOKUP(B48,사원명부!$A$2:$Z$100,15))) ->  | L48: 30 | M48: =IF(L48="","",IFERROR(IFBLANK(VLOOKUP(L48,사원명부!$A$2:$Z$100,2,FALSE)),"")) -> 
D49: =IF(B49="","",IF(C49="","",IF(C49="입사","신규",IFERROR(IF(VLOOKUP(B49,사원명부!$A$2:$Z$100,7)="약사","변경","말소"),"")))) ->  | E49: =IF(B49="","",IF(C49="입사",VLOOKUP(B49,사원명부!$A$2:$Z$100,11),VLOOKUP(B49,사원명부!$A$2:$Z$100,12))) ->  | F49: =IF(B49="","",VLOOKUP(B49,사원명부!$A$2:$Z$100,2)) ->  | G49: =IF(B49="","",VLOOKUP(B49,사원명부!$A$2:$Z$100,8)) ->  | H49: =IF(B49="","",VLOOKUP(B49,사원명부!$A$2:$Z$100,9)) ->  | I49: =IF(B49="","",VLOOKUP(B49,사원명부!$A$2:$Z$100,14)) ->  | J49: =IF(D49="말소","",IF(B49="","",VLOOKUP(B49,사원명부!$A$2:$Z$100,15))) ->  | L49: 31 | M49: =IF(L49="","",IFERROR(IFBLANK(VLOOKUP(L49,사원명부!$A$2:$Z$100,2,FALSE)),"")) -> 
D50: =IF(B50="","",IF(C50="","",IF(C50="입사","신규",IFERROR(IF(VLOOKUP(B50,사원명부!$A$2:$Z$100,7)="약사","변경","말소"),"")))) ->  | E50: =IF(B50="","",IF(C50="입사",VLOOKUP(B50,사원명부!$A$2:$Z$100,11),VLOOKUP(B50,사원명부!$A$2:$Z$100,12))) ->  | F50: =IF(B50="","",VLOOKUP(B50,사원명부!$A$2:$Z$100,2)) ->  | G50: =IF(B50="","",VLOOKUP(B50,사원명부!$A$2:$Z$100,8)) ->  | H50: =IF(B50="","",VLOOKUP(B50,사원명부!$A$2:$Z$100,9)) ->  | I50: =IF(B50="","",VLOOKUP(B50,사원명부!$A$2:$Z$100,14)) ->  | J50: =IF(D50="말소","",IF(B50="","",VLOOKUP(B50,사원명부!$A$2:$Z$100,15))) ->  | L50: 32 | M50: =IF(L50="","",IFERROR(IFBLANK(VLOOKUP(L50,사원명부!$A$2:$Z$100,2,FALSE)),"")) -> 
D51: =IF(B51="","",IF(C51="","",IF(C51="입사","신규",IFERROR(IF(VLOOKUP(B51,사원명부!$A$2:$Z$100,7)="약사","변경","말소"),"")))) ->  | E51: =IF(B51="","",IF(C51="입사",VLOOKUP(B51,사원명부!$A$2:$Z$100,11),VLOOKUP(B51,사원명부!$A$2:$Z$100,12))) ->  | F51: =IF(B51="","",VLOOKUP(B51,사원명부!$A$2:$Z$100,2)) ->  | G51: =IF(B51="","",VLOOKUP(B51,사원명부!$A$2:$Z$100,8)) ->  | H51: =IF(B51="","",VLOOKUP(B51,사원명부!$A$2:$Z$100,9)) ->  | I51: =IF(B51="","",VLOOKUP(B51,사원명부!$A$2:$Z$100,14)) ->  | J51: =IF(D51="말소","",IF(B51="","",VLOOKUP(B51,사원명부!$A$2:$Z$100,15))) ->  | L51: 33 | M51: =IF(L51="","",IFERROR(IFBLANK(VLOOKUP(L51,사원명부!$A$2:$Z$100,2,FALSE)),"")) -> 
D52: =IF(B52="","",IF(C52="","",IF(C52="입사","신규",IFERROR(IF(VLOOKUP(B52,사원명부!$A$2:$Z$100,7)="약사","변경","말소"),"")))) ->  | E52: =IF(B52="","",IF(C52="입사",VLOOKUP(B52,사원명부!$A$2:$Z$100,11),VLOOKUP(B52,사원명부!$A$2:$Z$100,12))) ->  | F52: =IF(B52="","",VLOOKUP(B52,사원명부!$A$2:$Z$100,2)) ->  | G52: =IF(B52="","",VLOOKUP(B52,사원명부!$A$2:$Z$100,8)) ->  | H52: =IF(B52="","",VLOOKUP(B52,사원명부!$A$2:$Z$100,9)) ->  | I52: =IF(B52="","",VLOOKUP(B52,사원명부!$A$2:$Z$100,14)) ->  | J52: =IF(D52="말소","",IF(B52="","",VLOOKUP(B52,사원명부!$A$2:$Z$100,15))) ->  | L52: 34 | M52: =IF(L52="","",IFERROR(IFBLANK(VLOOKUP(L52,사원명부!$A$2:$Z$100,2,FALSE)),"")) -> 
D53: =IF(B53="","",IF(C53="","",IF(C53="입사","신규",IFERROR(IF(VLOOKUP(B53,사원명부!$A$2:$Z$100,7)="약사","변경","말소"),"")))) ->  | E53: =IF(B53="","",IF(C53="입사",VLOOKUP(B53,사원명부!$A$2:$Z$100,11),VLOOKUP(B53,사원명부!$A$2:$Z$100,12))) ->  | F53: =IF(B53="","",VLOOKUP(B53,사원명부!$A$2:$Z$100,2)) ->  | G53: =IF(B53="","",VLOOKUP(B53,사원명부!$A$2:$Z$100,8)) ->  | H53: =IF(B53="","",VLOOKUP(B53,사원명부!$A$2:$Z$100,9)) ->  | I53: =IF(B53="","",VLOOKUP(B53,사원명부!$A$2:$Z$100,14)) ->  | J53: =IF(D53="말소","",IF(B53="","",VLOOKUP(B53,사원명부!$A$2:$Z$100,15))) ->  | L53: 35 | M53: =IF(L53="","",IFERROR(IFBLANK(VLOOKUP(L53,사원명부!$A$2:$Z$100,2,FALSE)),"")) -> 
D54: =IF(B54="","",IF(C54="","",IF(C54="입사","신규",IFERROR(IF(VLOOKUP(B54,사원명부!$A$2:$Z$100,7)="약사","변경","말소"),"")))) ->  | E54: =IF(B54="","",IF(C54="입사",VLOOKUP(B54,사원명부!$A$2:$Z$100,11),VLOOKUP(B54,사원명부!$A$2:$Z$100,12))) ->  | F54: =IF(B54="","",VLOOKUP(B54,사원명부!$A$2:$Z$100,2)) ->  | G54: =IF(B54="","",VLOOKUP(B54,사원명부!$A$2:$Z$100,8)) ->  | H54: =IF(B54="","",VLOOKUP(B54,사원명부!$A$2:$Z$100,9)) ->  | I54: =IF(B54="","",VLOOKUP(B54,사원명부!$A$2:$Z$100,14)) ->  | J54: =IF(D54="말소","",IF(B54="","",VLOOKUP(B54,사원명부!$A$2:$Z$100,15))) ->  | L54: 36 | M54: =IF(L54="","",IFERROR(IFBLANK(VLOOKUP(L54,사원명부!$A$2:$Z$100,2,FALSE)),"")) -> 
D55: =IF(B55="","",IF(C55="","",IF(C55="입사","신규",IFERROR(IF(VLOOKUP(B55,사원명부!$A$2:$Z$100,7)="약사","변경","말소"),"")))) ->  | E55: =IF(B55="","",IF(C55="입사",VLOOKUP(B55,사원명부!$A$2:$Z$100,11),VLOOKUP(B55,사원명부!$A$2:$Z$100,12))) ->  | F55: =IF(B55="","",VLOOKUP(B55,사원명부!$A$2:$Z$100,2)) ->  | G55: =IF(B55="","",VLOOKUP(B55,사원명부!$A$2:$Z$100,8)) ->  | H55: =IF(B55="","",VLOOKUP(B55,사원명부!$A$2:$Z$100,9)) ->  | I55: =IF(B55="","",VLOOKUP(B55,사원명부!$A$2:$Z$100,14)) ->  | J55: =IF(D55="말소","",IF(B55="","",VLOOKUP(B55,사원명부!$A$2:$Z$100,15))) ->  | L55: 37 | M55: =IF(L55="","",IFERROR(IFBLANK(VLOOKUP(L55,사원명부!$A$2:$Z$100,2,FALSE)),"")) -> 
D56: =IF(B56="","",IF(C56="","",IF(C56="입사","신규",IFERROR(IF(VLOOKUP(B56,사원명부!$A$2:$Z$100,7)="약사","변경","말소"),"")))) ->  | E56: =IF(B56="","",IF(C56="입사",VLOOKUP(B56,사원명부!$A$2:$Z$100,11),VLOOKUP(B56,사원명부!$A$2:$Z$100,12))) ->  | F56: =IF(B56="","",VLOOKUP(B56,사원명부!$A$2:$Z$100,2)) ->  | G56: =IF(B56="","",VLOOKUP(B56,사원명부!$A$2:$Z$100,8)) ->  | H56: =IF(B56="","",VLOOKUP(B56,사원명부!$A$2:$Z$100,9)) ->  | I56: =IF(B56="","",VLOOKUP(B56,사원명부!$A$2:$Z$100,14)) ->  | J56: =IF(D56="말소","",IF(B56="","",VLOOKUP(B56,사원명부!$A$2:$Z$100,15))) ->  | L56: 38 | M56: =IF(L56="","",IFERROR(IFBLANK(VLOOKUP(L56,사원명부!$A$2:$Z$100,2,FALSE)),"")) -> 
D57: =IF(B57="","",IF(C57="","",IF(C57="입사","신규",IFERROR(IF(VLOOKUP(B57,사원명부!$A$2:$Z$100,7)="약사","변경","말소"),"")))) ->  | E57: =IF(B57="","",IF(C57="입사",VLOOKUP(B57,사원명부!$A$2:$Z$100,11),VLOOKUP(B57,사원명부!$A$2:$Z$100,12))) ->  | F57: =IF(B57="","",VLOOKUP(B57,사원명부!$A$2:$Z$100,2)) ->  | G57: =IF(B57="","",VLOOKUP(B57,사원명부!$A$2:$Z$100,8)) ->  | H57: =IF(B57="","",VLOOKUP(B57,사원명부!$A$2:$Z$100,9)) ->  | I57: =IF(B57="","",VLOOKUP(B57,사원명부!$A$2:$Z$100,14)) ->  | J57: =IF(D57="말소","",IF(B57="","",VLOOKUP(B57,사원명부!$A$2:$Z$100,15))) ->  | L57: 39 | M57: =IF(L57="","",IFERROR(IFBLANK(VLOOKUP(L57,사원명부!$A$2:$Z$100,2,FALSE)),"")) -> 
D58: =IF(B58="","",IF(C58="","",IF(C58="입사","신규",IFERROR(IF(VLOOKUP(B58,사원명부!$A$2:$Z$100,7)="약사","변경","말소"),"")))) ->  | E58: =IF(B58="","",IF(C58="입사",VLOOKUP(B58,사원명부!$A$2:$Z$100,11),VLOOKUP(B58,사원명부!$A$2:$Z$100,12))) ->  | F58: =IF(B58="","",VLOOKUP(B58,사원명부!$A$2:$Z$100,2)) ->  | G58: =IF(B58="","",VLOOKUP(B58,사원명부!$A$2:$Z$100,8)) ->  | H58: =IF(B58="","",VLOOKUP(B58,사원명부!$A$2:$Z$100,9)) ->  | I58: =IF(B58="","",VLOOKUP(B58,사원명부!$A$2:$Z$100,14)) ->  | J58: =IF(D58="말소","",IF(B58="","",VLOOKUP(B58,사원명부!$A$2:$Z$100,15))) ->  | L58: 40 | M58: =IF(L58="","",IFERROR(IFBLANK(VLOOKUP(L58,사원명부!$A$2:$Z$100,2,FALSE)),"")) -> 
D59: =IF(B59="","",IF(C59="","",IF(C59="입사","신규",IFERROR(IF(VLOOKUP(B59,사원명부!$A$2:$Z$100,7)="약사","변경","말소"),"")))) ->  | E59: =IF(B59="","",IF(C59="입사",VLOOKUP(B59,사원명부!$A$2:$Z$100,11),VLOOKUP(B59,사원명부!$A$2:$Z$100,12))) ->  | F59: =IF(B59="","",VLOOKUP(B59,사원명부!$A$2:$Z$100,2)) ->  | G59: =IF(B59="","",VLOOKUP(B59,사원명부!$A$2:$Z$100,8)) ->  | H59: =IF(B59="","",VLOOKUP(B59,사원명부!$A$2:$Z$100,9)) ->  | I59: =IF(B59="","",VLOOKUP(B59,사원명부!$A$2:$Z$100,14)) ->  | J59: =IF(D59="말소","",IF(B59="","",VLOOKUP(B59,사원명부!$A$2:$Z$100,15))) ->  | L59: 41 | M59: =IF(L59="","",IFERROR(IFBLANK(VLOOKUP(L59,사원명부!$A$2:$Z$100,2,FALSE)),"")) -> 
D60: =IF(B60="","",IF(C60="","",IF(C60="입사","신규",IFERROR(IF(VLOOKUP(B60,사원명부!$A$2:$Z$100,7)="약사","변경","말소"),"")))) ->  | E60: =IF(B60="","",IF(C60="입사",VLOOKUP(B60,사원명부!$A$2:$Z$100,11),VLOOKUP(B60,사원명부!$A$2:$Z$100,12))) ->  | F60: =IF(B60="","",VLOOKUP(B60,사원명부!$A$2:$Z$100,2)) ->  | G60: =IF(B60="","",VLOOKUP(B60,사원명부!$A$2:$Z$100,8)) ->  | H60: =IF(B60="","",VLOOKUP(B60,사원명부!$A$2:$Z$100,9)) ->  | I60: =IF(B60="","",VLOOKUP(B60,사원명부!$A$2:$Z$100,14)) ->  | J60: =IF(D60="말소","",IF(B60="","",VLOOKUP(B60,사원명부!$A$2:$Z$100,15))) ->  | L60: 42 | M60: =IF(L60="","",IFERROR(IFBLANK(VLOOKUP(L60,사원명부!$A$2:$Z$100,2,FALSE)),"")) -> 
A61: =IFBLANK(요양기관기초정보!D1)&" 개인 정보 처리 시스템(청구소프트웨어) 사용자 ID 관리대장" -> 팜오피스약국 개인 정보 처리 시스템(청구소프트웨어) 사용자 ID 관리대장
H62: 개인정보보호책임자
H63: 직급 | I63: =IFBLANK(I43) -> 요양기관장
H64: 이름 | I64: =IFBLANK(I44) -> 홍길동
A66: 연번 | B66: 사번 | C66: 사유 | D66: 유형 | E66: 날짜 | F66: 이름 | G66: 부서명 | H66: 직급 | I66: S/W 사용 권한 | J66: ID
A67: 1 | B67: 1 | C67: 퇴사 | D67: =IF(B67="","",IF(C67="","",IF(C67="입사","신규",IFERROR(IF(VLOOKUP(B67,사원명부!$A$2:$Z$100,7)="약사","변경","말소"),"")))) -> 말소 | E67: =IF(B67="","",IF(C67="입사",VLOOKUP(B67,사원명부!$A$2:$Z$100,11),VLOOKUP(B67,사원명부!$A$2:$Z$100,12))) -> 00:00:00 | F67: =IF(B67="","",VLOOKUP(B67,사원명부!$A$2:$Z$100,2)) -> 테스트1 | G67: =IF(B67="","",VLOOKUP(B67,사원명부!$A$2:$Z$100,8)) -> 관리부 | H67: =IF(B67="","",VLOOKUP(B67,사원명부!$A$2:$Z$100,9)) -> 부장 | I67: =IF(B67="","",VLOOKUP(B67,사원명부!$A$2:$Z$100,14)) -> 사입,반품,고객조회 | J67: =IF(D67="말소","",IF(B67="","",VLOOKUP(B67,사원명부!$A$2:$Z$100,15))) -> 
A68: =IF(B68="","",A61+1) ->  | D68: =IF(B68="","",IF(C68="","",IF(C68="입사","신규",IFERROR(IF(VLOOKUP(B68,사원명부!$A$2:$Z$100,7)="약사","변경","말소"),"")))) ->  | E68: =IF(B68="","",IF(C68="입사",VLOOKUP(B68,사원명부!$A$2:$Z$100,11),VLOOKUP(B68,사원명부!$A$2:$Z$100,12))) ->  | F68: =IF(B68="","",VLOOKUP(B68,사원명부!$A$2:$Z$100,2)) ->  | G68: =IF(B68="","",VLOOKUP(B68,사원명부!$A$2:$Z$100,8)) ->  | H68: =IF(B68="","",VLOOKUP(B68,사원명부!$A$2:$Z$100,9)) ->  | I68: =IF(B68="","",VLOOKUP(B68,사원명부!$A$2:$Z$100,14)) ->  | J68: =IF(D68="말소","",IF(B68="","",VLOOKUP(B68,사원명부!$A$2:$Z$100,15))) -> 
D69: =IF(B69="","",IF(C69="","",IF(C69="입사","신규",IFERROR(IF(VLOOKUP(B69,사원명부!$A$2:$Z$100,7)="약사","변경","말소"),"")))) ->  | E69: =IF(B69="","",IF(C69="입사",VLOOKUP(B69,사원명부!$A$2:$Z$100,11),VLOOKUP(B69,사원명부!$A$2:$Z$100,12))) ->  | F69: =IF(B69="","",VLOOKUP(B69,사원명부!$A$2:$Z$100,2)) ->  | G69: =IF(B69="","",VLOOKUP(B69,사원명부!$A$2:$Z$100,8)) ->  | H69: =IF(B69="","",VLOOKUP(B69,사원명부!$A$2:$Z$100,9)) ->  | I69: =IF(B69="","",VLOOKUP(B69,사원명부!$A$2:$Z$100,14)) ->  | J69: =IF(D69="말소","",IF(B69="","",VLOOKUP(B69,사원명부!$A$2:$Z$100,15))) -> 
D70: =IF(B70="","",IF(C70="","",IF(C70="입사","신규",IFERROR(IF(VLOOKUP(B70,사원명부!$A$2:$Z$100,7)="약사","변경","말소"),"")))) ->  | E70: =IF(B70="","",IF(C70="입사",VLOOKUP(B70,사원명부!$A$2:$Z$100,11),VLOOKUP(B70,사원명부!$A$2:$Z$100,12))) ->  | F70: =IF(B70="","",VLOOKUP(B70,사원명부!$A$2:$Z$100,2)) ->  | G70: =IF(B70="","",VLOOKUP(B70,사원명부!$A$2:$Z$100,8)) ->  | H70: =IF(B70="","",VLOOKUP(B70,사원명부!$A$2:$Z$100,9)) ->  | I70: =IF(B70="","",VLOOKUP(B70,사원명부!$A$2:$Z$100,14)) ->  | J70: =IF(D70="말소","",IF(B70="","",VLOOKUP(B70,사원명부!$A$2:$Z$100,15))) -> 
D71: =IF(B71="","",IF(C71="","",IF(C71="입사","신규",IFERROR(IF(VLOOKUP(B71,사원명부!$A$2:$Z$100,7)="약사","변경","말소"),"")))) ->  | E71: =IF(B71="","",IF(C71="입사",VLOOKUP(B71,사원명부!$A$2:$Z$100,11),VLOOKUP(B71,사원명부!$A$2:$Z$100,12))) ->  | F71: =IF(B71="","",VLOOKUP(B71,사원명부!$A$2:$Z$100,2)) ->  | G71: =IF(B71="","",VLOOKUP(B71,사원명부!$A$2:$Z$100,8)) ->  | H71: =IF(B71="","",VLOOKUP(B71,사원명부!$A$2:$Z$100,9)) ->  | I71: =IF(B71="","",VLOOKUP(B71,사원명부!$A$2:$Z$100,14)) ->  | J71: =IF(D71="말소","",IF(B71="","",VLOOKUP(B71,사원명부!$A$2:$Z$100,15))) -> 
D72: =IF(B72="","",IF(C72="","",IF(C72="입사","신규",IFERROR(IF(VLOOKUP(B72,사원명부!$A$2:$Z$100,7)="약사","변경","말소"),"")))) ->  | E72: =IF(B72="","",IF(C72="입사",VLOOKUP(B72,사원명부!$A$2:$Z$100,11),VLOOKUP(B72,사원명부!$A$2:$Z$100,12))) ->  | F72: =IF(B72="","",VLOOKUP(B72,사원명부!$A$2:$Z$100,2)) ->  | G72: =IF(B72="","",VLOOKUP(B72,사원명부!$A$2:$Z$100,8)) ->  | H72: =IF(B72="","",VLOOKUP(B72,사원명부!$A$2:$Z$100,9)) ->  | I72: =IF(B72="","",VLOOKUP(B72,사원명부!$A$2:$Z$100,14)) ->  | J72: =IF(D72="말소","",IF(B72="","",VLOOKUP(B72,사원명부!$A$2:$Z$100,15))) -> 
D73: =IF(B73="","",IF(C73="","",IF(C73="입사","신규",IFERROR(IF(VLOOKUP(B73,사원명부!$A$2:$Z$100,7)="약사","변경","말소"),"")))) ->  | E73: =IF(B73="","",IF(C73="입사",VLOOKUP(B73,사원명부!$A$2:$Z$100,11),VLOOKUP(B73,사원명부!$A$2:$Z$100,12))) ->  | F73: =IF(B73="","",VLOOKUP(B73,사원명부!$A$2:$Z$100,2)) ->  | G73: =IF(B73="","",VLOOKUP(B73,사원명부!$A$2:$Z$100,8)) ->  | H73: =IF(B73="","",VLOOKUP(B73,사원명부!$A$2:$Z$100,9)) ->  | I73: =IF(B73="","",VLOOKUP(B73,사원명부!$A$2:$Z$100,14)) ->  | J73: =IF(D73="말소","",IF(B73="","",VLOOKUP(B73,사원명부!$A$2:$Z$100,15))) -> 
D74: =IF(B74="","",IF(C74="","",IF(C74="입사","신규",IFERROR(IF(VLOOKUP(B74,사원명부!$A$2:$Z$100,7)="약사","변경","말소"),"")))) ->  | E74: =IF(B74="","",IF(C74="입사",VLOOKUP(B74,사원명부!$A$2:$Z$100,11),VLOOKUP(B74,사원명부!$A$2:$Z$100,12))) ->  | F74: =IF(B74="","",VLOOKUP(B74,사원명부!$A$2:$Z$100,2)) ->  | G74: =IF(B74="","",VLOOKUP(B74,사원명부!$A$2:$Z$100,8)) ->  | H74: =IF(B74="","",VLOOKUP(B74,사원명부!$A$2:$Z$100,9)) ->  | I74: =IF(B74="","",VLOOKUP(B74,사원명부!$A$2:$Z$100,14)) ->  | J74: =IF(D74="말소","",IF(B74="","",VLOOKUP(B74,사원명부!$A$2:$Z$100,15))) -> 
D75: =IF(B75="","",IF(C75="","",IF(C75="입사","신규",IFERROR(IF(VLOOKUP(B75,사원명부!$A$2:$Z$100,7)="약사","변경","말소"),"")))) ->  | E75: =IF(B75="","",IF(C75="입사",VLOOKUP(B75,사원명부!$A$2:$Z$100,11),VLOOKUP(B75,사원명부!$A$2:$Z$100,12))) ->  | F75: =IF(B75="","",VLOOKUP(B75,사원명부!$A$2:$Z$100,2)) ->  | G75: =IF(B75="","",VLOOKUP(B75,사원명부!$A$2:$Z$100,8)) ->  | H75: =IF(B75="","",VLOOKUP(B75,사원명부!$A$2:$Z$100,9)) ->  | I75: =IF(B75="","",VLOOKUP(B75,사원명부!$A$2:$Z$100,14)) ->  | J75: =IF(D75="말소","",IF(B75="","",VLOOKUP(B75,사원명부!$A$2:$Z$100,15))) -> 
D76: =IF(B76="","",IF(C76="","",IF(C76="입사","신규",IFERROR(IF(VLOOKUP(B76,사원명부!$A$2:$Z$100,7)="약사","변경","말소"),"")))) ->  | E76: =IF(B76="","",IF(C76="입사",VLOOKUP(B76,사원명부!$A$2:$Z$100,11),VLOOKUP(B76,사원명부!$A$2:$Z$100,12))) ->  | F76: =IF(B76="","",VLOOKUP(B76,사원명부!$A$2:$Z$100,2)) ->  | G76: =IF(B76="","",VLOOKUP(B76,사원명부!$A$2:$Z$100,8)) ->  | H76: =IF(B76="","",VLOOKUP(B76,사원명부!$A$2:$Z$100,9)) ->  | I76: =IF(B76="","",VLOOKUP(B76,사원명부!$A$2:$Z$100,14)) ->  | J76: =IF(D76="말소","",IF(B76="","",VLOOKUP(B76,사원명부!$A$2:$Z$100,15))) -> 
D77: =IF(B77="","",IF(C77="","",IF(C77="입사","신규",IFERROR(IF(VLOOKUP(B77,사원명부!$A$2:$Z$100,7)="약사","변경","말소"),"")))) ->  | E77: =IF(B77="","",IF(C77="입사",VLOOKUP(B77,사원명부!$A$2:$Z$100,11),VLOOKUP(B77,사원명부!$A$2:$Z$100,12))) ->  | F77: =IF(B77="","",VLOOKUP(B77,사원명부!$A$2:$Z$100,2)) ->  | G77: =IF(B77="","",VLOOKUP(B77,사원명부!$A$2:$Z$100,8)) ->  | H77: =IF(B77="","",VLOOKUP(B77,사원명부!$A$2:$Z$100,9)) ->  | I77: =IF(B77="","",VLOOKUP(B77,사원명부!$A$2:$Z$100,14)) ->  | J77: =IF(D77="말소","",IF(B77="","",VLOOKUP(B77,사원명부!$A$2:$Z$100,15))) -> 
D78: =IF(B78="","",IF(C78="","",IF(C78="입사","신규",IFERROR(IF(VLOOKUP(B78,사원명부!$A$2:$Z$100,7)="약사","변경","말소"),"")))) ->  | E78: =IF(B78="","",IF(C78="입사",VLOOKUP(B78,사원명부!$A$2:$Z$100,11),VLOOKUP(B78,사원명부!$A$2:$Z$100,12))) ->  | F78: =IF(B78="","",VLOOKUP(B78,사원명부!$A$2:$Z$100,2)) ->  | G78: =IF(B78="","",VLOOKUP(B78,사원명부!$A$2:$Z$100,8)) ->  | H78: =IF(B78="","",VLOOKUP(B78,사원명부!$A$2:$Z$100,9)) ->  | I78: =IF(B78="","",VLOOKUP(B78,사원명부!$A$2:$Z$100,14)) ->  | J78: =IF(D78="말소","",IF(B78="","",VLOOKUP(B78,사원명부!$A$2:$Z$100,15))) -> 
D79: =IF(B79="","",IF(C79="","",IF(C79="입사","신규",IFERROR(IF(VLOOKUP(B79,사원명부!$A$2:$Z$100,7)="약사","변경","말소"),"")))) ->  | E79: =IF(B79="","",IF(C79="입사",VLOOKUP(B79,사원명부!$A$2:$Z$100,11),VLOOKUP(B79,사원명부!$A$2:$Z$100,12))) ->  | F79: =IF(B79="","",VLOOKUP(B79,사원명부!$A$2:$Z$100,2)) ->  | G79: =IF(B79="","",VLOOKUP(B79,사원명부!$A$2:$Z$100,8)) ->  | H79: =IF(B79="","",VLOOKUP(B79,사원명부!$A$2:$Z$100,9)) ->  | I79: =IF(B79="","",VLOOKUP(B79,사원명부!$A$2:$Z$100,14)) ->  | J79: =IF(D79="말소","",IF(B79="","",VLOOKUP(B79,사원명부!$A$2:$Z$100,15))) -> 
D80: =IF(B80="","",IF(C80="","",IF(C80="입사","신규",IFERROR(IF(VLOOKUP(B80,사원명부!$A$2:$Z$100,7)="약사","변경","말소"),"")))) ->  | E80: =IF(B80="","",IF(C80="입사",VLOOKUP(B80,사원명부!$A$2:$Z$100,11),VLOOKUP(B80,사원명부!$A$2:$Z$100,12))) ->  | F80: =IF(B80="","",VLOOKUP(B80,사원명부!$A$2:$Z$100,2)) ->  | G80: =IF(B80="","",VLOOKUP(B80,사원명부!$A$2:$Z$100,8)) ->  | H80: =IF(B80="","",VLOOKUP(B80,사원명부!$A$2:$Z$100,9)) ->  | I80: =IF(B80="","",VLOOKUP(B80,사원명부!$A$2:$Z$100,14)) ->  | J80: =IF(D80="말소","",IF(B80="","",VLOOKUP(B80,사원명부!$A$2:$Z$100,15))) -> 

Sheet 필수
A1: 내부관리계획에 포함되어야 하는 필수 사항
A2: 내부관리계획 포함 사항 | C2: 유형1 | D2: 유형2 | E2: 유형3
A3: 항 | B3: 호 | C3: (완화) | D3: (표준) | E3: (강화)
A4: ■ 개인정보처리자는 개인정보의 분실·도난·유출·위조·변조 또는 훼손되지 아니하도록 내부 의사 결정 절차를 통하여 다음 각 호의 사항을 포함하는 내부 관리계획을 수립·시행하여야 한다. | B4: 1. 개인정보 보호책임자의 지정에 관한 사항 | C4: - | D4: O | E4: O
B5: 2. 개인정보 보호책임자 및 개인정보취급자의 역할 및 책임에 관한 사한 | C5: - | D5: O | E5: O
B6: 3. 개인정보취급자에 대한 교육에 관한 사항 | C6: - | D6: O | E6: O
B7: 4. 접근권한의 관리에 관한 사항 | C7: - | D7: O | E7: O
B8: 5. 접근 통제에 관한 사항 | C8: - | D8: O | E8: O
B9: 6. 개인정보의 암호화 조치에 관한 사항 | C9: - | D9: O | E9: O
B10: 7. 접속기록 보관 및 점검에 관한 사항 | C10: - | D10: O | E10: O
B11: 8. 악성프로그램 등 방지에 관한 사항 | C11: - | D11: O | E11: O
B12: 9. 물리적 안전조치에 관한 사항 | C12: - | D12: O | E12: O
B13: 10. 개인정보 보호조직에 관한 구성 및 운영에 관한 사항 | C13: - | D13: O | E13: O
B14: 11. 개인정보 유출사고 대응 계획 수립‧시행에 관한 사항 | C14: - | D14: O | E14: O
B15: 12. 위험도 분석 및 대응방안 마련에 관한 사항 | C15: - | D15: - | E15: O
B16: 13. 재해 및 재난 대비 개인정보처리시스템의 물리적 안전조치에 관한 사항 | C16: - | D16: - | E16: O
B17: 14. 개인정보 처리업무를 위탁하는 경우 수탁자에 대한 관리 및 감독에 관한 사항 | C17: - | D17: - | E17: O
B18: 15. 그 밖에 개인정보 보호를 위하여 필요한 사항 | C18: - | D18: O | E18: O
A19: ■ [별표]의 유형1에 해당하는 개인정보처리자는 제1항에 따른 내부 관리계획을 수립하지 아니할 수 있고, [별표]의 유형2에 해당하는 개인정보처리자는 제1항제12호부터 제14호까지를 내부 관리계획에 포함하지 아니할 수 있다.
A20: ■ [별표]의 유형1에 해당하는 개인정보처리자는 제1항에 따른 내부 관리계획을 수립하지 아니할 수 있고, | C20: - | D20: O | E20: O
A21: [별표]의 유형2에 해당하는 개인정보처리자는 제1항제12호부터 제14호까지를 내부 관리계획에 포함하지 아니할 수 있다.
A22: ■ 개인정보 보호책임자는 연 1회 이상으로 내부 관리계획의 이행 실태를 점검·관리 하여야 한다. | C22: - | D22: O | E22: O
A23: ▶ 내부관리계획 수립의무 위반 시, 3천만원 이하 과태료 부과(법 제75조제2항제6호)
A24: ▶ 위의 각 사항에 중요한 변경이 있는 경우에는 이를 즉시 반영하여 내부 관리계획을 수정하여 시행하고, 그 수정이력을 관리해야 함
A25: ▶ 개인정보 보호책임자는 연 1회 이상 내부관리계획의 이행 실태를 점검‧관리하여야 함

Sheet 출입
A1: 출 입 관 리 대 장
A2: 연번 | B2: 날짜 | C2: 방문자 | E2: 시 간 | G2: 방문목적 | H2: 확인자
C3: 소 속 | D3: 이 름 | E3: 입실시간 | F3: 퇴실시간
A4: 1
A5: 2
A6: 3
A7: 4
A8: 5
A9: 6
A10: 7
A11: 8
A12: 9
A13: 10
A14: 11
A15: 12
A16: 13
A17: 14
A18: 15
A19: 16
A20: 17
A21: 18
A22: 19
A23: 20
A24: =IFBLANK(요양기관기초정보!D1) -> 팜오피스약국
A26: 출 입 통제 절차
B28: 방문자 신분 확인
B37: 담당직원 동행 입실
B46: 업무종료후 잠금확인

Sheet 체크
A1: =IFBLANK(요양기관기초정보!D1)&" 개인정보 정기점검 체크리스트" -> 팜오피스약국 개인정보 정기점검 체크리스트
D2: ○ 점 검 자 : | E2: =IFBLANK(ID!I3)&" "&IFBLANK(ID!I4) -> 요양기관장 홍길동
D3: ○ 점 검 일 자 : | E3: 2020-12-30
A4: 순번 | B4: 점검사항 | C4: 점검결과 | F4: 비고
C5: 양 호 | D5: 취 약 | E5: 해당 없음
A6: 1 | B6: 출입통제 관리대장 기록·관리 여부 | C6: ○
A7: 2 | B7: 개인정보처리시스템 접근기록 관리(정상) 여부 | C7: ○
A8: 3 | B8: 백신 프로그램 정기점검 및 최신 업데이트 여부 | C8: ○
A9: 4 | B9: 물리적 접근 방지 및 잠금장치 적용 여부 | C9: ○
A10: 5 | B10: 비밀번호 작성규칙 준수 여부(최소 6개월마다 변경) | C10: ○
A11: 6 | B11: 직원변경에 따른 ID 및 권한 부여/변경/말소 관리 | C11: ○
A12: 7 | B12: 직원변경에 따른 보안서약서 관리 | C12: ○
A13: 8 | B13: 위탁업체 보안규정 준수여부 | C13: ○
A14: 9
A15: 10
A16: 11
A17: 12

Sheet 백신
A1: 백신프로그램 구입 증빙자료
A44: 백신프로그램 구입 증빙자료

Sheet 컴퓨터관리
A1: =IFBLANK(요양기관기초정보!D1)&" 개인 정보 처리 전산 시스템 사용자 ID 관리대장" -> 팜오피스약국 개인 정보 처리 전산 시스템 사용자 ID 관리대장
K2: ○ 점 검 자 : | M2: =IFBLANK(체크!E2) -> 요양기관장 홍길동
K3: ○ 점 검 일 : | M3: =TODAY() -> 2021-05-31
A4: 연번 | B4: P C | G4: 사양 | J4: 개인정보관련 소프트웨어 사용자관리
B5: PC명칭 | C5: PASSWORD | D5: 공유폴더 | E5: 로컬 IP | F5: 용도 | G5: CPU | H5: HDD | I5: RAM | J5: 사번 | K5: 이름 | L5: 직급 | M5: ID | N5: PASSWORD
A6: =IF(B6="","",1) ->  | K6: =IF(J6="","",IF(J6=0,요양기관기초정보!$C$6,VLOOKUP(J6,사원명부!$A$2:$Z$100,2))) ->  | L6: =IF(J6="","",IF(J6=0,"약국장",VLOOKUP(J6,사원명부!$A$2:$Z$100,8)&" "&VLOOKUP(J6,사원명부!$A$2:$Z$100,9))) ->  | M6: =IF(J6="","",IF(J6=0,요양기관기초정보!$C$23,VLOOKUP(J6,사원명부!$A$2:$Z$100,15))) ->  | N6: =IF(J6="","",IF(J6=0,"********",VLOOKUP(J6,사원명부!$A$2:$Z$100,16))) -> 
A7: =IF(B7="","",A6+1) ->  | K7: =IF(J7="","",IF(J7=0,요양기관기초정보!$C$6,VLOOKUP(J7,사원명부!$A$2:$Z$100,2))) ->  | L7: =IF(J7="","",IF(J7=0,"약국장",VLOOKUP(J7,사원명부!$A$2:$Z$100,8)&" "&VLOOKUP(J7,사원명부!$A$2:$Z$100,9))) ->  | M7: =IF(J7="","",IF(J7=0,요양기관기초정보!$C$23,VLOOKUP(J7,사원명부!$A$2:$Z$100,15))) ->  | N7: =IF(J7="","",IF(J7=0,"********",VLOOKUP(J7,사원명부!$A$2:$Z$100,16))) -> 
K8: =IF(J8="","",IF(J8=0,요양기관기초정보!$C$6,VLOOKUP(J8,사원명부!$A$2:$Z$100,2))) ->  | L8: =IF(J8="","",IF(J8=0,"약국장",VLOOKUP(J8,사원명부!$A$2:$Z$100,8)&" "&VLOOKUP(J8,사원명부!$A$2:$Z$100,9))) ->  | M8: =IF(J8="","",IF(J8=0,요양기관기초정보!$C$23,VLOOKUP(J8,사원명부!$A$2:$Z$100,15))) ->  | N8: =IF(J8="","",IF(J8=0,"********",VLOOKUP(J8,사원명부!$A$2:$Z$100,16))) -> 
K9: =IF(J9="","",IF(J9=0,요양기관기초정보!$C$6,VLOOKUP(J9,사원명부!$A$2:$Z$100,2))) ->  | L9: =IF(J9="","",IF(J9=0,"약국장",VLOOKUP(J9,사원명부!$A$2:$Z$100,8)&" "&VLOOKUP(J9,사원명부!$A$2:$Z$100,9))) ->  | M9: =IF(J9="","",IF(J9=0,요양기관기초정보!$C$23,VLOOKUP(J9,사원명부!$A$2:$Z$100,15))) ->  | N9: =IF(J9="","",IF(J9=0,"********",VLOOKUP(J9,사원명부!$A$2:$Z$100,16))) -> 
K10: =IF(J10="","",IF(J10=0,요양기관기초정보!$C$6,VLOOKUP(J10,사원명부!$A$2:$Z$100,2))) ->  | L10: =IF(J10="","",IF(J10=0,"약국장",VLOOKUP(J10,사원명부!$A$2:$Z$100,8)&" "&VLOOKUP(J10,사원명부!$A$2:$Z$100,9))) ->  | M10: =IF(J10="","",IF(J10=0,요양기관기초정보!$C$23,VLOOKUP(J10,사원명부!$A$2:$Z$100,15))) ->  | N10: =IF(J10="","",IF(J10=0,"********",VLOOKUP(J10,사원명부!$A$2:$Z$100,16))) -> 
K11: =IF(J11="","",IF(J11=0,요양기관기초정보!$C$6,VLOOKUP(J11,사원명부!$A$2:$Z$100,2))) ->  | L11: =IF(J11="","",IF(J11=0,"약국장",VLOOKUP(J11,사원명부!$A$2:$Z$100,8)&" "&VLOOKUP(J11,사원명부!$A$2:$Z$100,9))) ->  | M11: =IF(J11="","",IF(J11=0,요양기관기초정보!$C$23,VLOOKUP(J11,사원명부!$A$2:$Z$100,15))) ->  | N11: =IF(J11="","",IF(J11=0,"********",VLOOKUP(J11,사원명부!$A$2:$Z$100,16))) -> 
K12: =IF(J12="","",IF(J12=0,요양기관기초정보!$C$6,VLOOKUP(J12,사원명부!$A$2:$Z$100,2))) ->  | L12: =IF(J12="","",IF(J12=0,"약국장",VLOOKUP(J12,사원명부!$A$2:$Z$100,8)&" "&VLOOKUP(J12,사원명부!$A$2:$Z$100,9))) ->  | M12: =IF(J12="","",IF(J12=0,요양기관기초정보!$C$23,VLOOKUP(J12,사원명부!$A$2:$Z$100,15))) ->  | N12: =IF(J12="","",IF(J12=0,"********",VLOOKUP(J12,사원명부!$A$2:$Z$100,16))) -> 
K13: =IF(J13="","",IF(J13=0,요양기관기초정보!$C$6,VLOOKUP(J13,사원명부!$A$2:$Z$100,2))) ->  | L13: =IF(J13="","",IF(J13=0,"약국장",VLOOKUP(J13,사원명부!$A$2:$Z$100,8)&" "&VLOOKUP(J13,사원명부!$A$2:$Z$100,9))) ->  | M13: =IF(J13="","",IF(J13=0,요양기관기초정보!$C$23,VLOOKUP(J13,사원명부!$A$2:$Z$100,15))) ->  | N13: =IF(J13="","",IF(J13=0,"********",VLOOKUP(J13,사원명부!$A$2:$Z$100,16))) -> 
K14: =IF(J14="","",IF(J14=0,요양기관기초정보!$C$6,VLOOKUP(J14,사원명부!$A$2:$Z$100,2))) ->  | L14: =IF(J14="","",IF(J14=0,"약국장",VLOOKUP(J14,사원명부!$A$2:$Z$100,8)&" "&VLOOKUP(J14,사원명부!$A$2:$Z$100,9))) ->  | M14: =IF(J14="","",IF(J14=0,요양기관기초정보!$C$23,VLOOKUP(J14,사원명부!$A$2:$Z$100,15))) ->  | N14: =IF(J14="","",IF(J14=0,"********",VLOOKUP(J14,사원명부!$A$2:$Z$100,16))) -> 
K15: =IF(J15="","",IF(J15=0,요양기관기초정보!$C$6,VLOOKUP(J15,사원명부!$A$2:$Z$100,2))) ->  | L15: =IF(J15="","",IF(J15=0,"약국장",VLOOKUP(J15,사원명부!$A$2:$Z$100,8)&" "&VLOOKUP(J15,사원명부!$A$2:$Z$100,9))) ->  | M15: =IF(J15="","",IF(J15=0,요양기관기초정보!$C$23,VLOOKUP(J15,사원명부!$A$2:$Z$100,15))) ->  | N15: =IF(J15="","",IF(J15=0,"********",VLOOKUP(J15,사원명부!$A$2:$Z$100,16))) -> 
K16: =IF(J16="","",IF(J16=0,요양기관기초정보!$C$6,VLOOKUP(J16,사원명부!$A$2:$Z$100,2))) ->  | L16: =IF(J16="","",IF(J16=0,"약국장",VLOOKUP(J16,사원명부!$A$2:$Z$100,8)&" "&VLOOKUP(J16,사원명부!$A$2:$Z$100,9))) ->  | M16: =IF(J16="","",IF(J16=0,요양기관기초정보!$C$23,VLOOKUP(J16,사원명부!$A$2:$Z$100,15))) ->  | N16: =IF(J16="","",IF(J16=0,"********",VLOOKUP(J16,사원명부!$A$2:$Z$100,16))) -> 
K17: =IF(J17="","",IF(J17=0,요양기관기초정보!$C$6,VLOOKUP(J17,사원명부!$A$2:$Z$100,2))) ->  | L17: =IF(J17="","",IF(J17=0,"약국장",VLOOKUP(J17,사원명부!$A$2:$Z$100,8)&" "&VLOOKUP(J17,사원명부!$A$2:$Z$100,9))) ->  | M17: =IF(J17="","",IF(J17=0,요양기관기초정보!$C$23,VLOOKUP(J17,사원명부!$A$2:$Z$100,15))) ->  | N17: =IF(J17="","",IF(J17=0,"********",VLOOKUP(J17,사원명부!$A$2:$Z$100,16))) -> 
K18: =IF(J18="","",IF(J18=0,요양기관기초정보!$C$6,VLOOKUP(J18,사원명부!$A$2:$Z$100,2))) ->  | L18: =IF(J18="","",IF(J18=0,"약국장",VLOOKUP(J18,사원명부!$A$2:$Z$100,8)&" "&VLOOKUP(J18,사원명부!$A$2:$Z$100,9))) ->  | M18: =IF(J18="","",IF(J18=0,요양기관기초정보!$C$23,VLOOKUP(J18,사원명부!$A$2:$Z$100,15))) ->  | N18: =IF(J18="","",IF(J18=0,"********",VLOOKUP(J18,사원명부!$A$2:$Z$100,16))) -> 
K19: =IF(J19="","",IF(J19=0,요양기관기초정보!$C$6,VLOOKUP(J19,사원명부!$A$2:$Z$100,2))) ->  | L19: =IF(J19="","",IF(J19=0,"약국장",VLOOKUP(J19,사원명부!$A$2:$Z$100,8)&" "&VLOOKUP(J19,사원명부!$A$2:$Z$100,9))) ->  | M19: =IF(J19="","",IF(J19=0,요양기관기초정보!$C$23,VLOOKUP(J19,사원명부!$A$2:$Z$100,15))) ->  | N19: =IF(J19="","",IF(J19=0,"********",VLOOKUP(J19,사원명부!$A$2:$Z$100,16))) -> 

Sheet 네트워크장비
A1: =IFBLANK(요양기관기초정보!D1)&" 네트워크 장비 관리 대장 " -> 팜오피스약국 네트워크 장비 관리 대장
H2: ○ 점 검 자 : | J2: =IFBLANK(컴퓨터관리!M2) -> 요양기관장 홍길동
H3: ○ 점 검 일 : | J3: =TODAY() -> 2021-05-31
A4: 연번 | B4: 네트워크 장비 | I4: 점검
B5: 장비 | C5: 모델 | D5: ID | E5: PASS | F5: 로컬 IP | G5: 위치 | H5: 용도 | I5: 상반기
A6: =IF(B6="","",1) -> 
A7: =IF(B7="","",A6+1) -> 
A8: =IF(B8="","",A7+1) -> 
A20: =IF(B20="","",A19+1) -> 

Sheet Wifi
A1: Wifi 비밀번호 비공개 안내
A2: 관련근거-개인정보보호법 제 29조(안전조치의무)
A3: 개인정보보호법에 의거하여 내부 Wifi 비밀번호를 공개하지 않습니다.
A4: 개인정보를 다루는 내부망과 연결되어 있으므로 개인정보유출을 방지하기 위해 공개할수 없음을 알려드립니다.
B6: =IFBLANK(요양기관기초정보!D1) -> 팜오피스약국

Sheet 유출
A1: 개인정보 유출 시 필수 조치요령
A2: 개인정보 유출 사고 발생 시 이것만은 꼭 조치하세요!
A3: 1 | B3: ◈ 유출된 정보주체 개개인에게 지체 없이 통지
B4: ⇨ 개인정보보호법 제34조 제1항
B5: • 시한 : 유출되었음을 알게 되었을 경우 지체 없이(5일 이내)
B6: • 통지 항목 : ①유출된 개인정보의 항목, ②유출 시점과 및 그 경위, ③피해 최소화를 위한 정보주체의 조치방법, ④기관의 대응조치 및 피해구제 절차, ⑤피해 신고 접수 담당부서 및 연락처
B8: * 개인정보보호법 제75조 제2항 제8호(3천만 원 이하의 과태료)
B9: 정보주체에게 같은 항 각 호의 사항을 알리지 아니한 자
A10: 2 | B10: ◈ 피해 최소화를 위한 대책 마련 및 필요한 조치 실시
B11: ⇨ 개인정보보호법 제34조 제2항
B12: • 접속경로 차단, 취약점 점검‧보완, 유출된 개인정보의 삭제 등 피해를 최소화하기 위해 필요한 긴급조치 이행
B13: • 긴급조치 이행 등에 어려움이 있는 경우 전문기관에 기술지원 요청
B14: * 피해 최소화 대책을 마련하지 않거나 필요한 긴급 조치를 하지 않은 경우 : 시정명령
A15: 3 | B15: ◈ 1천명 이상 유출된 경우 유출 통지 결과를 신고
B16: ⇨ 개인정보보호법 제34조 제3항
B17: • 1천명 이상 개인정보가 유출된 경우 유출 통지 및 조치 결과를 지체 없이 행정안전부 또는 전문기관(한국인터넷진흥원, www.privacy.go.kr)에 신고
B18: * 개인정보보호법 제75조 제2항 제9호(3천만 원 이하의 과태료)
B19: 조치결과를 신고하지 아니한 자 (행정안전부 또는 전문기관에 통지 결과 등을 신고하지 않은 경우)
A20: 4 | B20: ◈ 1천명 이상 유출된 경우에는 추가적으로 홈페이지에 공지
B21: ⇨ 개인정보보호법 시행령 40조 제3항
B22: • 1천명 이상 개인정보가 유출된 경우 개별 통지와 함께 유출된 사실을 인터넷 홈페이지에 7일 이상 게재
B23: * 홈페이지 등에 공지하지 않거나 7일 미만 게재하는 경우 : 시정명령

Sheet 유형
A1: [별표] 개인정보처리자 유형 및 개인정보 보유량에 따른 안전조치 기준
A3: 유형 | B3: 적용대상 | C3: 안전조치 기준
A4: 유형1(완화) | B4: · 1만명 미만의 정보주체에 관한 개인정보를 보유한 소상공인, 단체, 개인 | C4: · 제5조: 제2항부터 제5항까지
C5: · 제6조: 제1항, 제3항, 제6항 및 제7항
C6: · 제7조: 제1항부터 제5항까지, 제7항
C7: · 제8조, 제9조, 제10조, 제11조, 제13조
A8: 유형2(표준) | B8: · 100만명 미만의 정보주체에 관한 개인정보를 보유한 중소기업 | C8: · 제4조: 제1항제1호부터 제11호까지 및 제15호, 제3항부터 제4항까지
B9: · 10만명 미만의 정보주체에 관한 개인정보를 보유한 대기업, 중견기업, 공공기관 | C9: · 제5조
B10: · 1만명 이상의 정보주체에 관한 개인정보를 보유한 소상공인, 단체, 개인 | C10: · 제6조: 제1항부터 제7항까지
C11: · 제7조: 제1항부터 제5항까지, 제7항
C12: · 제8조, 제9조, 제10조, 제11조, 제13조
A13: 유형3(강화) | B13: · 10만명 이상의 정보주체에 관한 개인정보를 보유한 대기업, 중견기업, 공공기관 | C13: · 제4조부터 제13조까지
B14: · 100만명 이상의 정보주체에 관한 개인정보를 보유한 중소기업, 단체

Sheet 양도
A1: 개인정보 보호법에 따른 개인정보 이전 공지
A5: 본약국은 | B5: =D28 -> 2021-05-31 | D5: 자로 약국을 양도하기로 하였습니다.
A22: □ | B22: 개인정보를 이전 받는자
B24: O 성 명 :
B25: O 주 소 :
B26: O 전화번호 :
A28: □ | B28: 개인정보이전일 | D28: 2021-05-31
D31: =TODAY() -> 2021-05-31
D34: =요양기관기초정보!D1&" 대표 "&요양기관기초정보!C6&" (인)" -> 팜오피스약국 대표 홍길동 (인)
A36: 개인정보이전 반대의사표시 전화 연락처
B37: =요양기관기초정보!C12 -> 02-324-4650
A39: 개인정보이전 반대후 영수증발급,조제내역 열람및 발급문의
B40: =요양기관기초정보!C10 -> 010-1234-5678
A43: 이 공지문은 양도일부터 30일간 사업장에 게시됩니다.

Sheet 근로기준법 해석
A1: 5인 미만 사업장 근록기준법 제11조 Click
A2: 1. 상시 5명 이상의 근로자를 사용하는 모든 사업 및 사업체에 적용 혹은 동거하는 친족만을 사용하는 사업 또는 사업장과 가사 사용인에 대해서는 적용되지 아니한다. | C2: 노무관리가이드북
A3: 2. 이법을 적용하는 경우 상시 사용하는 근로자 수를 산정하는 방법은 대통령령으로 정한다
A4: 3. 상시 4명 이하의 근로자를 사용하는 사업 및 사업장에 대해서 대통령령으로 정하는 바에 따라서 이법의 일부 규정을 적용할 수 있음.
A5: ​
A6: 위의 내용 중 " 상시근로자란" 간단하게 말해 사장님 혹은 사업 주을 제외된 모든 근로자를 말합니다.
A8: 5인 미만 사업장 확인 방법
A9: ​
A10: 1개월 동안의 동원된 총 근로자 연인원 나누기 1개월간 가동한 수
A11: ( 연인원 : 어떠한 일에 동원된 인원과 걸린 날의 수)
A12: ( 가동일수 : 근로자가 움직여 일을 한 날 )
A13: ​
A14: 5인 미만 사업장 근로기준법 규정
A16: 1. 최저임금
A17: 최저임금은 꼭 사업주님께서 지켜야 하는 사항입니다.
A18: ​
A19: 2. 해고 시 30일 전 해고 예고
A20: 만약 해고 예고를 하시지 않으신다면 해고예고수당 1개월 분 급여를 지급해야 합니다.
A22: 3. 주 1회 이상 유급 휴일 보장
A23: 보장이 되는 유급 휴일 주 1회 중요합니다.
A24: ​
A25: 4. 1년 이상 근로한 후 퇴직 시 퇴직금 지급
A26: 2010년 12월부터 퇴직금 50% 지급~ 2013년 1월부터 퇴직금 전액 지급 변경!
A28: 5. 근로계약서 작성 및 교부
A29: 근로계약서를 작성해 주시는 것은 필수입니다!
A30: ​
A31: 6. 출산 휴가 및 육아 휴직
A32: 어느 사업장에서 나 지켜야 할 출산 휴가 및
A33: 육아 휴직 또한 겸비해야 합니다.
A34: ​
A35: 5인 미만 사업장 근로기준법 적용되지 않은 규정
A37: 1. 1일 8시간 이상 초과근무수당, 휴일수당, 야근수당 적용되지 않음-5인미안사업장에서 적용되지 않은 수당에는 연장근로,휴일근로, 야간근로 시 시급을 더 많이 지급받는 부분.
A39: 2. 해고 서면통지
A40: 해고 사유 및 내용을 구체적으로 명시하여 서면으로 통지할 필요가 없어짐 | C40: 서면 통지 필요가 없더라도
C41: 증빙자료는 남겨 놓을 필요는 있습니다.
A42: 3. 휴업수당, 사용자가 귀책사유로 휴업하는 경우
A43: 사업주의 휴업에 있어 책임이 있어 어쩔 수 없는 휴업이 진행됐다면 원래는 휴업수당을 지급해야 하지만 5인 미만 사업장에서는 적용되지 않음
A45: 4. 연차 유급 휴가
A46: 5인 미만 사업장에는 의무로 적용되지 않음 연차가 적용이 된다면 유급이 되기 때문에 일을 쉰다 하여도 급여를 받지만 5인 미만 사업장의 경우 사업주의 배려가 필요함
A48: 5. 부당 해고 및 구제신청
A49: 정당한 이유가 없이 사업주가 원하면 해고가 가능합니다. 근로기준법 23조 1항에 나와있는 내용으로 "사용자는 근로자에게 정당한 이유 없이 해고, 휴직, 감봉, 정직, 전직 등 이 밖의 징벌을 하지 못한다"라고 나오지만 5인 미만 사업장은 해당되지 않으며 노동위원회에서 구제 절차 부분을 밟을 수 있는 규정 또한 적용되지가 않습니다.

Sheet 근로기준법상보관서류
A1: 근로기준법 제42조(계약 서류의 보존)
A2: 사용자는 근로자 명부와 대통령령으로 정하는 근로계약에 관한 중요한 서류를 3년간 보존하여야 한다. | F2: 노무관리가이드북
A3: 근로기준법 시행령 22조 (보존대상서류등)
A4: 사용자는 근로자와의 분쟁이 발생될 경우를 대비하여 근로자명부, 근로계약서, 임금대장 등 근로계약에 관한 중요한 서류를 3년간 보존해야 합니다. 이를 어길 시 근로기준법 제116조에 따라 500만원 이하의 과태료 처분을 받을 수 있습니다.
A5: 1.보관해야 할 서류와 보전기간의 시작일은 아래와 같습니다.
A6: 순번 | B6: 항목 | C6: 보존기간(3년) 시작일 | F6: 근로기준법 서식자료실
A7: 1 | B7: 근로자명부 | C7: 근로자가 해고되거나 퇴직 또는 사망한 날
A8: 2 | B8: 근로계약서 | C8: 근로관계가 끝난 날
A9: 3 | B9: 임금대장 | C9: 마지막으로 작성한 날
A10: 4 | B10: 임금의 결정, 지급방법과 임금계산의 기초에 관한 서류 | C10: 마지막으로 작성한 날
A11: 5 | B11: 고용, 해고, 퇴직에 관한 서류 | C11: 근로자가 해고되거나 퇴직한 날
A12: 6 | B12: 승급,감급에관한서류 | C12: 승급,감급이 완료된 날
A13: 7 | B13: 휴가에 관한 서류 | C13: 휴가를 완료한 날
A14: 8 | B14: 탄력적, 선택적 근로시간제, 근로시간특례 합의 등에 따른 근로자대표 서면합의서류 | C14: 서면 합의한 날
A15: 9 | B15: 18세 미만 연소자 고용 시 연령을 증명하는 가족관계기록사항에 관한 증명서와 친권자 또는 후견인의 동의서 | C15: 근로자가 18세가 되는 날(18세가 되기전에 해고되거나 퇴직 또는 사망한경우에는 그 해고되거나 퇴직 또는 사망한날)
A16: 특히 근로자가 퇴직한 후 개인정보 보호를 이유로 근로계약서, 퇴직원등은 폐기하지 말아야 하며 개인정보가 담겨져 있더라도 근로기준법에서 정하는 서류는 보관해야 합니다.-개인정보 보호법 위반 아님
A17: 2. 임금대장 관리 근거 및 가이드
A18: 제48조(임금대장)
A19: 사용자는 각 사업장별로 임금대장을 작성하고 임금과 가족수당 계산의 기초가 되는 사항, 임금액, 그 밖에 대통령령으로 정하는 사항을 임금을 지급할 때마다 적어야 한다.
A20: 사용자는 임금을 지급할 때마다 임금대장을 작성하고 분쟁이 발생할 경우를 대비하여 근로자명부, 근로계약서, 임금 대장 등 근로계약에 관한 중요한 서류를 작성하여 3년간 보존해야 합니다.
A21: 3. 임금대장 기재사항 및 보존방법
A22: 사용자는 임금을 지급할 때마다 근로기준법 시행령 제27조 제1항에 따라 다음 사항이 포함된 임금대장을 작성해야 합니다.
A23: - 성명, 주민등록번호
A24: - 고용연월일
A25: - 종사하는 업무
A26: - 임금 및 가족수당의 계산기초가 되는 사항
A27: - 근로일 수, 근로시간 수
A28: - 연장근로, 야간근로, 휴일근로는 시킨 경우에는 그 시간 수
A29: - 기본급, 수당, 그 밖의 임금의 내역별 금액
A30: - 법령 또는 단체협약에 따라 임금의 일부를 공제한 경우에는 그 금액
A31: 아울러 임금대장은 수기 외 PC 등 전자문서로 작성이 가능하며 필요한 경우 언제라도 출력하여 사용할 수 있다면 임금대장을 전자문서로 보존하는 것도 가능합니다. 단 파일로 보관했어도 해킹, 바이러스 등 문서를 확인할 수 없다면 법 위반의 책임을 질 수 있습니다.
A32: ​

Sheet 검색
A2: 사번/순번 | B2: 성명(한글) | C2: 한문 | D2: 주민등록번호 | E2: 성별 | F2: 연락처 | G2: 주소 | H2: 소속 | I2: 직위 | J2: 자격 | K2: 입사일 | L2: 퇴사일 | M2: 취업업무-업무분장 | N2: 개인정보관리 S/W 사용권한 | O2: 사용자ID | P2: PASSWORD | Q2: 평일시업시간 | R2: 평일종업시간 | S2: 토요일시업시간 | T2: 토요일종업시간 | U2: 토요일 | V2: 소정근로시간 | W2: 급여 | X2: 실수령액/세전구분 | Y2: 상여금 | Z2: 신상신고비
A3: 2 | B3: =IFZERO(VLOOKUP($A$3,사원명부!$A$2:$Z$100,COLUMN(B1))) -> 테스트2 | C3: =IFZERO(VLOOKUP($A$3,사원명부!$A$2:$Z$100,COLUMN(C1))) ->  | D3: =IFZERO(VLOOKUP($A$3,사원명부!$A$2:$Z$100,COLUMN(D1))) -> 680623-1****** | E3: =IFZERO(VLOOKUP($A$3,사원명부!$A$2:$Z$100,COLUMN(E1))) -> 남 | F3: =IFZERO(VLOOKUP($A$3,사원명부!$A$2:$Z$100,COLUMN(F1))) -> 010-2345-6789 | G3: =IFZERO(VLOOKUP($A$3,사원명부!$A$2:$Z$100,COLUMN(G1))) -> 서울시 서대문구연세로 41 | H3: =IFZERO(VLOOKUP($A$3,사원명부!$A$2:$Z$100,COLUMN(H1))) -> 조제실 | I3: =IFZERO(VLOOKUP($A$3,사원명부!$A$2:$Z$100,COLUMN(I1))) -> 실장 | J3: =IFZERO(VLOOKUP($A$3,사원명부!$A$2:$Z$100,COLUMN(J1))) -> 약사 | K3: =IFZERO(VLOOKUP($A$3,사원명부!$A$2:$Z$100,COLUMN(K1))) -> 2021-01-01 | L3: =IFZERO(VLOOKUP($A$3,사원명부!$A$2:$Z$100,COLUMN(L1))) ->  | M3: =IFZERO(VLOOKUP($A$3,사원명부!$A$2:$Z$100,COLUMN(M1))) -> 조제실관리 | N3: =IFZERO(VLOOKUP($A$3,사원명부!$A$2:$Z$100,COLUMN(N1))) -> 고객조회 | O3: =IFZERO(VLOOKUP($A$3,사원명부!$A$2:$Z$100,COLUMN(O1))) -> jm010 | P3: =IFZERO(VLOOKUP($A$3,사원명부!$A$2:$Z$100,COLUMN(P1))) -> ****** | Q3: =IFZERO(VLOOKUP($A$3,사원명부!$A$2:$Z$100,COLUMN(Q1))) -> 09:00 | R3: =IFZERO(VLOOKUP($A$3,사원명부!$A$2:$Z$100,COLUMN(R1))) -> 18:00 | S3: =IFZERO(VLOOKUP($A$3,사원명부!$A$2:$Z$100,COLUMN(S1))) -> 09:00 | T3: =IFZERO(VLOOKUP($A$3,사원명부!$A$2:$Z$100,COLUMN(T1))) -> 13:00 | U3: =IFZERO(VLOOKUP($A$3,사원명부!$A$2:$Z$100,COLUMN(U1))) -> 격주 | V3: =IFZERO(VLOOKUP($A$3,사원명부!$A$2:$Z$100,COLUMN(V1))) ->  | W3: =IFZERO(VLOOKUP($A$3,사원명부!$A$2:$Z$100,COLUMN(W1))) -> 5000000 | X3: =IFZERO(VLOOKUP($A$3,사원명부!$A$2:$Z$100,COLUMN(X1))) ->  | Y3: =IFZERO(VLOOKUP($A$3,사원명부!$A$2:$Z$100,COLUMN(Y1))) -> 500000 | Z3: =IFZERO(VLOOKUP($A$3,사원명부!$A$2:$Z$100,COLUMN(Z1))) -> 지급

Sheet 사원명부
A1: =요양기관기초정보!D1&" 직원 명부" -> 팜오피스약국 직원 명부
A2: 사번/순번 | B2: 성명(한글) | C2: 한문 | D2: 주민등록번호 | E2: 성별 | F2: 연락처 | G2: 주소 | H2: 소속 | I2: 직위 | J2: 자격 | K2: 입사일 | L2: 퇴사일 | M2: 취업업무-업무분장 | N2: 개인정보관리 S/W 사용권한 | O2: 사용자ID | P2: PASSWORD | Q2: 평일시업시간 | R2: 평일종업시간 | S2: 토요일시업시간 | T2: 토요일종업시간 | U2: 토요일 | V2: 소정근로시간 | W2: 급여 | X2: 실수령액/세전구분 | Y2: 상여금 | Z2: 신상신고비 | AG2: 조직
A3: 1 | B3: 테스트1 | D3: 690114-2****** | E3: =IF(D3="","",IF(MOD(MID(D3,8,1),2)=0,"여","남")) -> 여 | F3: 010-1234-5678 | G3: 서울시 서대문구 창천동 78-14 | H3: 관리부 | I3: 부장 | J3: 사원 | K3: 2021-01-01 | M3: 주문,반품,재고관리 | N3: 사입,반품,고객조회 | O3: jm009 | P3: ****** | Q3: 09:00 | R3: 18:00 | W3: 3000000 | Y3: 500000 | AG3: =IFBLANK(요양기관기초정보!B26) -> 관리부
A4: =IF(A3="","",IF(B4="","",A3+1)) -> 2 | B4: 테스트2 | D4: 680623-1****** | E4: =IF(D4="","",IF(MOD(MID(D4,8,1),2)=0,"여","남")) -> 남 | F4: 010-2345-6789 | G4: 서울시 서대문구연세로 41 | H4: 조제실 | I4: 실장 | J4: 약사 | K4: 2021-01-01 | M4: 조제실관리 | N4: 고객조회 | O4: jm010 | P4: ****** | Q4: 09:00 | R4: 18:00 | S4: 09:00 | T4: 13:00 | U4: 격주 | W4: 5000000 | Y4: 500000 | Z4: 지급 | AG4: =IFBLANK(요양기관기초정보!B27) -> 판매부
A5: =IF(A4="","",IF(B5="","",A4+1)) ->  | AG5: =IFBLANK(요양기관기초정보!B28) -> 조제실
AG6: =IFBLANK(요양기관기초정보!B29) -> 
AG7: =IFBLANK(요양기관기초정보!B30) -> 
AG8: =IFBLANK(요양기관기초정보!B31) -> 
AG9: =IFBLANK(요양기관기초정보!B32) -> 
AG10: =IFBLANK(요양기관기초정보!B33) -> 
AG11: =IFBLANK(요양기관기초정보!B34) -> 
E14: =IF(D14="","",IF(MOD(MID(D14,8,1),2)=0,"여","남")) -> 
A59: =IF(A58="","",IF(B59="","",A58+1)) ->  | E59: =IF(D59="","",IF(MOD(MID(D59,8,1),2)=0,"여","남")) -> 

Sheet 근태 (hidden)
C1: =YEAR(TODAY()) -> 2021 | E1: 1월
C2: 요일 | D2: 월요일 | E2: =UPPER(TEXT(E3,"aaaa")) -> 화요일 | F2: 수요일 | G2: 목요일 | H2: 금요일 | I2: 토요일 | J2: 일요일 | K2: 월요일 | L2: 화요일 | M2: 수요일 | N2: 목요일 | O2: 금요일 | P2: 토요일 | Q2: 일요일 | R2: 월요일 | S2: 화요일 | T2: 수요일 | U2: 목요일 | V2: 금요일 | W2: 토요일 | X2: 일요일 | Y2: 월요일 | Z2: 화요일 | AA2: 수요일 | AB2: 목요일 | AC2: 금요일 | AD2: 토요일 | AE2: 일요일 | AF2: 월요일 | AG2: 화요일 | AH2: 수요일 | AI2: 목요일 | AJ2: 금요일 | AK2: 토요일 | AL2: 일요일 | AM2: 월요일 | AN2: 화요일
C3: 일 | D3: =일+1+DATE(Calendar1Year,Calendar1MonthOption,1)-WEEKDAY(DATE(Calendar1Year,Calendar1MonthOption,1),WeekdayOption) -> 2020-12-28 | E3: 2020-12-29 | F3: 2020-12-30 | G3: 2020-12-31 | H3: 2021-01-01 | I3: 2021-01-02 | J3: 2021-01-03 | K3: =일+8+DATE(Calendar1Year,Calendar1MonthOption,1)-WEEKDAY(DATE(Calendar1Year,Calendar1MonthOption,1),WeekdayOption) -> 2021-01-04 | L3: 2021-01-05 | M3: 2021-01-06 | N3: 2021-01-07 | O3: 2021-01-08 | P3: 2021-01-09 | Q3: 2021-01-10 | R3: =일+15+DATE(Calendar1Year,Calendar1MonthOption,1)-WEEKDAY(DATE(Calendar1Year,Calendar1MonthOption,1),WeekdayOption) -> 2021-01-11 | S3: 2021-01-12 | T3: 2021-01-13 | U3: 2021-01-14 | V3: 2021-01-15 | W3: 2021-01-16 | X3: 2021-01-17 | Y3: =일+22+DATE(Calendar1Year,Calendar1MonthOption,1)-WEEKDAY(DATE(Calendar1Year,Calendar1MonthOption,1),WeekdayOption) -> 2021-01-18 | Z3: 2021-01-19 | AA3: 2021-01-20 | AB3: 2021-01-21 | AC3: 2021-01-22 | AD3: 2021-01-23 | AE3: 2021-01-24 | AF3: =일+29+DATE(Calendar1Year,Calendar1MonthOption,1)-WEEKDAY(DATE(Calendar1Year,Calendar1MonthOption,1),WeekdayOption) -> 2021-01-25 | AG3: 2021-01-26 | AH3: 2021-01-27 | AI3: 2021-01-28 | AJ3: 2021-01-29 | AK3: 2021-01-30 | AL3: 2021-01-31 | AM3: =일+36+DATE(Calendar1Year,Calendar1MonthOption,1)-WEEKDAY(DATE(Calendar1Year,Calendar1MonthOption,1),WeekdayOption) -> 2021-02-01 | AN3: 2021-02-02 | AT3: 연차 | AU3: 年 | AV3: 반차 | AW3: 半 | AX3: 토요일 | AY3: 土
A4: 1 | B4: =IF(A4="","",VLOOKUP(A4,사원명부!$A$2:$B$100,2)) -> 테스트1 | H4: X | I4: X | J4: X | K4: O | L4: O | M4: O | N4: O | O4: O | P4: X | Q4: X | R4: O | S4: O | T4: O | U4: O | V4: O | W4: X | X4: X | Y4: O | Z4: O | AA4: O | AB4: O | AC4: O | AD4: X | AE4: X | AF4: O | AG4: O | AH4: O | AI4: O | AJ4: O | AK4: X | AL4: X
A5: 2 | B5: =IF(A5="","",VLOOKUP(A5,사원명부!$A$2:$B$100,2)) -> 테스트2 | H5: X | I5: X | J5: X | K5: O | L5: O | M5: O | N5: O | O5: O | P5: X | Q5: X | R5: O | S5: O | T5: O | U5: O | V5: O | W5: X | X5: X | Y5: O | Z5: O | AA5: O | AB5: O | AC5: 年 | AD5: X | AE5: X | AF5: O | AG5: O | AH5: O | AI5: O | AJ5: O | AK5: X | AL5: X
A6: 4 | B6: =IF(A6="","",VLOOKUP(A6,사원명부!$A$2:$B$100,2)) -> 테스트2 | H6: X | I6: X | J6: X | K6: O | L6: O | M6: O | N6: O | O6: O | P6: X | Q6: X | R6: O | S6: O | T6: O | U6: O | V6: O | W6: X | X6: X | Y6: O | Z6: O | AA6: O | AB6: O | AC6: O | AD6: X | AE6: X | AF6: O | AG6: O | AH6: O | AI6: O | AJ6: 年 | AK6: X | AL6: X
A7: 6 | B7: =IF(A7="","",VLOOKUP(A7,사원명부!$A$2:$B$100,2)) -> 테스트2 | H7: X | I7: X | J7: X | K7: O | L7: O | M7: O | N7: O | O7: O | P7: 土 | Q7: X | R7: O | S7: O | T7: 年 | U7: O | V7: O | W7: X | X7: X | Y7: O | Z7: O | AA7: O | AB7: O | AC7: O | AD7: O | AE7: X | AF7: O | AG7: O | AH7: O | AI7: O | AJ7: O | AK7: X | AL7: X
A8: 7 | B8: =IF(A8="","",VLOOKUP(A8,사원명부!$A$2:$B$100,2)) -> 테스트2 | H8: X | I8: 土 | J8: X | K8: O | L8: 年 | M8: O | N8: O | O8: O | P8: X | Q8: X | R8: O | S8: O | T8: O | U8: O | V8: O | W8: 土 | X8: X | Y8: O | Z8: O | AA8: O | AB8: O | AC8: O | AD8: X | AE8: X | AF8: O | AG8: O | AH8: O | AI8: O | AJ8: O | AK8: 土 | AL8: X
A9: 8 | B9: =IF(A9="","",VLOOKUP(A9,사원명부!$A$2:$B$100,2)) -> 테스트2 | H9: X | I9: 土 | J9: X | K9: O | L9: O | M9: O | N9: O | O9: O | P9: X | Q9: X | R9: O | S9: O | T9: O | U9: O | V9: O | W9: 土 | X9: X | Y9: O | Z9: O | AA9: O | AB9: O | AC9: O | AD9: X | AE9: X | AF9: O | AG9: O | AH9: O | AI9: O | AJ9: O | AK9: 土 | AL9: X
A10: 9 | B10: =IF(A10="","",VLOOKUP(A10,사원명부!$A$2:$B$100,2)) -> 테스트2 | H10: X | I10: X | J10: X | K10: 半 | L10: O | M10: O | N10: O | O10: O | P10: 土 | Q10: X | R10: O | S10: O | T10: O | U10: O | V10: O | W10: X | X10: X | Y10: O | Z10: O | AA10: O | AB10: 半 | AC10: O | AD10: O | AE10: X | AF10: O | AG10: O | AH10: O | AI10: O | AJ10: O | AK10: X | AL10: X
A11: 10 | B11: =IF(A11="","",VLOOKUP(A11,사원명부!$A$2:$B$100,2)) -> 테스트2 | H11: X | I11: X | J11: X | K11: O | L11: O | M11: O | N11: O | O11: O | P11: X | Q11: X | R11: O | S11: O | T11: O | U11: O | V11: O | W11: X | X11: X | Y11: O | Z11: O | AA11: O | AB11: O | AC11: O | AD11: X | AE11: X | AF11: O | AG11: O | AH11: O | AI11: O | AJ11: O | AK11: X | AL11: X
A12: 11 | B12: =IF(A12="","",VLOOKUP(A12,사원명부!$A$2:$B$100,2)) -> 테스트2 | H12: X | I12: X | J12: X | K12: O | L12: O | M12: O | N12: O | O12: O | P12: X | Q12: X | R12: O | S12: O | T12: O | U12: O | V12: O | W12: X | X12: X | Y12: O | Z12: O | AA12: O | AB12: O | AC12: O | AD12: X | AE12: X | AF12: O | AG12: O | AH12: O | AI12: O | AJ12: O | AK12: X | AL12: X

Sheet 업무분장내역
B2: =IFBLANK(요양기관기초정보!D1)&" 업무분장내역 (재직직원)" -> 팜오피스약국 업무분장내역 (재직직원)
B4: 사원번호 | C4: 이름 | D4: 소속 | E4: 직책 | F4: 자격 | G4: 업무내용 | H4: 비고 | J4: 성별 | L4: 신규입사나 퇴직등 인원변동이 발생하면
B5: 1 | C5: =IF(B5="","",VLOOKUP(B5,사원명부!$A$2:$Z$113,2,FALSE)) -> 테스트1 | D5: =IF(C5="","",VLOOKUP(B5,사원명부!$A$2:$Z$113,8,FALSE)) -> 관리부 | E5: =IF(C5="","",VLOOKUP(B5,사원명부!$A$2:$Z$113,9,FALSE)) -> 부장 | F5: =IF(C5="","",IF((VLOOKUP(B5,사원명부!$A$2:$Z$113,10))="","",VLOOKUP(B5,사원명부!$A$2:$Z$113,10))) -> 사원 | G5: =IF(C5="","",VLOOKUP(B5,사원명부!$A$2:$Z$113,13,FALSE)&" "&VLOOKUP(B5,사원명부!$A$2:$Z$113,14,FALSE)) -> 주문,반품,재고관리 사입,반품,고객조회 | J5: =IF(C5="","",VLOOKUP(B5,사원명부!$A$2:$Z$113,5,FALSE)) -> 여 | L5: 사원명부를 정확히 작성한 다음
C6: =IF(B6="","",VLOOKUP(B6,사원명부!$A$2:$Z$113,2,FALSE)) ->  | D6: =IF(C6="","",VLOOKUP(B6,사원명부!$A$2:$Z$113,8,FALSE)) ->  | E6: =IF(C6="","",VLOOKUP(B6,사원명부!$A$2:$Z$113,9,FALSE)) ->  | F6: =IF(C6="","",IF((VLOOKUP(B6,사원명부!$A$2:$Z$113,10))="","",VLOOKUP(B6,사원명부!$A$2:$Z$113,10))) ->  | G6: =IF(C6="","",VLOOKUP(B6,사원명부!$A$2:$Z$113,13,FALSE)&" "&VLOOKUP(B6,사원명부!$A$2:$Z$113,14,FALSE)) ->  | J6: =IF(C6="","",VLOOKUP(B6,사원명부!$A$2:$Z$113,5,FALSE)) ->  | L6: 새로고침을 하여 재직중인 직원 리스트만 작성합니다.
C7: =IF(B7="","",VLOOKUP(B7,사원명부!$A$2:$Z$113,2,FALSE)) ->  | D7: =IF(C7="","",VLOOKUP(B7,사원명부!$A$2:$Z$113,8,FALSE)) ->  | E7: =IF(C7="","",VLOOKUP(B7,사원명부!$A$2:$Z$113,9,FALSE)) ->  | F7: =IF(C7="","",IF((VLOOKUP(B7,사원명부!$A$2:$Z$113,10))="","",VLOOKUP(B7,사원명부!$A$2:$Z$113,10))) ->  | G7: =IF(C7="","",VLOOKUP(B7,사원명부!$A$2:$Z$113,13,FALSE)&" "&VLOOKUP(B7,사원명부!$A$2:$Z$113,14,FALSE)) ->  | J7: =IF(C7="","",VLOOKUP(B7,사원명부!$A$2:$Z$113,5,FALSE)) ->  | L7: 여 | M7: =COUNTIF(J5:J1100,"여") -> 1 | N7: 명
C8: =IF(B8="","",VLOOKUP(B8,사원명부!$A$2:$Z$113,2,FALSE)) ->  | D8: =IF(C8="","",VLOOKUP(B8,사원명부!$A$2:$Z$113,8,FALSE)) ->  | E8: =IF(C8="","",VLOOKUP(B8,사원명부!$A$2:$Z$113,9,FALSE)) ->  | F8: =IF(C8="","",IF((VLOOKUP(B8,사원명부!$A$2:$Z$113,10))="","",VLOOKUP(B8,사원명부!$A$2:$Z$113,10))) ->  | G8: =IF(C8="","",VLOOKUP(B8,사원명부!$A$2:$Z$113,13,FALSE)&" "&VLOOKUP(B8,사원명부!$A$2:$Z$113,14,FALSE)) ->  | J8: =IF(C8="","",VLOOKUP(B8,사원명부!$A$2:$Z$113,5,FALSE)) ->  | L8: 계 | M8: =COUNTIF(J5:J100,"여")+COUNTIF(J5:J100,"남") -> 1 | N8: 명
C9: =IF(B9="","",VLOOKUP(B9,사원명부!$A$2:$Z$113,2,FALSE)) ->  | D9: =IF(C9="","",VLOOKUP(B9,사원명부!$A$2:$Z$113,8,FALSE)) ->  | E9: =IF(C9="","",VLOOKUP(B9,사원명부!$A$2:$Z$113,9,FALSE)) ->  | F9: =IF(C9="","",IF((VLOOKUP(B9,사원명부!$A$2:$Z$113,10))="","",VLOOKUP(B9,사원명부!$A$2:$Z$113,10))) ->  | G9: =IF(C9="","",VLOOKUP(B9,사원명부!$A$2:$Z$113,13,FALSE)&" "&VLOOKUP(B9,사원명부!$A$2:$Z$113,14,FALSE)) ->  | J9: =IF(C9="","",VLOOKUP(B9,사원명부!$A$2:$Z$113,5,FALSE)) -> 
C10: =IF(B10="","",VLOOKUP(B10,사원명부!$A$2:$Z$113,2,FALSE)) ->  | D10: =IF(C10="","",VLOOKUP(B10,사원명부!$A$2:$Z$113,8,FALSE)) ->  | E10: =IF(C10="","",VLOOKUP(B10,사원명부!$A$2:$Z$113,9,FALSE)) ->  | F10: =IF(C10="","",IF((VLOOKUP(B10,사원명부!$A$2:$Z$113,10))="","",VLOOKUP(B10,사원명부!$A$2:$Z$113,10))) ->  | G10: =IF(C10="","",VLOOKUP(B10,사원명부!$A$2:$Z$113,13,FALSE)&" "&VLOOKUP(B10,사원명부!$A$2:$Z$113,14,FALSE)) ->  | J10: =IF(C10="","",VLOOKUP(B10,사원명부!$A$2:$Z$113,5,FALSE)) -> 
C11: =IF(B11="","",VLOOKUP(B11,사원명부!$A$2:$Z$113,2,FALSE)) ->  | D11: =IF(C11="","",VLOOKUP(B11,사원명부!$A$2:$Z$113,8,FALSE)) ->  | E11: =IF(C11="","",VLOOKUP(B11,사원명부!$A$2:$Z$113,9,FALSE)) ->  | F11: =IF(C11="","",IF((VLOOKUP(B11,사원명부!$A$2:$Z$113,10))="","",VLOOKUP(B11,사원명부!$A$2:$Z$113,10))) ->  | G11: =IF(C11="","",VLOOKUP(B11,사원명부!$A$2:$Z$113,13,FALSE)&" "&VLOOKUP(B11,사원명부!$A$2:$Z$113,14,FALSE)) ->  | J11: =IF(C11="","",VLOOKUP(B11,사원명부!$A$2:$Z$113,5,FALSE)) -> 
C12: =IF(B12="","",VLOOKUP(B12,사원명부!$A$2:$Z$113,2,FALSE)) ->  | D12: =IF(C12="","",VLOOKUP(B12,사원명부!$A$2:$Z$113,8,FALSE)) ->  | E12: =IF(C12="","",VLOOKUP(B12,사원명부!$A$2:$Z$113,9,FALSE)) ->  | F12: =IF(C12="","",IF((VLOOKUP(B12,사원명부!$A$2:$Z$113,10))="","",VLOOKUP(B12,사원명부!$A$2:$Z$113,10))) ->  | G12: =IF(C12="","",VLOOKUP(B12,사원명부!$A$2:$Z$113,13,FALSE)&" "&VLOOKUP(B12,사원명부!$A$2:$Z$113,14,FALSE)) ->  | J12: =IF(C12="","",VLOOKUP(B12,사원명부!$A$2:$Z$113,5,FALSE)) -> 
C13: =IF(B13="","",VLOOKUP(B13,사원명부!$A$2:$Z$113,2,FALSE)) ->  | D13: =IF(C13="","",VLOOKUP(B13,사원명부!$A$2:$Z$113,8,FALSE)) ->  | E13: =IF(C13="","",VLOOKUP(B13,사원명부!$A$2:$Z$113,9,FALSE)) ->  | F13: =IF(C13="","",IF((VLOOKUP(B13,사원명부!$A$2:$Z$113,10))="","",VLOOKUP(B13,사원명부!$A$2:$Z$113,10))) ->  | G13: =IF(C13="","",VLOOKUP(B13,사원명부!$A$2:$Z$113,13,FALSE)&" "&VLOOKUP(B13,사원명부!$A$2:$Z$113,14,FALSE)) ->  | J13: =IF(C13="","",VLOOKUP(B13,사원명부!$A$2:$Z$113,5,FALSE)) -> 
C14: =IF(B14="","",VLOOKUP(B14,사원명부!$A$2:$Z$113,2,FALSE)) ->  | D14: =IF(C14="","",VLOOKUP(B14,사원명부!$A$2:$Z$113,8,FALSE)) ->  | E14: =IF(C14="","",VLOOKUP(B14,사원명부!$A$2:$Z$113,9,FALSE)) ->  | F14: =IF(C14="","",IF((VLOOKUP(B14,사원명부!$A$2:$Z$113,10))="","",VLOOKUP(B14,사원명부!$A$2:$Z$113,10))) ->  | G14: =IF(C14="","",VLOOKUP(B14,사원명부!$A$2:$Z$113,13,FALSE)&" "&VLOOKUP(B14,사원명부!$A$2:$Z$113,14,FALSE)) ->  | J14: =IF(C14="","",VLOOKUP(B14,사원명부!$A$2:$Z$113,5,FALSE)) -> 
C15: =IF(B15="","",VLOOKUP(B15,사원명부!$A$2:$Z$113,2,FALSE)) ->  | D15: =IF(C15="","",VLOOKUP(B15,사원명부!$A$2:$Z$113,8,FALSE)) ->  | E15: =IF(C15="","",VLOOKUP(B15,사원명부!$A$2:$Z$113,9,FALSE)) ->  | F15: =IF(C15="","",IF((VLOOKUP(B15,사원명부!$A$2:$Z$113,10))="","",VLOOKUP(B15,사원명부!$A$2:$Z$113,10))) ->  | G15: =IF(C15="","",VLOOKUP(B15,사원명부!$A$2:$Z$113,13,FALSE)&" "&VLOOKUP(B15,사원명부!$A$2:$Z$113,14,FALSE)) ->  | J15: =IF(C15="","",VLOOKUP(B15,사원명부!$A$2:$Z$113,5,FALSE)) -> 
C16: =IF(B16="","",VLOOKUP(B16,사원명부!$A$2:$Z$113,2,FALSE)) ->  | D16: =IF(C16="","",VLOOKUP(B16,사원명부!$A$2:$Z$113,8,FALSE)) ->  | E16: =IF(C16="","",VLOOKUP(B16,사원명부!$A$2:$Z$113,9,FALSE)) ->  | F16: =IF(C16="","",IF((VLOOKUP(B16,사원명부!$A$2:$Z$113,10))="","",VLOOKUP(B16,사원명부!$A$2:$Z$113,10))) ->  | G16: =IF(C16="","",VLOOKUP(B16,사원명부!$A$2:$Z$113,13,FALSE)&" "&VLOOKUP(B16,사원명부!$A$2:$Z$113,14,FALSE)) ->  | J16: =IF(C16="","",VLOOKUP(B16,사원명부!$A$2:$Z$113,5,FALSE)) -> 
C17: =IF(B17="","",VLOOKUP(B17,사원명부!$A$2:$Z$113,2,FALSE)) ->  | D17: =IF(C17="","",VLOOKUP(B17,사원명부!$A$2:$Z$113,8,FALSE)) ->  | E17: =IF(C17="","",VLOOKUP(B17,사원명부!$A$2:$Z$113,9,FALSE)) ->  | F17: =IF(C17="","",IF((VLOOKUP(B17,사원명부!$A$2:$Z$113,10))="","",VLOOKUP(B17,사원명부!$A$2:$Z$113,10))) ->  | G17: =IF(C17="","",VLOOKUP(B17,사원명부!$A$2:$Z$113,13,FALSE)&" "&VLOOKUP(B17,사원명부!$A$2:$Z$113,14,FALSE)) ->  | J17: =IF(C17="","",VLOOKUP(B17,사원명부!$A$2:$Z$113,5,FALSE)) -> 
C18: =IF(B18="","",VLOOKUP(B18,사원명부!$A$2:$Z$113,2,FALSE)) ->  | D18: =IF(C18="","",VLOOKUP(B18,사원명부!$A$2:$Z$113,8,FALSE)) ->  | E18: =IF(C18="","",VLOOKUP(B18,사원명부!$A$2:$Z$113,9,FALSE)) ->  | F18: =IF(C18="","",IF((VLOOKUP(B18,사원명부!$A$2:$Z$113,10))="","",VLOOKUP(B18,사원명부!$A$2:$Z$113,10))) ->  | G18: =IF(C18="","",VLOOKUP(B18,사원명부!$A$2:$Z$113,13,FALSE)&" "&VLOOKUP(B18,사원명부!$A$2:$Z$113,14,FALSE)) ->  | J18: =IF(C18="","",VLOOKUP(B18,사원명부!$A$2:$Z$113,5,FALSE)) -> 
C19: =IF(B19="","",VLOOKUP(B19,사원명부!$A$2:$Z$113,2,FALSE)) ->  | D19: =IF(C19="","",VLOOKUP(B19,사원명부!$A$2:$Z$113,8,FALSE)) ->  | E19: =IF(C19="","",VLOOKUP(B19,사원명부!$A$2:$Z$113,9,FALSE)) ->  | F19: =IF(C19="","",IF((VLOOKUP(B19,사원명부!$A$2:$Z$113,10))="","",VLOOKUP(B19,사원명부!$A$2:$Z$113,10))) ->  | G19: =IF(C19="","",VLOOKUP(B19,사원명부!$A$2:$Z$113,13,FALSE)&" "&VLOOKUP(B19,사원명부!$A$2:$Z$113,14,FALSE)) ->  | J19: =IF(C19="","",VLOOKUP(B19,사원명부!$A$2:$Z$113,5,FALSE)) -> 
C20: =IF(B20="","",VLOOKUP(B20,사원명부!$A$2:$Z$113,2,FALSE)) ->  | D20: =IF(C20="","",VLOOKUP(B20,사원명부!$A$2:$Z$113,8,FALSE)) ->  | E20: =IF(C20="","",VLOOKUP(B20,사원명부!$A$2:$Z$113,9,FALSE)) ->  | F20: =IF(C20="","",IF((VLOOKUP(B20,사원명부!$A$2:$Z$113,10))="","",VLOOKUP(B20,사원명부!$A$2:$Z$113,10))) ->  | G20: =IF(C20="","",VLOOKUP(B20,사원명부!$A$2:$Z$113,13,FALSE)&" "&VLOOKUP(B20,사원명부!$A$2:$Z$113,14,FALSE)) ->  | J20: =IF(C20="","",VLOOKUP(B20,사원명부!$A$2:$Z$113,5,FALSE)) -> 
C21: =IF(B21="","",VLOOKUP(B21,사원명부!$A$2:$Z$113,2,FALSE)) ->  | D21: =IF(C21="","",VLOOKUP(B21,사원명부!$A$2:$Z$113,8,FALSE)) ->  | E21: =IF(C21="","",VLOOKUP(B21,사원명부!$A$2:$Z$113,9,FALSE)) ->  | F21: =IF(C21="","",IF((VLOOKUP(B21,사원명부!$A$2:$Z$113,10))="","",VLOOKUP(B21,사원명부!$A$2:$Z$113,10))) ->  | G21: =IF(C21="","",VLOOKUP(B21,사원명부!$A$2:$Z$113,13,FALSE)&" "&VLOOKUP(B21,사원명부!$A$2:$Z$113,14,FALSE)) ->  | J21: =IF(C21="","",VLOOKUP(B21,사원명부!$A$2:$Z$113,5,FALSE)) -> 
C22: =IF(B22="","",VLOOKUP(B22,사원명부!$A$2:$Z$113,2,FALSE)) ->  | D22: =IF(C22="","",VLOOKUP(B22,사원명부!$A$2:$Z$113,8,FALSE)) ->  | E22: =IF(C22="","",VLOOKUP(B22,사원명부!$A$2:$Z$113,9,FALSE)) ->  | F22: =IF(C22="","",IF((VLOOKUP(B22,사원명부!$A$2:$Z$113,10))="","",VLOOKUP(B22,사원명부!$A$2:$Z$113,10))) ->  | G22: =IF(C22="","",VLOOKUP(B22,사원명부!$A$2:$Z$113,13,FALSE)&" "&VLOOKUP(B22,사원명부!$A$2:$Z$113,14,FALSE)) ->  | J22: =IF(C22="","",VLOOKUP(B22,사원명부!$A$2:$Z$113,5,FALSE)) -> 
C23: =IF(B23="","",VLOOKUP(B23,사원명부!$A$2:$Z$113,2,FALSE)) ->  | D23: =IF(C23="","",VLOOKUP(B23,사원명부!$A$2:$Z$113,8,FALSE)) ->  | E23: =IF(C23="","",VLOOKUP(B23,사원명부!$A$2:$Z$113,9,FALSE)) ->  | F23: =IF(C23="","",IF((VLOOKUP(B23,사원명부!$A$2:$Z$113,10))="","",VLOOKUP(B23,사원명부!$A$2:$Z$113,10))) ->  | G23: =IF(C23="","",VLOOKUP(B23,사원명부!$A$2:$Z$113,13,FALSE)&" "&VLOOKUP(B23,사원명부!$A$2:$Z$113,14,FALSE)) ->  | J23: =IF(C23="","",VLOOKUP(B23,사원명부!$A$2:$Z$113,5,FALSE)) -> 
C24: =IF(B24="","",VLOOKUP(B24,사원명부!$A$2:$Z$113,2,FALSE)) ->  | D24: =IF(C24="","",VLOOKUP(B24,사원명부!$A$2:$Z$113,8,FALSE)) ->  | E24: =IF(C24="","",VLOOKUP(B24,사원명부!$A$2:$Z$113,9,FALSE)) ->  | F24: =IF(C24="","",IF((VLOOKUP(B24,사원명부!$A$2:$Z$113,10))="","",VLOOKUP(B24,사원명부!$A$2:$Z$113,10))) ->  | G24: =IF(C24="","",VLOOKUP(B24,사원명부!$A$2:$Z$113,13,FALSE)&" "&VLOOKUP(B24,사원명부!$A$2:$Z$113,14,FALSE)) ->  | J24: =IF(C24="","",VLOOKUP(B24,사원명부!$A$2:$Z$113,5,FALSE)) -> 
C25: =IF(B25="","",VLOOKUP(B25,사원명부!$A$2:$Z$113,2,FALSE)) ->  | D25: =IF(C25="","",VLOOKUP(B25,사원명부!$A$2:$Z$113,8,FALSE)) ->  | E25: =IF(C25="","",VLOOKUP(B25,사원명부!$A$2:$Z$113,9,FALSE)) ->  | F25: =IF(C25="","",IF((VLOOKUP(B25,사원명부!$A$2:$Z$113,10))="","",VLOOKUP(B25,사원명부!$A$2:$Z$113,10))) ->  | G25: =IF(C25="","",VLOOKUP(B25,사원명부!$A$2:$Z$113,13,FALSE)&" "&VLOOKUP(B25,사원명부!$A$2:$Z$113,14,FALSE)) ->  | J25: =IF(C25="","",VLOOKUP(B25,사원명부!$A$2:$Z$113,5,FALSE)) -> 
C26: =IF(B26="","",VLOOKUP(B26,사원명부!$A$2:$Z$113,2,FALSE)) ->  | D26: =IF(C26="","",VLOOKUP(B26,사원명부!$A$2:$Z$113,8,FALSE)) ->  | E26: =IF(C26="","",VLOOKUP(B26,사원명부!$A$2:$Z$113,9,FALSE)) ->  | F26: =IF(C26="","",IF((VLOOKUP(B26,사원명부!$A$2:$Z$113,10))="","",VLOOKUP(B26,사원명부!$A$2:$Z$113,10))) ->  | G26: =IF(C26="","",VLOOKUP(B26,사원명부!$A$2:$Z$113,13,FALSE)&" "&VLOOKUP(B26,사원명부!$A$2:$Z$113,14,FALSE)) ->  | J26: =IF(C26="","",VLOOKUP(B26,사원명부!$A$2:$Z$113,5,FALSE)) -> 
C27: =IF(B27="","",VLOOKUP(B27,사원명부!$A$2:$Z$113,2,FALSE)) ->  | D27: =IF(C27="","",VLOOKUP(B27,사원명부!$A$2:$Z$113,8,FALSE)) ->  | E27: =IF(C27="","",VLOOKUP(B27,사원명부!$A$2:$Z$113,9,FALSE)) ->  | F27: =IF(C27="","",IF((VLOOKUP(B27,사원명부!$A$2:$Z$113,10))="","",VLOOKUP(B27,사원명부!$A$2:$Z$113,10))) ->  | G27: =IF(C27="","",VLOOKUP(B27,사원명부!$A$2:$Z$113,13,FALSE)&" "&VLOOKUP(B27,사원명부!$A$2:$Z$113,14,FALSE)) ->  | J27: =IF(C27="","",VLOOKUP(B27,사원명부!$A$2:$Z$113,5,FALSE)) -> 
C28: =IF(B28="","",VLOOKUP(B28,사원명부!$A$2:$Z$113,2,FALSE)) ->  | D28: =IF(C28="","",VLOOKUP(B28,사원명부!$A$2:$Z$113,8,FALSE)) ->  | E28: =IF(C28="","",VLOOKUP(B28,사원명부!$A$2:$Z$113,9,FALSE)) ->  | F28: =IF(C28="","",IF((VLOOKUP(B28,사원명부!$A$2:$Z$113,10))="","",VLOOKUP(B28,사원명부!$A$2:$Z$113,10))) ->  | G28: =IF(C28="","",VLOOKUP(B28,사원명부!$A$2:$Z$113,13,FALSE)&" "&VLOOKUP(B28,사원명부!$A$2:$Z$113,14,FALSE)) ->  | J28: =IF(C28="","",VLOOKUP(B28,사원명부!$A$2:$Z$113,5,FALSE)) -> 
C29: =IF(B29="","",VLOOKUP(B29,사원명부!$A$2:$Z$113,2,FALSE)) ->  | D29: =IF(C29="","",VLOOKUP(B29,사원명부!$A$2:$Z$113,8,FALSE)) ->  | E29: =IF(C29="","",VLOOKUP(B29,사원명부!$A$2:$Z$113,9,FALSE)) ->  | F29: =IF(C29="","",IF((VLOOKUP(B29,사원명부!$A$2:$Z$113,10))="","",VLOOKUP(B29,사원명부!$A$2:$Z$113,10))) ->  | G29: =IF(C29="","",VLOOKUP(B29,사원명부!$A$2:$Z$113,13,FALSE)&" "&VLOOKUP(B29,사원명부!$A$2:$Z$113,14,FALSE)) ->  | J29: =IF(C29="","",VLOOKUP(B29,사원명부!$A$2:$Z$113,5,FALSE)) -> 
C30: =IF(B30="","",VLOOKUP(B30,사원명부!$A$2:$Z$113,2,FALSE)) ->  | D30: =IF(C30="","",VLOOKUP(B30,사원명부!$A$2:$Z$113,8,FALSE)) ->  | E30: =IF(C30="","",VLOOKUP(B30,사원명부!$A$2:$Z$113,9,FALSE)) ->  | F30: =IF(C30="","",IF((VLOOKUP(B30,사원명부!$A$2:$Z$113,10))="","",VLOOKUP(B30,사원명부!$A$2:$Z$113,10))) ->  | G30: =IF(C30="","",VLOOKUP(B30,사원명부!$A$2:$Z$113,13,FALSE)&" "&VLOOKUP(B30,사원명부!$A$2:$Z$113,14,FALSE)) ->  | J30: =IF(C30="","",VLOOKUP(B30,사원명부!$A$2:$Z$113,5,FALSE)) -> 
C31: =IF(B31="","",VLOOKUP(B31,사원명부!$A$2:$Z$113,2,FALSE)) ->  | D31: =IF(C31="","",VLOOKUP(B31,사원명부!$A$2:$Z$113,8,FALSE)) ->  | E31: =IF(C31="","",VLOOKUP(B31,사원명부!$A$2:$Z$113,9,FALSE)) ->  | F31: =IF(C31="","",IF((VLOOKUP(B31,사원명부!$A$2:$Z$113,10))="","",VLOOKUP(B31,사원명부!$A$2:$Z$113,10))) ->  | G31: =IF(C31="","",VLOOKUP(B31,사원명부!$A$2:$Z$113,13,FALSE)&" "&VLOOKUP(B31,사원명부!$A$2:$Z$113,14,FALSE)) ->  | J31: =IF(C31="","",VLOOKUP(B31,사원명부!$A$2:$Z$113,5,FALSE)) -> 
C32: =IF(B32="","",VLOOKUP(B32,사원명부!$A$2:$Z$113,2,FALSE)) ->  | D32: =IF(C32="","",VLOOKUP(B32,사원명부!$A$2:$Z$113,8,FALSE)) ->  | E32: =IF(C32="","",VLOOKUP(B32,사원명부!$A$2:$Z$113,9,FALSE)) ->  | F32: =IF(C32="","",IF((VLOOKUP(B32,사원명부!$A$2:$Z$113,10))="","",VLOOKUP(B32,사원명부!$A$2:$Z$113,10))) ->  | G32: =IF(C32="","",VLOOKUP(B32,사원명부!$A$2:$Z$113,13,FALSE)&" "&VLOOKUP(B32,사원명부!$A$2:$Z$113,14,FALSE)) ->  | J32: =IF(C32="","",VLOOKUP(B32,사원명부!$A$2:$Z$113,5,FALSE)) -> 
C33: =IF(B33="","",VLOOKUP(B33,사원명부!$A$2:$Z$113,2,FALSE)) ->  | D33: =IF(C33="","",VLOOKUP(B33,사원명부!$A$2:$Z$113,8,FALSE)) ->  | E33: =IF(C33="","",VLOOKUP(B33,사원명부!$A$2:$Z$113,9,FALSE)) ->  | F33: =IF(C33="","",IF((VLOOKUP(B33,사원명부!$A$2:$Z$113,10))="","",VLOOKUP(B33,사원명부!$A$2:$Z$113,10))) ->  | G33: =IF(C33="","",VLOOKUP(B33,사원명부!$A$2:$Z$113,13,FALSE)&" "&VLOOKUP(B33,사원명부!$A$2:$Z$113,14,FALSE)) ->  | J33: =IF(C33="","",VLOOKUP(B33,사원명부!$A$2:$Z$113,5,FALSE)) -> 
C34: =IF(B34="","",VLOOKUP(B34,사원명부!$A$2:$Z$113,2,FALSE)) ->  | D34: =IF(C34="","",VLOOKUP(B34,사원명부!$A$2:$Z$113,8,FALSE)) ->  | E34: =IF(C34="","",VLOOKUP(B34,사원명부!$A$2:$Z$113,9,FALSE)) ->  | F34: =IF(C34="","",IF((VLOOKUP(B34,사원명부!$A$2:$Z$113,10))="","",VLOOKUP(B34,사원명부!$A$2:$Z$113,10))) ->  | G34: =IF(C34="","",VLOOKUP(B34,사원명부!$A$2:$Z$113,13,FALSE)&" "&VLOOKUP(B34,사원명부!$A$2:$Z$113,14,FALSE)) ->  | J34: =IF(C34="","",VLOOKUP(B34,사원명부!$A$2:$Z$113,5,FALSE)) -> 
C35: =IF(B35="","",VLOOKUP(B35,사원명부!$A$2:$Z$113,2,FALSE)) ->  | D35: =IF(C35="","",VLOOKUP(B35,사원명부!$A$2:$Z$113,8,FALSE)) ->  | E35: =IF(C35="","",VLOOKUP(B35,사원명부!$A$2:$Z$113,9,FALSE)) ->  | F35: =IF(C35="","",IF((VLOOKUP(B35,사원명부!$A$2:$Z$113,10))="","",VLOOKUP(B35,사원명부!$A$2:$Z$113,10))) ->  | G35: =IF(C35="","",VLOOKUP(B35,사원명부!$A$2:$Z$113,13,FALSE)&" "&VLOOKUP(B35,사원명부!$A$2:$Z$113,14,FALSE)) ->  | J35: =IF(C35="","",VLOOKUP(B35,사원명부!$A$2:$Z$113,5,FALSE)) -> 
C36: =IF(B36="","",VLOOKUP(B36,사원명부!$A$2:$Z$113,2,FALSE)) ->  | D36: =IF(C36="","",VLOOKUP(B36,사원명부!$A$2:$Z$113,8,FALSE)) ->  | E36: =IF(C36="","",VLOOKUP(B36,사원명부!$A$2:$Z$113,9,FALSE)) ->  | F36: =IF(C36="","",IF((VLOOKUP(B36,사원명부!$A$2:$Z$113,10))="","",VLOOKUP(B36,사원명부!$A$2:$Z$113,10))) ->  | G36: =IF(C36="","",VLOOKUP(B36,사원명부!$A$2:$Z$113,13,FALSE)&" "&VLOOKUP(B36,사원명부!$A$2:$Z$113,14,FALSE)) ->  | J36: =IF(C36="","",VLOOKUP(B36,사원명부!$A$2:$Z$113,5,FALSE)) -> 
C37: =IF(B37="","",VLOOKUP(B37,사원명부!$A$2:$Z$113,2,FALSE)) ->  | D37: =IF(C37="","",VLOOKUP(B37,사원명부!$A$2:$Z$113,8,FALSE)) ->  | E37: =IF(C37="","",VLOOKUP(B37,사원명부!$A$2:$Z$113,9,FALSE)) ->  | F37: =IF(C37="","",IF((VLOOKUP(B37,사원명부!$A$2:$Z$113,10))="","",VLOOKUP(B37,사원명부!$A$2:$Z$113,10))) ->  | G37: =IF(C37="","",VLOOKUP(B37,사원명부!$A$2:$Z$113,13,FALSE)&" "&VLOOKUP(B37,사원명부!$A$2:$Z$113,14,FALSE)) ->  | J37: =IF(C37="","",VLOOKUP(B37,사원명부!$A$2:$Z$113,5,FALSE)) -> 
C38: =IF(B38="","",VLOOKUP(B38,사원명부!$A$2:$Z$113,2,FALSE)) ->  | D38: =IF(C38="","",VLOOKUP(B38,사원명부!$A$2:$Z$113,8,FALSE)) ->  | E38: =IF(C38="","",VLOOKUP(B38,사원명부!$A$2:$Z$113,9,FALSE)) ->  | F38: =IF(C38="","",IF((VLOOKUP(B38,사원명부!$A$2:$Z$113,10))="","",VLOOKUP(B38,사원명부!$A$2:$Z$113,10))) ->  | G38: =IF(C38="","",VLOOKUP(B38,사원명부!$A$2:$Z$113,13,FALSE)&" "&VLOOKUP(B38,사원명부!$A$2:$Z$113,14,FALSE)) ->  | J38: =IF(C38="","",VLOOKUP(B38,사원명부!$A$2:$Z$113,5,FALSE)) -> 
C39: =IF(B39="","",VLOOKUP(B39,사원명부!$A$2:$Z$113,2,FALSE)) ->  | D39: =IF(C39="","",VLOOKUP(B39,사원명부!$A$2:$Z$113,8,FALSE)) ->  | E39: =IF(C39="","",VLOOKUP(B39,사원명부!$A$2:$Z$113,9,FALSE)) ->  | F39: =IF(C39="","",IF((VLOOKUP(B39,사원명부!$A$2:$Z$113,10))="","",VLOOKUP(B39,사원명부!$A$2:$Z$113,10))) ->  | G39: =IF(C39="","",VLOOKUP(B39,사원명부!$A$2:$Z$113,13,FALSE)&" "&VLOOKUP(B39,사원명부!$A$2:$Z$113,14,FALSE)) ->  | J39: =IF(C39="","",VLOOKUP(B39,사원명부!$A$2:$Z$113,5,FALSE)) -> 
C40: =IF(B40="","",VLOOKUP(B40,사원명부!$A$2:$Z$113,2,FALSE)) ->  | D40: =IF(C40="","",VLOOKUP(B40,사원명부!$A$2:$Z$113,8,FALSE)) ->  | E40: =IF(C40="","",VLOOKUP(B40,사원명부!$A$2:$Z$113,9,FALSE)) ->  | F40: =IF(C40="","",IF((VLOOKUP(B40,사원명부!$A$2:$Z$113,10))="","",VLOOKUP(B40,사원명부!$A$2:$Z$113,10))) ->  | G40: =IF(C40="","",VLOOKUP(B40,사원명부!$A$2:$Z$113,13,FALSE)&" "&VLOOKUP(B40,사원명부!$A$2:$Z$113,14,FALSE)) ->  | J40: =IF(C40="","",VLOOKUP(B40,사원명부!$A$2:$Z$113,5,FALSE)) -> 
C41: =IF(B41="","",VLOOKUP(B41,사원명부!$A$2:$Z$113,2,FALSE)) ->  | D41: =IF(C41="","",VLOOKUP(B41,사원명부!$A$2:$Z$113,8,FALSE)) ->  | E41: =IF(C41="","",VLOOKUP(B41,사원명부!$A$2:$Z$113,9,FALSE)) ->  | F41: =IF(C41="","",IF((VLOOKUP(B41,사원명부!$A$2:$Z$113,10))="","",VLOOKUP(B41,사원명부!$A$2:$Z$113,10))) ->  | G41: =IF(C41="","",VLOOKUP(B41,사원명부!$A$2:$Z$113,13,FALSE)&" "&VLOOKUP(B41,사원명부!$A$2:$Z$113,14,FALSE)) ->  | J41: =IF(C41="","",VLOOKUP(B41,사원명부!$A$2:$Z$113,5,FALSE)) -> 
C42: =IF(B42="","",VLOOKUP(B42,사원명부!$A$2:$Z$113,2,FALSE)) ->  | D42: =IF(C42="","",VLOOKUP(B42,사원명부!$A$2:$Z$113,8,FALSE)) ->  | E42: =IF(C42="","",VLOOKUP(B42,사원명부!$A$2:$Z$113,9,FALSE)) ->  | F42: =IF(C42="","",IF((VLOOKUP(B42,사원명부!$A$2:$Z$113,10))="","",VLOOKUP(B42,사원명부!$A$2:$Z$113,10))) ->  | G42: =IF(C42="","",VLOOKUP(B42,사원명부!$A$2:$Z$113,13,FALSE)&" "&VLOOKUP(B42,사원명부!$A$2:$Z$113,14,FALSE)) ->  | J42: =IF(C42="","",VLOOKUP(B42,사원명부!$A$2:$Z$113,5,FALSE)) -> 
C43: =IF(B43="","",VLOOKUP(B43,사원명부!$A$2:$Z$113,2,FALSE)) ->  | D43: =IF(C43="","",VLOOKUP(B43,사원명부!$A$2:$Z$113,8,FALSE)) ->  | E43: =IF(C43="","",VLOOKUP(B43,사원명부!$A$2:$Z$113,9,FALSE)) ->  | F43: =IF(C43="","",IF((VLOOKUP(B43,사원명부!$A$2:$Z$113,10))="","",VLOOKUP(B43,사원명부!$A$2:$Z$113,10))) ->  | G43: =IF(C43="","",VLOOKUP(B43,사원명부!$A$2:$Z$113,13,FALSE)&" "&VLOOKUP(B43,사원명부!$A$2:$Z$113,14,FALSE)) ->  | J43: =IF(C43="","",VLOOKUP(B43,사원명부!$A$2:$Z$113,5,FALSE)) -> 
C44: =IF(B44="","",VLOOKUP(B44,사원명부!$A$2:$Z$113,2,FALSE)) ->  | D44: =IF(C44="","",VLOOKUP(B44,사원명부!$A$2:$Z$113,8,FALSE)) ->  | E44: =IF(C44="","",VLOOKUP(B44,사원명부!$A$2:$Z$113,9,FALSE)) ->  | F44: =IF(C44="","",IF((VLOOKUP(B44,사원명부!$A$2:$Z$113,10))="","",VLOOKUP(B44,사원명부!$A$2:$Z$113,10))) ->  | G44: =IF(C44="","",VLOOKUP(B44,사원명부!$A$2:$Z$113,13,FALSE)&" "&VLOOKUP(B44,사원명부!$A$2:$Z$113,14,FALSE)) ->  | J44: =IF(C44="","",VLOOKUP(B44,사원명부!$A$2:$Z$113,5,FALSE)) -> 
C45: =IF(B45="","",VLOOKUP(B45,사원명부!$A$2:$Z$113,2,FALSE)) ->  | D45: =IF(C45="","",VLOOKUP(B45,사원명부!$A$2:$Z$113,8,FALSE)) ->  | E45: =IF(C45="","",VLOOKUP(B45,사원명부!$A$2:$Z$113,9,FALSE)) ->  | F45: =IF(C45="","",IF((VLOOKUP(B45,사원명부!$A$2:$Z$113,10))="","",VLOOKUP(B45,사원명부!$A$2:$Z$113,10))) ->  | G45: =IF(C45="","",VLOOKUP(B45,사원명부!$A$2:$Z$113,13,FALSE)&" "&VLOOKUP(B45,사원명부!$A$2:$Z$113,14,FALSE)) ->  | J45: =IF(C45="","",VLOOKUP(B45,사원명부!$A$2:$Z$113,5,FALSE)) -> 
C46: =IF(B46="","",VLOOKUP(B46,사원명부!$A$2:$Z$113,2,FALSE)) ->  | D46: =IF(C46="","",VLOOKUP(B46,사원명부!$A$2:$Z$113,8,FALSE)) ->  | E46: =IF(C46="","",VLOOKUP(B46,사원명부!$A$2:$Z$113,9,FALSE)) ->  | F46: =IF(C46="","",IF((VLOOKUP(B46,사원명부!$A$2:$Z$113,10))="","",VLOOKUP(B46,사원명부!$A$2:$Z$113,10))) ->  | G46: =IF(C46="","",VLOOKUP(B46,사원명부!$A$2:$Z$113,13,FALSE)&" "&VLOOKUP(B46,사원명부!$A$2:$Z$113,14,FALSE)) ->  | J46: =IF(C46="","",VLOOKUP(B46,사원명부!$A$2:$Z$113,5,FALSE)) -> 
C47: =IF(B47="","",VLOOKUP(B47,사원명부!$A$2:$Z$113,2,FALSE)) ->  | D47: =IF(C47="","",VLOOKUP(B47,사원명부!$A$2:$Z$113,8,FALSE)) ->  | E47: =IF(C47="","",VLOOKUP(B47,사원명부!$A$2:$Z$113,9,FALSE)) ->  | F47: =IF(C47="","",IF((VLOOKUP(B47,사원명부!$A$2:$Z$113,10))="","",VLOOKUP(B47,사원명부!$A$2:$Z$113,10))) ->  | G47: =IF(C47="","",VLOOKUP(B47,사원명부!$A$2:$Z$113,13,FALSE)&" "&VLOOKUP(B47,사원명부!$A$2:$Z$113,14,FALSE)) ->  | J47: =IF(C47="","",VLOOKUP(B47,사원명부!$A$2:$Z$113,5,FALSE)) -> 
C48: =IF(B48="","",VLOOKUP(B48,사원명부!$A$2:$Z$113,2,FALSE)) ->  | D48: =IF(C48="","",VLOOKUP(B48,사원명부!$A$2:$Z$113,8,FALSE)) ->  | E48: =IF(C48="","",VLOOKUP(B48,사원명부!$A$2:$Z$113,9,FALSE)) ->  | F48: =IF(C48="","",IF((VLOOKUP(B48,사원명부!$A$2:$Z$113,10))="","",VLOOKUP(B48,사원명부!$A$2:$Z$113,10))) ->  | G48: =IF(C48="","",VLOOKUP(B48,사원명부!$A$2:$Z$113,13,FALSE)&" "&VLOOKUP(B48,사원명부!$A$2:$Z$113,14,FALSE)) ->  | J48: =IF(C48="","",VLOOKUP(B48,사원명부!$A$2:$Z$113,5,FALSE)) -> 
C49: =IF(B49="","",VLOOKUP(B49,사원명부!$A$2:$Z$113,2,FALSE)) ->  | D49: =IF(C49="","",VLOOKUP(B49,사원명부!$A$2:$Z$113,8,FALSE)) ->  | E49: =IF(C49="","",VLOOKUP(B49,사원명부!$A$2:$Z$113,9,FALSE)) ->  | F49: =IF(C49="","",IF((VLOOKUP(B49,사원명부!$A$2:$Z$113,10))="","",VLOOKUP(B49,사원명부!$A$2:$Z$113,10))) ->  | G49: =IF(C49="","",VLOOKUP(B49,사원명부!$A$2:$Z$113,13,FALSE)&" "&VLOOKUP(B49,사원명부!$A$2:$Z$113,14,FALSE)) ->  | J49: =IF(C49="","",VLOOKUP(B49,사원명부!$A$2:$Z$113,5,FALSE)) -> 
C50: =IF(B50="","",VLOOKUP(B50,사원명부!$A$2:$Z$113,2,FALSE)) ->  | D50: =IF(C50="","",VLOOKUP(B50,사원명부!$A$2:$Z$113,8,FALSE)) ->  | E50: =IF(C50="","",VLOOKUP(B50,사원명부!$A$2:$Z$113,9,FALSE)) ->  | F50: =IF(C50="","",IF((VLOOKUP(B50,사원명부!$A$2:$Z$113,10))="","",VLOOKUP(B50,사원명부!$A$2:$Z$113,10))) ->  | G50: =IF(C50="","",VLOOKUP(B50,사원명부!$A$2:$Z$113,13,FALSE)&" "&VLOOKUP(B50,사원명부!$A$2:$Z$113,14,FALSE)) ->  | J50: =IF(C50="","",VLOOKUP(B50,사원명부!$A$2:$Z$113,5,FALSE)) -> 
C51: =IF(B51="","",VLOOKUP(B51,사원명부!$A$2:$Z$113,2,FALSE)) ->  | D51: =IF(C51="","",VLOOKUP(B51,사원명부!$A$2:$Z$113,8,FALSE)) ->  | E51: =IF(C51="","",VLOOKUP(B51,사원명부!$A$2:$Z$113,9,FALSE)) ->  | F51: =IF(C51="","",IF((VLOOKUP(B51,사원명부!$A$2:$Z$113,10))="","",VLOOKUP(B51,사원명부!$A$2:$Z$113,10))) ->  | G51: =IF(C51="","",VLOOKUP(B51,사원명부!$A$2:$Z$113,13,FALSE)&" "&VLOOKUP(B51,사원명부!$A$2:$Z$113,14,FALSE)) ->  | J51: =IF(C51="","",VLOOKUP(B51,사원명부!$A$2:$Z$113,5,FALSE)) -> 
C52: =IF(B52="","",VLOOKUP(B52,사원명부!$A$2:$Z$113,2,FALSE)) ->  | D52: =IF(C52="","",VLOOKUP(B52,사원명부!$A$2:$Z$113,8,FALSE)) ->  | E52: =IF(C52="","",VLOOKUP(B52,사원명부!$A$2:$Z$113,9,FALSE)) ->  | F52: =IF(C52="","",IF((VLOOKUP(B52,사원명부!$A$2:$Z$113,10))="","",VLOOKUP(B52,사원명부!$A$2:$Z$113,10))) ->  | G52: =IF(C52="","",VLOOKUP(B52,사원명부!$A$2:$Z$113,13,FALSE)&" "&VLOOKUP(B52,사원명부!$A$2:$Z$113,14,FALSE)) ->  | J52: =IF(C52="","",VLOOKUP(B52,사원명부!$A$2:$Z$113,5,FALSE)) -> 
C53: =IF(B53="","",VLOOKUP(B53,사원명부!$A$2:$Z$113,2,FALSE)) ->  | D53: =IF(C53="","",VLOOKUP(B53,사원명부!$A$2:$Z$113,8,FALSE)) ->  | E53: =IF(C53="","",VLOOKUP(B53,사원명부!$A$2:$Z$113,9,FALSE)) ->  | F53: =IF(C53="","",IF((VLOOKUP(B53,사원명부!$A$2:$Z$113,10))="","",VLOOKUP(B53,사원명부!$A$2:$Z$113,10))) ->  | G53: =IF(C53="","",VLOOKUP(B53,사원명부!$A$2:$Z$113,13,FALSE)&" "&VLOOKUP(B53,사원명부!$A$2:$Z$113,14,FALSE)) ->  | J53: =IF(C53="","",VLOOKUP(B53,사원명부!$A$2:$Z$113,5,FALSE)) -> 
C54: =IF(B54="","",VLOOKUP(B54,사원명부!$A$2:$Z$113,2,FALSE)) ->  | D54: =IF(C54="","",VLOOKUP(B54,사원명부!$A$2:$Z$113,8,FALSE)) ->  | E54: =IF(C54="","",VLOOKUP(B54,사원명부!$A$2:$Z$113,9,FALSE)) ->  | F54: =IF(C54="","",IF((VLOOKUP(B54,사원명부!$A$2:$Z$113,10))="","",VLOOKUP(B54,사원명부!$A$2:$Z$113,10))) ->  | G54: =IF(C54="","",VLOOKUP(B54,사원명부!$A$2:$Z$113,13,FALSE)&" "&VLOOKUP(B54,사원명부!$A$2:$Z$113,14,FALSE)) ->  | J54: =IF(C54="","",VLOOKUP(B54,사원명부!$A$2:$Z$113,5,FALSE)) -> 
C55: =IF(B55="","",VLOOKUP(B55,사원명부!$A$2:$Z$113,2,FALSE)) ->  | D55: =IF(C55="","",VLOOKUP(B55,사원명부!$A$2:$Z$113,8,FALSE)) ->  | E55: =IF(C55="","",VLOOKUP(B55,사원명부!$A$2:$Z$113,9,FALSE)) ->  | F55: =IF(C55="","",IF((VLOOKUP(B55,사원명부!$A$2:$Z$113,10))="","",VLOOKUP(B55,사원명부!$A$2:$Z$113,10))) ->  | G55: =IF(C55="","",VLOOKUP(B55,사원명부!$A$2:$Z$113,13,FALSE)&" "&VLOOKUP(B55,사원명부!$A$2:$Z$113,14,FALSE)) ->  | J55: =IF(C55="","",VLOOKUP(B55,사원명부!$A$2:$Z$113,5,FALSE)) -> 
C56: =IF(B56="","",VLOOKUP(B56,사원명부!$A$2:$Z$113,2,FALSE)) ->  | D56: =IF(C56="","",VLOOKUP(B56,사원명부!$A$2:$Z$113,8,FALSE)) ->  | E56: =IF(C56="","",VLOOKUP(B56,사원명부!$A$2:$Z$113,9,FALSE)) ->  | F56: =IF(C56="","",IF((VLOOKUP(B56,사원명부!$A$2:$Z$113,10))="","",VLOOKUP(B56,사원명부!$A$2:$Z$113,10))) ->  | G56: =IF(C56="","",VLOOKUP(B56,사원명부!$A$2:$Z$113,13,FALSE)&" "&VLOOKUP(B56,사원명부!$A$2:$Z$113,14,FALSE)) ->  | J56: =IF(C56="","",VLOOKUP(B56,사원명부!$A$2:$Z$113,5,FALSE)) -> 
C57: =IF(B57="","",VLOOKUP(B57,사원명부!$A$2:$Z$113,2,FALSE)) ->  | D57: =IF(C57="","",VLOOKUP(B57,사원명부!$A$2:$Z$113,8,FALSE)) ->  | E57: =IF(C57="","",VLOOKUP(B57,사원명부!$A$2:$Z$113,9,FALSE)) ->  | F57: =IF(C57="","",IF((VLOOKUP(B57,사원명부!$A$2:$Z$113,10))="","",VLOOKUP(B57,사원명부!$A$2:$Z$113,10))) ->  | G57: =IF(C57="","",VLOOKUP(B57,사원명부!$A$2:$Z$113,13,FALSE)&" "&VLOOKUP(B57,사원명부!$A$2:$Z$113,14,FALSE)) ->  | J57: =IF(C57="","",VLOOKUP(B57,사원명부!$A$2:$Z$113,5,FALSE)) -> 
C58: =IF(B58="","",VLOOKUP(B58,사원명부!$A$2:$Z$113,2,FALSE)) ->  | D58: =IF(C58="","",VLOOKUP(B58,사원명부!$A$2:$Z$113,8,FALSE)) ->  | E58: =IF(C58="","",VLOOKUP(B58,사원명부!$A$2:$Z$113,9,FALSE)) ->  | F58: =IF(C58="","",IF((VLOOKUP(B58,사원명부!$A$2:$Z$113,10))="","",VLOOKUP(B58,사원명부!$A$2:$Z$113,10))) ->  | G58: =IF(C58="","",VLOOKUP(B58,사원명부!$A$2:$Z$113,13,FALSE)&" "&VLOOKUP(B58,사원명부!$A$2:$Z$113,14,FALSE)) ->  | J58: =IF(C58="","",VLOOKUP(B58,사원명부!$A$2:$Z$113,5,FALSE)) -> 
C59: =IF(B59="","",VLOOKUP(B59,사원명부!$A$2:$Z$113,2,FALSE)) ->  | D59: =IF(C59="","",VLOOKUP(B59,사원명부!$A$2:$Z$113,8,FALSE)) ->  | E59: =IF(C59="","",VLOOKUP(B59,사원명부!$A$2:$Z$113,9,FALSE)) ->  | F59: =IF(C59="","",IF((VLOOKUP(B59,사원명부!$A$2:$Z$113,10))="","",VLOOKUP(B59,사원명부!$A$2:$Z$113,10))) ->  | G59: =IF(C59="","",VLOOKUP(B59,사원명부!$A$2:$Z$113,13,FALSE)&" "&VLOOKUP(B59,사원명부!$A$2:$Z$113,14,FALSE)) ->  | J59: =IF(C59="","",VLOOKUP(B59,사원명부!$A$2:$Z$113,5,FALSE)) -> 
C60: =IF(B60="","",VLOOKUP(B60,사원명부!$A$2:$Z$113,2,FALSE)) ->  | D60: =IF(C60="","",VLOOKUP(B60,사원명부!$A$2:$Z$113,8,FALSE)) ->  | E60: =IF(C60="","",VLOOKUP(B60,사원명부!$A$2:$Z$113,9,FALSE)) ->  | F60: =IF(C60="","",IF((VLOOKUP(B60,사원명부!$A$2:$Z$113,10))="","",VLOOKUP(B60,사원명부!$A$2:$Z$113,10))) ->  | G60: =IF(C60="","",VLOOKUP(B60,사원명부!$A$2:$Z$113,13,FALSE)&" "&VLOOKUP(B60,사원명부!$A$2:$Z$113,14,FALSE)) ->  | J60: =IF(C60="","",VLOOKUP(B60,사원명부!$A$2:$Z$113,5,FALSE)) -> 
C61: =IF(B61="","",VLOOKUP(B61,사원명부!$A$2:$Z$113,2,FALSE)) ->  | D61: =IF(C61="","",VLOOKUP(B61,사원명부!$A$2:$Z$113,8,FALSE)) ->  | E61: =IF(C61="","",VLOOKUP(B61,사원명부!$A$2:$Z$113,9,FALSE)) ->  | F61: =IF(C61="","",IF((VLOOKUP(B61,사원명부!$A$2:$Z$113,10))="","",VLOOKUP(B61,사원명부!$A$2:$Z$113,10))) ->  | G61: =IF(C61="","",VLOOKUP(B61,사원명부!$A$2:$Z$113,13,FALSE)&" "&VLOOKUP(B61,사원명부!$A$2:$Z$113,14,FALSE)) ->  | J61: =IF(C61="","",VLOOKUP(B61,사원명부!$A$2:$Z$113,5,FALSE)) -> 
C62: =IF(B62="","",VLOOKUP(B62,사원명부!$A$2:$Z$113,2,FALSE)) ->  | D62: =IF(C62="","",VLOOKUP(B62,사원명부!$A$2:$Z$113,8,FALSE)) ->  | E62: =IF(C62="","",VLOOKUP(B62,사원명부!$A$2:$Z$113,9,FALSE)) ->  | F62: =IF(C62="","",IF((VLOOKUP(B62,사원명부!$A$2:$Z$113,10))="","",VLOOKUP(B62,사원명부!$A$2:$Z$113,10))) ->  | G62: =IF(C62="","",VLOOKUP(B62,사원명부!$A$2:$Z$113,13,FALSE)&" "&VLOOKUP(B62,사원명부!$A$2:$Z$113,14,FALSE)) ->  | J62: =IF(C62="","",VLOOKUP(B62,사원명부!$A$2:$Z$113,5,FALSE)) -> 
C63: =IF(B63="","",VLOOKUP(B63,사원명부!$A$2:$Z$113,2,FALSE)) ->  | D63: =IF(C63="","",VLOOKUP(B63,사원명부!$A$2:$Z$113,8,FALSE)) ->  | E63: =IF(C63="","",VLOOKUP(B63,사원명부!$A$2:$Z$113,9,FALSE)) ->  | F63: =IF(C63="","",IF((VLOOKUP(B63,사원명부!$A$2:$Z$113,10))="","",VLOOKUP(B63,사원명부!$A$2:$Z$113,10))) ->  | G63: =IF(C63="","",VLOOKUP(B63,사원명부!$A$2:$Z$113,13,FALSE)&" "&VLOOKUP(B63,사원명부!$A$2:$Z$113,14,FALSE)) ->  | J63: =IF(C63="","",VLOOKUP(B63,사원명부!$A$2:$Z$113,5,FALSE)) -> 
C64: =IF(B64="","",VLOOKUP(B64,사원명부!$A$2:$Z$113,2,FALSE)) ->  | D64: =IF(C64="","",VLOOKUP(B64,사원명부!$A$2:$Z$113,8,FALSE)) ->  | E64: =IF(C64="","",VLOOKUP(B64,사원명부!$A$2:$Z$113,9,FALSE)) ->  | F64: =IF(C64="","",IF((VLOOKUP(B64,사원명부!$A$2:$Z$113,10))="","",VLOOKUP(B64,사원명부!$A$2:$Z$113,10))) ->  | G64: =IF(C64="","",VLOOKUP(B64,사원명부!$A$2:$Z$113,13,FALSE)&" "&VLOOKUP(B64,사원명부!$A$2:$Z$113,14,FALSE)) ->  | J64: =IF(C64="","",VLOOKUP(B64,사원명부!$A$2:$Z$113,5,FALSE)) -> 
C65: =IF(B65="","",VLOOKUP(B65,사원명부!$A$2:$Z$113,2,FALSE)) ->  | D65: =IF(C65="","",VLOOKUP(B65,사원명부!$A$2:$Z$113,8,FALSE)) ->  | E65: =IF(C65="","",VLOOKUP(B65,사원명부!$A$2:$Z$113,9,FALSE)) ->  | F65: =IF(C65="","",IF((VLOOKUP(B65,사원명부!$A$2:$Z$113,10))="","",VLOOKUP(B65,사원명부!$A$2:$Z$113,10))) ->  | G65: =IF(C65="","",VLOOKUP(B65,사원명부!$A$2:$Z$113,13,FALSE)&" "&VLOOKUP(B65,사원명부!$A$2:$Z$113,14,FALSE)) ->  | J65: =IF(C65="","",VLOOKUP(B65,사원명부!$A$2:$Z$113,5,FALSE)) -> 
C66: =IF(B66="","",VLOOKUP(B66,사원명부!$A$2:$Z$113,2,FALSE)) ->  | D66: =IF(C66="","",VLOOKUP(B66,사원명부!$A$2:$Z$113,8,FALSE)) ->  | E66: =IF(C66="","",VLOOKUP(B66,사원명부!$A$2:$Z$113,9,FALSE)) ->  | F66: =IF(C66="","",IF((VLOOKUP(B66,사원명부!$A$2:$Z$113,10))="","",VLOOKUP(B66,사원명부!$A$2:$Z$113,10))) ->  | G66: =IF(C66="","",VLOOKUP(B66,사원명부!$A$2:$Z$113,13,FALSE)&" "&VLOOKUP(B66,사원명부!$A$2:$Z$113,14,FALSE)) ->  | J66: =IF(C66="","",VLOOKUP(B66,사원명부!$A$2:$Z$113,5,FALSE)) -> 
C67: =IF(B67="","",VLOOKUP(B67,사원명부!$A$2:$Z$113,2,FALSE)) ->  | D67: =IF(C67="","",VLOOKUP(B67,사원명부!$A$2:$Z$113,8,FALSE)) ->  | E67: =IF(C67="","",VLOOKUP(B67,사원명부!$A$2:$Z$113,9,FALSE)) ->  | F67: =IF(C67="","",IF((VLOOKUP(B67,사원명부!$A$2:$Z$113,10))="","",VLOOKUP(B67,사원명부!$A$2:$Z$113,10))) ->  | G67: =IF(C67="","",VLOOKUP(B67,사원명부!$A$2:$Z$113,13,FALSE)&" "&VLOOKUP(B67,사원명부!$A$2:$Z$113,14,FALSE)) ->  | J67: =IF(C67="","",VLOOKUP(B67,사원명부!$A$2:$Z$113,5,FALSE)) -> 
C68: =IF(B68="","",VLOOKUP(B68,사원명부!$A$2:$Z$113,2,FALSE)) ->  | D68: =IF(C68="","",VLOOKUP(B68,사원명부!$A$2:$Z$113,8,FALSE)) ->  | E68: =IF(C68="","",VLOOKUP(B68,사원명부!$A$2:$Z$113,9,FALSE)) ->  | F68: =IF(C68="","",IF((VLOOKUP(B68,사원명부!$A$2:$Z$113,10))="","",VLOOKUP(B68,사원명부!$A$2:$Z$113,10))) ->  | G68: =IF(C68="","",VLOOKUP(B68,사원명부!$A$2:$Z$113,13,FALSE)&" "&VLOOKUP(B68,사원명부!$A$2:$Z$113,14,FALSE)) ->  | J68: =IF(C68="","",VLOOKUP(B68,사원명부!$A$2:$Z$113,5,FALSE)) -> 
C69: =IF(B69="","",VLOOKUP(B69,사원명부!$A$2:$Z$113,2,FALSE)) ->  | D69: =IF(C69="","",VLOOKUP(B69,사원명부!$A$2:$Z$113,8,FALSE)) ->  | E69: =IF(C69="","",VLOOKUP(B69,사원명부!$A$2:$Z$113,9,FALSE)) ->  | F69: =IF(C69="","",IF((VLOOKUP(B69,사원명부!$A$2:$Z$113,10))="","",VLOOKUP(B69,사원명부!$A$2:$Z$113,10))) ->  | G69: =IF(C69="","",VLOOKUP(B69,사원명부!$A$2:$Z$113,13,FALSE)&" "&VLOOKUP(B69,사원명부!$A$2:$Z$113,14,FALSE)) ->  | J69: =IF(C69="","",VLOOKUP(B69,사원명부!$A$2:$Z$113,5,FALSE)) -> 
C70: =IF(B70="","",VLOOKUP(B70,사원명부!$A$2:$Z$113,2,FALSE)) ->  | D70: =IF(C70="","",VLOOKUP(B70,사원명부!$A$2:$Z$113,8,FALSE)) ->  | E70: =IF(C70="","",VLOOKUP(B70,사원명부!$A$2:$Z$113,9,FALSE)) ->  | F70: =IF(C70="","",IF((VLOOKUP(B70,사원명부!$A$2:$Z$113,10))="","",VLOOKUP(B70,사원명부!$A$2:$Z$113,10))) ->  | G70: =IF(C70="","",VLOOKUP(B70,사원명부!$A$2:$Z$113,13,FALSE)&" "&VLOOKUP(B70,사원명부!$A$2:$Z$113,14,FALSE)) ->  | J70: =IF(C70="","",VLOOKUP(B70,사원명부!$A$2:$Z$113,5,FALSE)) -> 
C71: =IF(B71="","",VLOOKUP(B71,사원명부!$A$2:$Z$113,2,FALSE)) ->  | D71: =IF(C71="","",VLOOKUP(B71,사원명부!$A$2:$Z$113,8,FALSE)) ->  | E71: =IF(C71="","",VLOOKUP(B71,사원명부!$A$2:$Z$113,9,FALSE)) ->  | F71: =IF(C71="","",IF((VLOOKUP(B71,사원명부!$A$2:$Z$113,10))="","",VLOOKUP(B71,사원명부!$A$2:$Z$113,10))) ->  | G71: =IF(C71="","",VLOOKUP(B71,사원명부!$A$2:$Z$113,13,FALSE)&" "&VLOOKUP(B71,사원명부!$A$2:$Z$113,14,FALSE)) ->  | J71: =IF(C71="","",VLOOKUP(B71,사원명부!$A$2:$Z$113,5,FALSE)) -> 
C72: =IF(B72="","",VLOOKUP(B72,사원명부!$A$2:$Z$113,2,FALSE)) ->  | D72: =IF(C72="","",VLOOKUP(B72,사원명부!$A$2:$Z$113,8,FALSE)) ->  | E72: =IF(C72="","",VLOOKUP(B72,사원명부!$A$2:$Z$113,9,FALSE)) ->  | F72: =IF(C72="","",IF((VLOOKUP(B72,사원명부!$A$2:$Z$113,10))="","",VLOOKUP(B72,사원명부!$A$2:$Z$113,10))) ->  | G72: =IF(C72="","",VLOOKUP(B72,사원명부!$A$2:$Z$113,13,FALSE)&" "&VLOOKUP(B72,사원명부!$A$2:$Z$113,14,FALSE)) ->  | J72: =IF(C72="","",VLOOKUP(B72,사원명부!$A$2:$Z$113,5,FALSE)) -> 
C73: =IF(B73="","",VLOOKUP(B73,사원명부!$A$2:$Z$113,2,FALSE)) ->  | D73: =IF(C73="","",VLOOKUP(B73,사원명부!$A$2:$Z$113,8,FALSE)) ->  | E73: =IF(C73="","",VLOOKUP(B73,사원명부!$A$2:$Z$113,9,FALSE)) ->  | F73: =IF(C73="","",IF((VLOOKUP(B73,사원명부!$A$2:$Z$113,10))="","",VLOOKUP(B73,사원명부!$A$2:$Z$113,10))) ->  | G73: =IF(C73="","",VLOOKUP(B73,사원명부!$A$2:$Z$113,13,FALSE)&" "&VLOOKUP(B73,사원명부!$A$2:$Z$113,14,FALSE)) ->  | J73: =IF(C73="","",VLOOKUP(B73,사원명부!$A$2:$Z$113,5,FALSE)) -> 
C74: =IF(B74="","",VLOOKUP(B74,사원명부!$A$2:$Z$113,2,FALSE)) ->  | D74: =IF(C74="","",VLOOKUP(B74,사원명부!$A$2:$Z$113,8,FALSE)) ->  | E74: =IF(C74="","",VLOOKUP(B74,사원명부!$A$2:$Z$113,9,FALSE)) ->  | F74: =IF(C74="","",IF((VLOOKUP(B74,사원명부!$A$2:$Z$113,10))="","",VLOOKUP(B74,사원명부!$A$2:$Z$113,10))) ->  | G74: =IF(C74="","",VLOOKUP(B74,사원명부!$A$2:$Z$113,13,FALSE)&" "&VLOOKUP(B74,사원명부!$A$2:$Z$113,14,FALSE)) ->  | J74: =IF(C74="","",VLOOKUP(B74,사원명부!$A$2:$Z$113,5,FALSE)) -> 
C75: =IF(B75="","",VLOOKUP(B75,사원명부!$A$2:$Z$113,2,FALSE)) ->  | D75: =IF(C75="","",VLOOKUP(B75,사원명부!$A$2:$Z$113,8,FALSE)) ->  | E75: =IF(C75="","",VLOOKUP(B75,사원명부!$A$2:$Z$113,9,FALSE)) ->  | F75: =IF(C75="","",IF((VLOOKUP(B75,사원명부!$A$2:$Z$113,10))="","",VLOOKUP(B75,사원명부!$A$2:$Z$113,10))) ->  | G75: =IF(C75="","",VLOOKUP(B75,사원명부!$A$2:$Z$113,13,FALSE)&" "&VLOOKUP(B75,사원명부!$A$2:$Z$113,14,FALSE)) ->  | J75: =IF(C75="","",VLOOKUP(B75,사원명부!$A$2:$Z$113,5,FALSE)) -> 
C76: =IF(B76="","",VLOOKUP(B76,사원명부!$A$2:$Z$113,2,FALSE)) ->  | D76: =IF(C76="","",VLOOKUP(B76,사원명부!$A$2:$Z$113,8,FALSE)) ->  | E76: =IF(C76="","",VLOOKUP(B76,사원명부!$A$2:$Z$113,9,FALSE)) ->  | F76: =IF(C76="","",IF((VLOOKUP(B76,사원명부!$A$2:$Z$113,10))="","",VLOOKUP(B76,사원명부!$A$2:$Z$113,10))) ->  | G76: =IF(C76="","",VLOOKUP(B76,사원명부!$A$2:$Z$113,13,FALSE)&" "&VLOOKUP(B76,사원명부!$A$2:$Z$113,14,FALSE)) ->  | J76: =IF(C76="","",VLOOKUP(B76,사원명부!$A$2:$Z$113,5,FALSE)) -> 
C77: =IF(B77="","",VLOOKUP(B77,사원명부!$A$2:$Z$113,2,FALSE)) ->  | D77: =IF(C77="","",VLOOKUP(B77,사원명부!$A$2:$Z$113,8,FALSE)) ->  | E77: =IF(C77="","",VLOOKUP(B77,사원명부!$A$2:$Z$113,9,FALSE)) ->  | F77: =IF(C77="","",IF((VLOOKUP(B77,사원명부!$A$2:$Z$113,10))="","",VLOOKUP(B77,사원명부!$A$2:$Z$113,10))) ->  | G77: =IF(C77="","",VLOOKUP(B77,사원명부!$A$2:$Z$113,13,FALSE)&" "&VLOOKUP(B77,사원명부!$A$2:$Z$113,14,FALSE)) ->  | J77: =IF(C77="","",VLOOKUP(B77,사원명부!$A$2:$Z$113,5,FALSE)) -> 
C78: =IF(B78="","",VLOOKUP(B78,사원명부!$A$2:$Z$113,2,FALSE)) ->  | D78: =IF(C78="","",VLOOKUP(B78,사원명부!$A$2:$Z$113,8,FALSE)) ->  | E78: =IF(C78="","",VLOOKUP(B78,사원명부!$A$2:$Z$113,9,FALSE)) ->  | F78: =IF(C78="","",IF((VLOOKUP(B78,사원명부!$A$2:$Z$113,10))="","",VLOOKUP(B78,사원명부!$A$2:$Z$113,10))) ->  | G78: =IF(C78="","",VLOOKUP(B78,사원명부!$A$2:$Z$113,13,FALSE)&" "&VLOOKUP(B78,사원명부!$A$2:$Z$113,14,FALSE)) ->  | J78: =IF(C78="","",VLOOKUP(B78,사원명부!$A$2:$Z$113,5,FALSE)) -> 
C79: =IF(B79="","",VLOOKUP(B79,사원명부!$A$2:$Z$113,2,FALSE)) ->  | D79: =IF(C79="","",VLOOKUP(B79,사원명부!$A$2:$Z$113,8,FALSE)) ->  | E79: =IF(C79="","",VLOOKUP(B79,사원명부!$A$2:$Z$113,9,FALSE)) ->  | F79: =IF(C79="","",IF((VLOOKUP(B79,사원명부!$A$2:$Z$113,10))="","",VLOOKUP(B79,사원명부!$A$2:$Z$113,10))) ->  | G79: =IF(C79="","",VLOOKUP(B79,사원명부!$A$2:$Z$113,13,FALSE)&" "&VLOOKUP(B79,사원명부!$A$2:$Z$113,14,FALSE)) ->  | J79: =IF(C79="","",VLOOKUP(B79,사원명부!$A$2:$Z$113,5,FALSE)) -> 
C80: =IF(B80="","",VLOOKUP(B80,사원명부!$A$2:$Z$113,2,FALSE)) ->  | D80: =IF(C80="","",VLOOKUP(B80,사원명부!$A$2:$Z$113,8,FALSE)) ->  | E80: =IF(C80="","",VLOOKUP(B80,사원명부!$A$2:$Z$113,9,FALSE)) ->  | F80: =IF(C80="","",IF((VLOOKUP(B80,사원명부!$A$2:$Z$113,10))="","",VLOOKUP(B80,사원명부!$A$2:$Z$113,10))) ->  | G80: =IF(C80="","",VLOOKUP(B80,사원명부!$A$2:$Z$113,13,FALSE)&" "&VLOOKUP(B80,사원명부!$A$2:$Z$113,14,FALSE)) ->  | J80: =IF(C80="","",VLOOKUP(B80,사원명부!$A$2:$Z$113,5,FALSE)) -> 
C81: =IF(B81="","",VLOOKUP(B81,사원명부!$A$2:$Z$113,2,FALSE)) ->  | D81: =IF(C81="","",VLOOKUP(B81,사원명부!$A$2:$Z$113,8,FALSE)) ->  | E81: =IF(C81="","",VLOOKUP(B81,사원명부!$A$2:$Z$113,9,FALSE)) ->  | F81: =IF(C81="","",IF((VLOOKUP(B81,사원명부!$A$2:$Z$113,10))="","",VLOOKUP(B81,사원명부!$A$2:$Z$113,10))) ->  | G81: =IF(C81="","",VLOOKUP(B81,사원명부!$A$2:$Z$113,13,FALSE)&" "&VLOOKUP(B81,사원명부!$A$2:$Z$113,14,FALSE)) ->  | J81: =IF(C81="","",VLOOKUP(B81,사원명부!$A$2:$Z$113,5,FALSE)) -> 
C82: =IF(B82="","",VLOOKUP(B82,사원명부!$A$2:$Z$113,2,FALSE)) ->  | D82: =IF(C82="","",VLOOKUP(B82,사원명부!$A$2:$Z$113,8,FALSE)) ->  | E82: =IF(C82="","",VLOOKUP(B82,사원명부!$A$2:$Z$113,9,FALSE)) ->  | F82: =IF(C82="","",IF((VLOOKUP(B82,사원명부!$A$2:$Z$113,10))="","",VLOOKUP(B82,사원명부!$A$2:$Z$113,10))) ->  | G82: =IF(C82="","",VLOOKUP(B82,사원명부!$A$2:$Z$113,13,FALSE)&" "&VLOOKUP(B82,사원명부!$A$2:$Z$113,14,FALSE)) ->  | J82: =IF(C82="","",VLOOKUP(B82,사원명부!$A$2:$Z$113,5,FALSE)) -> 
C83: =IF(B83="","",VLOOKUP(B83,사원명부!$A$2:$Z$113,2,FALSE)) ->  | D83: =IF(C83="","",VLOOKUP(B83,사원명부!$A$2:$Z$113,8,FALSE)) ->  | E83: =IF(C83="","",VLOOKUP(B83,사원명부!$A$2:$Z$113,9,FALSE)) ->  | F83: =IF(C83="","",IF((VLOOKUP(B83,사원명부!$A$2:$Z$113,10))="","",VLOOKUP(B83,사원명부!$A$2:$Z$113,10))) ->  | G83: =IF(C83="","",VLOOKUP(B83,사원명부!$A$2:$Z$113,13,FALSE)&" "&VLOOKUP(B83,사원명부!$A$2:$Z$113,14,FALSE)) ->  | J83: =IF(C83="","",VLOOKUP(B83,사원명부!$A$2:$Z$113,5,FALSE)) -> 
C84: =IF(B84="","",VLOOKUP(B84,사원명부!$A$2:$Z$113,2,FALSE)) ->  | D84: =IF(C84="","",VLOOKUP(B84,사원명부!$A$2:$Z$113,8,FALSE)) ->  | E84: =IF(C84="","",VLOOKUP(B84,사원명부!$A$2:$Z$113,9,FALSE)) ->  | F84: =IF(C84="","",IF((VLOOKUP(B84,사원명부!$A$2:$Z$113,10))="","",VLOOKUP(B84,사원명부!$A$2:$Z$113,10))) ->  | G84: =IF(C84="","",VLOOKUP(B84,사원명부!$A$2:$Z$113,13,FALSE)&" "&VLOOKUP(B84,사원명부!$A$2:$Z$113,14,FALSE)) ->  | J84: =IF(C84="","",VLOOKUP(B84,사원명부!$A$2:$Z$113,5,FALSE)) -> 
C85: =IF(B85="","",VLOOKUP(B85,사원명부!$A$2:$Z$113,2,FALSE)) ->  | D85: =IF(C85="","",VLOOKUP(B85,사원명부!$A$2:$Z$113,8,FALSE)) ->  | E85: =IF(C85="","",VLOOKUP(B85,사원명부!$A$2:$Z$113,9,FALSE)) ->  | F85: =IF(C85="","",IF((VLOOKUP(B85,사원명부!$A$2:$Z$113,10))="","",VLOOKUP(B85,사원명부!$A$2:$Z$113,10))) ->  | G85: =IF(C85="","",VLOOKUP(B85,사원명부!$A$2:$Z$113,13,FALSE)&" "&VLOOKUP(B85,사원명부!$A$2:$Z$113,14,FALSE)) ->  | J85: =IF(C85="","",VLOOKUP(B85,사원명부!$A$2:$Z$113,5,FALSE)) -> 
C86: =IF(B86="","",VLOOKUP(B86,사원명부!$A$2:$Z$113,2,FALSE)) ->  | D86: =IF(C86="","",VLOOKUP(B86,사원명부!$A$2:$Z$113,8,FALSE)) ->  | E86: =IF(C86="","",VLOOKUP(B86,사원명부!$A$2:$Z$113,9,FALSE)) ->  | F86: =IF(C86="","",IF((VLOOKUP(B86,사원명부!$A$2:$Z$113,10))="","",VLOOKUP(B86,사원명부!$A$2:$Z$113,10))) ->  | G86: =IF(C86="","",VLOOKUP(B86,사원명부!$A$2:$Z$113,13,FALSE)&" "&VLOOKUP(B86,사원명부!$A$2:$Z$113,14,FALSE)) ->  | J86: =IF(C86="","",VLOOKUP(B86,사원명부!$A$2:$Z$113,5,FALSE)) -> 
C87: =IF(B87="","",VLOOKUP(B87,사원명부!$A$2:$Z$113,2,FALSE)) ->  | D87: =IF(C87="","",VLOOKUP(B87,사원명부!$A$2:$Z$113,8,FALSE)) ->  | E87: =IF(C87="","",VLOOKUP(B87,사원명부!$A$2:$Z$113,9,FALSE)) ->  | F87: =IF(C87="","",IF((VLOOKUP(B87,사원명부!$A$2:$Z$113,10))="","",VLOOKUP(B87,사원명부!$A$2:$Z$113,10))) ->  | G87: =IF(C87="","",VLOOKUP(B87,사원명부!$A$2:$Z$113,13,FALSE)&" "&VLOOKUP(B87,사원명부!$A$2:$Z$113,14,FALSE)) ->  | J87: =IF(C87="","",VLOOKUP(B87,사원명부!$A$2:$Z$113,5,FALSE)) -> 
C88: =IF(B88="","",VLOOKUP(B88,사원명부!$A$2:$Z$113,2,FALSE)) ->  | D88: =IF(C88="","",VLOOKUP(B88,사원명부!$A$2:$Z$113,8,FALSE)) ->  | E88: =IF(C88="","",VLOOKUP(B88,사원명부!$A$2:$Z$113,9,FALSE)) ->  | F88: =IF(C88="","",IF((VLOOKUP(B88,사원명부!$A$2:$Z$113,10))="","",VLOOKUP(B88,사원명부!$A$2:$Z$113,10))) ->  | G88: =IF(C88="","",VLOOKUP(B88,사원명부!$A$2:$Z$113,13,FALSE)&" "&VLOOKUP(B88,사원명부!$A$2:$Z$113,14,FALSE)) ->  | J88: =IF(C88="","",VLOOKUP(B88,사원명부!$A$2:$Z$113,5,FALSE)) -> 
C89: =IF(B89="","",VLOOKUP(B89,사원명부!$A$2:$Z$113,2,FALSE)) ->  | D89: =IF(C89="","",VLOOKUP(B89,사원명부!$A$2:$Z$113,8,FALSE)) ->  | E89: =IF(C89="","",VLOOKUP(B89,사원명부!$A$2:$Z$113,9,FALSE)) ->  | F89: =IF(C89="","",IF((VLOOKUP(B89,사원명부!$A$2:$Z$113,10))="","",VLOOKUP(B89,사원명부!$A$2:$Z$113,10))) ->  | G89: =IF(C89="","",VLOOKUP(B89,사원명부!$A$2:$Z$113,13,FALSE)&" "&VLOOKUP(B89,사원명부!$A$2:$Z$113,14,FALSE)) ->  | J89: =IF(C89="","",VLOOKUP(B89,사원명부!$A$2:$Z$113,5,FALSE)) -> 
C90: =IF(B90="","",VLOOKUP(B90,사원명부!$A$2:$Z$113,2,FALSE)) ->  | D90: =IF(C90="","",VLOOKUP(B90,사원명부!$A$2:$Z$113,8,FALSE)) ->  | E90: =IF(C90="","",VLOOKUP(B90,사원명부!$A$2:$Z$113,9,FALSE)) ->  | F90: =IF(C90="","",IF((VLOOKUP(B90,사원명부!$A$2:$Z$113,10))="","",VLOOKUP(B90,사원명부!$A$2:$Z$113,10))) ->  | G90: =IF(C90="","",VLOOKUP(B90,사원명부!$A$2:$Z$113,13,FALSE)&" "&VLOOKUP(B90,사원명부!$A$2:$Z$113,14,FALSE)) ->  | J90: =IF(C90="","",VLOOKUP(B90,사원명부!$A$2:$Z$113,5,FALSE)) -> 
C91: =IF(B91="","",VLOOKUP(B91,사원명부!$A$2:$Z$113,2,FALSE)) ->  | D91: =IF(C91="","",VLOOKUP(B91,사원명부!$A$2:$Z$113,8,FALSE)) ->  | E91: =IF(C91="","",VLOOKUP(B91,사원명부!$A$2:$Z$113,9,FALSE)) ->  | F91: =IF(C91="","",IF((VLOOKUP(B91,사원명부!$A$2:$Z$113,10))="","",VLOOKUP(B91,사원명부!$A$2:$Z$113,10))) ->  | G91: =IF(C91="","",VLOOKUP(B91,사원명부!$A$2:$Z$113,13,FALSE)&" "&VLOOKUP(B91,사원명부!$A$2:$Z$113,14,FALSE)) ->  | J91: =IF(C91="","",VLOOKUP(B91,사원명부!$A$2:$Z$113,5,FALSE)) -> 
C92: =IF(B92="","",VLOOKUP(B92,사원명부!$A$2:$Z$113,2,FALSE)) ->  | D92: =IF(C92="","",VLOOKUP(B92,사원명부!$A$2:$Z$113,8,FALSE)) ->  | E92: =IF(C92="","",VLOOKUP(B92,사원명부!$A$2:$Z$113,9,FALSE)) ->  | F92: =IF(C92="","",IF((VLOOKUP(B92,사원명부!$A$2:$Z$113,10))="","",VLOOKUP(B92,사원명부!$A$2:$Z$113,10))) ->  | G92: =IF(C92="","",VLOOKUP(B92,사원명부!$A$2:$Z$113,13,FALSE)&" "&VLOOKUP(B92,사원명부!$A$2:$Z$113,14,FALSE)) ->  | J92: =IF(C92="","",VLOOKUP(B92,사원명부!$A$2:$Z$113,5,FALSE)) -> 
C93: =IF(B93="","",VLOOKUP(B93,사원명부!$A$2:$Z$113,2,FALSE)) ->  | D93: =IF(C93="","",VLOOKUP(B93,사원명부!$A$2:$Z$113,8,FALSE)) ->  | E93: =IF(C93="","",VLOOKUP(B93,사원명부!$A$2:$Z$113,9,FALSE)) ->  | F93: =IF(C93="","",IF((VLOOKUP(B93,사원명부!$A$2:$Z$113,10))="","",VLOOKUP(B93,사원명부!$A$2:$Z$113,10))) ->  | G93: =IF(C93="","",VLOOKUP(B93,사원명부!$A$2:$Z$113,13,FALSE)&" "&VLOOKUP(B93,사원명부!$A$2:$Z$113,14,FALSE)) ->  | J93: =IF(C93="","",VLOOKUP(B93,사원명부!$A$2:$Z$113,5,FALSE)) -> 
C94: =IF(B94="","",VLOOKUP(B94,사원명부!$A$2:$Z$113,2,FALSE)) ->  | D94: =IF(C94="","",VLOOKUP(B94,사원명부!$A$2:$Z$113,8,FALSE)) ->  | E94: =IF(C94="","",VLOOKUP(B94,사원명부!$A$2:$Z$113,9,FALSE)) ->  | F94: =IF(C94="","",IF((VLOOKUP(B94,사원명부!$A$2:$Z$113,10))="","",VLOOKUP(B94,사원명부!$A$2:$Z$113,10))) ->  | G94: =IF(C94="","",VLOOKUP(B94,사원명부!$A$2:$Z$113,13,FALSE)&" "&VLOOKUP(B94,사원명부!$A$2:$Z$113,14,FALSE)) ->  | J94: =IF(C94="","",VLOOKUP(B94,사원명부!$A$2:$Z$113,5,FALSE)) -> 
C95: =IF(B95="","",VLOOKUP(B95,사원명부!$A$2:$Z$113,2,FALSE)) ->  | D95: =IF(C95="","",VLOOKUP(B95,사원명부!$A$2:$Z$113,8,FALSE)) ->  | E95: =IF(C95="","",VLOOKUP(B95,사원명부!$A$2:$Z$113,9,FALSE)) ->  | F95: =IF(C95="","",IF((VLOOKUP(B95,사원명부!$A$2:$Z$113,10))="","",VLOOKUP(B95,사원명부!$A$2:$Z$113,10))) ->  | G95: =IF(C95="","",VLOOKUP(B95,사원명부!$A$2:$Z$113,13,FALSE)&" "&VLOOKUP(B95,사원명부!$A$2:$Z$113,14,FALSE)) ->  | J95: =IF(C95="","",VLOOKUP(B95,사원명부!$A$2:$Z$113,5,FALSE)) -> 
C96: =IF(B96="","",VLOOKUP(B96,사원명부!$A$2:$Z$113,2,FALSE)) ->  | D96: =IF(C96="","",VLOOKUP(B96,사원명부!$A$2:$Z$113,8,FALSE)) ->  | E96: =IF(C96="","",VLOOKUP(B96,사원명부!$A$2:$Z$113,9,FALSE)) ->  | F96: =IF(C96="","",IF((VLOOKUP(B96,사원명부!$A$2:$Z$113,10))="","",VLOOKUP(B96,사원명부!$A$2:$Z$113,10))) ->  | G96: =IF(C96="","",VLOOKUP(B96,사원명부!$A$2:$Z$113,13,FALSE)&" "&VLOOKUP(B96,사원명부!$A$2:$Z$113,14,FALSE)) ->  | J96: =IF(C96="","",VLOOKUP(B96,사원명부!$A$2:$Z$113,5,FALSE)) -> 
C97: =IF(B97="","",VLOOKUP(B97,사원명부!$A$2:$Z$113,2,FALSE)) ->  | D97: =IF(C97="","",VLOOKUP(B97,사원명부!$A$2:$Z$113,8,FALSE)) ->  | E97: =IF(C97="","",VLOOKUP(B97,사원명부!$A$2:$Z$113,9,FALSE)) ->  | F97: =IF(C97="","",IF((VLOOKUP(B97,사원명부!$A$2:$Z$113,10))="","",VLOOKUP(B97,사원명부!$A$2:$Z$113,10))) ->  | G97: =IF(C97="","",VLOOKUP(B97,사원명부!$A$2:$Z$113,13,FALSE)&" "&VLOOKUP(B97,사원명부!$A$2:$Z$113,14,FALSE)) ->  | J97: =IF(C97="","",VLOOKUP(B97,사원명부!$A$2:$Z$113,5,FALSE)) -> 
C98: =IF(B98="","",VLOOKUP(B98,사원명부!$A$2:$Z$113,2,FALSE)) ->  | D98: =IF(C98="","",VLOOKUP(B98,사원명부!$A$2:$Z$113,8,FALSE)) ->  | E98: =IF(C98="","",VLOOKUP(B98,사원명부!$A$2:$Z$113,9,FALSE)) ->  | F98: =IF(C98="","",IF((VLOOKUP(B98,사원명부!$A$2:$Z$113,10))="","",VLOOKUP(B98,사원명부!$A$2:$Z$113,10))) ->  | G98: =IF(C98="","",VLOOKUP(B98,사원명부!$A$2:$Z$113,13,FALSE)&" "&VLOOKUP(B98,사원명부!$A$2:$Z$113,14,FALSE)) ->  | J98: =IF(C98="","",VLOOKUP(B98,사원명부!$A$2:$Z$113,5,FALSE)) -> 
C99: =IF(B99="","",VLOOKUP(B99,사원명부!$A$2:$Z$113,2,FALSE)) ->  | D99: =IF(C99="","",VLOOKUP(B99,사원명부!$A$2:$Z$113,8,FALSE)) ->  | E99: =IF(C99="","",VLOOKUP(B99,사원명부!$A$2:$Z$113,9,FALSE)) ->  | F99: =IF(C99="","",IF((VLOOKUP(B99,사원명부!$A$2:$Z$113,10))="","",VLOOKUP(B99,사원명부!$A$2:$Z$113,10))) ->  | G99: =IF(C99="","",VLOOKUP(B99,사원명부!$A$2:$Z$113,13,FALSE)&" "&VLOOKUP(B99,사원명부!$A$2:$Z$113,14,FALSE)) ->  | J99: =IF(C99="","",VLOOKUP(B99,사원명부!$A$2:$Z$113,5,FALSE)) -> 
C100: =IF(B100="","",VLOOKUP(B100,사원명부!$A$2:$Z$113,2,FALSE)) ->  | D100: =IF(C100="","",VLOOKUP(B100,사원명부!$A$2:$Z$113,8,FALSE)) ->  | E100: =IF(C100="","",VLOOKUP(B100,사원명부!$A$2:$Z$113,9,FALSE)) ->  | F100: =IF(C100="","",IF((VLOOKUP(B100,사원명부!$A$2:$Z$113,10))="","",VLOOKUP(B100,사원명부!$A$2:$Z$113,10))) ->  | G100: =IF(C100="","",VLOOKUP(B100,사원명부!$A$2:$Z$113,13,FALSE)&" "&VLOOKUP(B100,사원명부!$A$2:$Z$113,14,FALSE)) ->  | J100: =IF(C100="","",VLOOKUP(B100,사원명부!$A$2:$Z$113,5,FALSE)) -> 
C101: =IF(B101="","",VLOOKUP(B101,사원명부!$A$2:$Z$113,2,FALSE)) ->  | D101: =IF(C101="","",VLOOKUP(B101,사원명부!$A$2:$Z$113,8,FALSE)) ->  | E101: =IF(C101="","",VLOOKUP(B101,사원명부!$A$2:$Z$113,9,FALSE)) ->  | F101: =IF(C101="","",IF((VLOOKUP(B101,사원명부!$A$2:$Z$113,10))="","",VLOOKUP(B101,사원명부!$A$2:$Z$113,10))) ->  | G101: =IF(C101="","",VLOOKUP(B101,사원명부!$A$2:$Z$113,13,FALSE)&" "&VLOOKUP(B101,사원명부!$A$2:$Z$113,14,FALSE)) ->  | J101: =IF(C101="","",VLOOKUP(B101,사원명부!$A$2:$Z$113,5,FALSE)) -> 
C102: =IF(B102="","",VLOOKUP(B102,사원명부!$A$2:$Z$113,2,FALSE)) ->  | D102: =IF(C102="","",VLOOKUP(B102,사원명부!$A$2:$Z$113,8,FALSE)) ->  | E102: =IF(C102="","",VLOOKUP(B102,사원명부!$A$2:$Z$113,9,FALSE)) ->  | F102: =IF(C102="","",IF((VLOOKUP(B102,사원명부!$A$2:$Z$113,10))="","",VLOOKUP(B102,사원명부!$A$2:$Z$113,10))) ->  | G102: =IF(C102="","",VLOOKUP(B102,사원명부!$A$2:$Z$113,13,FALSE)&" "&VLOOKUP(B102,사원명부!$A$2:$Z$113,14,FALSE)) ->  | J102: =IF(C102="","",VLOOKUP(B102,사원명부!$A$2:$Z$113,5,FALSE)) -> 
C103: =IF(B103="","",VLOOKUP(B103,사원명부!$A$2:$Z$113,2,FALSE)) ->  | D103: =IF(C103="","",VLOOKUP(B103,사원명부!$A$2:$Z$113,8,FALSE)) ->  | E103: =IF(C103="","",VLOOKUP(B103,사원명부!$A$2:$Z$113,9,FALSE)) ->  | F103: =IF(C103="","",IF((VLOOKUP(B103,사원명부!$A$2:$Z$113,10))="","",VLOOKUP(B103,사원명부!$A$2:$Z$113,10))) ->  | G103: =IF(C103="","",VLOOKUP(B103,사원명부!$A$2:$Z$113,13,FALSE)&" "&VLOOKUP(B103,사원명부!$A$2:$Z$113,14,FALSE)) ->  | J103: =IF(C103="","",VLOOKUP(B103,사원명부!$A$2:$Z$113,5,FALSE)) -> 
C104: =IF(B104="","",VLOOKUP(B104,사원명부!$A$2:$Z$113,2,FALSE)) ->  | D104: =IF(C104="","",VLOOKUP(B104,사원명부!$A$2:$Z$113,8,FALSE)) ->  | E104: =IF(C104="","",VLOOKUP(B104,사원명부!$A$2:$Z$113,9,FALSE)) ->  | F104: =IF(C104="","",IF((VLOOKUP(B104,사원명부!$A$2:$Z$113,10))="","",VLOOKUP(B104,사원명부!$A$2:$Z$113,10))) ->  | G104: =IF(C104="","",VLOOKUP(B104,사원명부!$A$2:$Z$113,13,FALSE)&" "&VLOOKUP(B104,사원명부!$A$2:$Z$113,14,FALSE)) ->  | J104: =IF(C104="","",VLOOKUP(B104,사원명부!$A$2:$Z$113,5,FALSE)) -> 
C105: =IF(B105="","",VLOOKUP(B105,사원명부!$A$2:$Z$113,2,FALSE)) ->  | D105: =IF(C105="","",VLOOKUP(B105,사원명부!$A$2:$Z$113,8,FALSE)) ->  | E105: =IF(C105="","",VLOOKUP(B105,사원명부!$A$2:$Z$113,9,FALSE)) ->  | F105: =IF(C105="","",IF((VLOOKUP(B105,사원명부!$A$2:$Z$113,10))="","",VLOOKUP(B105,사원명부!$A$2:$Z$113,10))) ->  | G105: =IF(C105="","",VLOOKUP(B105,사원명부!$A$2:$Z$113,13,FALSE)&" "&VLOOKUP(B105,사원명부!$A$2:$Z$113,14,FALSE)) ->  | J105: =IF(C105="","",VLOOKUP(B105,사원명부!$A$2:$Z$113,5,FALSE)) -> 
C106: =IF(B106="","",VLOOKUP(B106,사원명부!$A$2:$Z$113,2,FALSE)) ->  | D106: =IF(C106="","",VLOOKUP(B106,사원명부!$A$2:$Z$113,8,FALSE)) ->  | E106: =IF(C106="","",VLOOKUP(B106,사원명부!$A$2:$Z$113,9,FALSE)) ->  | F106: =IF(C106="","",IF((VLOOKUP(B106,사원명부!$A$2:$Z$113,10))="","",VLOOKUP(B106,사원명부!$A$2:$Z$113,10))) ->  | G106: =IF(C106="","",VLOOKUP(B106,사원명부!$A$2:$Z$113,13,FALSE)&" "&VLOOKUP(B106,사원명부!$A$2:$Z$113,14,FALSE)) ->  | J106: =IF(C106="","",VLOOKUP(B106,사원명부!$A$2:$Z$113,5,FALSE)) -> 
C107: =IF(B107="","",VLOOKUP(B107,사원명부!$A$2:$Z$113,2,FALSE)) ->  | D107: =IF(C107="","",VLOOKUP(B107,사원명부!$A$2:$Z$113,8,FALSE)) ->  | E107: =IF(C107="","",VLOOKUP(B107,사원명부!$A$2:$Z$113,9,FALSE)) ->  | F107: =IF(C107="","",IF((VLOOKUP(B107,사원명부!$A$2:$Z$113,10))="","",VLOOKUP(B107,사원명부!$A$2:$Z$113,10))) ->  | G107: =IF(C107="","",VLOOKUP(B107,사원명부!$A$2:$Z$113,13,FALSE)&" "&VLOOKUP(B107,사원명부!$A$2:$Z$113,14,FALSE)) ->  | J107: =IF(C107="","",VLOOKUP(B107,사원명부!$A$2:$Z$113,5,FALSE)) -> 
C108: =IF(B108="","",VLOOKUP(B108,사원명부!$A$2:$Z$113,2,FALSE)) ->  | D108: =IF(C108="","",VLOOKUP(B108,사원명부!$A$2:$Z$113,8,FALSE)) ->  | E108: =IF(C108="","",VLOOKUP(B108,사원명부!$A$2:$Z$113,9,FALSE)) ->  | F108: =IF(C108="","",IF((VLOOKUP(B108,사원명부!$A$2:$Z$113,10))="","",VLOOKUP(B108,사원명부!$A$2:$Z$113,10))) ->  | G108: =IF(C108="","",VLOOKUP(B108,사원명부!$A$2:$Z$113,13,FALSE)&" "&VLOOKUP(B108,사원명부!$A$2:$Z$113,14,FALSE)) ->  | J108: =IF(C108="","",VLOOKUP(B108,사원명부!$A$2:$Z$113,5,FALSE)) -> 

Sheet 업무분장 (hidden)
B2: =업무분장내역!D4 -> 소속
B3: =업무분장표!B3 -> 조제실
B5: =업무분장내역!B4 -> 사원번호 | C5: =업무분장내역!C4 -> 이름 | D5: =업무분장내역!D4 -> 소속 | E5: =업무분장내역!E4 -> 직책 | F5: =업무분장내역!F4 -> 자격 | G5: =업무분장내역!G4 -> 업무내용 | H5: =업무분장내역!H4 -> 비고 | J5: 성별

Sheet 업무분장표
B2: 부서명 | E2: 업무분장내역에서 새로 고침을 하여
B3: 조제실 | E3: 분장표를 작성하세요
B5: =요양기관기초정보!D1&" 부서별 업무분장표" -> 팜오피스약국 부서별 업무분장표
K7: =IFBLANK(요양기관기초정보!B26) -> 관리부
B8: ◆부 서 명 : | C8: =B3 -> 조제실 | K8: =IFBLANK(요양기관기초정보!B27) -> 판매부
B9: =업무분장내역!B4 -> 사원번호 | C9: =업무분장내역!C4 -> 이름 | D9: =업무분장내역!D4 -> 소속 | E9: =업무분장내역!E4 -> 직책 | F9: =업무분장내역!F4 -> 자격 | G9: =업무분장내역!G4 -> 업무내용 | H9: =업무분장내역!H4 -> 비고 | K9: =IFBLANK(요양기관기초정보!B28) -> 조제실
B10: =업무분장!B6 -> 0 | C10: =업무분장!C6 -> 0 | D10: =업무분장!D6 -> 0 | E10: =업무분장!E6 -> 0 | F10: =업무분장!F6 -> 0 | G10: =업무분장!G6 -> 0 | H10: =업무분장!H6 -> 0 | K10: =IFBLANK(요양기관기초정보!B29) -> 
B11: =업무분장!B7 -> 0 | C11: =업무분장!C7 -> 0 | D11: =업무분장!D7 -> 0 | E11: =업무분장!E7 -> 0 | F11: =업무분장!F7 -> 0 | G11: =업무분장!G7 -> 0 | H11: =업무분장!H7 -> 0 | K11: =IFBLANK(요양기관기초정보!B30) -> 
B12: =업무분장!B8 -> 0 | C12: =업무분장!C8 -> 0 | D12: =업무분장!D8 -> 0 | E12: =업무분장!E8 -> 0 | F12: =업무분장!F8 -> 0 | G12: =업무분장!G8 -> 0 | H12: =업무분장!H8 -> 0 | K12: =IFBLANK(요양기관기초정보!B31) -> 
B13: =업무분장!B9 -> 0 | C13: =업무분장!C9 -> 0 | D13: =업무분장!D9 -> 0 | E13: =업무분장!E9 -> 0 | F13: =업무분장!F9 -> 0 | G13: =업무분장!G9 -> 0 | H13: =업무분장!H9 -> 0 | K13: =IFBLANK(요양기관기초정보!B32) -> 
B14: =업무분장!B10 -> 0 | C14: =업무분장!C10 -> 0 | D14: =업무분장!D10 -> 0 | E14: =업무분장!E10 -> 0 | F14: =업무분장!F10 -> 0 | G14: =업무분장!G10 -> 0 | H14: =업무분장!H10 -> 0
B15: =업무분장!B11 -> 0 | C15: =업무분장!C11 -> 0 | D15: =업무분장!D11 -> 0 | E15: =업무분장!E11 -> 0 | F15: =업무분장!F11 -> 0 | G15: =업무분장!G11 -> 0 | H15: =업무분장!H11 -> 0
B16: =업무분장!B12 -> 0 | C16: =업무분장!C12 -> 0 | D16: =업무분장!D12 -> 0 | E16: =업무분장!E12 -> 0 | F16: =업무분장!F12 -> 0 | G16: =업무분장!G12 -> 0 | H16: =업무분장!H12 -> 0
B17: =업무분장!B13 -> 0 | C17: =업무분장!C13 -> 0 | D17: =업무분장!D13 -> 0 | E17: =업무분장!E13 -> 0 | F17: =업무분장!F13 -> 0 | G17: =업무분장!G13 -> 0 | H17: =업무분장!H13 -> 0
B18: =업무분장!B14 -> 0 | C18: =업무분장!C14 -> 0 | D18: =업무분장!D14 -> 0 | E18: =업무분장!E14 -> 0 | F18: =업무분장!F14 -> 0 | G18: =업무분장!G14 -> 0 | H18: =업무분장!H14 -> 0
B19: =업무분장!B15 -> 0 | C19: =업무분장!C15 -> 0 | D19: =업무분장!D15 -> 0 | E19: =업무분장!E15 -> 0 | F19: =업무분장!F15 -> 0 | G19: =업무분장!G15 -> 0 | H19: =업무분장!H15 -> 0
B20: =업무분장!B16 -> 0 | C20: =업무분장!C16 -> 0 | D20: =업무분장!D16 -> 0 | E20: =업무분장!E16 -> 0 | F20: =업무분장!F16 -> 0 | G20: =업무분장!G16 -> 0 | H20: =업무분장!H16 -> 0
B21: =업무분장!B17 -> 0 | C21: =업무분장!C17 -> 0 | D21: =업무분장!D17 -> 0 | E21: =업무분장!E17 -> 0 | F21: =업무분장!F17 -> 0 | G21: =업무분장!G17 -> 0 | H21: =업무분장!H17 -> 0
B22: =업무분장!B18 -> 0 | C22: =업무분장!C18 -> 0 | D22: =업무분장!D18 -> 0 | E22: =업무분장!E18 -> 0 | F22: =업무분장!F18 -> 0 | G22: =업무분장!G18 -> 0 | H22: =업무분장!H18 -> 0
B23: =업무분장!B19 -> 0 | C23: =업무분장!C19 -> 0 | D23: =업무분장!D19 -> 0 | E23: =업무분장!E19 -> 0 | F23: =업무분장!F19 -> 0 | G23: =업무분장!G19 -> 0 | H23: =업무분장!H19 -> 0
B24: =업무분장!B20 -> 0 | C24: =업무분장!C20 -> 0 | D24: =업무분장!D20 -> 0 | E24: =업무분장!E20 -> 0 | F24: =업무분장!F20 -> 0 | G24: =업무분장!G20 -> 0 | H24: =업무분장!H20 -> 0

Sheet 근로계약서상세
AL1: 인쇄부수
A2: 근 로 계 약 서 | L2: 근 로 계 약 서 | AL2: 2
AJ3: 사원번호 | AL3: 2
AJ4: 이 름 | AL4: =IFERROR(IF(AL3="","",VLOOKUP(AL3,사원명부!A2:B100,2,FALSE)),"없어요") -> 테스트2
A5: 1. 【근로계약의 당사자】 | L5: =IFBLANK(요양기관기초정보!D1)&"(이하 “갑”이라 한다)"&IFERROR(Josa1(요양기관기초정보!D1,4),"과")&" "&IFBLANK(AL4)&"(이하 “을”이라 한다)"&IFERROR(Josa1(AL4,1),"은(는)")&" 아래과 같은 근로계약을 체결하고 " -> 팜오피스약국(이하 “갑”이라 한다)과 테스트2(이하 “을”이라 한다)은 아래과 같은 근로계약을 체결하고 | AJ5: 근로자수 | AL5: =IFBLANK(업무분장내역!M8) -> 1 | AR5: 기간의 정함이 있는 경우(기간제)에만 종료일 기록
A6: 사 용 자 | C6: 업 체 명 | E6: =IFBLANK(요양기관기초정보!D1) -> 팜오피스약국 | G6: 연 락 처 | I6: =IFBLANK(요양기관기초정보!C12) -> 02-324-4650 | L6: 상호 성실히 이행할 것을 약정한다. | AJ6: 계약년도 | AL6: 2021 | AR6: 계약월일 | AT6: 5 | AV6: 20 | AX6: 종료월일 | AZ6: 8 | BB6: 19
C7: 대 표 자 | E7: =IFBLANK(요양기관기초정보!C6) -> 홍길동 | G7: 주민등록번호 | I7: =IFBLANK(요양기관기초정보!C7) -> 680623-1234567 | L7: == 아 래 ==
C8: 소 재 지 | E8: =" "&IFBLANK(요양기관기초정보!C11) -> 서울 서대문구 연세로 41 (창천동 78-14)
A9: 근 로 자 | C9: 성 명 | E9: =IFBLANK(AL4) -> 테스트2 | G9: 주민등록번호 | I9: =IF(AL3="없어요","",VLOOKUP(AL3,사원명부!$A$2:$AB$150,4)) -> 680623-1****** | L9: ="제1조 【계약기간】 "&AL6&"년"&AT6&"월 "&AV6&"일부터 ～ "&IF(AZ6="","",AL6&"년"&AZ6&"월"&BB6&"일까지 ") -> 제1조 【계약기간】 2021년5월 20일부터 ～ 2021년8월19일까지 | AJ9: 1 | AL9: =IFBLANK(사원명부!B3) -> 테스트1 | AR9: 계약서 작성일 | AX9: 2021 | AZ9: 5 | BB9: 20
C10: 전화번호 | E10: =IF(AL3="없어요","",VLOOKUP(AL3,사원명부!$A$2:$AB$150,6)) -> 010-2345-6789 | G10: 근 무 지 | I10: =IFBLANK(E6) -> 팜오피스약국 | L10: 제2조 【근로시간 및 휴게시간】 | AJ10: 2 | AL10: =IFBLANK(사원명부!B4) -> 테스트2
C11: 주 소 | E11: =" "&IF(AL3="없어요","",VLOOKUP(AL3,사원명부!$A$2:$AB$150,7)) -> 서울시 서대문구연세로 41 | L11: ① 근무시간 | AJ11: 3 | AL11: =IFBLANK(사원명부!B5) -> 
C12: 업 무 | E12: =" "&IF(AL3="없어요","",VLOOKUP(AL3,사원명부!$A$2:$AB$150,8))&IF(AL3="없어요","",VLOOKUP(AL3,사원명부!$A$2:$AB$150,9))&" "&IF(AL3="없어요","",VLOOKUP(AL3,사원명부!$A$2:$AB$150,13)) -> 조제실실장 조제실관리 | L12: - 평 일 : | R12: =IF($AL$3="","",LEFT(VLOOKUP($AL$3,사원명부!$A$2:$AB$150,17),2)) -> 09 | S12: : | T12: =IF($AL$3="","",RIGHT(VLOOKUP($AL$3,사원명부!$A$2:$AB$150,17),2)) -> 00 | U12: ~ | V12: =IF($AL$3="","",LEFT(VLOOKUP($AL$3,사원명부!$A$2:$AB$150,18),2)) -> 18 | W12: : | X12: =IF($AL$3="","",RIGHT(VLOOKUP($AL$3,사원명부!$A$2:$AB$150,18),2)) -> 00 | AJ12: 4 | AL12: =IFBLANK(사원명부!B6) -> 
L13: - 토요일 : | R13: =IF($AL$3="","",LEFT(VLOOKUP($AL$3,사원명부!$A$2:$AB$150,19),2)) -> 09 | S13: : | T13: =IF($AL$3="","",RIGHT(VLOOKUP($AL$3,사원명부!$A$2:$AB$150,19),2)) -> 00 | U13: ~ | V13: =IF($AL$3="","",LEFT(VLOOKUP($AL$3,사원명부!$A$2:$AB$150,20),2)) -> 13 | W13: : | X13: =IF($AL$3="","",RIGHT(VLOOKUP($AL$3,사원명부!$A$2:$AB$150,20),2)) -> 00 | AJ13: 5 | AL13: =IFBLANK(사원명부!B7) ->  | AR13: 급여일 | AV13: 매월 마지막날의 전날
A14: 2. 【근로계약기간】 | L14: ② 휴게시간 : | R14: 12 | S14: : | T14: 00 | U14: ~ | V14: 14 | W14: : | X14: 00 | Y14: 의 시간중 계속된 1시간 | AJ14: 6 | AL14: =IFBLANK(사원명부!B8) -> 
A15: =IFERROR("(1) 입사일 : "&IF($AL$3="","",YEAR(VLOOKUP($AL$3,사원명부!$A$2:$AB$150,11))&"년"&MONTH(VLOOKUP($AL$3,사원명부!$A$2:$AB$150,11))&"월"&DAY(VLOOKUP($AL$3,사원명부!$A$2:$AB$150,11))&"일"),"(1) 입사일 : ") -> (1) 입사일 : 2021년1월1일 | L15: ③ 평일 근무시간은 "갑"과 "을"의 협의하에 조정할수 있다 | AJ15: 7 | AL15: =IFBLANK(사원명부!B9) ->  | AR15: 임금산정기간 | AV15: 당월 | AX15: 1 | AZ15: 당월 | BB15: 말일
A16: (2) 근로계약기간 : 매년 12월 30일(휴일의경우 전일) 다음해의 근로 계약을 갱신하기로 한다. | L16: 제3조 【취업업무】 | AJ16: 8 | AL16: =IFBLANK(사원명부!B10) -> 
A17: 따로 계약을 갱신하지 않은 경우 전년도 계약과 같은 조건으로 갱신된것으로 한다. | L17: ① 취업업무 : | R17: =IF($AL$3="","",VLOOKUP($AL$3,사원명부!$A$2:$AB$150,13)&" "&VLOOKUP($AL$3,사원명부!$A$2:$AB$150,14)) -> 조제실관리 고객조회 | AJ17: 9 | AL17: =IFBLANK(사원명부!B11) ->  | AR17: 급여지급방법 | AV17: 근로자의 계좌로 입금
A18: =" " &AL6&"년 "&AT6&"월 "&AV6&"일부터 ～ "&IF(AZ6="","",AL6&"년"&AZ6&"월"&BB6&"일까지 ") -> 2021년 5월 20일부터 ～ 2021년8월19일까지 | L18: ② 취업장소 : | R18: =IFBLANK(요양기관기초정보!D1) -> 팜오피스약국 | AJ18: 10 | AL18: =IFBLANK(사원명부!B12) -> 
A19: (3) 수습기간 : 신입사원은 입사 후 3개월 간의 수습기간을 두며, 수습기간 중에 직원으로서 근무 | L19: 제4조 【보 수】 | AJ19: 11 | AL19: =IFBLANK(사원명부!B13) ->  | AR19: 식대 | AV19: 월 15만원 | AZ19: 선지급 | BD19: 식대 선지급
A20: 태도불량 등 계속근무가 부적격하다고 판단될 때에는 즉시 계약을 해지할 수 있다 | L20: ① 급여 월급 : | R20: =IF($AL$3="","",IF(VLOOKUP($AL$3,사원명부!$A$2:$AB$150,22)="","",VLOOKUP($AL$3,사원명부!$A$2:$AB$150,22))) ->  | X20: =IF(사원명부!X3="","",사원명부!X3&"기준") ->  | AJ20: 12 | AL20: =IFBLANK(사원명부!B14) -> 
L21: =" ② 급여일은 매월 "&IFBLANK(AV13)&"(휴일인 경우 전일)로 하고 "&IFBLANK(AV17)&"한다." -> ② 급여일은 매월 매월 마지막날의 전날(휴일인 경우 전일)로 하고 근로자의 계좌로 입금한다. | AJ21: 13 | AL21: =IFBLANK(사원명부!B15) ->  | AR21: 상여금 지급시기 | AV21: 설날 | AX21: 하계휴가 | AZ21: 추석
A22: 3. 【근로시간, 휴게시간, 주휴일】 | L22: =" ( 임금산정기간은 "&IFBLANK(AV15)&IFBLANK(AX15)&"일부터 "&IFBLANK(AZ15)&IFBLANK(BB15)&"까지)" -> ( 임금산정기간은 당월1일부터 당월말일까지) | AJ22: 14 | AL22: =IFBLANK(사원명부!B16) -> 
A23: (1) 근로시간 | L23: =" ③ 상기임금에는 기본급,연장근로수당,식대("&AV19&IF(AZ19="",")등이 포함된 것으로 한다."," : "&AZ19&")등이 포함된 것으로 한다.") -> ③ 상기임금에는 기본급,연장근로수당,식대(월 15만원 : 선지급)등이 포함된 것으로 한다. | AJ23: 15 | AL23: =IFBLANK(사원명부!B17) ->  | AR23: 1회 상여금 | AV23: =IF(AL4="없어요","",IF($AL$3="","",VLOOKUP($AL$3,사원명부!$A$2:$AB$150,25))) -> 500000 | BD23: 사원명부에서 기록
A24: =" - 평 일 : " -> - 평 일 : | C24: =VLOOKUP($AL$3,사원명부!$A$2:$AB$150,17)&" ~ "&VLOOKUP($AL$3,사원명부!$A$2:$AB$150,18) -> 09:00 ~ 18:00 | L24: ④ 실수령액은 4대보험과 갑근세등 근로자 부담분을 공제한 최종수령액이다.(명세서발행-회계사무소) | AJ24: 16 | AL24: =IFBLANK(사원명부!B18) -> 
A25: =" - 토요일 : " -> - 토요일 : | C25: =VLOOKUP($AL$3,사원명부!$A$2:$AB$150,19)&" ~ "&VLOOKUP($AL$3,사원명부!$A$2:$AB$150,20)&" ["&VLOOKUP($AL$3,사원명부!$A$2:$AB$150,20)&"]" -> 09:00 ~ 13:00 [13:00] | L25: =IF(AV23="",""," ⑤ 상여금은 연"&COUNTA(AV21:BC22)&"회 "&AV21&" "&AX21&" "&AZ21&" "&BB21&"에 "&AV23&"원을 지급한다") -> ⑤ 상여금은 연3회 설날 하계휴가 추석 에 500000원을 지급한다 | AJ25: 17 | AL25: =IFBLANK(사원명부!B19) -> 
A26: =" - 소정근로시간 : 주 40시간 " -> - 소정근로시간 : 주 40시간 | L26: 제5조 【연차유급휴가】 | AJ26: 18 | AL26: =IFBLANK(사원명부!B20) ->  | AR26: 근로계약서를 사용하려면
A27: (2) 휴게시간 : | C27: ="12:00"&" ~ "&"14:00 의 시간중 계속된 1시간" -> 12:00 ~ 14:00 의 시간중 계속된 1시간 | M27: 연차유급휴가는 취업규칙에서 정하는 바에 따라서 부여 한다. | AJ27: 19 | AL27: =IFBLANK(사원명부!B21) ->  | AR27: 사원명부 시트에 기재사항을 빠짐없이 기록 해야 합니다.
L28: 제6조 【사회보험적용여부】 | AJ28: 20 | AL28: =IFBLANK(사원명부!B22) -> 
A29: 근무일을 변경할수 있다 | M29: ▣ 고용보험 ▣ 산재보험 ▣ 국민연금 ▣ 국민건강보험 | AJ29: 21 | AL29: =IFBLANK(사원명부!B23) -> 
A30: ="(4) "&IF(AL5<5,L61,IF(AL6<2022,IF(AL5<30,L61,L63))) -> (4) ‘관공서의 공휴일에 관한규정’ 제 2조에서 정한 공휴일(일요일 제외)은 근로일로 한다. | L30: 제7조 【근로계약서의 교부】 | AJ30: 22 | AL30: =IFBLANK(사원명부!B24) -> 
M31: "갑"은 근로계약서를 체결함과 동시에 본계약서 2부를 작성하여 "을"에게 1부를 교부한다. | AJ31: 23 | AL31: =IFBLANK(사원명부!B25) ->  | AR31: 계약조건이 변경되면 변경된 내용을 기록하여
A32: 4. 【임금의 구성항목 및 계산, 지급방법】 | L32: 제8조 【근로계약,취업규칙등의 성실한 이행유무】 | AJ32: 24 | AL32: =IFBLANK(사원명부!B26) ->  | AR32: 근로자의 사인을 받아 기존계약서에 첨부합니다.
A33: 사용자는 근로자의 근로제공에 따라 다음의 급여를 지급한다. | L33: 기타 근로조건은 취업규칙 및 단체협약에 따르고, 정해지지 않은 사항에 대해서는 근로기준 | AJ33: 25 | AL33: =IFBLANK(사원명부!B27) -> 
A34: (1) 급여의 구성항목 | L34: 법 등 노동관계 법령에 따른다. | AJ34: 26 | AL34: =IFBLANK(사원명부!B28) -> 
A35: 구 분 | C35: 기본급(주휴수당포함) | E35: 식대등 | G35: 기타제수당 | I35: 계 | L35: 제9조 【특약】 | AJ35: 27 | AL35: =IFBLANK(사원명부!B29) -> 
A36: 월급여 | M36: =IF(VLOOKUP($AL$3,사원명부!$A$2:$AB$150,26)="지급","약사 신상신고 비용은 갑이 부담하지만 을이 부득이한 사유로 퇴직하게 되면","") -> 약사 신상신고 비용은 갑이 부담하지만 을이 부득이한 사유로 퇴직하게 되면 | AJ36: 28 | AL36: =IFBLANK(사원명부!B30) -> 
A37: 연 봉 | M37: =IF(VLOOKUP($AL$3,사원명부!$A$2:$AB$150,26)="지급","근무일까지의 부담분을 제외한 나머지 금액을 마지막 급여에서 차감한다. ","") -> 근무일까지의 부담분을 제외한 나머지 금액을 마지막 급여에서 차감한다. | AJ37: 29 | AL37: =IFBLANK(사원명부!B31) -> 
A38: ="(2) 지급방법 : 급여는 "&IFBLANK(AV13)&"(공휴일일 경우 그전날)에 계좌이체하여 지급하기로 한다." -> (2) 지급방법 : 급여는 매월 마지막날의 전날(공휴일일 경우 그전날)에 계좌이체하여 지급하기로 한다. | V38: 계약일자 : | Z38: =AX9&"년"&AZ9&"월"&BB9&"일" -> 2021년5월20일 | AJ38: 30 | AL38: =IFBLANK(사원명부!B32) -> 
A39: (3) 퇴직급여 : 법에 따라 주 15시간, 1년이상 근로한 자에게 퇴직금 또는 퇴직급여를 지급한다. | AJ39: 31 | AL39: =IFBLANK(사원명부!B33) -> 
A40: ="(4) 4대보험료 : 근로자 본인부담금과 갑근세 등은 "& IF(X20="실수령액기준","사용자가 부담한다.(네트계약)","근로자가 부담한다.") -> (4) 4대보험료 : 근로자 본인부담금과 갑근세 등은 근로자가 부담한다. | O40: (갑) | Q40: 주 소 : | T40: =IFBLANK(요양기관기초정보!C11) -> 서울 서대문구 연세로 41 (창천동 78-14) | AJ40: 32 | AL40: =IFBLANK(사원명부!B34) -> 
A41: (5) 식대등과 기타제수당 : 식대등 비과세 항목은 '식대등'에 부정기적인 상여금과 휴일근로 등을 | Q41: 회사명 : | T41: =IFBLANK(요양기관기초정보!D1) -> 팜오피스약국 | AJ41: 33 | AL41: =IFBLANK(사원명부!B35) -> 
A42: '기타제수당'에 반영하기로 한다 | Q42: 대표자 : | T42: =요양기관기초정보!C6&"("&요양기관기초정보!C7&")"&" (서명 또는 날인)" -> 홍길동(680623-1234567) (서명 또는 날인) | AJ42: 34 | AL42: =IFBLANK(사원명부!B36) -> 
A43: (6) 중도입사자 : 전근무지 소득으로 인한 연말정산시 추가부담하는 세금은 근무자가 부담한다. | Q43: 연락처 : | T43: =IFBLANK(요양기관기초정보!C12) -> 02-324-4650 | AJ43: 35 | AL43: =IFBLANK(사원명부!B37) -> 
O44: (을) | Q44: 주 소 : | T44: =IF(AL4="없어요","",IF($AL$3="","",VLOOKUP($AL$3,사원명부!$A$2:$AB$150,7))) -> 서울시 서대문구연세로 41 | AJ44: 36 | AL44: =IFBLANK(사원명부!B38) -> 
A45: 5. 【근로자의 의무】 | Q45: 이 름 : | T45: =IF(AL4="없어요","",IF($AL$3="","",VLOOKUP($AL$3,사원명부!$A$2:$AB$150,2))&" ("&IF($AL$3="","",VLOOKUP($AL$3,사원명부!$A$2:$AB$150,4))&") (서명 또는 날인)") -> 테스트2 (680623-1******) (서명 또는 날인) | AJ45: 37 | AL45: =IFBLANK(사원명부!B39) -> 
A46: (1) 근로자는 담당업무와 약국 운영에 필요한 부수적인 업무를 충실히 이행하여야 한다. | Q46: 연락처 : | T46: =IF(AL4="없어요","",IF($AL$3="","",VLOOKUP($AL$3,사원명부!$A$2:$AB$150,6))) -> 010-2345-6789 | AJ46: 38 | AL46: =IFBLANK(사원명부!B40) -> 
A47: (2) 근로자는 사용자의 업무지시 등에 성실히 따라야 한다. | AJ47: 39 | AL47: =IFBLANK(사원명부!B41) -> 
AJ48: 40 | AL48: =IFBLANK(사원명부!B42) -> 
A49: 6. 【근로계약의 해지】 | AJ49: 41 | AL49: =IFBLANK(사원명부!B43) -> 
A50: 회사는 다음의 경우 고용을 해지할 수 있다. | AJ50: 42 | AL50: =IFBLANK(사원명부!B44) -> 
A51: (1) 직원의 업무수행 능력이 심히 부적합하다고 판단될 때 | L51: [관공서의 공휴일에 관한규정] | AJ51: 43 | AL51: =IFBLANK(사원명부!B45) -> 
A52: (2) 직원이 업무상 고의 또는 중대한 과실로 고객 또는 회사에 손해를 끼쳤을 때 | AJ52: 44 | AL52: =IFBLANK(사원명부!B46) -> 
A53: (3) 경영악화로 인하여 정상영업이 어려운 경우 | L53: 민간기업에 적용되는 시기 | AJ53: 45 | AL53: =IFBLANK(사원명부!B47) -> 
A54: (4) 비밀유지 의무를 위반한 경우 | M54: 상시근무자 5인이상의 기업에 적용되며 4인이하는 관계없으니 | AJ54: 46 | AL54: =IFBLANK(사원명부!B48) -> 
A55: (5) 계속 3일이상 또는 월 합계 5일이상 결근한 경우, 근로의사가 없는 것으로 간주하여 징계 | M55: 근로 계약서 3조의 (7)을 회사 규정에 맡게 수정하여 사용 할수 있습니다. | AJ55: 47 | AL55: =IFBLANK(사원명부!B49) -> 
A56: 절차없이 자동면직한다.(지각3회는 결근 1일로 간주한다) | M56: ▴ 5～30인 미만 : ’22.1.1 | AJ56: 48 | AL56: =IFBLANK(사원명부!B50) -> 
M57: ▴ 30～300인 미만: ’21.1.1, | AJ57: 49 | AL57: =IFBLANK(사원명부!B51) -> 
A58: 7. 【근로계약의 종료】 | M58: ▴ 300인 이상: ’20.1.1, | AJ58: 50 | AL58: =IFBLANK(사원명부!B52) -> 
A59: 직원은 근로계약을 해지하고자 하는 경우 퇴직희망일 30일이전에 사직서를 제출하고 회사의 퇴직승인을 | AJ59: 51 | AL59: =IFBLANK(사원명부!B53) -> 
A60: 얻은 후 업무인수인계를 마친 후 퇴직할 수 있으며, 직원이 이를 위반한 경우 회사는 직원에게 손해배상울 | L60: 법정공휴일을 연차휴가로 대체하거나 근무일에 포함시키는 경우 | AJ60: 52 | AL60: =IFBLANK(사원명부!B54) -> 
A61: 청구할 수 있다. | L61: ‘관공서의 공휴일에 관한규정’ 제 2조에서 정한 공휴일(일요일 제외)은 근로일로 한다. | AJ61: 53 | AL61: =IFBLANK(사원명부!B55) -> 
L62: 2022년부터 상시근로자 5인이상이면 | AJ62: 54 | AL62: =IFBLANK(사원명부!B56) -> 
A63: 8. 【비밀유지】 | L63: ‘관공서의 공휴일에 관한규정’ 제 3조에서 정한 공휴일(일요일 제외)은 유급휴일로 한다 | AJ63: 55 | AL63: =IFBLANK(사원명부!B57) -> 
A64: (1) 직원은 근무 중 취득한 회사의 직무내용등을 타인에게 누설해서는 안되며, 상기 사항의 위반에 | AJ64: 56 | AL64: =IFBLANK(사원명부!B58) -> 
A65: 대해서는 민,형사상 책임을 진다. | L65: 근로기준법 제62조에 따라 공휴일에 연차를 사용하기로 근로자대표와 서면합의를 하는 경우 공휴일에 쉬면서 연차로 대체한 것으로 운영할 수 있다. 하지만 공휴일이 유급휴일로 전환되면, 공휴일은 법정휴일이므로, 연차휴가를 사용한 것으로 대체할 수 없다. 휴가는 소정근로일에 사용하는 것이지, 휴일에 휴가를 사용하고 쉬는 것이 아니기 때문이다. 따라서 공휴일을 연차휴가로 대체해 운영 중이었다면, 향후 법 시행일에 맞춰 근로기준법에서 정한 연차유급휴가를 부여해야한다. 현재 공휴일 연차휴가대체제를 운용하고 있다면, 공휴일 적용시기 시행일 부터는 법위반이 되므로 유의해야한다. | AJ65: 57 | AL65: =IFBLANK(사원명부!B59) -> 
A66: (2) 직원은 본인의 급여에 대해 비밀을 유지해야 한다. | AJ66: 58 | AL66: =IFBLANK(사원명부!B60) -> 
AJ67: 59 | AL67: =IFBLANK(사원명부!B61) -> 
A68: 9.【 기타】 | AJ68: 60 | AL68: =IFBLANK(사원명부!B62) -> 
A69: 기타 근로조건은 취업규칙에 따르고 | AJ69: 61 | AL69: =IFBLANK(사원명부!B63) -> 
A70: 본계약에 정함이 없는 사항은 근로기준법등 관계법령에 따른다. | AJ70: 62 | AL70: =IFBLANK(사원명부!B64) -> 
AJ71: 63 | AL71: =IFBLANK(사원명부!B65) -> 
F72: =Z38 -> 2021년5월20일 | L72: 제11조(근로계약) 근로자로 채용된 자는 이 규칙에 의한 근로조건에 동의 한 것으로 보고 근로계약서에 서명 날인 하여 근로계약을 채결하여야 한다. | AJ72: 64 | AL72: =IFBLANK(사원명부!B66) -> 
AJ73: 65 | AL73: =IFBLANK(사원명부!B67) -> 
F74: 사용자 : | G74: =IFBLANK(요양기관기초정보!C6) -> 홍길동 | H74: (서명 또는 인) | AJ74: 66 | AL74: =IFBLANK(사원명부!B68) -> 
AJ75: 67 | AL75: =IFBLANK(사원명부!B69) -> 
F76: 근로자 : | G76: =IFBLANK(E9) -> 테스트2 | H76: (서명 또는 인) | L76: ▴ 300인 이상: ’20.1.1, ▴ 30～300인 미만: ’21.1.1, ▴ 5～30인 미만: ’22.1.1 | AJ76: 68 | AL76: =IFBLANK(사원명부!B70) -> 
AJ77: 69 | AL77: =IFBLANK(사원명부!B71) -> 
AJ78: 70 | AL78: =IFBLANK(사원명부!B72) -> 
AJ79: 71 | AL79: =IFBLANK(사원명부!B73) -> 
AJ80: 72 | AL80: =IFBLANK(사원명부!B74) -> 
AJ81: 73 | AL81: =IFBLANK(사원명부!B75) -> 
AJ82: 74 | AL82: =IFBLANK(사원명부!B76) -> 
AJ83: 75 | AL83: =IFBLANK(사원명부!B77) -> 
AJ84: 76 | AL84: =IFBLANK(사원명부!B78) -> 
AJ85: 77 | AL85: =IFBLANK(사원명부!B79) -> 
AJ86: 78 | AL86: =IFBLANK(사원명부!B80) -> 
AJ87: 79 | AL87: =IFBLANK(사원명부!B81) -> 
AJ88: 80 | AL88: =IFBLANK(사원명부!B82) -> 
AJ89: 81 | AL89: =IFBLANK(사원명부!B83) -> 
AJ90: 82 | AL90: =IFBLANK(사원명부!B84) -> 
AJ91: 83 | AL91: =IFBLANK(사원명부!B85) -> 
AJ92: 84 | AL92: =IFBLANK(사원명부!B86) -> 
AJ93: 85 | AL93: =IFBLANK(사원명부!B87) -> 
AJ94: 86 | AL94: =IFBLANK(사원명부!B88) -> 
AJ95: 87 | AL95: =IFBLANK(사원명부!B89) -> 
AJ96: 88 | AL96: =IFBLANK(사원명부!B90) -> 
AJ97: 89 | AL97: =IFBLANK(사원명부!B91) -> 
AJ98: 90 | AL98: =IFBLANK(사원명부!B92) -> 
AJ99: 91 | AL99: =IFBLANK(사원명부!B93) -> 
AJ100: 92 | AL100: =IFBLANK(사원명부!B94) -> 
AJ101: 93 | AL101: =IFBLANK(사원명부!B95) -> 
AJ102: 94 | AL102: =IFBLANK(사원명부!B96) -> 
AJ103: 95 | AL103: =IFBLANK(사원명부!B97) -> 
AJ104: 96 | AL104: =IFBLANK(사원명부!B98) -> 
AJ105: 97 | AL105: =IFBLANK(사원명부!B99) -> 
AJ106: 98 | AL106: =IFBLANK(사원명부!B100) -> 
AJ107: 99 | AL107: =IFBLANK(사원명부!B101) -> 
AJ108: 100 | AL108: =IFBLANK(사원명부!B102) -> 

Sheet 근로자명부
A1: 근로자명부
M2: 근로기준법 시행령 제20조(근로자 명부의 기재사항)
A4: 성명 | C4: =IFBLANK(O5) -> 테스트2 | E4: 생년월일 | G4: =IF(O5="없어요","",LEFT(VLOOKUP(O4,사원명부!$A$2:$AB$150,4,FALSE),6)) -> 680623 | M4: 사원번호 | O4: 2
A5: 주소 | C5: =IF(O5="없어요","",VLOOKUP(O4,사원명부!$A$2:$AB$150,7,FALSE)) -> 서울시 서대문구연세로 41 | M5: 이 름 | O5: =IFERROR(IF($O$4="","",VLOOKUP(O4,사원명부!A2:B100,2,FALSE)),"없어요") -> 테스트2
C6: =IF(O5="없어요","",VLOOKUP(O4,사원명부!$A$2:$AB$150,6,FALSE)) -> 010-2345-6789
A7: 부양가족 | E7: 종사업무 | G7: =IF(O5="없어요","",VLOOKUP(O4,사원명부!$A$2:$AB$150,13,FALSE)) -> 조제실관리
A8: 이력 | B8: 기능 및 자격 | E8: 퇴직 | F8: 해 고 일 | M8: 1 | O8: =IFERROR(IF(M8="","",VLOOKUP(M8,사원명부!$A$2:$B$100,2,FALSE)),"") -> 테스트1
B9: 최종학력 | F9: 퇴 직 일 | M9: 2 | O9: =IFERROR(IF(M9="","",VLOOKUP(M9,사원명부!$A$2:$B$100,2,FALSE)),"") -> 테스트2
B10: 경력 | F10: 사 유 | M10: 3 | O10: =IFERROR(IF(M10="","",VLOOKUP(M10,사원명부!$A$2:$B$100,2,FALSE)),"") -> 
B11: 병역 | F11: 금품정산등 | M11: 4 | O11: =IFERROR(IF(M11="","",VLOOKUP(M11,사원명부!$A$2:$B$100,2,FALSE)),"") -> 
A12: 고용일(계약기간) | C12: =IF(O5="없어요","",VLOOKUP(O4,사원명부!$A$2:$AB$150,11,FALSE)) -> 2021-01-01 | E12: 근로계약갱신일 | G12: 매년 12월 30일(휴일의 경우 전일) | M12: 5 | O12: =IFERROR(IF(M12="","",VLOOKUP(M12,사원명부!$A$2:$B$100,2,FALSE)),"") -> 
A13: 근로계약조건 | B13: 1.근무장소및 업무내용 | M13: 6 | O13: =IFERROR(IF(M13="","",VLOOKUP(M13,사원명부!$A$2:$B$100,2,FALSE)),"") -> 
C14: 근무장소 : | D14: =IFBLANK(요양기관기초정보!D1) -> 팜오피스약국 | M14: 7 | O14: =IFERROR(IF(M14="","",VLOOKUP(M14,사원명부!$A$2:$B$100,2,FALSE)),"") -> 
C15: 업무내용 : | D15: =IF(O5="없어요","",VLOOKUP(O4,사원명부!$A$2:$AB$150,13,FALSE)&" "&VLOOKUP(O4,사원명부!$A$2:$AB$150,14,FALSE)) -> 조제실관리 고객조회 | M15: 8 | O15: =IFERROR(IF(M15="","",VLOOKUP(M15,사원명부!$A$2:$B$100,2,FALSE)),"") -> 
B16: 2.임금 | M16: 9 | O16: =IFERROR(IF(M16="","",VLOOKUP(M16,사원명부!$A$2:$B$100,2,FALSE)),"") -> 
C17: 월 급 : | D17: =IF(O5="없어요","",VLOOKUP(O4,사원명부!$A$2:$AB$150,24,FALSE)&" "&VLOOKUP(O4,사원명부!$A$2:$AB$150,23,FALSE)) -> 5000000 | M17: 10 | O17: =IFERROR(IF(M17="","",VLOOKUP(M17,사원명부!$A$2:$B$100,2,FALSE)),"") -> 
C18: 상여금 : | D18: =IF(O5="없어요","",VLOOKUP(O4,사원명부!$A$2:$AB$150,25,FALSE)) -> 500000 | E18: (설,하계휴가,추석 연3회) | M18: 11 | O18: =IFERROR(IF(M18="","",VLOOKUP(M18,사원명부!$A$2:$B$100,2,FALSE)),"") -> 
M19: 12 | O19: =IFERROR(IF(M19="","",VLOOKUP(M19,사원명부!$A$2:$B$100,2,FALSE)),"") -> 
C20: 월 ~ 금요일 : | D20: =VLOOKUP(O4,사원명부!$A$2:$AB$150,17)&" ~ "&VLOOKUP(O4,사원명부!$A$2:$AB$150,18) -> 09:00 ~ 18:00 | M20: 13 | O20: =IFERROR(IF(M20="","",VLOOKUP(M20,사원명부!$A$2:$B$100,2,FALSE)),"") -> 
C21: 토요일 : | D21: =VLOOKUP(O4,사원명부!$A$2:$AB$150,19)&" ~ "&VLOOKUP(O4,사원명부!$A$2:$AB$150,20) -> 09:00 ~ 13:00 | M21: 14 | O21: =IFERROR(IF(M21="","",VLOOKUP(M21,사원명부!$A$2:$B$100,2,FALSE)),"") -> 
C22: 휴게시간 : | D22: 12:00 ~ 14:00 의 시간중 계속된 1시간 | M22: 15 | O22: =IFERROR(IF(M22="","",VLOOKUP(M22,사원명부!$A$2:$B$100,2,FALSE)),"") -> 
B23: 3.휴일 및 휴가 | M23: 16 | O23: =IFERROR(IF(M23="","",VLOOKUP(M23,사원명부!$A$2:$B$100,2,FALSE)),"") -> 
M24: 17 | O24: =IFERROR(IF(M24="","",VLOOKUP(M24,사원명부!$A$2:$B$100,2,FALSE)),"") -> 
M25: 18 | O25: =IFERROR(IF(M25="","",VLOOKUP(M25,사원명부!$A$2:$B$100,2,FALSE)),"") -> 
M26: 19 | O26: =IFERROR(IF(M26="","",VLOOKUP(M26,사원명부!$A$2:$B$100,2,FALSE)),"") -> 
M27: 20 | O27: =IFERROR(IF(M27="","",VLOOKUP(M27,사원명부!$A$2:$B$100,2,FALSE)),"") -> 
M28: 21 | O28: =IFERROR(IF(M28="","",VLOOKUP(M28,사원명부!$A$2:$B$100,2,FALSE)),"") -> 
M29: 22 | O29: =IFERROR(IF(M29="","",VLOOKUP(M29,사원명부!$A$2:$B$100,2,FALSE)),"") -> 
A30: 특기사항(교육,건강,휴직등) | M30: 23 | O30: =IFERROR(IF(M30="","",VLOOKUP(M30,사원명부!$A$2:$B$100,2,FALSE)),"") -> 
M31: 24 | O31: =IFERROR(IF(M31="","",VLOOKUP(M31,사원명부!$A$2:$B$100,2,FALSE)),"") -> 
M32: 25 | O32: =IFERROR(IF(M32="","",VLOOKUP(M32,사원명부!$A$2:$B$100,2,FALSE)),"") -> 
M33: 26 | O33: =IFERROR(IF(M33="","",VLOOKUP(M33,사원명부!$A$2:$B$100,2,FALSE)),"") -> 
M34: 27 | O34: =IFERROR(IF(M34="","",VLOOKUP(M34,사원명부!$A$2:$B$100,2,FALSE)),"") -> 
M35: 28 | O35: =IFERROR(IF(M35="","",VLOOKUP(M35,사원명부!$A$2:$B$100,2,FALSE)),"") -> 
M36: 29 | O36: =IFERROR(IF(M36="","",VLOOKUP(M36,사원명부!$A$2:$B$100,2,FALSE)),"") -> 
M37: 30 | O37: =IFERROR(IF(M37="","",VLOOKUP(M37,사원명부!$A$2:$B$100,2,FALSE)),"") -> 
M38: 31 | O38: =IFERROR(IF(M38="","",VLOOKUP(M38,사원명부!$A$2:$B$100,2,FALSE)),"") -> 
M39: 32 | O39: =IFERROR(IF(M39="","",VLOOKUP(M39,사원명부!$A$2:$B$100,2,FALSE)),"") -> 
M40: 33 | O40: =IFERROR(IF(M40="","",VLOOKUP(M40,사원명부!$A$2:$B$100,2,FALSE)),"") -> 
M41: 34 | O41: =IFERROR(IF(M41="","",VLOOKUP(M41,사원명부!$A$2:$B$100,2,FALSE)),"") -> 
M42: 35 | O42: =IFERROR(IF(M42="","",VLOOKUP(M42,사원명부!$A$2:$B$100,2,FALSE)),"") -> 
M43: 36 | O43: =IFERROR(IF(M43="","",VLOOKUP(M43,사원명부!$A$2:$B$100,2,FALSE)),"") -> 
M44: 37 | O44: =IFERROR(IF(M44="","",VLOOKUP(M44,사원명부!$A$2:$B$100,2,FALSE)),"") -> 
M45: 38 | O45: =IFERROR(IF(M45="","",VLOOKUP(M45,사원명부!$A$2:$B$100,2,FALSE)),"") -> 
M46: 39 | O46: =IFERROR(IF(M46="","",VLOOKUP(M46,사원명부!$A$2:$B$100,2,FALSE)),"") -> 
M47: 40 | O47: =IFERROR(IF(M47="","",VLOOKUP(M47,사원명부!$A$2:$B$100,2,FALSE)),"") -> 
M48: 41 | O48: =IFERROR(IF(M48="","",VLOOKUP(M48,사원명부!$A$2:$B$100,2,FALSE)),"") -> 
M49: 42 | O49: =IFERROR(IF(M49="","",VLOOKUP(M49,사원명부!$A$2:$B$100,2,FALSE)),"") -> 
M50: 43 | O50: =IFERROR(IF(M50="","",VLOOKUP(M50,사원명부!$A$2:$B$100,2,FALSE)),"") -> 
M51: 44 | O51: =IFERROR(IF(M51="","",VLOOKUP(M51,사원명부!$A$2:$B$100,2,FALSE)),"") -> 
M52: 45 | O52: =IFERROR(IF(M52="","",VLOOKUP(M52,사원명부!$A$2:$B$100,2,FALSE)),"") -> 
M53: 46 | O53: =IFERROR(IF(M53="","",VLOOKUP(M53,사원명부!$A$2:$B$100,2,FALSE)),"") -> 
M54: 47 | O54: =IFERROR(IF(M54="","",VLOOKUP(M54,사원명부!$A$2:$B$100,2,FALSE)),"") -> 
M55: 48 | O55: =IFERROR(IF(M55="","",VLOOKUP(M55,사원명부!$A$2:$B$100,2,FALSE)),"") -> 
M56: 49 | O56: =IFERROR(IF(M56="","",VLOOKUP(M56,사원명부!$A$2:$B$100,2,FALSE)),"") -> 
M57: 50 | O57: =IFERROR(IF(M57="","",VLOOKUP(M57,사원명부!$A$2:$B$100,2,FALSE)),"") -> 
M58: 51 | O58: =IFERROR(IF(M58="","",VLOOKUP(M58,사원명부!$A$2:$B$100,2,FALSE)),"") -> 
M59: 52 | O59: =IFERROR(IF(M59="","",VLOOKUP(M59,사원명부!$A$2:$B$100,2,FALSE)),"") -> 
M60: 53 | O60: =IFERROR(IF(M60="","",VLOOKUP(M60,사원명부!$A$2:$B$100,2,FALSE)),"") -> 
M61: 54 | O61: =IFERROR(IF(M61="","",VLOOKUP(M61,사원명부!$A$2:$B$100,2,FALSE)),"") -> 
M62: 55 | O62: =IFERROR(IF(M62="","",VLOOKUP(M62,사원명부!$A$2:$B$100,2,FALSE)),"") -> 
M63: 56 | O63: =IFERROR(IF(M63="","",VLOOKUP(M63,사원명부!$A$2:$B$100,2,FALSE)),"") -> 
M64: 57 | O64: =IFERROR(IF(M64="","",VLOOKUP(M64,사원명부!$A$2:$B$100,2,FALSE)),"") -> 
M65: 58 | O65: =IFERROR(IF(M65="","",VLOOKUP(M65,사원명부!$A$2:$B$100,2,FALSE)),"") -> 
M66: 59 | O66: =IFERROR(IF(M66="","",VLOOKUP(M66,사원명부!$A$2:$B$100,2,FALSE)),"") -> 
M67: 60 | O67: =IFERROR(IF(M67="","",VLOOKUP(M67,사원명부!$A$2:$B$100,2,FALSE)),"") -> 
M68: 61 | O68: =IFERROR(IF(M68="","",VLOOKUP(M68,사원명부!$A$2:$B$100,2,FALSE)),"") -> 
M69: 62 | O69: =IFERROR(IF(M69="","",VLOOKUP(M69,사원명부!$A$2:$B$100,2,FALSE)),"") -> 
M70: 63 | O70: =IFERROR(IF(M70="","",VLOOKUP(M70,사원명부!$A$2:$B$100,2,FALSE)),"") -> 
M71: 64 | O71: =IFERROR(IF(M71="","",VLOOKUP(M71,사원명부!$A$2:$B$100,2,FALSE)),"") -> 
M72: 65 | O72: =IFERROR(IF(M72="","",VLOOKUP(M72,사원명부!$A$2:$B$100,2,FALSE)),"") -> 
M73: 66 | O73: =IFERROR(IF(M73="","",VLOOKUP(M73,사원명부!$A$2:$B$100,2,FALSE)),"") -> 
M74: 67 | O74: =IFERROR(IF(M74="","",VLOOKUP(M74,사원명부!$A$2:$B$100,2,FALSE)),"") -> 
M75: 68 | O75: =IFERROR(IF(M75="","",VLOOKUP(M75,사원명부!$A$2:$B$100,2,FALSE)),"") -> 
M76: 69 | O76: =IFERROR(IF(M76="","",VLOOKUP(M76,사원명부!$A$2:$B$100,2,FALSE)),"") -> 
M77: 70 | O77: =IFERROR(IF(M77="","",VLOOKUP(M77,사원명부!$A$2:$B$100,2,FALSE)),"") -> 
M78: 71 | O78: =IFERROR(IF(M78="","",VLOOKUP(M78,사원명부!$A$2:$B$100,2,FALSE)),"") -> 
M79: 72 | O79: =IFERROR(IF(M79="","",VLOOKUP(M79,사원명부!$A$2:$B$100,2,FALSE)),"") -> 
M80: 73 | O80: =IFERROR(IF(M80="","",VLOOKUP(M80,사원명부!$A$2:$B$100,2,FALSE)),"") -> 
M81: 74 | O81: =IFERROR(IF(M81="","",VLOOKUP(M81,사원명부!$A$2:$B$100,2,FALSE)),"") -> 
M82: 75 | O82: =IFERROR(IF(M82="","",VLOOKUP(M82,사원명부!$A$2:$B$100,2,FALSE)),"") -> 
M83: 76 | O83: =IFERROR(IF(M83="","",VLOOKUP(M83,사원명부!$A$2:$B$100,2,FALSE)),"") -> 
M84: 77 | O84: =IFERROR(IF(M84="","",VLOOKUP(M84,사원명부!$A$2:$B$100,2,FALSE)),"") -> 
M85: 78 | O85: =IFERROR(IF(M85="","",VLOOKUP(M85,사원명부!$A$2:$B$100,2,FALSE)),"") -> 
M86: 79 | O86: =IFERROR(IF(M86="","",VLOOKUP(M86,사원명부!$A$2:$B$100,2,FALSE)),"") -> 
M87: 80 | O87: =IFERROR(IF(M87="","",VLOOKUP(M87,사원명부!$A$2:$B$100,2,FALSE)),"") -> 
M88: 81 | O88: =IFERROR(IF(M88="","",VLOOKUP(M88,사원명부!$A$2:$B$100,2,FALSE)),"") -> 

Sheet 단기근로계약서
B2: 근 로 계 약 서
M3: 사원번호 | O3: 2 | Z3: 버튼 한번 누르면 두장씩 인쇄
M4: 이 름 | O4: =IF(O3="","",VLOOKUP(O3,사원명부!A2:B100,2)) -> 테스트2
B5: =IFBLANK(요양기관기초정보!D1)&"(이하 “갑”이라 한다)"&IFERROR(Josa1(요양기관기초정보!D1,4),"과")&" "&IFBLANK(AL4)&"(이하 “을”이라 한다)"&IFERROR(Josa1(AL4,1),"은(는)")&" 아래과 같은 근로계약을 체결하고 " -> 팜오피스약국(이하 “갑”이라 한다)과 (이하 “을”이라 한다)은(는) 아래과 같은 근로계약을 체결하고
B6: 상호 성실히 이행할 것을 약정한다. | M6: 계약년도 | O6: 2021 | U6: 계약월일 | W6: 1 | Y6: 1 | AA6: 종료월일 | AC6: 12 | AE6: 31
B8: == 아 래 ==
M9: 1 | O9: =IFBLANK(사원명부!B3) -> 테스트1 | U9: 계약서 작성일 | AA9: 2020 | AC9: 12 | AE9: 31
B10: ="제1조 【근로개시일】 " -> 제1조 【근로개시일】 | D10: =O6&"년"&W6&"월 "&Y6&"일부터 ～ "&O6&"년"&AC6&"월"&AE6&"일까지 " -> 2021년1월 1일부터 ～ 2021년12월31일까지 | M10: 2 | O10: =IFBLANK(사원명부!B4) -> 테스트2
B11: 제2조 【근 무 장 소】 | D11: =IFBLANK(요양기관기초정보!D1) -> 팜오피스약국 | M11: 3 | O11: =IFBLANK(사원명부!B5) -> 
B12: 제3조 【업무의내용】 | D12: =IF($O$3="","",VLOOKUP($O$3,사원명부!$A$2:$AB$150,13)) -> 조제실관리 | M12: 4 | O12: =IFBLANK(사원명부!B6) ->  | U12: 근로계약서를 사용하려면
B13: 제4조 【근로일 및 근로일별 근로시간】 | M13: 5 | O13: =IFBLANK(사원명부!B7) ->  | U13: 사원명부 시트에 기재사항을 빠짐없이 기록 해야 합니다.
D14: 월요일 | E14: 화요일 | F14: 수요일 | G14: 목요일 | H14: 금요일 | I14: 토요일 | J14: 일요일 | M14: 6 | O14: =IFBLANK(사원명부!B8) -> 
C15: 근로시간 | M15: 7 | O15: =IFBLANK(사원명부!B9) -> 
C16: 시업시간 | M16: 8 | O16: =IFBLANK(사원명부!B10) -> 
C17: 종업시간 | M17: 9 | O17: =IFBLANK(사원명부!B11) -> 
C18: 휴게시간 | M18: 10 | O18: =IFBLANK(사원명부!B12) -> 
C19: O 주휴일 : | D19: ="매주 "&IFBLANK(W21) -> 매주 일요일 | M19: 11 | O19: =IFBLANK(사원명부!B13) ->  | U19: 파트타임,아르바이트 계약시 근무시간을 직접 기록 하여 인쇄하세요
B20: 제5조 【임 금】 | M20: 12 | O20: =IFBLANK(사원명부!B14) -> 
B21: ­ | C21: =IFBLANK(W23) -> 시급 | D21: =IFBLANK(Y23) -> 10000 | E21: 원 | H21: =IF($O$3="","",IF(VLOOKUP($O$3,사원명부!$A$2:$AB$150,22)="","",VLOOKUP($O$3,사원명부!$A$2:$AB$150,22))) ->  | M21: 13 | O21: =IFBLANK(사원명부!B15) ->  | U21: 주휴일 | W21: 일요일
B22: ­ | C22: 상여금 | D22: =IF(W25="없음","",IFBLANK(Y25)) ->  | E22: 원 | M22: 14 | O22: =IFBLANK(사원명부!B16) ->  | AF22: 매주 | AH22: 매월
B23: ­ | C23: 기타급여(제수당등) | E23: 식대 1일 | F23: =IF(W27="없음","",IFBLANK(Y27)) ->  | G23: 원 | M23: 15 | O23: =IFBLANK(사원명부!B17) ->  | U23: 급여구분 | W23: 시급 | Y23: 10000 | AB23: 급여일 | AD23: 매월 | AF23: 월요일 | AH23: 31
E24: 주휴수당1주 | F24: =IFBLANK(W29) ->  | G24: 원 | M24: 16 | O24: =IFBLANK(사원명부!B18) -> 
B25: ­ | C25: 초과근로에 대한 가산임금율 | F25: 50 | G25: % | M25: 17 | O25: =IFBLANK(사원명부!B19) ->  | U25: 상여금 | W25: 없음 | Y25: 100000
B26: ­ | C26: 임금지급일 | D26: =IFBLANK(AD23) -> 매월 | E26: =IF(D26="매월",IFBLANK(AH23)&"일 (휴일의경우 전일 지급)",IF(D26="매주",IFBLANK(AF23)&"(휴일의경우 전일 지급)","")) -> 31일 (휴일의경우 전일 지급) | M26: 18 | O26: =IFBLANK(사원명부!B20) -> 
B27: ­ | C27: 지급방법 | D27: =IFBLANK(AE27) -> 직접지급 | M27: 19 | O27: =IFBLANK(사원명부!B21) ->  | U27: 식대 | W27: 있음 | AB27: 급여지급방법 | AE27: 직접지급
B28: 제6조 【연차유급휴가】 | M28: 20 | O28: =IFBLANK(사원명부!B22) -> 
C29: 통상근로자의 근로시간에 비례하여 연차유급휴가를 부여 한다. | M29: 21 | O29: =IFBLANK(사원명부!B23) ->  | U29: 주휴수당
B30: 제7조 【사회보험적용여부】 | M30: 22 | O30: =IFBLANK(사원명부!B24) -> 
C31: ▣ 고용보험 ▣ 산재보험 ▣ 국민연금 ▣ 국민건강보험 | M31: 23 | O31: =IFBLANK(사원명부!B25) -> 
B32: 제8조 【근로계약서의 교부】 | M32: 24 | O32: =IFBLANK(사원명부!B26) -> 
C33: "갑"은 근로계약서를 체결함과 동시에 본계약서 2부를 작성하여 "을"에게 1부를 교부한다. | M33: 25 | O33: =IFBLANK(사원명부!B27) -> 
B34: 제7조 【근로계약,취업규칙등의 성실한 이행유무】 | M34: 26 | O34: =IFBLANK(사원명부!B28) -> 
C35: 기타 근로조건은 취업규칙 및 단체협약에 따르고, 정해지지 않은 사항에 대해서는 근로기준법 등 노동 | M35: 27 | O35: =IFBLANK(사원명부!B29) -> 
C36: 관계 법령에 따른다. | M36: 28 | O36: =IFBLANK(사원명부!B30) -> 
M37: 29 | O37: =IFBLANK(사원명부!B31) -> 
E38: 계약일자 : | F38: =AA9&"년"&AC9&"월"&AE9&"일" -> 2020년12월31일 | M38: 30 | O38: =IFBLANK(사원명부!B32) -> 
M39: 31 | O39: =IFBLANK(사원명부!B33) -> 
D40: (갑) | E40: 주 소 : | F40: =IFBLANK(요양기관기초정보!C11) -> 서울 서대문구 연세로 41 (창천동 78-14) | M40: 32 | O40: =IFBLANK(사원명부!B34) -> 
E41: 회사명 : | F41: =IFBLANK(요양기관기초정보!D1) -> 팜오피스약국 | M41: 33 | O41: =IFBLANK(사원명부!B35) -> 
E42: 대표자 : | F42: =요양기관기초정보!C6&"("&요양기관기초정보!C7&")"&" (서명 또는 날인)" -> 홍길동(680623-1234567) (서명 또는 날인) | M42: 34 | O42: =IFBLANK(사원명부!B36) -> 
E43: 연락처 : | F43: =IFBLANK(요양기관기초정보!C12) -> 02-324-4650 | M43: 35 | O43: =IFBLANK(사원명부!B37) -> 
D44: (을) | E44: 주 소 : | F44: =IF($O$3="","",VLOOKUP($O$3,사원명부!$A$2:$AB$150,7)) -> 서울시 서대문구연세로 41 | M44: 36 | O44: =IFBLANK(사원명부!B38) -> 
E45: 이 름 : | F45: =IF($O$3="","",VLOOKUP($O$3,사원명부!$A$2:$AB$150,2))&" ("&IF($O$3="","",VLOOKUP($O$3,사원명부!$A$2:$AB$150,4))&") (서명 또는 날인)" -> 테스트2 (680623-1******) (서명 또는 날인) | M45: 37 | O45: =IFBLANK(사원명부!B39) -> 
E46: 연락처 : | F46: =IF($O$3="","",VLOOKUP($O$3,사원명부!$A$2:$AB$150,6)) -> 010-2345-6789 | M46: 38 | O46: =IFBLANK(사원명부!B40) -> 
M47: 39 | O47: =IFBLANK(사원명부!B41) -> 
M48: 40 | O48: =IFBLANK(사원명부!B42) -> 
M49: 41 | O49: =IFBLANK(사원명부!B43) -> 
M50: 42 | O50: =IFBLANK(사원명부!B44) -> 
M51: 43 | O51: =IFBLANK(사원명부!B45) -> 
M52: 44 | O52: =IFBLANK(사원명부!B46) -> 
M53: 45 | O53: =IFBLANK(사원명부!B47) -> 
M54: 46 | O54: =IFBLANK(사원명부!B48) -> 
M55: 47 | O55: =IFBLANK(사원명부!B49) -> 
M56: 48 | O56: =IFBLANK(사원명부!B50) -> 
M57: 49 | O57: =IFBLANK(사원명부!B51) -> 
M58: 50 | O58: =IFBLANK(사원명부!B52) -> 
M59: 51 | O59: =IFBLANK(사원명부!B53) -> 
M60: 52 | O60: =IFBLANK(사원명부!B54) -> 
M61: 53 | O61: =IFBLANK(사원명부!B55) -> 
M62: 54 | O62: =IFBLANK(사원명부!B56) -> 
M63: 55 | O63: =IFBLANK(사원명부!B57) -> 
M64: 56 | O64: =IFBLANK(사원명부!B58) -> 
M65: 57 | O65: =IFBLANK(사원명부!B59) -> 
M66: 58 | O66: =IFBLANK(사원명부!B60) -> 
M67: 59 | O67: =IFBLANK(사원명부!B61) -> 
M68: 60 | O68: =IFBLANK(사원명부!B62) -> 
M69: 61 | O69: =IFBLANK(사원명부!B63) -> 
M70: 62 | O70: =IFBLANK(사원명부!B64) -> 
M71: 63 | O71: =IFBLANK(사원명부!B65) -> 
M72: 64 | O72: =IFBLANK(사원명부!B66) -> 
M73: 65 | O73: =IFBLANK(사원명부!B67) -> 
M74: 66 | O74: =IFBLANK(사원명부!B68) -> 
M75: 67 | O75: =IFBLANK(사원명부!B69) -> 
M76: 68 | O76: =IFBLANK(사원명부!B70) -> 
M77: 69 | O77: =IFBLANK(사원명부!B71) -> 
M78: 70 | O78: =IFBLANK(사원명부!B72) -> 
M79: 71 | O79: =IFBLANK(사원명부!B73) -> 
M80: 72 | O80: =IFBLANK(사원명부!B74) -> 
M81: 73 | O81: =IFBLANK(사원명부!B75) -> 
M82: 74 | O82: =IFBLANK(사원명부!B76) -> 
M83: 75 | O83: =IFBLANK(사원명부!B77) -> 
M84: 76 | O84: =IFBLANK(사원명부!B78) -> 
M85: 77 | O85: =IFBLANK(사원명부!B79) -> 
M86: 78 | O86: =IFBLANK(사원명부!B80) -> 
M87: 79 | O87: =IFBLANK(사원명부!B81) -> 
M88: 80 | O88: =IFBLANK(사원명부!B82) -> 
M89: 81 | O89: =IFBLANK(사원명부!B83) -> 
M90: 82 | O90: =IFBLANK(사원명부!B84) -> 
M91: 83 | O91: =IFBLANK(사원명부!B85) -> 
M92: 84 | O92: =IFBLANK(사원명부!B86) -> 
M93: 85 | O93: =IFBLANK(사원명부!B87) -> 
M94: 86 | O94: =IFBLANK(사원명부!B88) -> 
M95: 87 | O95: =IFBLANK(사원명부!B89) -> 
M96: 88 | O96: =IFBLANK(사원명부!B90) -> 
M97: 89 | O97: =IFBLANK(사원명부!B91) -> 
M98: 90 | O98: =IFBLANK(사원명부!B92) -> 
M99: 91 | O99: =IFBLANK(사원명부!B93) -> 
M100: 92 | O100: =IFBLANK(사원명부!B94) -> 
M101: 93 | O101: =IFBLANK(사원명부!B95) -> 
M102: 94 | O102: =IFBLANK(사원명부!B96) -> 
M103: 95 | O103: =IFBLANK(사원명부!B97) -> 
M104: 96 | O104: =IFBLANK(사원명부!B98) -> 
M105: 97 | O105: =IFBLANK(사원명부!B99) -> 
M106: 98 | O106: =IFBLANK(사원명부!B100) -> 
M107: 99 | O107: =IFBLANK(사원명부!B101) -> 
M108: 100 | O108: =IFBLANK(사원명부!B102) -> 

Sheet 계약변경
A1: 근로 계약서 변경 내역
D2: 이름 | E2: =IFBLANK(I5) -> 테스트2 | G2: 근로계약서를 해마다 갱신해도 되지만
A3: 연번 | B3: 기간 | C3: 변경사항 | D3: 근로자(서명) | E3: 사용자(인) | G3: 변경내역만 기록하여 근로자의 사인을 받아 원계약서에 첨부하여도 됩니다.
A4: 1 | B4: =$N$5+A4 -> 2021 | D4: =IFBLANK($E$2) -> 테스트2 | E4: =IFBLANK(요양기관기초정보!$C$6) -> 홍길동 | G4: 사원번호 | I4: 2 | N4: 최초계약연도/또는 갱신연도
B5: =$N$5+A4 -> 2021 | G5: 이 름 | I5: =IFERROR(IF($I$4="","",VLOOKUP(I4,사원명부!A2:B100,2,FALSE)),"없어요") -> 테스트2 | N5: 2020
A6: 2 | B6: =$N$5+A6 -> 2022 | D6: =IFBLANK($E$2) -> 테스트2 | E6: =IFBLANK(요양기관기초정보!$C$6) -> 홍길동
B7: =$N$5+A6 -> 2022
A8: 3 | B8: =$N$5+A8 -> 2023 | D8: =IFBLANK($E$2) -> 테스트2 | E8: =IFBLANK(요양기관기초정보!$C$6) -> 홍길동 | G8: 1 | I8: =IFERROR(IF(G8="","",VLOOKUP(G8,사원명부!$A$2:$B$100,2,FALSE)),"") -> 테스트1
B9: =$N$5+A8 -> 2023 | G9: 2 | I9: =IFERROR(IF(G9="","",VLOOKUP(G9,사원명부!$A$2:$B$100,2,FALSE)),"") -> 테스트2
A10: 4 | B10: =$N$5+A10 -> 2024 | D10: =IFBLANK($E$2) -> 테스트2 | E10: =IFBLANK(요양기관기초정보!$C$6) -> 홍길동 | G10: 3 | I10: =IFERROR(IF(G10="","",VLOOKUP(G10,사원명부!$A$2:$B$100,2,FALSE)),"") -> 
B11: =$N$5+A10 -> 2024 | G11: 4 | I11: =IFERROR(IF(G11="","",VLOOKUP(G11,사원명부!$A$2:$B$100,2,FALSE)),"") -> 
A12: 5 | B12: =$N$5+A12 -> 2025 | D12: =IFBLANK($E$2) -> 테스트2 | E12: =IFBLANK(요양기관기초정보!$C$6) -> 홍길동 | G12: 5 | I12: =IFERROR(IF(G12="","",VLOOKUP(G12,사원명부!$A$2:$B$100,2,FALSE)),"") -> 
B13: =$N$5+A12 -> 2025 | G13: 6 | I13: =IFERROR(IF(G13="","",VLOOKUP(G13,사원명부!$A$2:$B$100,2,FALSE)),"") -> 
A14: 6 | B14: =$N$5+A14 -> 2026 | D14: =IFBLANK($E$2) -> 테스트2 | E14: =IFBLANK(요양기관기초정보!$C$6) -> 홍길동 | G14: 7 | I14: =IFERROR(IF(G14="","",VLOOKUP(G14,사원명부!$A$2:$B$100,2,FALSE)),"") -> 
B15: =$N$5+A14 -> 2026 | G15: 8 | I15: =IFERROR(IF(G15="","",VLOOKUP(G15,사원명부!$A$2:$B$100,2,FALSE)),"") -> 
A16: 7 | B16: =$N$5+A16 -> 2027 | D16: =IFBLANK($E$2) -> 테스트2 | E16: =IFBLANK(요양기관기초정보!$C$6) -> 홍길동 | G16: 9 | I16: =IFERROR(IF(G16="","",VLOOKUP(G16,사원명부!$A$2:$B$100,2,FALSE)),"") -> 
B17: =$N$5+A16 -> 2027 | G17: 10 | I17: =IFERROR(IF(G17="","",VLOOKUP(G17,사원명부!$A$2:$B$100,2,FALSE)),"") -> 
A18: 8 | B18: =$N$5+A18 -> 2028 | D18: =IFBLANK($E$2) -> 테스트2 | E18: =IFBLANK(요양기관기초정보!$C$6) -> 홍길동 | G18: 11 | I18: =IFERROR(IF(G18="","",VLOOKUP(G18,사원명부!$A$2:$B$100,2,FALSE)),"") -> 
B19: =$N$5+A18 -> 2028 | G19: 12 | I19: =IFERROR(IF(G19="","",VLOOKUP(G19,사원명부!$A$2:$B$100,2,FALSE)),"") -> 
A20: 9 | B20: =$N$5+A20 -> 2029 | D20: =IFBLANK($E$2) -> 테스트2 | E20: =IFBLANK(요양기관기초정보!$C$6) -> 홍길동 | G20: 13 | I20: =IFERROR(IF(G20="","",VLOOKUP(G20,사원명부!$A$2:$B$100,2,FALSE)),"") -> 
B21: =$N$5+A20 -> 2029 | G21: 14 | I21: =IFERROR(IF(G21="","",VLOOKUP(G21,사원명부!$A$2:$B$100,2,FALSE)),"") -> 
A22: 10 | B22: =$N$5+A22 -> 2030 | D22: =IFBLANK($E$2) -> 테스트2 | E22: =IFBLANK(요양기관기초정보!$C$6) -> 홍길동 | G22: 15 | I22: =IFERROR(IF(G22="","",VLOOKUP(G22,사원명부!$A$2:$B$100,2,FALSE)),"") -> 
B23: =$N$5+A22 -> 2030 | G23: 16 | I23: =IFERROR(IF(G23="","",VLOOKUP(G23,사원명부!$A$2:$B$100,2,FALSE)),"") -> 
G24: 17 | I24: =IFERROR(IF(G24="","",VLOOKUP(G24,사원명부!$A$2:$B$100,2,FALSE)),"") -> 
G25: 18 | I25: =IFERROR(IF(G25="","",VLOOKUP(G25,사원명부!$A$2:$B$100,2,FALSE)),"") -> 
G26: 19 | I26: =IFERROR(IF(G26="","",VLOOKUP(G26,사원명부!$A$2:$B$100,2,FALSE)),"") -> 
G27: 20 | I27: =IFERROR(IF(G27="","",VLOOKUP(G27,사원명부!$A$2:$B$100,2,FALSE)),"") -> 
G28: 21 | I28: =IFERROR(IF(G28="","",VLOOKUP(G28,사원명부!$A$2:$B$100,2,FALSE)),"") -> 
G29: 22 | I29: =IFERROR(IF(G29="","",VLOOKUP(G29,사원명부!$A$2:$B$100,2,FALSE)),"") -> 
G30: 23 | I30: =IFERROR(IF(G30="","",VLOOKUP(G30,사원명부!$A$2:$B$100,2,FALSE)),"") -> 
G31: 24 | I31: =IFERROR(IF(G31="","",VLOOKUP(G31,사원명부!$A$2:$B$100,2,FALSE)),"") -> 
G32: 25 | I32: =IFERROR(IF(G32="","",VLOOKUP(G32,사원명부!$A$2:$B$100,2,FALSE)),"") -> 
G33: 26 | I33: =IFERROR(IF(G33="","",VLOOKUP(G33,사원명부!$A$2:$B$100,2,FALSE)),"") -> 
G34: 27 | I34: =IFERROR(IF(G34="","",VLOOKUP(G34,사원명부!$A$2:$B$100,2,FALSE)),"") -> 
G35: 28 | I35: =IFERROR(IF(G35="","",VLOOKUP(G35,사원명부!$A$2:$B$100,2,FALSE)),"") -> 
G36: 29 | I36: =IFERROR(IF(G36="","",VLOOKUP(G36,사원명부!$A$2:$B$100,2,FALSE)),"") -> 
G37: 30 | I37: =IFERROR(IF(G37="","",VLOOKUP(G37,사원명부!$A$2:$B$100,2,FALSE)),"") -> 
G38: 31 | I38: =IFERROR(IF(G38="","",VLOOKUP(G38,사원명부!$A$2:$B$100,2,FALSE)),"") -> 
G39: 32 | I39: =IFERROR(IF(G39="","",VLOOKUP(G39,사원명부!$A$2:$B$100,2,FALSE)),"") -> 
G40: 33 | I40: =IFERROR(IF(G40="","",VLOOKUP(G40,사원명부!$A$2:$B$100,2,FALSE)),"") -> 
G41: 34 | I41: =IFERROR(IF(G41="","",VLOOKUP(G41,사원명부!$A$2:$B$100,2,FALSE)),"") -> 
G42: 35 | I42: =IFERROR(IF(G42="","",VLOOKUP(G42,사원명부!$A$2:$B$100,2,FALSE)),"") -> 
G43: 36 | I43: =IFERROR(IF(G43="","",VLOOKUP(G43,사원명부!$A$2:$B$100,2,FALSE)),"") -> 
G44: 37 | I44: =IFERROR(IF(G44="","",VLOOKUP(G44,사원명부!$A$2:$B$100,2,FALSE)),"") -> 
G45: 38 | I45: =IFERROR(IF(G45="","",VLOOKUP(G45,사원명부!$A$2:$B$100,2,FALSE)),"") -> 
G46: 39 | I46: =IFERROR(IF(G46="","",VLOOKUP(G46,사원명부!$A$2:$B$100,2,FALSE)),"") -> 
G47: 40 | I47: =IFERROR(IF(G47="","",VLOOKUP(G47,사원명부!$A$2:$B$100,2,FALSE)),"") -> 
G48: 41 | I48: =IFERROR(IF(G48="","",VLOOKUP(G48,사원명부!$A$2:$B$100,2,FALSE)),"") -> 
G49: 42 | I49: =IFERROR(IF(G49="","",VLOOKUP(G49,사원명부!$A$2:$B$100,2,FALSE)),"") -> 
G50: 43 | I50: =IFERROR(IF(G50="","",VLOOKUP(G50,사원명부!$A$2:$B$100,2,FALSE)),"") -> 
G51: 44 | I51: =IFERROR(IF(G51="","",VLOOKUP(G51,사원명부!$A$2:$B$100,2,FALSE)),"") -> 
G52: 45 | I52: =IFERROR(IF(G52="","",VLOOKUP(G52,사원명부!$A$2:$B$100,2,FALSE)),"") -> 
G53: 46 | I53: =IFERROR(IF(G53="","",VLOOKUP(G53,사원명부!$A$2:$B$100,2,FALSE)),"") -> 
G54: 47 | I54: =IFERROR(IF(G54="","",VLOOKUP(G54,사원명부!$A$2:$B$100,2,FALSE)),"") -> 
G55: 48 | I55: =IFERROR(IF(G55="","",VLOOKUP(G55,사원명부!$A$2:$B$100,2,FALSE)),"") -> 
G56: 49 | I56: =IFERROR(IF(G56="","",VLOOKUP(G56,사원명부!$A$2:$B$100,2,FALSE)),"") -> 
G57: 50 | I57: =IFERROR(IF(G57="","",VLOOKUP(G57,사원명부!$A$2:$B$100,2,FALSE)),"") -> 
G58: 51 | I58: =IFERROR(IF(G58="","",VLOOKUP(G58,사원명부!$A$2:$B$100,2,FALSE)),"") -> 
G59: 52 | I59: =IFERROR(IF(G59="","",VLOOKUP(G59,사원명부!$A$2:$B$100,2,FALSE)),"") -> 
G60: 53 | I60: =IFERROR(IF(G60="","",VLOOKUP(G60,사원명부!$A$2:$B$100,2,FALSE)),"") -> 
G61: 54 | I61: =IFERROR(IF(G61="","",VLOOKUP(G61,사원명부!$A$2:$B$100,2,FALSE)),"") -> 
G62: 55 | I62: =IFERROR(IF(G62="","",VLOOKUP(G62,사원명부!$A$2:$B$100,2,FALSE)),"") -> 
G63: 56 | I63: =IFERROR(IF(G63="","",VLOOKUP(G63,사원명부!$A$2:$B$100,2,FALSE)),"") -> 
G64: 57 | I64: =IFERROR(IF(G64="","",VLOOKUP(G64,사원명부!$A$2:$B$100,2,FALSE)),"") -> 
G65: 58 | I65: =IFERROR(IF(G65="","",VLOOKUP(G65,사원명부!$A$2:$B$100,2,FALSE)),"") -> 
G66: 59 | I66: =IFERROR(IF(G66="","",VLOOKUP(G66,사원명부!$A$2:$B$100,2,FALSE)),"") -> 
G67: 60 | I67: =IFERROR(IF(G67="","",VLOOKUP(G67,사원명부!$A$2:$B$100,2,FALSE)),"") -> 
G68: 61 | I68: =IFERROR(IF(G68="","",VLOOKUP(G68,사원명부!$A$2:$B$100,2,FALSE)),"") -> 
G69: 62 | I69: =IFERROR(IF(G69="","",VLOOKUP(G69,사원명부!$A$2:$B$100,2,FALSE)),"") -> 
G70: 63 | I70: =IFERROR(IF(G70="","",VLOOKUP(G70,사원명부!$A$2:$B$100,2,FALSE)),"") -> 
G71: 64 | I71: =IFERROR(IF(G71="","",VLOOKUP(G71,사원명부!$A$2:$B$100,2,FALSE)),"") -> 
G72: 65 | I72: =IFERROR(IF(G72="","",VLOOKUP(G72,사원명부!$A$2:$B$100,2,FALSE)),"") -> 
G73: 66 | I73: =IFERROR(IF(G73="","",VLOOKUP(G73,사원명부!$A$2:$B$100,2,FALSE)),"") -> 
G74: 67 | I74: =IFERROR(IF(G74="","",VLOOKUP(G74,사원명부!$A$2:$B$100,2,FALSE)),"") -> 
G75: 68 | I75: =IFERROR(IF(G75="","",VLOOKUP(G75,사원명부!$A$2:$B$100,2,FALSE)),"") -> 

Sheet 인사
A2: 출 석 통 지 서
A4: 인적사항 | B4: ① 성명 | C4: 한글 | E4: =IF(P7="없어요","",VLOOKUP(P6,사원명부!$A$2:$AB$150,2,FALSE)) -> 테스트2 | G4: ② 소 속 | I4: =IF(P7="없어요","",VLOOKUP(P6,사원명부!$A$2:$AB$150,8,FALSE)) -> 조제실 | L4: 출석사유 | M4: 3시간 지각 사유 소명 | Q4: 장소 | T4: 3층 휴게실
C5: 한자 | E5: =IF(P7="없어요","",IF(VLOOKUP(P6,사원명부!$A$2:$AB$150,3)="","",VLOOKUP(P6,사원명부!$A$2:$AB$150,3))) ->  | G5: ③ 직위(급) | I5: =IF(P7="없어요","",VLOOKUP(P6,사원명부!$A$2:$AB$150,9,FALSE)) -> 실장 | L5: 출석일시 | M5: 2020 | N5: 년 | O5: 3 | P5: 월 | Q5: 5 | R5: 일 | S5: 10 | T5: 시 | U5: 30 | V5: 분
B6: ④ 주소 | C6: =IF(P7="없어요","",VLOOKUP(P6,사원명부!$A$2:$AB$150,7,FALSE)) -> 서울시 서대문구연세로 41 | N6: 사원번호 | P6: 2
A7: ⑤ 출석이유 | C7: =IFBLANK(M4) -> 3시간 지각 사유 소명 | N7: 이 름 | P7: =IFERROR(IF(P6="","",VLOOKUP(P6,사원명부!A2:B100,2,FALSE)),"없어요") -> 테스트2
A8: ⑥ 출석일시 | D8: =M5&"년" -> 2020년 | E8: =O5&"월" -> 3월 | F8: =Q5&"일" -> 5일 | G8: =S5&"시" -> 10시 | H8: =U5&"분" -> 30분 | N8: 1 | P8: =IFERROR(IF(N8="","",VLOOKUP(N8,사원명부!$A$2:$B$100,2,FALSE)),"") -> 테스트1
A9: ⑦ 출석장소 | C9: =IFBLANK(T4) -> 3층 휴게실 | N9: 2 | P9: =IFERROR(IF(N9="","",VLOOKUP(N9,사원명부!$A$2:$B$100,2,FALSE)),"") -> 테스트2
A10: 유의사항 | C10: 1. 진술을 위한 출석을 원하지 아니할 때에는 아래의 진술권 포기서를 즉시 제출할 것. | N10: 3 | P10: =IFERROR(IF(N10="","",VLOOKUP(N10,사원명부!$A$2:$B$100,2,FALSE)),"") -> 
C11: 2. 사정에 의하여 서면진술을 하고자 할 때에는 징계위원회 개최일 전일까지 도착하도록 진술서를 제출할 것. | N11: 4 | P11: =IFERROR(IF(N11="","",VLOOKUP(N11,사원명부!$A$2:$B$100,2,FALSE)),"") -> 
C12: 3. 정당한 사유서를 제출하지 아니하고 지정된 일시에 출석하지 아니하고, 서면진술서를 제출하지 아니하는 경우에는 진술할 의사가 없는 것으로 인정․처리 한다. | N12: 5 | P12: =IFERROR(IF(N12="","",VLOOKUP(N12,사원명부!$A$2:$B$100,2,FALSE)),"") -> 
A13: 제61조의 규정에 의하여 위와 같이 귀하의 출석을 통지합니다. | N13: 6 | P13: =IFERROR(IF(N13="","",VLOOKUP(N13,사원명부!$A$2:$B$100,2,FALSE)),"") -> 
A14: =TODAY() -> 2021-05-31 | N14: 7 | P14: =IFERROR(IF(N14="","",VLOOKUP(N14,사원명부!$A$2:$B$100,2,FALSE)),"") -> 
A15: =요양기관기초정보!D1&" 인사위원회위원장 (직인)" -> 팜오피스약국 인사위원회위원장 (직인) | N15: 8 | P15: =IFERROR(IF(N15="","",VLOOKUP(N15,사원명부!$A$2:$B$100,2,FALSE)),"") -> 
A16: =E4&" 귀 하" -> 테스트2 귀 하 | N16: 9 | P16: =IFERROR(IF(N16="","",VLOOKUP(N16,사원명부!$A$2:$B$100,2,FALSE)),"") -> 
A17: -----------------------------------------------절 취 선----------------------------------------------- | N17: 10 | P17: =IFERROR(IF(N17="","",VLOOKUP(N17,사원명부!$A$2:$B$100,2,FALSE)),"") -> 
A18: 진 술 권 포 기 서 | N18: 11 | P18: =IFERROR(IF(N18="","",VLOOKUP(N18,사원명부!$A$2:$B$100,2,FALSE)),"") -> 
N19: 12 | P19: =IFERROR(IF(N19="","",VLOOKUP(N19,사원명부!$A$2:$B$100,2,FALSE)),"") -> 
A20: 인적사항 | B20: ① 성명 | C20: 한글 | E20: =IFBLANK(E4) -> 테스트2 | G20: ② 소 속 | I20: =IFBLANK(I4) -> 조제실 | N20: 13 | P20: =IFERROR(IF(N20="","",VLOOKUP(N20,사원명부!$A$2:$B$100,2,FALSE)),"") -> 
C21: 한자 | E21: =IFBLANK(E5) ->  | G21: ③ 직위(급) | I21: =IFBLANK(I5) -> 실장 | N21: 14 | P21: =IFERROR(IF(N21="","",VLOOKUP(N21,사원명부!$A$2:$B$100,2,FALSE)),"") -> 
B22: ④ 주소 | C22: =IFBLANK(C6) -> 서울시 서대문구연세로 41 | N22: 15 | P22: =IFERROR(IF(N22="","",VLOOKUP(N22,사원명부!$A$2:$B$100,2,FALSE)),"") -> 
A23: 본인은 귀 인사위원회에 출석하여 진술하는 것을 포기합니다. | N23: 16 | P23: =IFERROR(IF(N23="","",VLOOKUP(N23,사원명부!$A$2:$B$100,2,FALSE)),"") -> 
N24: 17 | P24: =IFERROR(IF(N24="","",VLOOKUP(N24,사원명부!$A$2:$B$100,2,FALSE)),"") -> 
N25: 18 | P25: =IFERROR(IF(N25="","",VLOOKUP(N25,사원명부!$A$2:$B$100,2,FALSE)),"") -> 
G26: 년 월 일 | N26: 19 | P26: =IFERROR(IF(N26="","",VLOOKUP(N26,사원명부!$A$2:$B$100,2,FALSE)),"") -> 
F27: ="성 명 "&E20 -> 성 명 테스트2 | I27: (서명 또는 날인) | N27: 20 | P27: =IFERROR(IF(N27="","",VLOOKUP(N27,사원명부!$A$2:$B$100,2,FALSE)),"") -> 
A28: =요양기관기초정보!D1&" 인사위원회위원장 귀하" -> 팜오피스약국 인사위원회위원장 귀하 | N28: 21 | P28: =IFERROR(IF(N28="","",VLOOKUP(N28,사원명부!$A$2:$B$100,2,FALSE)),"") -> 
N29: 22 | P29: =IFERROR(IF(N29="","",VLOOKUP(N29,사원명부!$A$2:$B$100,2,FALSE)),"") -> 
N30: 23 | P30: =IFERROR(IF(N30="","",VLOOKUP(N30,사원명부!$A$2:$B$100,2,FALSE)),"") -> 
A31: 서 면 진 술 서 | N31: 24 | P31: =IFERROR(IF(N31="","",VLOOKUP(N31,사원명부!$A$2:$B$100,2,FALSE)),"") -> 
N32: 25 | P32: =IFERROR(IF(N32="","",VLOOKUP(N32,사원명부!$A$2:$B$100,2,FALSE)),"") -> 
A33: 소 속 | B33: =IFBLANK(I20) -> 조제실 | F33: 직위(급) | G33: =IFBLANK(I21) -> 실장 | N33: 26 | P33: =IFERROR(IF(N33="","",VLOOKUP(N33,사원명부!$A$2:$B$100,2,FALSE)),"") -> 
A34: 성 명 | B34: =IFBLANK(E20) -> 테스트2 | F34: 제출기일 | G34: =A14+1 -> 2021-06-01 | N34: 27 | P34: =IFERROR(IF(N34="","",VLOOKUP(N34,사원명부!$A$2:$B$100,2,FALSE)),"") -> 
A35: 사 건 명 | B35: =IFBLANK(C7) -> 3시간 지각 사유 소명 | N35: 28 | P35: =IFERROR(IF(N35="","",VLOOKUP(N35,사원명부!$A$2:$B$100,2,FALSE)),"") -> 
A36: 불참사유 | N36: 29 | P36: =IFERROR(IF(N36="","",VLOOKUP(N36,사원명부!$A$2:$B$100,2,FALSE)),"") -> 
A37: 진 술 내 용 | N37: 30 | P37: =IFERROR(IF(N37="","",VLOOKUP(N37,사원명부!$A$2:$B$100,2,FALSE)),"") -> 
N38: 31 | P38: =IFERROR(IF(N38="","",VLOOKUP(N38,사원명부!$A$2:$B$100,2,FALSE)),"") -> 
N39: 32 | P39: =IFERROR(IF(N39="","",VLOOKUP(N39,사원명부!$A$2:$B$100,2,FALSE)),"") -> 
N40: 33 | P40: =IFERROR(IF(N40="","",VLOOKUP(N40,사원명부!$A$2:$B$100,2,FALSE)),"") -> 
N41: 34 | P41: =IFERROR(IF(N41="","",VLOOKUP(N41,사원명부!$A$2:$B$100,2,FALSE)),"") -> 
N42: 35 | P42: =IFERROR(IF(N42="","",VLOOKUP(N42,사원명부!$A$2:$B$100,2,FALSE)),"") -> 
N43: 36 | P43: =IFERROR(IF(N43="","",VLOOKUP(N43,사원명부!$A$2:$B$100,2,FALSE)),"") -> 
N44: 37 | P44: =IFERROR(IF(N44="","",VLOOKUP(N44,사원명부!$A$2:$B$100,2,FALSE)),"") -> 
A45: 제61조의 규정에 의거 위와 같이 서면으로 진술하오며 만약 위 진술내용이 사실과 상이한 경우에는 여하한 처벌도 감수하겠습니다. | N45: 38 | P45: =IFERROR(IF(N45="","",VLOOKUP(N45,사원명부!$A$2:$B$100,2,FALSE)),"") -> 
F46: 년 월 일 | N46: 39 | P46: =IFERROR(IF(N46="","",VLOOKUP(N46,사원명부!$A$2:$B$100,2,FALSE)),"") -> 
E47: ="성 명 "&D40 -> 성 명 | H47: (서명 또는 날인) | N47: 40 | P47: =IFERROR(IF(N47="","",VLOOKUP(N47,사원명부!$A$2:$B$100,2,FALSE)),"") -> 
A48: =요양기관기초정보!D1&" 인사위원회위원장 귀하" -> 팜오피스약국 인사위원회위원장 귀하 | N48: 41 | P48: =IFERROR(IF(N48="","",VLOOKUP(N48,사원명부!$A$2:$B$100,2,FALSE)),"") -> 
N49: 42 | P49: =IFERROR(IF(N49="","",VLOOKUP(N49,사원명부!$A$2:$B$100,2,FALSE)),"") -> 
N50: 43 | P50: =IFERROR(IF(N50="","",VLOOKUP(N50,사원명부!$A$2:$B$100,2,FALSE)),"") -> 
A51: 징 계 의 결 서 | N51: 44 | P51: =IFERROR(IF(N51="","",VLOOKUP(N51,사원명부!$A$2:$B$100,2,FALSE)),"") -> 
N52: 45 | P52: =IFERROR(IF(N52="","",VLOOKUP(N52,사원명부!$A$2:$B$100,2,FALSE)),"") -> 
A53: 인적사항 | B53: 소 속 | E53: 직 급 | H53: 성 명 | N53: 46 | P53: =IFERROR(IF(N53="","",VLOOKUP(N53,사원명부!$A$2:$B$100,2,FALSE)),"") -> 
B54: =IFBLANK(B33) -> 조제실 | E54: =IFBLANK(G33) -> 실장 | H54: =IFBLANK(B34) -> 테스트2 | N54: 47 | P54: =IFERROR(IF(N54="","",VLOOKUP(N54,사원명부!$A$2:$B$100,2,FALSE)),"") -> 
A55: 의결주문 | N55: 48 | P55: =IFERROR(IF(N55="","",VLOOKUP(N55,사원명부!$A$2:$B$100,2,FALSE)),"") -> 
A56: 이 유 | N56: 49 | P56: =IFERROR(IF(N56="","",VLOOKUP(N56,사원명부!$A$2:$B$100,2,FALSE)),"") -> 
A57: =D8&E8&F8 -> 2020년3월5일 | N57: 50 | P57: =IFERROR(IF(N57="","",VLOOKUP(N57,사원명부!$A$2:$B$100,2,FALSE)),"") -> 
A58: =요양기관기초정보!D1&" 인사위원회" -> 팜오피스약국 인사위원회 | N58: 51 | P58: =IFERROR(IF(N58="","",VLOOKUP(N58,사원명부!$A$2:$B$100,2,FALSE)),"") -> 
D59: 위 원 장 | E59: =IFBLANK(요양기관기초정보!C6) -> 홍길동 | G59: 서명 또는 날인 | N59: 52 | P59: =IFERROR(IF(N59="","",VLOOKUP(N59,사원명부!$A$2:$B$100,2,FALSE)),"") -> 
D60: 위 원 | G60: 서명 또는 날인 | N60: 53 | P60: =IFERROR(IF(N60="","",VLOOKUP(N60,사원명부!$A$2:$B$100,2,FALSE)),"") -> 
D61: 위 원 | G61: 서명 또는 날인 | N61: 54 | P61: =IFERROR(IF(N61="","",VLOOKUP(N61,사원명부!$A$2:$B$100,2,FALSE)),"") -> 
N62: 55 | P62: =IFERROR(IF(N62="","",VLOOKUP(N62,사원명부!$A$2:$B$100,2,FALSE)),"") -> 
N63: 56 | P63: =IFERROR(IF(N63="","",VLOOKUP(N63,사원명부!$A$2:$B$100,2,FALSE)),"") -> 
N64: 57 | P64: =IFERROR(IF(N64="","",VLOOKUP(N64,사원명부!$A$2:$B$100,2,FALSE)),"") -> 
N65: 58 | P65: =IFERROR(IF(N65="","",VLOOKUP(N65,사원명부!$A$2:$B$100,2,FALSE)),"") -> 
N66: 59 | P66: =IFERROR(IF(N66="","",VLOOKUP(N66,사원명부!$A$2:$B$100,2,FALSE)),"") -> 
A67: ※ 징계이유에는 징계의 원인이 된 사실, 증거의 판단과 관계규정을 기재한다. | N67: 60 | P67: =IFERROR(IF(N67="","",VLOOKUP(N67,사원명부!$A$2:$B$100,2,FALSE)),"") -> 
N68: 61 | P68: =IFERROR(IF(N68="","",VLOOKUP(N68,사원명부!$A$2:$B$100,2,FALSE)),"") -> 
N69: 62 | P69: =IFERROR(IF(N69="","",VLOOKUP(N69,사원명부!$A$2:$B$100,2,FALSE)),"") -> 
A70: 징 계 처 분 사 유 설 명 서 | N70: 63 | P70: =IFERROR(IF(N70="","",VLOOKUP(N70,사원명부!$A$2:$B$100,2,FALSE)),"") -> 
N71: 64 | P71: =IFERROR(IF(N71="","",VLOOKUP(N71,사원명부!$A$2:$B$100,2,FALSE)),"") -> 
A72: 인적사항 | B72: 소 속 | E72: 직 급 | H72: 성 명 | N72: 65 | P72: =IFERROR(IF(N72="","",VLOOKUP(N72,사원명부!$A$2:$B$100,2,FALSE)),"") -> 
B73: =IFBLANK(B54) -> 조제실 | E73: =IFBLANK(E54) -> 실장 | H73: =IFBLANK(H54) -> 테스트2 | N73: 66 | P73: =IFERROR(IF(N73="","",VLOOKUP(N73,사원명부!$A$2:$B$100,2,FALSE)),"") -> 
A74: 의결주문 | N74: 67 | P74: =IFERROR(IF(N74="","",VLOOKUP(N74,사원명부!$A$2:$B$100,2,FALSE)),"") -> 
A75: 이 유 | B75: 별첨 징계의결서 사본과 같음 | N75: 68 | P75: =IFERROR(IF(N75="","",VLOOKUP(N75,사원명부!$A$2:$B$100,2,FALSE)),"") -> 
N76: 69 | P76: =IFERROR(IF(N76="","",VLOOKUP(N76,사원명부!$A$2:$B$100,2,FALSE)),"") -> 
A77: 위와 같이 처분하였음을 통지합니다. | P77: =IFERROR(IF(N77="","",VLOOKUP(N77,사원명부!$A$2:$B$100,2,FALSE)),"") -> 
P78: =IFERROR(IF(N78="","",VLOOKUP(N78,사원명부!$A$2:$B$100,2,FALSE)),"") -> 
P79: =IFERROR(IF(N79="","",VLOOKUP(N79,사원명부!$A$2:$B$100,2,FALSE)),"") -> 
F80: =A57 -> 2020년3월5일 | P80: =IFERROR(IF(N80="","",VLOOKUP(N80,사원명부!$A$2:$B$100,2,FALSE)),"") -> 
P81: =IFERROR(IF(N81="","",VLOOKUP(N81,사원명부!$A$2:$B$100,2,FALSE)),"") -> 
D82: =요양기관기초정보!D1&" 인사위원회위원장 (직인)" -> 팜오피스약국 인사위원회위원장 (직인) | P82: =IFERROR(IF(N82="","",VLOOKUP(N82,사원명부!$A$2:$B$100,2,FALSE)),"") -> 
P83: =IFERROR(IF(N83="","",VLOOKUP(N83,사원명부!$A$2:$B$100,2,FALSE)),"") -> 
G84: =IFBLANK(H73) -> 테스트2 | I84: 귀 하 | P84: =IFERROR(IF(N84="","",VLOOKUP(N84,사원명부!$A$2:$B$100,2,FALSE)),"") -> 
P85: =IFERROR(IF(N85="","",VLOOKUP(N85,사원명부!$A$2:$B$100,2,FALSE)),"") -> 
A86: 참 고：이 처분에 대한 불복이 있을 때에는 제63조에 의하여 이 설명서를 받은 날로부터 7일 이내에 인사위원회에 재심을 청구할 수 있습니다. | P86: =IFERROR(IF(N86="","",VLOOKUP(N86,사원명부!$A$2:$B$100,2,FALSE)),"") -> 
P87: =IFERROR(IF(N87="","",VLOOKUP(N87,사원명부!$A$2:$B$100,2,FALSE)),"") -> 
P88: =IFERROR(IF(N88="","",VLOOKUP(N88,사원명부!$A$2:$B$100,2,FALSE)),"") -> 
P89: =IFERROR(IF(N89="","",VLOOKUP(N89,사원명부!$A$2:$B$100,2,FALSE)),"") -> 
P90: =IFERROR(IF(N90="","",VLOOKUP(N90,사원명부!$A$2:$B$100,2,FALSE)),"") -> 
P91: =IFERROR(IF(N91="","",VLOOKUP(N91,사원명부!$A$2:$B$100,2,FALSE)),"") -> 
P92: =IFERROR(IF(N92="","",VLOOKUP(N92,사원명부!$A$2:$B$100,2,FALSE)),"") -> 
P93: =IFERROR(IF(N93="","",VLOOKUP(N93,사원명부!$A$2:$B$100,2,FALSE)),"") -> 
P94: =IFERROR(IF(N94="","",VLOOKUP(N94,사원명부!$A$2:$B$100,2,FALSE)),"") -> 
P95: =IFERROR(IF(N95="","",VLOOKUP(N95,사원명부!$A$2:$B$100,2,FALSE)),"") -> 
P96: =IFERROR(IF(N96="","",VLOOKUP(N96,사원명부!$A$2:$B$100,2,FALSE)),"") -> 
P97: =IFERROR(IF(N97="","",VLOOKUP(N97,사원명부!$A$2:$B$100,2,FALSE)),"") -> 
P98: =IFERROR(IF(N98="","",VLOOKUP(N98,사원명부!$A$2:$B$100,2,FALSE)),"") -> 
P99: =IFERROR(IF(N99="","",VLOOKUP(N99,사원명부!$A$2:$B$100,2,FALSE)),"") -> 
P100: =IFERROR(IF(N100="","",VLOOKUP(N100,사원명부!$A$2:$B$100,2,FALSE)),"") -> 
P101: =IFERROR(IF(N101="","",VLOOKUP(N101,사원명부!$A$2:$B$100,2,FALSE)),"") -> 
P102: =IFERROR(IF(N102="","",VLOOKUP(N102,사원명부!$A$2:$B$100,2,FALSE)),"") -> 
P103: =IFERROR(IF(N103="","",VLOOKUP(N103,사원명부!$A$2:$B$100,2,FALSE)),"") -> 
P104: =IFERROR(IF(N104="","",VLOOKUP(N104,사원명부!$A$2:$B$100,2,FALSE)),"") -> 
P105: =IFERROR(IF(N105="","",VLOOKUP(N105,사원명부!$A$2:$B$100,2,FALSE)),"") -> 
P106: =IFERROR(IF(N106="","",VLOOKUP(N106,사원명부!$A$2:$B$100,2,FALSE)),"") -> 
P107: =IFERROR(IF(N107="","",VLOOKUP(N107,사원명부!$A$2:$B$100,2,FALSE)),"") -> 
P108: =IFERROR(IF(N108="","",VLOOKUP(N108,사원명부!$A$2:$B$100,2,FALSE)),"") -> 
P109: =IFERROR(IF(N109="","",VLOOKUP(N109,사원명부!$A$2:$B$100,2,FALSE)),"") -> 
P110: =IFERROR(IF(N110="","",VLOOKUP(N110,사원명부!$A$2:$B$100,2,FALSE)),"") -> 
P111: =IFERROR(IF(N111="","",VLOOKUP(N111,사원명부!$A$2:$B$100,2,FALSE)),"") -> 
P112: =IFERROR(IF(N112="","",VLOOKUP(N112,사원명부!$A$2:$B$100,2,FALSE)),"") -> 
P113: =IFERROR(IF(N113="","",VLOOKUP(N113,사원명부!$A$2:$B$100,2,FALSE)),"") -> 
P114: =IFERROR(IF(N114="","",VLOOKUP(N114,사원명부!$A$2:$B$100,2,FALSE)),"") -> 
P115: =IFERROR(IF(N115="","",VLOOKUP(N115,사원명부!$A$2:$B$100,2,FALSE)),"") -> 
P116: =IFERROR(IF(N116="","",VLOOKUP(N116,사원명부!$A$2:$B$100,2,FALSE)),"") -> 
P117: =IFERROR(IF(N117="","",VLOOKUP(N117,사원명부!$A$2:$B$100,2,FALSE)),"") -> 
P118: =IFERROR(IF(N118="","",VLOOKUP(N118,사원명부!$A$2:$B$100,2,FALSE)),"") -> 
P119: =IFERROR(IF(N119="","",VLOOKUP(N119,사원명부!$A$2:$B$100,2,FALSE)),"") -> 
P120: =IFERROR(IF(N120="","",VLOOKUP(N120,사원명부!$A$2:$B$100,2,FALSE)),"") -> 
P121: =IFERROR(IF(N121="","",VLOOKUP(N121,사원명부!$A$2:$B$100,2,FALSE)),"") -> 
P122: =IFERROR(IF(N122="","",VLOOKUP(N122,사원명부!$A$2:$B$100,2,FALSE)),"") -> 
P123: =IFERROR(IF(N123="","",VLOOKUP(N123,사원명부!$A$2:$B$100,2,FALSE)),"") -> 
P124: =IFERROR(IF(N124="","",VLOOKUP(N124,사원명부!$A$2:$B$100,2,FALSE)),"") -> 
P125: =IFERROR(IF(N125="","",VLOOKUP(N125,사원명부!$A$2:$B$100,2,FALSE)),"") -> 
P126: =IFERROR(IF(N126="","",VLOOKUP(N126,사원명부!$A$2:$B$100,2,FALSE)),"") -> 
P127: =IFERROR(IF(N127="","",VLOOKUP(N127,사원명부!$A$2:$B$100,2,FALSE)),"") -> 
P128: =IFERROR(IF(N128="","",VLOOKUP(N128,사원명부!$A$2:$B$100,2,FALSE)),"") -> 
P129: =IFERROR(IF(N129="","",VLOOKUP(N129,사원명부!$A$2:$B$100,2,FALSE)),"") -> 
P130: =IFERROR(IF(N130="","",VLOOKUP(N130,사원명부!$A$2:$B$100,2,FALSE)),"") -> 
P131: =IFERROR(IF(N131="","",VLOOKUP(N131,사원명부!$A$2:$B$100,2,FALSE)),"") -> 
P132: =IFERROR(IF(N132="","",VLOOKUP(N132,사원명부!$A$2:$B$100,2,FALSE)),"") -> 
P133: =IFERROR(IF(N133="","",VLOOKUP(N133,사원명부!$A$2:$B$100,2,FALSE)),"") -> 
P134: =IFERROR(IF(N134="","",VLOOKUP(N134,사원명부!$A$2:$B$100,2,FALSE)),"") -> 
P135: =IFERROR(IF(N135="","",VLOOKUP(N135,사원명부!$A$2:$B$100,2,FALSE)),"") -> 
P136: =IFERROR(IF(N136="","",VLOOKUP(N136,사원명부!$A$2:$B$100,2,FALSE)),"") -> 
P137: =IFERROR(IF(N137="","",VLOOKUP(N137,사원명부!$A$2:$B$100,2,FALSE)),"") -> 
P138: =IFERROR(IF(N138="","",VLOOKUP(N138,사원명부!$A$2:$B$100,2,FALSE)),"") -> 
P139: =IFERROR(IF(N139="","",VLOOKUP(N139,사원명부!$A$2:$B$100,2,FALSE)),"") -> 
P140: =IFERROR(IF(N140="","",VLOOKUP(N140,사원명부!$A$2:$B$100,2,FALSE)),"") -> 
P141: =IFERROR(IF(N141="","",VLOOKUP(N141,사원명부!$A$2:$B$100,2,FALSE)),"") -> 
P142: =IFERROR(IF(N142="","",VLOOKUP(N142,사원명부!$A$2:$B$100,2,FALSE)),"") -> 
P143: =IFERROR(IF(N143="","",VLOOKUP(N143,사원명부!$A$2:$B$100,2,FALSE)),"") -> 
P144: =IFERROR(IF(N144="","",VLOOKUP(N144,사원명부!$A$2:$B$100,2,FALSE)),"") -> 
P145: =IFERROR(IF(N145="","",VLOOKUP(N145,사원명부!$A$2:$B$100,2,FALSE)),"") -> 
P146: =IFERROR(IF(N146="","",VLOOKUP(N146,사원명부!$A$2:$B$100,2,FALSE)),"") -> 
P147: =IFERROR(IF(N147="","",VLOOKUP(N147,사원명부!$A$2:$B$100,2,FALSE)),"") -> 
P148: =IFERROR(IF(N148="","",VLOOKUP(N148,사원명부!$A$2:$B$100,2,FALSE)),"") -> 
P149: =IFERROR(IF(N149="","",VLOOKUP(N149,사원명부!$A$2:$B$100,2,FALSE)),"") -> 
P150: =IFERROR(IF(N150="","",VLOOKUP(N150,사원명부!$A$2:$B$100,2,FALSE)),"") -> 
P151: =IFERROR(IF(N151="","",VLOOKUP(N151,사원명부!$A$2:$B$100,2,FALSE)),"") -> 
P152: =IFERROR(IF(N152="","",VLOOKUP(N152,사원명부!$A$2:$B$100,2,FALSE)),"") -> 
P153: =IFERROR(IF(N153="","",VLOOKUP(N153,사원명부!$A$2:$B$100,2,FALSE)),"") -> 
P154: =IFERROR(IF(N154="","",VLOOKUP(N154,사원명부!$A$2:$B$100,2,FALSE)),"") -> 
P155: =IFERROR(IF(N155="","",VLOOKUP(N155,사원명부!$A$2:$B$100,2,FALSE)),"") -> 
P156: =IFERROR(IF(N156="","",VLOOKUP(N156,사원명부!$A$2:$B$100,2,FALSE)),"") -> 
P157: =IFERROR(IF(N157="","",VLOOKUP(N157,사원명부!$A$2:$B$100,2,FALSE)),"") -> 
P158: =IFERROR(IF(N158="","",VLOOKUP(N158,사원명부!$A$2:$B$100,2,FALSE)),"") -> 
P159: =IFERROR(IF(N159="","",VLOOKUP(N159,사원명부!$A$2:$B$100,2,FALSE)),"") -> 
P160: =IFERROR(IF(N160="","",VLOOKUP(N160,사원명부!$A$2:$B$100,2,FALSE)),"") -> 
P161: =IFERROR(IF(N161="","",VLOOKUP(N161,사원명부!$A$2:$B$100,2,FALSE)),"") -> 
P162: =IFERROR(IF(N162="","",VLOOKUP(N162,사원명부!$A$2:$B$100,2,FALSE)),"") -> 
P163: =IFERROR(IF(N163="","",VLOOKUP(N163,사원명부!$A$2:$B$100,2,FALSE)),"") -> 
P164: =IFERROR(IF(N164="","",VLOOKUP(N164,사원명부!$A$2:$B$100,2,FALSE)),"") -> 
P165: =IFERROR(IF(N165="","",VLOOKUP(N165,사원명부!$A$2:$B$100,2,FALSE)),"") -> 
P166: =IFERROR(IF(N166="","",VLOOKUP(N166,사원명부!$A$2:$B$100,2,FALSE)),"") -> 
P167: =IFERROR(IF(N167="","",VLOOKUP(N167,사원명부!$A$2:$B$100,2,FALSE)),"") -> 
P168: =IFERROR(IF(N168="","",VLOOKUP(N168,사원명부!$A$2:$B$100,2,FALSE)),"") -> 
P169: =IFERROR(IF(N169="","",VLOOKUP(N169,사원명부!$A$2:$B$100,2,FALSE)),"") -> 
P170: =IFERROR(IF(N170="","",VLOOKUP(N170,사원명부!$A$2:$B$100,2,FALSE)),"") -> 
P171: =IFERROR(IF(N171="","",VLOOKUP(N171,사원명부!$A$2:$B$100,2,FALSE)),"") -> 
P172: =IFERROR(IF(N172="","",VLOOKUP(N172,사원명부!$A$2:$B$100,2,FALSE)),"") -> 
P173: =IFERROR(IF(N173="","",VLOOKUP(N173,사원명부!$A$2:$B$100,2,FALSE)),"") -> 
P174: =IFERROR(IF(N174="","",VLOOKUP(N174,사원명부!$A$2:$B$100,2,FALSE)),"") -> 
P175: =IFERROR(IF(N175="","",VLOOKUP(N175,사원명부!$A$2:$B$100,2,FALSE)),"") -> 
P176: =IFERROR(IF(N176="","",VLOOKUP(N176,사원명부!$A$2:$B$100,2,FALSE)),"") -> 
P177: =IFERROR(IF(N177="","",VLOOKUP(N177,사원명부!$A$2:$B$100,2,FALSE)),"") -> 
P178: =IFERROR(IF(N178="","",VLOOKUP(N178,사원명부!$A$2:$B$100,2,FALSE)),"") -> 
P179: =IFERROR(IF(N179="","",VLOOKUP(N179,사원명부!$A$2:$B$100,2,FALSE)),"") -> 
P180: =IFERROR(IF(N180="","",VLOOKUP(N180,사원명부!$A$2:$B$100,2,FALSE)),"") -> 
P181: =IFERROR(IF(N181="","",VLOOKUP(N181,사원명부!$A$2:$B$100,2,FALSE)),"") -> 
P182: =IFERROR(IF(N182="","",VLOOKUP(N182,사원명부!$A$2:$B$100,2,FALSE)),"") -> 
P183: =IFERROR(IF(N183="","",VLOOKUP(N183,사원명부!$A$2:$B$100,2,FALSE)),"") -> 
P184: =IFERROR(IF(N184="","",VLOOKUP(N184,사원명부!$A$2:$B$100,2,FALSE)),"") -> 
P185: =IFERROR(IF(N185="","",VLOOKUP(N185,사원명부!$A$2:$B$100,2,FALSE)),"") -> 
P186: =IFERROR(IF(N186="","",VLOOKUP(N186,사원명부!$A$2:$B$100,2,FALSE)),"") -> 
P187: =IFERROR(IF(N187="","",VLOOKUP(N187,사원명부!$A$2:$B$100,2,FALSE)),"") -> 
P188: =IFERROR(IF(N188="","",VLOOKUP(N188,사원명부!$A$2:$B$100,2,FALSE)),"") -> 
P189: =IFERROR(IF(N189="","",VLOOKUP(N189,사원명부!$A$2:$B$100,2,FALSE)),"") -> 
P190: =IFERROR(IF(N190="","",VLOOKUP(N190,사원명부!$A$2:$B$100,2,FALSE)),"") -> 
P191: =IFERROR(IF(N191="","",VLOOKUP(N191,사원명부!$A$2:$B$100,2,FALSE)),"") -> 
P192: =IFERROR(IF(N192="","",VLOOKUP(N192,사원명부!$A$2:$B$100,2,FALSE)),"") -> 
P193: =IFERROR(IF(N193="","",VLOOKUP(N193,사원명부!$A$2:$B$100,2,FALSE)),"") -> 
P194: =IFERROR(IF(N194="","",VLOOKUP(N194,사원명부!$A$2:$B$100,2,FALSE)),"") -> 
P195: =IFERROR(IF(N195="","",VLOOKUP(N195,사원명부!$A$2:$B$100,2,FALSE)),"") -> 
P196: =IFERROR(IF(N196="","",VLOOKUP(N196,사원명부!$A$2:$B$100,2,FALSE)),"") -> 
P197: =IFERROR(IF(N197="","",VLOOKUP(N197,사원명부!$A$2:$B$100,2,FALSE)),"") -> 
P198: =IFERROR(IF(N198="","",VLOOKUP(N198,사원명부!$A$2:$B$100,2,FALSE)),"") -> 

Sheet 취업규칙신고서
A1: ■ 근로기준법 시행규칙 [별지 제15호서식] <개정 2012.2.9> | S1: 고용노동부 민원 24
A2: 취업규칙 | J2: =IF(T12="신고","[V]신고서","[ ]신고서") -> [V]신고서
J3: =IF(T12="변경신고","[V]변경신고서","[ ]변경신고서") -> [ ]변경신고서
A4: ※ [ ]에는 해당되는 곳에 √ 표시를 합니다.
A5: 접수번호 | E5: 접수일 | L5: 처리기간 1일
A8: 신고내용 | B8: 사업장명 | E8: =IFBLANK(요양기관기초정보!D1) -> 팜오피스약국 | L8: 사업의 종류 | N8: =IFBLANK(요양기관기초정보!C15)&" "&IFBLANK(요양기관기초정보!C16) -> 소매 양약,의료기기
B9: 대표자 성명 | E9: =IFBLANK(요양기관기초정보!C6) -> 홍길동 | L9: 생년월일 | N9: =LEFT(IFBLANK(요양기관기초정보!C7),6) -> 680623
B10: 소재지 | E10: =IFBLANK(요양기관기초정보!C11) -> 서울 서대문구 연세로 41 (창천동 78-14)
B11: ="(전화번호 : "&IFBLANK(요양기관기초정보!C10)&")" -> (전화번호 : 010-1234-5678)
B12: 근로자수 | E12: =업무분장내역!M8&" 명" -> 1 명 | L12: 노동조합원수 | S12: 구분 | T12: 신고
B13: ="(남 "&업무분장내역!M8-업무분장내역!M7&" 명 , 여 "&업무분장내역!M7&" 명)" -> (남 0 명 , 여 1 명) | L13: 명 | S13: 대리인
B14: 의견청취일 또는 동의일 | H14: =근로자동의서!J2 -> 2020-01-01 | S14: 관할노동청
A15: ="「근로기준법」 제93조와 같은 법 시행규칙 제15조에 따라 위와 같이 취업규칙을 "&IF(T12="신고","［V］신고,［ ］변경신고",IF(T12="변경신고","［］신고,［V］변경신고","［ ］신고,［ ］변경신고"))&"합니다" -> 「근로기준법」 제93조와 같은 법 시행규칙 제15조에 따라 위와 같이 취업규칙을 ［V］신고,［ ］변경신고합니다
A16: =TODAY() -> 2021-05-31
A17: 신청인 | L17: =IFBLANK(E9) -> 홍길동 | O17: (서명 또는 인)
A18: 대리인 | L18: =IFBLANK(T13) ->  | O18: (서명 또는 인)
A19: =IF(T14="",IFBLANK(요양기관기초정보!C22),T14) -> 서울 | C19: 지방고용노동청(지청)장 귀하
A25: 첨부서류 | C25: 1. 취업규칙 (변경신고 하는 경우에는 변경 전과 변경 후의 내용을 비교한 서류) | P25: 수수료
C26: 2. 근로자의 과반수를 대표하는 노동조합 또는 근로자 과반수의 의견을 들었음을 증명하는 자료
C27: 3. 근로자의 과반수를 대표하는 노동조합 또는 근로자 과반수의 동의를 받았음을 증명하는 자료
C28: (근로자에게 불리하게 변경하는 경우에만 첨부합니다. ) | P28: 없음
A30: 처 리 절 차
A33: 신청서 제출 | C33: → | D33: 접 수 | G33: → | H33: 내용검토 | K33: → | L33: 결 재 | O33: → | P33: 통 보
A34: 신청인 | D34: 지방고용노동청(지청)장 | H34: 지방고용노동청(지청)장 | L34: 지방고용노동청(지청)장 | P34: 변경명령
D35: (민원실) | H35: (근로개선지도과) | L35: (청장 · 지청장) | P35: (법령 또는 단체협약에 저축되는 경우)
A37: 210mm×297mm[일반용지 70g/㎡(재활용품)]
A39: 취업규칙 변경 내역
B40: 변경전 | J40: 변경후

Sheet 취업규칙
A1: =IFBLANK(요양기관기초정보!D1)&" 취업규칙" -> 팜오피스약국 취업규칙
A3: 제1장 총 칙
A4: 제1조(목적) 6
A5: 제2조(적용범위) 6
A7: 제2장 채용 및 근로계약
A8: 제3조(채용기회) 6
A9: 제4조(전형 및 채용서류) 6
A10: 제5조(근로계약) 6
A11: 제6조(수습기간) 6
A13: 제3장 복 무
A14: 제7조(복무의무) 7
A15: 제8조(출근, 결근) 7
A16: 제9조(지각․조퇴 및 외출) 7
A17: 제10조(공민권행사 및 공의 직무 수행) 7
A18: 제11조(출장) 7
A20: 제4장 인사
A21: 제1절 인사위원회
A22: 제12조(인사위원회의 구성) 8
A23: 제13조(위원회의 기능) 8
A24: 제14조(위원회의 소집 및 운영) 8
A26: 제2절 배치・전직 및 승진
A27: 제15조(배치, 전직, 승진) 8
A29: 제3절 휴직 및 복직
A30: 제16조(휴직) 9
A31: 제17조(육아휴직) 9
A32: 제18조(가족돌봄휴직 등) 9
A33: 제19조(복직) 10
A34: 제20조(근속기간의 계산) 10
A36: 제5장 근로조건
A37: 제1절 근로시간
A38: 제21조(근무형태) 10
A39: 제22조(근로시간) 10
A40: 제23조(휴게) 10
A41: 제24조(연장․야간 및 휴일근로) 11
A42: 제25조(야간 및 휴일근로의 제한) 11
A44: 제2절 휴일․휴가
A45: 제26조(유급휴일) 12
A46: 제27조(연차휴가) 12
A47: 제28조(연차휴가의 사용) 12
A48: 제29조 (연차유급휴가의 대체) 12
A49: 제30(경조사 휴가) 12
A50: 제31조(생리휴가) 13
A51: 제32조(병가) 13
A53: 제3절 모성보호
A54: 제33조(임산부의 보호) 13
A55: 제34조(태아검진 시간의 허용) 14
A56: 제35조(육아기근로시간단축) 14
A57: 제36조(육아기근로시간단축 중 근로조건 등) 14
A58: 제37조(육아휴직과 육아기근로시간단축의 형태) 15
A59: 제38조(육아시간) 15
A61: 제6장 임 금
A62: 제39조(임금의 구성항목) 15
A63: 제40조(임금의 계산 및 지급방법) 15
A64: 제41조(비상시 지급) 16
A65: 제42조(휴업수당) 16
A66: 제43조(상여금지급) 16
A68: 제7장 퇴직・해고 등
A69: 제44조 (퇴직 및 퇴직일) 16
A70: 제45조(해고) 17
A71: 제46조(해고의 제한) 17
A72: 제47조(해고의 통지) 17
A73: 제48조(차별금지) 17
A75: 제8장 퇴직급여
A76: 제49조(퇴직급여제도의 설정 등) 17
A77: 제50조(중간정산) 18
A79: 제9장 직장 내 괴롭힘의 예방
A80: 제51조(직장 내 괴롭힘 행위의 금지) 18
A81: 제52조(금지되는 직장 내 괴롭힘 행위) 18
A82: 제53조(직장 내 괴롭힘 예방교육) 18
A83: 제54조(직장 내 괴롭힘 행위 발생 시 조치) 19
A85: 제10장 표창 및 징계
A86: 제55조(표창) 19
A87: 제56조(징계) 19
A88: 제57조(징계의 종류) 20
A89: 제58조(징계심의) 20
A90: 제59조(징계결과 통보) 20
A91: 제60조(재심절차) 20
A93: 제11장 교육 및 성희롱의 예방
A94: 제61조(직무교육) 21
A95: 제62조(성희롱의 예방) 21
A96: 제63조(직장 내 장애인 인식개선 교육) 21
A98: 제12장 안전보건
A99: 제64조(안전보건관리규정) 22
A100: 제65조(안전보건 교육) 22
A101: 제66조(위험기계․기구의 방호조치) 22
A102: 제67조(보호구의 지급 및 착용) 22
A103: 제68조(물질안전보건자료의 작성·비치) 22
A104: 제69조(작업환경측정) 22
A105: 제70조(건강진단) 23
A106: 제71조(산업안전보건법 준수) 23
A108: 제13장 재해보상
A109: 제72조(재해보상) 23
A111: 제14장 취업규칙
A112: 제73조(취업규칙의 비치) 23
A113: 제74조(취업규칙의 변경) 23
A115: 부 칙 23
A118: 제1장 총 칙
A120: ="제1조(목적) 이 규칙은 "&IFBLANK(요양기관기초정보!D1)&"(이하 “회사”라 한다) 사원의 채용․복무 및 근로조건 등에 관한 사항을 정함을 목적으로 한다." -> 제1조(목적) 이 규칙은 팜오피스약국(이하 “회사”라 한다) 사원의 채용․복무 및 근로조건 등에 관한 사항을 정함을 목적으로 한다.
A122: 제2조(적용범위) ① 이 규칙은 회사의 사업장에 근무하는 사원에게 적용한다.
A123: ② 사원의 복무 및 근로조건에 관하여 법령, 단체협약, 그 밖에 회사규정에 별도로 정함이 있는 경우를 제외하고는 이 규칙이 정하는 바에 의한다.
A125: 제2장 채용 및 근로계약
A127: 제3조(채용기회) 회사는 사원의 모집 및 채용에 있어서 합리적인 이유 없이 성별, 연령, 신앙, 사회적신분, 출신지역, 출신학교, 혼인․임신·연령, 출산 또는 병력(病歷) 등에 의한 차등을 두지 않는다.
A129: 제4조(전형 및 채용서류) 회사에 입사를 지원하는 자는 다음 각 호의 서류를 제출하여야 한다.
A130: 1. 이력서 1통
A131: 2. 자기소개서 1통
A133: 제5조(근로계약) ① 회사는 채용이 확정된 자와 서면으로 근로계약을 체결하고, 해당자에게 근로계약서 사본 1부를 내어 준다.
A134: ② 회사는 근로계약 체결 시 사원에게 임금, 휴일, 연차 유급휴가, 취업의 장소와 종사하여야 할 업무에 관한 사항, 근로기준법 제93조제1호부터 제12호까지의 규정(취업규칙의 작성․신고사항)에서 정한 사항, 근로기준법 제10장의 기숙사에 관한 사항(기숙사가 있는 경우에 한함)을 명확히 제시한다.
A135: ③ 회사는 제2항의 내용 중 임금의 구성항목․계산방법․지급방법, 소정근로시간, 휴일, 연차유급휴가에 관한 사항, 취업의 장소와 종사하여야 할 업무에 관한 사항을 서면으로 명확히 제시하여 교부한다. 또한 기간제 근로자인 경우 근로계약기간도 함께 명시한다.
A136: ④ 회사는 근로계약 체결 시 제2항 및 제3항의 사항이 적시된 취업규칙을 제시하거나 교부함으로써 제2항의 명시 및 제3항의 서면명시 및 교부의무를 대신할 수 있다.
A138: 제6조(수습기간) ① 신규로 채용된 자는 최초로 근무를 개시한 날부터 3개월간을 수습기간으로 한다.
A139: ② 제1항의 수습기간은 근속년수에 포함하며, 평균임금산정 대상기간에는 포함하지 않는다.
A141: 제3장 복 무
A143: 제7조(복무의무) 사원은 다음 각 호의 사항을 준수하여야 한다.
A144: 1. 사원은 맡은바 직무를 충실히 수행하여야 한다.
A145: 2. 사원은 직무상 지득한 비밀을 엄수하고 회사기밀을 누설해서는 아니 된다. 단, 공익신고자 보호법상의 ‘공익신고자’의 경우에는 적용되지 아니한다.
A146: 3. 사원은 회사의 제반규정을 준수하고 상사의 정당한 직무상 지시에 따라야 한다.
A147: 4. 사원은 사원으로서 품위를 손상하거나 회사의 명예를 실추시키는 행위를 하여서는 아니 된다.
A148: 5. 사원은 그 밖에 제1호 내지 제4호에 준하는 행위를 하여서는 아니 된다.
A150: 제8조(출근, 결근) ① 사원은 업무시간 시작 전까지 출근하여 업무에 임할 준비를 하여 정상적인 업무수행에 차질이 없도록 하여야 한다.
A151: ② 질병이나 그 밖의 부득이한 사유로 결근하고자 하는 경우에는 사전에 소속부서의 장의 승인을 받아야 한다. 다만, 불가피한 사유로 사전에 승인을 받을 수 없는 경우에는 결근 당일에라도 그 사유를 명확히 하여 사후 승인을 받아야 하며 정당한 이유 없이 이러한 절차를 이행하지 아니한 경우 무단결근을 한 것으로 본다.
A153: 제9조(지각․조퇴 및 외출) ① 사원은 질병 그 밖의 부득이한 사유로 지각하게 되는 경우에는 사전에 부서의 장 또는 직근 상급자에게 알려야 하며, 부득이한 사정으로 사전에 알릴 수 없는 경우에는 사후에라도 지체 없이 이 사실을 알려야 한다.
A154: ② 사원은 근로시간 중에 사적으로 근무 장소를 이탈할 수 없다. 다만, 질병이나 그 밖의 부득이한 사유로 인하여 조퇴 또는 외출 하고자 할 경우에는 소속부서의 장의 승인을 받아야 한다.
A155: ③ 사원이 지각․조퇴 및 외출한 시간은 무급으로 처리함을 원칙으로 한다.
A157: 제10조(공민권행사 및 공의 직무 수행) ① 회사는 사원이 근무시간 중 선거권, 그 밖의 공민권을 행사하거나 공(公)의 직무를 수행하기 위하여 필요한 시간을 청구할 경우 이를 거부할 수 없으며, 그 시간은 유급으로 처리한다.
A158: ② 회사는 제1항의 권리 행사나 공(公)의 직무를 수행하는데 지장이 없는 범위 내에서 사원이 청구한 시간을 변경할 수 있다.
A160: 제11조(출장) ① 회사는 업무수행을 위하여 필요한 경우 사원에게 출장을 명할 수 있다.
A161: ② 회사는 행선지별 여비, 숙박비, 현지교통비 등 실비에 충당될 수 있는 비용을 지급한다.
A163: 제4장 인 사
A165: 제1절 인사위원회
A167: 제12조(인사위원회의 구성) ① 인사위원회(이하 “위원회”라 한다.)는 대표이사와 부서장 또는 그에 준하는 직급의 사원 중 대표이사가 임명하는 자로 총 5명 이내로 구성하되 근로자위원을 최소 1명이상 포함되도록 한다.
A168: ② 위원회의 위원장은 대표이사 또는 대표이사가 위임한 자로 한다.
A169: ③ 위원회에는 인사(총무)담당자 1명을 간사로 둔다.
A171: 제13조(위원회의 기능) 위원회는 다음 각 호의 사항을 의결한다.
A172: 1. 사원의 표창에 관한 사항
A173: 2. 사원의 징계에 관한 사항
A174: 3. 그 밖에 사원의 인사에 관하여 위원회의 의결이 필요한 사항
A176: 제14조(위원회의 소집 및 운영) ① 위원회는 제14조의 의결사항이 있을 경우 위원장이 소집한다.
A177: ② 위원장은 회의를 소집하고자 하는 경우 원칙적으로 회의개최 7일전에 회의일시, 장소, 의제 등을 각 위원에게 통보한다.
A178: ③ 위원회는 재적위원 과반수의 출석과 출석위원 과반수의 찬성으로 의결한다. 다만, 징계에 관한 사항은 재적위원 3분의 2이상의 찬성으로 의결한다.
A179: ④ 위원장은 표결권을 가지며 가부동수일 때에는 결정권을 가진다.
A180: ⑤ 위원회의 회의는 공개하지 아니하며 회의내용과 관련된 사항은 누설하여서는 아니 된다. 다만, 위원회의 의결로 공개할 수 있다.
A181: ⑥ 위원회의 의결사항이 특정위원에 관한 사항을 의결할 때에는 당해위원은 그 건의 의결에 참여할 수 없다.
A182: ⑦ 위원회의 운영방법 등 기타 필요한 사항에 대하여는 별도의 규정으로 정할 수 있다.
A184: 제2절 배치․전직 및 승진
A186: 제15조(배치, 전직, 승진) ① 회사는 사원의 능력, 적성, 경력 등을 고려하여 부서의 배치, 전직, 승진 등 인사발령을 하며, 사원은 정당한 사유 없이 이를 거부할 수 없다.
A187: ② 회사는 제1항의 인사발령을 함에 있어서 합리적인 이유 없이 남녀를 차별하지 아니한다.
A188: ③ 승진 등 인사발령과 관련하여 필요한 사항에 대하여는 별도의 규정으로 정한다.
A190: 제3절 휴직 및 복직
A192: 제16조(휴직) ① 회사는 다음 각 호의 어느 하나에 해당하는 사유로 사원이 휴직원을 제출하는 경우에는 휴직을 승인할 수 있다. 이 경우 제3호의 휴직 외에는 무급을 원칙으로 한다.
A193: 1. 업무 외 질병, 부상, 가사 등으로 직무수행이 어렵다고 인정되는 경우: 필요하다고 인정되는 기간
A194: 2. 병역법, 기타 법령에 의해 징집 및 소집되었을 때: 징집 및 소집기간
A195: 3. 연수, 직무 등의 사유로 회사가 휴직이 필요하다고 하는 경우: 필요하다고 인정되는 기간
A196: ② 휴직자는 휴직기간 중 거주지의 변동 등의 사유가 있을 때에는 회사에 즉시 그 사실을 알려야 한다.
A198: 제17조(육아휴직) ① 회사는 만 8세 이하 또는 초등학교 2학년 이하의 자녀(입양한 자녀를 포함한다)를 가진 남녀 사원이 그 자녀의 양육을 위하여 육아휴직을 청구하는 경우에는 이를 허용한다. 단, 계속 근로한 기간이 6개월 미만이거나 같은 영유아에 대하여 배우자가 육아휴직 중인 경우에는 허용하지 않을 수 있다.
A199: ② 육아휴직 기간은 1년 이내로 한다.
A200: ③ 회사는 육아휴직을 이유로 해고나 그 밖의 불리한 처우를 하지 않으며 특히 육아휴직기간에는 해고하지 아니한다.
A201: ④ 회사는 사원이 육아휴직을 사용할 경우 고용보험법령이 정하는 육아휴직급여를 받을 수 있도록 증빙서류를 제공하는 등 적극 협조한다.
A203: 제18조(가족돌봄휴직 등) ① 회사는 사원이 부모, 배우자, 자녀 또는 배우자의 부모(이하 "가족"이라 한다)의 질병, 사고, 노령으로 인하여 그 가족을 돌보기 위한 휴직(이하 "가족돌봄휴직"이라 한다)을 신청하는 경우 이를 허용하여야 한다. 다만, 대체인력 채용이 불가능한 경우, 정상적인 사업 운영에 중대한 지장을 초래하는 경우 등 남녀고용평등법 시행령으로 정하는 경우에는 그러하지 아니하다.
A204: ② 제1항 단서에 따라 가족돌봄휴직을 허용하지 아니하는 경우에는 해당 사원에게 그 사유를 서면으로 통보하고, 다음 각 호의 어느 하나에 해당하는 조치를 하도록 노력하여야 한다.
A205: 1. 업무를 시작하고 마치는 시간 조정
A206: 2. 연장근로의 제한
A207: 3. 근로시간의 단축, 탄력적 운영 등 근로시간의 조정
A208: 4. 그 밖에 사업장 사정에 맞는 지원조치
A209: ③ 가족돌봄휴직 기간은 연간 최장 90일로 하며, 이를 나누어 사용할 수 있다. 이 경우 나누어 사용하는 1회의 기간은 30일 이상이 되어야 한다.
A210: ④ 회사는 가족돌봄휴직을 이유로 해당 근로자를 해고하거나 근로조건을 악화시키는 등 불리한 처우를 하여서는 아니 된다.
A211: ⑤ 가족돌봄휴직 기간은 근속기간에 포함한다. 다만, 근로기준법 제2조 제1항 제6호에 따른 평균임금 산정기간에서는 제외한다.
A212: ⑥ 회사는 소속 근로자가 건전하게 직장과 가정을 유지하는 데에 도움이 될 수 있도록 필요한 심리상담 서비스를 제공하도록 노력하여야 한다.
A214: 제19조(복직) ① 사원은 휴직사유가 소멸되었을 때에는 지체 없이 복직원을 제출해야 하며, 휴직기간이 만료된 때에는 그 만료일 7일전까지 복직원을 제출하여야 한다.
A215: ② 사원은 부득이한 사유가 있는 경우 승인을 얻어 휴직기간을 연장할 수 있다.
A216: ③ 회사는 휴직중인 사원으로부터 복직원을 제출 받은 경우에는 최대한 빠른 시일 내에 휴직 전의 직무에 복직시키도록 노력하되, 부득이한 경우에는 그와 유사한 업무나 동등한 수준의 급여가 지급되는 직무로 복귀시키도록 노력한다.
A218: 제20조(근속기간의 계산) 휴직기간은 근속기간에 산입한다. 다만, 제17조 제1항 제2호의 병역법에 의한 군복무기간은 퇴직금 산정을 위한 계속 근로년수에서 제외한다.
A220: 제5장 근로조건
A222: 제1절 근로시간
A224: 제21조(근무형태) 근무형태는 주간근무를 원칙으로 하며, 필요할 경우 근로자대표와 합의하여 교대근무제를 시행할 수 있다.
A226: 제22조(근로시간) ① 1주간의 근무일은 월요일부터 금요일까지 5일로 하고 이 경우 매주 토요일은 무급휴무일로 한다. | C226: 요양기관별 근무시간 입력
A227: ② 1주간의 근로시간은 휴게시간을 제외하고 40시간으로 한다. | C227: 구 분 | D227: 시 업 | E227: 종 업
A228: ③ 1일의 근로시간은 8시간으로 하되, 제24조의 휴게시간을 제외하고 09:00부터 18:00시까지로 한다. | C228: 평 일
A229: ④18세 미만 사원의 경우 1일의 근로시간은 7시간 이내로, 1주의 근로시간은 35시간 이내로 한다. | C229: 토요일
A231: 제23조(휴게) 휴게시간은 제23조 제3항의 근로시간 중 12:00부터 14:00까지 계속된 1시간으로 한다. 다만, 업무사정에 따라 휴게시간을 달리 정하여 운영할 수 있다.
A233: 제24조(연장․야간 및 휴일근로) ① 연장근로는 1주간 휴일을 포함하여 12시간을 한도로 사원의 동의하에 실시할 수 있다. 단, 18세 미만 사원은 1일 1시간, 1주일에 5시간을 한도로 사원의 동의하에 실시할 수 있으며, 산후 1년이 지나지 아니한 여성사원에 대하여는 단체협약이 있는 경우라도 1일 2시간, 1주 6시간, 1년 150시간을 한도로 사원의 동의하에 실시할 수 있으며, 임신 중인 여성사원은 연장근로를 실시할 수 없다.
A234: ② 연장․야간(22시부터 06시 사이의 근로)에 대하여는 통상임금의 50%를 가산하여 지급한다.
A235: ③ 휴일근로에 대하여는 8시간 이내에 대하여는 통상임금의 50%, 8시간 초과의 휴일근로에 대하여는 통상임금의 100%를 가산하여 지급한다.
A236: ④ 회사는 사원의 대표와 서면 합의하여 연장․야간 및 휴일근로에 대하여 임금을 지급하는 것을 대신하여 휴가를 줄 수 있다.
A238: 제25조(야간 및 휴일근로의 제한) ① 18세 이상의 여성 사원을 오후 10시부터 오전 6시까지 근로하게 하거나 휴일에 근로를 시킬 경우 당해 사원의 동의를 얻어 실시한다.
A239: ② 임산부와 18세 미만인 사원에 대하여는 오후 10시부터 오전 6시까지의 시간 및 휴일에 근로를 시키지 않는 것을 원칙으로 한다. 다만, 다음 각 호의 어느 하나에 해당 하는 경우에는 그 시행 여부와 방법 등에 관하여 사원의 대표와 성실히 협의한 후 고용노동부장관의 인가를 받아 야간 및 휴일근로를 실시할 수 있다.
A240: 1. 18세 미만자의 동의가 있는 경우
A241: 2. 산후 1년이 지나지 아니한 여성의 동의가 있는 경우 | C241: 1.회사는 연간 8할 이상 출근한 자에게 15일의 연차 휴가를 준다.
A242: 3. 임신 중의 여성이 명시적으로 청구하는 경우 | C242: 2.3년 이상 근속한 자에 대하여는 1년을 초과하는 근속년수 2년에 대 하여 1일의 유급휴가를 전항의 휴가일수에 가산한다.
C243: 3.휴가의 총 일 수 가 25일을 초과하는 경우 그 초과 일수에 대해서는 유급휴가를 주지 아니 할 수 있다.
A244: 제2절 휴일․휴가 | C244: 4.회사의 특성상 국경일 및 법정 공휴일에는 영업하지 아니하므로 그 휴일은 연차유급 휴가 를 사용한 것으로 한다.
C245: 5.4항의 내용은 2020년 12월31일 까지만 적용한다.
A246: 제26조(유급휴일) ① 1주 동안 소정근로일을 개근한 사원에 대하여는 일요일을 유급주휴일로 부여한다.
A247: ② 근로자의 날(5월 1일)은 유급휴일로 한다. 다만, 근로자의 날에 근로를 한 경우 ｢근로기준법｣ 제57조(보상휴가제)에 따라 보상휴가를 줄 수 있다 | C247: [관공서의 공휴일에 관한규정]
C248: 공휴일 처리
A249: 제27조(연차유급휴가) ① 1년간 8할 이상 출근한 사원에게는 15일의 유급휴가를 준다. | C249: 법정공휴일을 연차휴가로 대체하거나 근무일에 포함시키는 경우(30인이상은 2021년부터,5인이상이면 2022년도부터 불가능)
A250: ② 계속하여 근로한 기간이 1년 미만인 사원과 1년간 80퍼센트 미만 출근한 근로자에게 1개월 개근 시 1일의 유급휴가를 준다. | C250: ‘관공서의 공휴일에 관한규정’ 제 2조에서 정한 공휴일(일요일 제외)은 근로일로 한다.
A251: ③ 3년 이상 근속한 사원에 대하여는 제1항 규정에 의한 휴가에 최초 1년을 초과하는 계속 근로연수 매 2년에 대하여 1일을 가산한 유급휴가를 주며, 가산휴가를 포함한 총 휴가일수는 25일을 한도로 한다. | C251: 2021년부터 상시근로자 30인 이상 2022년부터 상시근로자 5인이상이면
C252: ‘관공서의 공휴일에 관한규정’ 제 2조에서 정한 공휴일(일요일 제외)은 유급휴일로 한다
A253: 제28조(연차휴가의 사용) ① 사원의 연차유급휴가는 1년간 행사하지 아니하면 소멸된다. 다만, 사용자의 귀책사유로 사용하지 못한 경우에는 그러하지 아니하다.
A254: ② 회사는 근로기준법 제61조에 따라 연차유급휴가 사용을 촉진할 수 있다. 회사의 사용촉진조치에도 불구하고 사원이 사용하지 아니한 연차유급휴가에 대하여는 금전으로 보상 하지 아니한다. | C254: 주 40시간제에서의 토요일
... 199 more rows

Sheet 의견청취서
A1: 의 견 청 취 서
A3: ="("&IFBLANK(요양기관기초정보!D1)&") 취업규칙은 근로자 과반수의 의견을 청취하였음을 증명하는 자료로 의견내용을제출합니다." -> (팜오피스약국) 취업규칙은 근로자 과반수의 의견을 청취하였음을 증명하는 자료로 의견내용을제출합니다.
A5: 연번 | B5: 성명 | C5: 의견내용 | G5: 근로자 사번 | H5: 퇴직여부
A6: 1 | B6: =IFERROR(IF(G6="","",VLOOKUP(G6,사원명부!$A$2:$Z$113,2,FALSE)),"") -> 테스트1 | G6: 1 | H6: =IF(B6="","",IF(VLOOKUP(G6,사원명부!$A$2:$Z$113,12,FALSE)="","","퇴직")) -> 
A7: 2 | B7: =IFERROR(IF(G7="","",VLOOKUP(G7,사원명부!$A$2:$Z$113,2,FALSE)),"") ->  | H7: =IF(B7="","",IF(VLOOKUP(G7,사원명부!$A$2:$Z$113,12,FALSE)="","","퇴직")) -> 
A8: 3 | B8: =IFERROR(IF(G8="","",VLOOKUP(G8,사원명부!$A$2:$Z$113,2,FALSE)),"") ->  | H8: =IF(B8="","",IF(VLOOKUP(G8,사원명부!$A$2:$Z$113,12,FALSE)="","","퇴직")) -> 
A9: 4 | B9: =IFERROR(IF(G9="","",VLOOKUP(G9,사원명부!$A$2:$Z$113,2,FALSE)),"") ->  | H9: =IF(B9="","",IF(VLOOKUP(G9,사원명부!$A$2:$Z$113,12,FALSE)="","","퇴직")) -> 
A10: 5 | B10: =IFERROR(IF(G10="","",VLOOKUP(G10,사원명부!$A$2:$Z$113,2,FALSE)),"") ->  | H10: =IF(B10="","",IF(VLOOKUP(G10,사원명부!$A$2:$Z$113,12,FALSE)="","","퇴직")) -> 
A11: 6 | B11: =IFERROR(IF(G11="","",VLOOKUP(G11,사원명부!$A$2:$Z$113,2,FALSE)),"") ->  | H11: =IF(B11="","",IF(VLOOKUP(G11,사원명부!$A$2:$Z$113,12,FALSE)="","","퇴직")) -> 
A12: 7 | B12: =IFERROR(IF(G12="","",VLOOKUP(G12,사원명부!$A$2:$Z$113,2,FALSE)),"") ->  | H12: =IF(B12="","",IF(VLOOKUP(G12,사원명부!$A$2:$Z$113,12,FALSE)="","","퇴직")) -> 
A13: 8 | B13: =IFERROR(IF(G13="","",VLOOKUP(G13,사원명부!$A$2:$Z$113,2,FALSE)),"") ->  | H13: =IF(B13="","",IF(VLOOKUP(G13,사원명부!$A$2:$Z$113,12,FALSE)="","","퇴직")) -> 
A14: 9 | B14: =IFERROR(IF(G14="","",VLOOKUP(G14,사원명부!$A$2:$Z$113,2,FALSE)),"") ->  | H14: =IF(B14="","",IF(VLOOKUP(G14,사원명부!$A$2:$Z$113,12,FALSE)="","","퇴직")) -> 
A15: 10 | B15: =IFERROR(IF(G15="","",VLOOKUP(G15,사원명부!$A$2:$Z$113,2,FALSE)),"") ->  | H15: =IF(B15="","",IF(VLOOKUP(G15,사원명부!$A$2:$Z$113,12,FALSE)="","","퇴직")) -> 
A16: 11 | B16: =IFERROR(IF(G16="","",VLOOKUP(G16,사원명부!$A$2:$Z$113,2,FALSE)),"") ->  | H16: =IF(B16="","",IF(VLOOKUP(G16,사원명부!$A$2:$Z$113,12,FALSE)="","","퇴직")) -> 
A17: 12 | B17: =IFERROR(IF(G17="","",VLOOKUP(G17,사원명부!$A$2:$Z$113,2,FALSE)),"") ->  | H17: =IF(B17="","",IF(VLOOKUP(G17,사원명부!$A$2:$Z$113,12,FALSE)="","","퇴직")) -> 
A18: 13 | B18: =IFERROR(IF(G14="","",VLOOKUP(G14,사원명부!$A$2:$Z$113,2,FALSE)),"") ->  | H18: =IF(B18="","",IF(VLOOKUP(G18,사원명부!$A$2:$Z$113,12,FALSE)="","","퇴직")) -> 
A19: 14 | B19: =IFERROR(IF(G15="","",VLOOKUP(G15,사원명부!$A$2:$Z$113,2,FALSE)),"") ->  | H19: =IF(B19="","",IF(VLOOKUP(G19,사원명부!$A$2:$Z$113,12,FALSE)="","","퇴직")) -> 
A20: 15 | B20: =IFERROR(IF(G16="","",VLOOKUP(G16,사원명부!$A$2:$Z$113,2,FALSE)),"") ->  | H20: =IF(B20="","",IF(VLOOKUP(G20,사원명부!$A$2:$Z$113,12,FALSE)="","","퇴직")) -> 
A21: 16 | B21: =IFERROR(IF(G17="","",VLOOKUP(G17,사원명부!$A$2:$Z$113,2,FALSE)),"") ->  | H21: =IF(B21="","",IF(VLOOKUP(G21,사원명부!$A$2:$Z$113,12,FALSE)="","","퇴직")) -> 
A22: 17 | B22: =IFERROR(IF(G18="","",VLOOKUP(G18,사원명부!$A$2:$Z$113,2,FALSE)),"") ->  | H22: =IF(B22="","",IF(VLOOKUP(G22,사원명부!$A$2:$Z$113,12,FALSE)="","","퇴직")) -> 
A23: 18 | B23: =IFERROR(IF(G19="","",VLOOKUP(G19,사원명부!$A$2:$Z$113,2,FALSE)),"") ->  | H23: =IF(B23="","",IF(VLOOKUP(G23,사원명부!$A$2:$Z$113,12,FALSE)="","","퇴직")) -> 
A24: 19 | B24: =IFERROR(IF(G20="","",VLOOKUP(G20,사원명부!$A$2:$Z$113,2,FALSE)),"") ->  | H24: =IF(B24="","",IF(VLOOKUP(G24,사원명부!$A$2:$Z$113,12,FALSE)="","","퇴직")) -> 
A25: 20 | B25: =IFERROR(IF(G21="","",VLOOKUP(G21,사원명부!$A$2:$Z$113,2,FALSE)),"") ->  | H25: =IF(B25="","",IF(VLOOKUP(G25,사원명부!$A$2:$Z$113,12,FALSE)="","","퇴직")) -> 
A26: 21 | B26: =IFERROR(IF(G22="","",VLOOKUP(G22,사원명부!$A$2:$Z$113,2,FALSE)),"") ->  | H26: =IF(B26="","",IF(VLOOKUP(G26,사원명부!$A$2:$Z$113,12,FALSE)="","","퇴직")) -> 
A27: 22 | B27: =IFERROR(IF(G23="","",VLOOKUP(G23,사원명부!$A$2:$Z$113,2,FALSE)),"") ->  | H27: =IF(B27="","",IF(VLOOKUP(G27,사원명부!$A$2:$Z$113,12,FALSE)="","","퇴직")) -> 
A28: 23 | B28: =IFERROR(IF(G24="","",VLOOKUP(G24,사원명부!$A$2:$Z$113,2,FALSE)),"") ->  | H28: =IF(B28="","",IF(VLOOKUP(G28,사원명부!$A$2:$Z$113,12,FALSE)="","","퇴직")) -> 
A29: 24 | B29: =IFERROR(IF(G25="","",VLOOKUP(G25,사원명부!$A$2:$Z$113,2,FALSE)),"") ->  | H29: =IF(B29="","",IF(VLOOKUP(G29,사원명부!$A$2:$Z$113,12,FALSE)="","","퇴직")) -> 
A30: 25 | B30: =IFERROR(IF(G26="","",VLOOKUP(G26,사원명부!$A$2:$Z$113,2,FALSE)),"") ->  | H30: =IF(B30="","",IF(VLOOKUP(G30,사원명부!$A$2:$Z$113,12,FALSE)="","","퇴직")) -> 

Sheet 근로자동의서
A1: 근로자 동의서 | H1: 근무인력에 변동(퇴직,신규입사)이 생기면 사원명부에 기록하고 업무분장 새로 고침을 해야 합니다
H2: 취업규칙 동의일 | J2: =IF(취업규칙!A514="",TODAY(),취업규칙!A514) -> 2020-01-01 | M2: 취업규칙 시행일-취업규칙 하단부
A3: =YEAR(J2)&"년"&MONTH(J2)&"월"&DAY(J2)&"일자로 제시된 취업규칙을 열람하고 동규정에 대하여 이의가 없기에 아래와 같이 서명합니다." -> 2020년1월1일자로 제시된 취업규칙을 열람하고 동규정에 대하여 이의가 없기에 아래와 같이 서명합니다.
H4: 근로자 사번란에 동의받을 근로자의 사번을 기록하세요
A5: 직 책 | B5: 성 명 | C5: 서명 또는 날인 | D5: 직 책 | E5: 성 명 | F5: 서명 또는 날인 | H5: 사번 | I5: 퇴직여부 | J5: 비고 | K5: 사번 | L5: 퇴직여부 | M5: 비고
A6: =IFERROR(IF(H6="","",VLOOKUP(H6,사원명부!$A$2:$Z$113,9,FALSE)),"") ->  | B6: =IFERROR(IF(H6="","",VLOOKUP(H6,사원명부!$A$2:$Z$113,2,FALSE)),"") ->  | D6: =IF(K6="","",VLOOKUP(K6,사원명부!$A$2:$Z$113,9,FALSE)) ->  | E6: =IF(K6="","",VLOOKUP(K6,사원명부!$A$2:$Z$113,2,FALSE)) ->  | I6: =IF(H6="","",IF(VLOOKUP(H6,사원명부!$A$2:$Z$113,12,FALSE)="","","퇴직")) ->  | L6: =IF(K6="","",IF(VLOOKUP(K6,사원명부!$A$2:$Z$113,12,FALSE)="","","퇴직")) -> 
A7: =IFERROR(IF(H7="","",VLOOKUP(H7,사원명부!$A$2:$Z$113,9,FALSE)),"") ->  | B7: =IFERROR(IF(H7="","",VLOOKUP(H7,사원명부!$A$2:$Z$113,2,FALSE)),"") ->  | D7: =IF(K7="","",VLOOKUP(K7,사원명부!$A$2:$Z$113,9,FALSE)) ->  | E7: =IF(K7="","",VLOOKUP(K7,사원명부!$A$2:$Z$113,2,FALSE)) ->  | I7: =IF(H7="","",IF(VLOOKUP(H7,사원명부!$A$2:$Z$113,12,FALSE)="","","퇴직")) ->  | L7: =IF(K7="","",IF(VLOOKUP(K7,사원명부!$A$2:$Z$113,12,FALSE)="","","퇴직")) -> 
A8: =IFERROR(IF(H8="","",VLOOKUP(H8,사원명부!$A$2:$Z$113,9,FALSE)),"") ->  | B8: =IFERROR(IF(H8="","",VLOOKUP(H8,사원명부!$A$2:$Z$113,2,FALSE)),"") ->  | D8: =IF(K8="","",VLOOKUP(K8,사원명부!$A$2:$Z$113,9,FALSE)) ->  | E8: =IF(K8="","",VLOOKUP(K8,사원명부!$A$2:$Z$113,2,FALSE)) ->  | I8: =IF(H8="","",IF(VLOOKUP(H8,사원명부!$A$2:$Z$113,12,FALSE)="","","퇴직")) ->  | L8: =IF(K8="","",IF(VLOOKUP(K8,사원명부!$A$2:$Z$113,12,FALSE)="","","퇴직")) -> 
A9: =IFERROR(IF(H9="","",VLOOKUP(H9,사원명부!$A$2:$Z$113,9,FALSE)),"") ->  | B9: =IFERROR(IF(H9="","",VLOOKUP(H9,사원명부!$A$2:$Z$113,2,FALSE)),"") ->  | D9: =IF(K9="","",VLOOKUP(K9,사원명부!$A$2:$Z$113,9,FALSE)) ->  | E9: =IF(K9="","",VLOOKUP(K9,사원명부!$A$2:$Z$113,2,FALSE)) ->  | I9: =IF(H9="","",IF(VLOOKUP(H9,사원명부!$A$2:$Z$113,12,FALSE)="","","퇴직")) ->  | L9: =IF(K9="","",IF(VLOOKUP(K9,사원명부!$A$2:$Z$113,12,FALSE)="","","퇴직")) -> 
A10: =IFERROR(IF(H10="","",VLOOKUP(H10,사원명부!$A$2:$Z$113,9,FALSE)),"") ->  | B10: =IFERROR(IF(H10="","",VLOOKUP(H10,사원명부!$A$2:$Z$113,2,FALSE)),"") ->  | D10: =IF(K10="","",VLOOKUP(K10,사원명부!$A$2:$Z$113,9,FALSE)) ->  | E10: =IF(K10="","",VLOOKUP(K10,사원명부!$A$2:$Z$113,2,FALSE)) ->  | I10: =IF(H10="","",IF(VLOOKUP(H10,사원명부!$A$2:$Z$113,12,FALSE)="","","퇴직")) ->  | L10: =IF(K10="","",IF(VLOOKUP(K10,사원명부!$A$2:$Z$113,12,FALSE)="","","퇴직")) -> 
A11: =IFERROR(IF(H11="","",VLOOKUP(H11,사원명부!$A$2:$Z$113,9,FALSE)),"") ->  | B11: =IFERROR(IF(H11="","",VLOOKUP(H11,사원명부!$A$2:$Z$113,2,FALSE)),"") ->  | D11: =IF(K11="","",VLOOKUP(K11,사원명부!$A$2:$Z$113,9,FALSE)) ->  | E11: =IF(K11="","",VLOOKUP(K11,사원명부!$A$2:$Z$113,2,FALSE)) ->  | I11: =IF(H11="","",IF(VLOOKUP(H11,사원명부!$A$2:$Z$113,12,FALSE)="","","퇴직")) ->  | L11: =IF(K11="","",IF(VLOOKUP(K11,사원명부!$A$2:$Z$113,12,FALSE)="","","퇴직")) -> 
A12: =IFERROR(IF(H12="","",VLOOKUP(H12,사원명부!$A$2:$Z$113,9,FALSE)),"") ->  | B12: =IFERROR(IF(H12="","",VLOOKUP(H12,사원명부!$A$2:$Z$113,2,FALSE)),"") ->  | D12: =IF(K12="","",VLOOKUP(K12,사원명부!$A$2:$Z$113,9,FALSE)) ->  | E12: =IF(K12="","",VLOOKUP(K12,사원명부!$A$2:$Z$113,2,FALSE)) ->  | I12: =IF(H12="","",IF(VLOOKUP(H12,사원명부!$A$2:$Z$113,12,FALSE)="","","퇴직")) ->  | L12: =IF(K12="","",IF(VLOOKUP(K12,사원명부!$A$2:$Z$113,12,FALSE)="","","퇴직")) -> 
A13: =IFERROR(IF(H13="","",VLOOKUP(H13,사원명부!$A$2:$Z$113,9,FALSE)),"") ->  | B13: =IFERROR(IF(H13="","",VLOOKUP(H13,사원명부!$A$2:$Z$113,2,FALSE)),"") ->  | D13: =IF(K13="","",VLOOKUP(K13,사원명부!$A$2:$Z$113,9,FALSE)) ->  | E13: =IF(K13="","",VLOOKUP(K13,사원명부!$A$2:$Z$113,2,FALSE)) ->  | I13: =IF(H13="","",IF(VLOOKUP(H13,사원명부!$A$2:$Z$113,12,FALSE)="","","퇴직")) ->  | L13: =IF(K13="","",IF(VLOOKUP(K13,사원명부!$A$2:$Z$113,12,FALSE)="","","퇴직")) -> 
A14: =IFERROR(IF(H14="","",VLOOKUP(H14,사원명부!$A$2:$Z$113,9,FALSE)),"") ->  | B14: =IFERROR(IF(H14="","",VLOOKUP(H14,사원명부!$A$2:$Z$113,2,FALSE)),"") ->  | D14: =IF(K14="","",VLOOKUP(K14,사원명부!$A$2:$Z$113,9,FALSE)) ->  | E14: =IF(K14="","",VLOOKUP(K14,사원명부!$A$2:$Z$113,2,FALSE)) ->  | I14: =IF(H14="","",IF(VLOOKUP(H14,사원명부!$A$2:$Z$113,12,FALSE)="","","퇴직")) ->  | L14: =IF(K14="","",IF(VLOOKUP(K14,사원명부!$A$2:$Z$113,12,FALSE)="","","퇴직")) -> 
A15: =IFERROR(IF(H15="","",VLOOKUP(H15,사원명부!$A$2:$Z$113,9,FALSE)),"") ->  | B15: =IFERROR(IF(H15="","",VLOOKUP(H15,사원명부!$A$2:$Z$113,2,FALSE)),"") ->  | D15: =IF(K15="","",VLOOKUP(K15,사원명부!$A$2:$Z$113,9,FALSE)) ->  | E15: =IF(K15="","",VLOOKUP(K15,사원명부!$A$2:$Z$113,2,FALSE)) ->  | I15: =IF(H15="","",IF(VLOOKUP(H15,사원명부!$A$2:$Z$113,12,FALSE)="","","퇴직")) ->  | L15: =IF(K15="","",IF(VLOOKUP(K15,사원명부!$A$2:$Z$113,12,FALSE)="","","퇴직")) -> 
A16: =IFERROR(IF(H16="","",VLOOKUP(H16,사원명부!$A$2:$Z$113,9,FALSE)),"") ->  | B16: =IFERROR(IF(H16="","",VLOOKUP(H16,사원명부!$A$2:$Z$113,2,FALSE)),"") ->  | D16: =IF(K16="","",VLOOKUP(K16,사원명부!$A$2:$Z$113,9,FALSE)) ->  | E16: =IF(K16="","",VLOOKUP(K16,사원명부!$A$2:$Z$113,2,FALSE)) ->  | I16: =IF(H16="","",IF(VLOOKUP(H16,사원명부!$A$2:$Z$113,12,FALSE)="","","퇴직")) ->  | L16: =IF(K16="","",IF(VLOOKUP(K16,사원명부!$A$2:$Z$113,12,FALSE)="","","퇴직")) -> 
A17: =IFERROR(IF(H17="","",VLOOKUP(H17,사원명부!$A$2:$Z$113,9,FALSE)),"") ->  | B17: =IFERROR(IF(H17="","",VLOOKUP(H17,사원명부!$A$2:$Z$113,2,FALSE)),"") ->  | D17: =IF(K17="","",VLOOKUP(K17,사원명부!$A$2:$Z$113,9,FALSE)) ->  | E17: =IF(K17="","",VLOOKUP(K17,사원명부!$A$2:$Z$113,2,FALSE)) ->  | I17: =IF(H17="","",IF(VLOOKUP(H17,사원명부!$A$2:$Z$113,12,FALSE)="","","퇴직")) ->  | L17: =IF(K17="","",IF(VLOOKUP(K17,사원명부!$A$2:$Z$113,12,FALSE)="","","퇴직")) -> 
A18: =IFERROR(IF(H18="","",VLOOKUP(H18,사원명부!$A$2:$Z$113,9,FALSE)),"") ->  | B18: =IFERROR(IF(H18="","",VLOOKUP(H18,사원명부!$A$2:$Z$113,2,FALSE)),"") ->  | D18: =IF(K18="","",VLOOKUP(K18,사원명부!$A$2:$Z$113,9,FALSE)) ->  | E18: =IF(K18="","",VLOOKUP(K18,사원명부!$A$2:$Z$113,2,FALSE)) ->  | I18: =IF(H18="","",IF(VLOOKUP(H18,사원명부!$A$2:$Z$113,12,FALSE)="","","퇴직")) ->  | L18: =IF(K18="","",IF(VLOOKUP(K18,사원명부!$A$2:$Z$113,12,FALSE)="","","퇴직")) -> 
A19: =IFERROR(IF(H19="","",VLOOKUP(H19,사원명부!$A$2:$Z$113,9,FALSE)),"") ->  | B19: =IFERROR(IF(H19="","",VLOOKUP(H19,사원명부!$A$2:$Z$113,2,FALSE)),"") ->  | D19: =IF(K19="","",VLOOKUP(K19,사원명부!$A$2:$Z$113,9,FALSE)) ->  | E19: =IF(K19="","",VLOOKUP(K19,사원명부!$A$2:$Z$113,2,FALSE)) ->  | I19: =IF(H19="","",IF(VLOOKUP(H19,사원명부!$A$2:$Z$113,12,FALSE)="","","퇴직")) ->  | L19: =IF(K19="","",IF(VLOOKUP(K19,사원명부!$A$2:$Z$113,12,FALSE)="","","퇴직")) -> 
A20: =IFERROR(IF(H20="","",VLOOKUP(H20,사원명부!$A$2:$Z$113,9,FALSE)),"") ->  | B20: =IFERROR(IF(H20="","",VLOOKUP(H20,사원명부!$A$2:$Z$113,2,FALSE)),"") ->  | D20: =IF(K20="","",VLOOKUP(K20,사원명부!$A$2:$Z$113,9,FALSE)) ->  | E20: =IF(K20="","",VLOOKUP(K20,사원명부!$A$2:$Z$113,2,FALSE)) ->  | I20: =IF(H20="","",IF(VLOOKUP(H20,사원명부!$A$2:$Z$113,12,FALSE)="","","퇴직")) ->  | L20: =IF(K20="","",IF(VLOOKUP(K20,사원명부!$A$2:$Z$113,12,FALSE)="","","퇴직")) -> 
A21: =IFERROR(IF(H21="","",VLOOKUP(H21,사원명부!$A$2:$Z$113,9,FALSE)),"") ->  | B21: =IFERROR(IF(H21="","",VLOOKUP(H21,사원명부!$A$2:$Z$113,2,FALSE)),"") ->  | D21: =IF(K21="","",VLOOKUP(K21,사원명부!$A$2:$Z$113,9,FALSE)) ->  | E21: =IF(K21="","",VLOOKUP(K21,사원명부!$A$2:$Z$113,2,FALSE)) ->  | I21: =IF(H21="","",IF(VLOOKUP(H21,사원명부!$A$2:$Z$113,12,FALSE)="","","퇴직")) ->  | L21: =IF(K21="","",IF(VLOOKUP(K21,사원명부!$A$2:$Z$113,12,FALSE)="","","퇴직")) -> 
A22: =IFERROR(IF(H22="","",VLOOKUP(H22,사원명부!$A$2:$Z$113,9,FALSE)),"") ->  | B22: =IFERROR(IF(H22="","",VLOOKUP(H22,사원명부!$A$2:$Z$113,2,FALSE)),"") ->  | D22: =IF(K22="","",VLOOKUP(K22,사원명부!$A$2:$Z$113,9,FALSE)) ->  | E22: =IF(K22="","",VLOOKUP(K22,사원명부!$A$2:$Z$113,2,FALSE)) ->  | I22: =IF(H22="","",IF(VLOOKUP(H22,사원명부!$A$2:$Z$113,12,FALSE)="","","퇴직")) ->  | L22: =IF(K22="","",IF(VLOOKUP(K22,사원명부!$A$2:$Z$113,12,FALSE)="","","퇴직")) -> 

Sheet 휴가계획서
A1: =YEAR(D20+5)&"년 "&MONTH(D20+5)&"월 휴가계획서" -> 2021년 5월 휴가계획서 | H1: 계획서 작성일 | J1: 2021-04-30
A3: 매월 말일(휴일일 경우 전일) 근로자 협의회에서 상호 협의후 결정한 연차사용 계획서입니다. 다음과 같이 연차휴가를 사용하고자 합니다.
A5: 사번 | B5: 이름 | C5: 휴가시작일 | D5: 휴가일수 | E5: 누적연차일 | F5: 서명
B6: =IFERROR(IF(A6="","",VLOOKUP(A6,사원명부!$A$2:$Z$113,2,FALSE)),"") ->  | C6: =IFERROR(IF(B6="","",VLOOKUP(B6,사원명부!$A$2:$Z$113,2,FALSE)),"") ->  | D6: =IFERROR(IF(C6="","",VLOOKUP(C6,사원명부!$A$2:$Z$113,2,FALSE)),"") -> 
B7: =IFERROR(IF(A7="","",VLOOKUP(A7,사원명부!$A$2:$Z$113,2,FALSE)),"") ->  | C7: =IFERROR(IF(B7="","",VLOOKUP(B7,사원명부!$A$2:$Z$113,2,FALSE)),"") ->  | D7: =IFERROR(IF(C7="","",VLOOKUP(C7,사원명부!$A$2:$Z$113,2,FALSE)),"") -> 
B8: =IFERROR(IF(A8="","",VLOOKUP(A8,사원명부!$A$2:$Z$113,2,FALSE)),"") ->  | C8: =IFERROR(IF(B8="","",VLOOKUP(B8,사원명부!$A$2:$Z$113,2,FALSE)),"") ->  | D8: =IFERROR(IF(C8="","",VLOOKUP(C8,사원명부!$A$2:$Z$113,2,FALSE)),"") -> 
B9: =IFERROR(IF(A9="","",VLOOKUP(A9,사원명부!$A$2:$Z$113,2,FALSE)),"") ->  | C9: =IFERROR(IF(B9="","",VLOOKUP(B9,사원명부!$A$2:$Z$113,2,FALSE)),"") ->  | D9: =IFERROR(IF(C9="","",VLOOKUP(C9,사원명부!$A$2:$Z$113,2,FALSE)),"") -> 
B10: =IFERROR(IF(A10="","",VLOOKUP(A10,사원명부!$A$2:$Z$113,2,FALSE)),"") ->  | C10: =IFERROR(IF(B10="","",VLOOKUP(B10,사원명부!$A$2:$Z$113,2,FALSE)),"") ->  | D10: =IFERROR(IF(C10="","",VLOOKUP(C10,사원명부!$A$2:$Z$113,2,FALSE)),"") -> 
B11: =IFERROR(IF(A11="","",VLOOKUP(A11,사원명부!$A$2:$Z$113,2,FALSE)),"") ->  | C11: =IFERROR(IF(B11="","",VLOOKUP(B11,사원명부!$A$2:$Z$113,2,FALSE)),"") ->  | D11: =IFERROR(IF(C11="","",VLOOKUP(C11,사원명부!$A$2:$Z$113,2,FALSE)),"") -> 
B12: =IFERROR(IF(A12="","",VLOOKUP(A12,사원명부!$A$2:$Z$113,2,FALSE)),"") ->  | C12: =IFERROR(IF(B12="","",VLOOKUP(B12,사원명부!$A$2:$Z$113,2,FALSE)),"") ->  | D12: =IFERROR(IF(C12="","",VLOOKUP(C12,사원명부!$A$2:$Z$113,2,FALSE)),"") -> 
B13: =IFERROR(IF(A13="","",VLOOKUP(A13,사원명부!$A$2:$Z$113,2,FALSE)),"") ->  | C13: =IFERROR(IF(B13="","",VLOOKUP(B13,사원명부!$A$2:$Z$113,2,FALSE)),"") ->  | D13: =IFERROR(IF(C13="","",VLOOKUP(C13,사원명부!$A$2:$Z$113,2,FALSE)),"") -> 
B14: =IFERROR(IF(A14="","",VLOOKUP(A14,사원명부!$A$2:$Z$113,2,FALSE)),"") ->  | C14: =IFERROR(IF(B14="","",VLOOKUP(B14,사원명부!$A$2:$Z$113,2,FALSE)),"") ->  | D14: =IFERROR(IF(C14="","",VLOOKUP(C14,사원명부!$A$2:$Z$113,2,FALSE)),"") -> 
B15: =IFERROR(IF(D1="","",VLOOKUP(D1,사원명부!$A$2:$Z$113,2,FALSE)),"") ->  | C15: =IFERROR(IF(D1="","",VLOOKUP(D1,사원명부!$A$2:$Z$113,2,FALSE)),"") ->  | D15: =IFERROR(IF(D1="","",VLOOKUP(D1,사원명부!$A$2:$Z$113,2,FALSE)),"") -> 
A16: =IFERROR(IF(D1="","",VLOOKUP(D1,사원명부!$A$2:$Z$113,9,FALSE)),"") ->  | B16: =IFERROR(IF(D1="","",VLOOKUP(D1,사원명부!$A$2:$Z$113,2,FALSE)),"") ->  | C16: =IFERROR(IF(D1="","",VLOOKUP(D1,사원명부!$A$2:$Z$113,2,FALSE)),"") ->  | D16: =IFERROR(IF(D1="","",VLOOKUP(D1,사원명부!$A$2:$Z$113,2,FALSE)),"") -> 
A17: =IFERROR(IF(D1="","",VLOOKUP(D1,사원명부!$A$2:$Z$113,9,FALSE)),"") ->  | B17: =IFERROR(IF(D1="","",VLOOKUP(D1,사원명부!$A$2:$Z$113,2,FALSE)),"") ->  | C17: =IFERROR(IF(D1="","",VLOOKUP(D1,사원명부!$A$2:$Z$113,2,FALSE)),"") ->  | D17: =IFERROR(IF(D1="","",VLOOKUP(D1,사원명부!$A$2:$Z$113,2,FALSE)),"") -> 
A18: =IFERROR(IF(D1="","",VLOOKUP(D1,사원명부!$A$2:$Z$113,9,FALSE)),"") ->  | B18: =IFERROR(IF(D1="","",VLOOKUP(D1,사원명부!$A$2:$Z$113,2,FALSE)),"") ->  | C18: =IFERROR(IF(D1="","",VLOOKUP(D1,사원명부!$A$2:$Z$113,2,FALSE)),"") ->  | D18: =IFERROR(IF(D1="","",VLOOKUP(D1,사원명부!$A$2:$Z$113,2,FALSE)),"") -> 
D20: =J1 -> 2021-04-30
D21: 근로자 대표 : | E21: =IFBLANK(사원명부!B3) -> 테스트1 | F21: 서명
A23: =요양기관기초정보!D1&" 약국장 귀하" -> 팜오피스약국 약국장 귀하

Sheet 휴가력
B1: =요양기관기초정보!D1&" 직원휴가 및 휴일 근무 계획표" -> 팜오피스약국 직원휴가 및 휴일 근무 계획표 | K1: 휴가 | L1: ctrl-g
B2: =YEAR(TODAY()) -> 2021 | C2: 5월 | K2: 반차 | L2: ctrl-q
B3: 월요일 | C3: =UPPER(TEXT(C4,"aaaa")) -> 화요일 | D3: 수요일 | E3: 목요일 | F3: 금요일 | G3: 토요일 | H3: 일요일 | K3: 공휴일 | L3: ctrl-r
B4: =일+1+DATE(Calendar1Year,Calendar1MonthOption,1)-WEEKDAY(DATE(Calendar1Year,Calendar1MonthOption,1),WeekdayOption) -> 2021-04-26 | C4: 2021-04-27 | D4: 2021-04-28 | E4: 2021-04-29 | F4: 2021-04-30 | G4: 2021-05-01 | H4: 2021-05-02
B8: =일+8+DATE(Calendar1Year,Calendar1MonthOption,1)-WEEKDAY(DATE(Calendar1Year,Calendar1MonthOption,1),WeekdayOption) -> 2021-05-03 | C8: 2021-05-04 | D8: 2021-05-05 | E8: 2021-05-06 | F8: 2021-05-07 | G8: 2021-05-08 | H8: 2021-05-09
B12: =일+15+DATE(Calendar1Year,Calendar1MonthOption,1)-WEEKDAY(DATE(Calendar1Year,Calendar1MonthOption,1),WeekdayOption) -> 2021-05-10 | C12: 2021-05-11 | D12: 2021-05-12 | E12: 2021-05-13 | F12: 2021-05-14 | G12: 2021-05-15 | H12: 2021-05-16
B16: =일+22+DATE(Calendar1Year,Calendar1MonthOption,1)-WEEKDAY(DATE(Calendar1Year,Calendar1MonthOption,1),WeekdayOption) -> 2021-05-17 | C16: 2021-05-18 | D16: 2021-05-19 | E16: 2021-05-20 | F16: 2021-05-21 | G16: 2021-05-22 | H16: 2021-05-23
B20: =일+29+DATE(Calendar1Year,Calendar1MonthOption,1)-WEEKDAY(DATE(Calendar1Year,Calendar1MonthOption,1),WeekdayOption) -> 2021-05-24 | C20: 2021-05-25 | D20: 2021-05-26 | E20: 2021-05-27 | F20: 2021-05-28 | G20: 2021-05-29 | H20: 2021-05-30
B24: =일+36+DATE(Calendar1Year,Calendar1MonthOption,1)-WEEKDAY(DATE(Calendar1Year,Calendar1MonthOption,1),WeekdayOption) -> 2021-05-31 | C24: 2021-06-01 | D24: 메모:

Sheet 경력증명서
A1: 경 력 증 명 서
H2: 근로기준법 제 39조(사용증명서)
H3: 근로 기준법 시행령 제19조(사용증명서의 청구)
A4: 성 명 | B4: =IF(J5="없어요","",VLOOKUP($J$4,사원명부!$A$2:$AB$150,2)) -> 테스트2 | D4: 주민등록번호 | E4: =IF(J5="없어요","",VLOOKUP($J$4,사원명부!$A$2:$AB$150,4)) -> 680623-1****** | H4: 사원번호 | J4: 2
A5: 소 속 | B5: =IFBLANK(요양기관기초정보!D1) -> 팜오피스약국 | D5: 직 위 | E5: =IF(J5="없어요","",VLOOKUP($J$4,사원명부!$A$2:$AB$150,8)&" "&VLOOKUP($J$4,사원명부!$A$2:$AB$150,9)) -> 조제실 실장 | H5: 이 름 | J5: =IFERROR(IF($J$4="","",VLOOKUP(J4,사원명부!A2:B100,2,FALSE)),"없어요") -> 테스트2
A6: 입사년월일 | B6: =IF(J5="없어요","",VLOOKUP($J$4,사원명부!$A$2:$AB$150,11)) -> 2021-01-01 | D6: 재직상태/ 퇴사일 | E6: =IF(IF(J5="없어요","",VLOOKUP($J$4,사원명부!$A$2:$AB$150,12))="","재직중",IF(J5="없어요","",VLOOKUP($J$4,사원명부!$A$2:$AB$150,12))) -> 재직중
A7: 주 소 | B7: =IF(J5="없어요","",VLOOKUP($J$4,사원명부!$A$2:$AB$150,7)) -> 서울시 서대문구연세로 41 | N7: 용도 | P7: 금융기관제출용
H8: 1 | J8: =IFERROR(IF(H8="","",VLOOKUP(H8,사원명부!$A$2:$B$100,2,FALSE)),"") -> 테스트1 | N8: =IF(P8="","",1) -> 1 | P8: 금융기관제출용
H9: 2 | J9: =IFERROR(IF(H9="","",VLOOKUP(H9,사원명부!$A$2:$B$100,2,FALSE)),"") -> 테스트2 | N9: =IF(P9="","",N8+1) -> 2 | P9: 이직용
A10: 상기인은 당사에서 위와 같이 재직한 경력이 있음을 증명합니다. | H10: 3 | J10: =IFERROR(IF(H10="","",VLOOKUP(H10,사원명부!$A$2:$B$100,2,FALSE)),"") ->  | N10: =IF(P10="","",N9+1) -> 
H11: 4 | J11: =IFERROR(IF(H11="","",VLOOKUP(H11,사원명부!$A$2:$B$100,2,FALSE)),"") -> 
B12: 용도 : | C12: =IFBLANK(P7) -> 금융기관제출용 | H12: 5 | J12: =IFERROR(IF(H12="","",VLOOKUP(H12,사원명부!$A$2:$B$100,2,FALSE)),"") -> 
H13: 6 | J13: =IFERROR(IF(H13="","",VLOOKUP(H13,사원명부!$A$2:$B$100,2,FALSE)),"") -> 
H14: 7 | J14: =IFERROR(IF(H14="","",VLOOKUP(H14,사원명부!$A$2:$B$100,2,FALSE)),"") -> 
H15: 8 | J15: =IFERROR(IF(H15="","",VLOOKUP(H15,사원명부!$A$2:$B$100,2,FALSE)),"") -> 
H16: 9 | J16: =IFERROR(IF(H16="","",VLOOKUP(H16,사원명부!$A$2:$B$100,2,FALSE)),"") -> 
H17: 10 | J17: =IFERROR(IF(H17="","",VLOOKUP(H17,사원명부!$A$2:$B$100,2,FALSE)),"") -> 
A18: =TODAY() -> 2021-05-31 | H18: 11 | J18: =IFERROR(IF(H18="","",VLOOKUP(H18,사원명부!$A$2:$B$100,2,FALSE)),"") -> 
H19: 12 | J19: =IFERROR(IF(H19="","",VLOOKUP(H19,사원명부!$A$2:$B$100,2,FALSE)),"") -> 
D20: 업체명 : | E20: =IFBLANK(B5) -> 팜오피스약국 | H20: 13 | J20: =IFERROR(IF(H20="","",VLOOKUP(H20,사원명부!$A$2:$B$100,2,FALSE)),"") -> 
D21: 대표자 : | E21: =IFBLANK(요양기관기초정보!C6) -> 홍길동 | F21: (인) | H21: 14 | J21: =IFERROR(IF(H21="","",VLOOKUP(H21,사원명부!$A$2:$B$100,2,FALSE)),"") -> 
H22: 15 | J22: =IFERROR(IF(H22="","",VLOOKUP(H22,사원명부!$A$2:$B$100,2,FALSE)),"") -> 
H23: 16 | J23: =IFERROR(IF(H23="","",VLOOKUP(H23,사원명부!$A$2:$B$100,2,FALSE)),"") -> 
H24: 17 | J24: =IFERROR(IF(H24="","",VLOOKUP(H24,사원명부!$A$2:$B$100,2,FALSE)),"") -> 
H25: 18 | J25: =IFERROR(IF(H25="","",VLOOKUP(H25,사원명부!$A$2:$B$100,2,FALSE)),"") -> 
H26: 19 | J26: =IFERROR(IF(H26="","",VLOOKUP(H26,사원명부!$A$2:$B$100,2,FALSE)),"") -> 
H27: 20 | J27: =IFERROR(IF(H27="","",VLOOKUP(H27,사원명부!$A$2:$B$100,2,FALSE)),"") -> 
H28: 21 | J28: =IFERROR(IF(H28="","",VLOOKUP(H28,사원명부!$A$2:$B$100,2,FALSE)),"") -> 
H29: 22 | J29: =IFERROR(IF(H29="","",VLOOKUP(H29,사원명부!$A$2:$B$100,2,FALSE)),"") -> 
H30: 23 | J30: =IFERROR(IF(H30="","",VLOOKUP(H30,사원명부!$A$2:$B$100,2,FALSE)),"") -> 
H31: 24 | J31: =IFERROR(IF(H31="","",VLOOKUP(H31,사원명부!$A$2:$B$100,2,FALSE)),"") -> 
H32: 25 | J32: =IFERROR(IF(H32="","",VLOOKUP(H32,사원명부!$A$2:$B$100,2,FALSE)),"") -> 
H33: 26 | J33: =IFERROR(IF(H33="","",VLOOKUP(H33,사원명부!$A$2:$B$100,2,FALSE)),"") -> 
H34: 27 | J34: =IFERROR(IF(H34="","",VLOOKUP(H34,사원명부!$A$2:$B$100,2,FALSE)),"") -> 
H35: 28 | J35: =IFERROR(IF(H35="","",VLOOKUP(H35,사원명부!$A$2:$B$100,2,FALSE)),"") -> 
H36: 29 | J36: =IFERROR(IF(H36="","",VLOOKUP(H36,사원명부!$A$2:$B$100,2,FALSE)),"") -> 
H37: 30 | J37: =IFERROR(IF(H37="","",VLOOKUP(H37,사원명부!$A$2:$B$100,2,FALSE)),"") -> 
H38: 31 | J38: =IFERROR(IF(H38="","",VLOOKUP(H38,사원명부!$A$2:$B$100,2,FALSE)),"") -> 
H39: 32 | J39: =IFERROR(IF(H39="","",VLOOKUP(H39,사원명부!$A$2:$B$100,2,FALSE)),"") -> 
H40: 33 | J40: =IFERROR(IF(H40="","",VLOOKUP(H40,사원명부!$A$2:$B$100,2,FALSE)),"") -> 
H41: 34 | J41: =IFERROR(IF(H41="","",VLOOKUP(H41,사원명부!$A$2:$B$100,2,FALSE)),"") -> 
H42: 35 | J42: =IFERROR(IF(H42="","",VLOOKUP(H42,사원명부!$A$2:$B$100,2,FALSE)),"") -> 
H43: 36 | J43: =IFERROR(IF(H43="","",VLOOKUP(H43,사원명부!$A$2:$B$100,2,FALSE)),"") -> 
H44: 37 | J44: =IFERROR(IF(H44="","",VLOOKUP(H44,사원명부!$A$2:$B$100,2,FALSE)),"") -> 
H45: 38 | J45: =IFERROR(IF(H45="","",VLOOKUP(H45,사원명부!$A$2:$B$100,2,FALSE)),"") -> 
H46: 39 | J46: =IFERROR(IF(H46="","",VLOOKUP(H46,사원명부!$A$2:$B$100,2,FALSE)),"") -> 
H47: 40 | J47: =IFERROR(IF(H47="","",VLOOKUP(H47,사원명부!$A$2:$B$100,2,FALSE)),"") -> 
H48: 41 | J48: =IFERROR(IF(H48="","",VLOOKUP(H48,사원명부!$A$2:$B$100,2,FALSE)),"") -> 
H49: 42 | J49: =IFERROR(IF(H49="","",VLOOKUP(H49,사원명부!$A$2:$B$100,2,FALSE)),"") -> 
H50: 43 | J50: =IFERROR(IF(H50="","",VLOOKUP(H50,사원명부!$A$2:$B$100,2,FALSE)),"") -> 
H51: 44 | J51: =IFERROR(IF(H51="","",VLOOKUP(H51,사원명부!$A$2:$B$100,2,FALSE)),"") -> 
H52: 45 | J52: =IFERROR(IF(H52="","",VLOOKUP(H52,사원명부!$A$2:$B$100,2,FALSE)),"") -> 
H53: 46 | J53: =IFERROR(IF(H53="","",VLOOKUP(H53,사원명부!$A$2:$B$100,2,FALSE)),"") -> 
H54: 47 | J54: =IFERROR(IF(H54="","",VLOOKUP(H54,사원명부!$A$2:$B$100,2,FALSE)),"") -> 
H55: 48 | J55: =IFERROR(IF(H55="","",VLOOKUP(H55,사원명부!$A$2:$B$100,2,FALSE)),"") -> 
H56: 49 | J56: =IFERROR(IF(H56="","",VLOOKUP(H56,사원명부!$A$2:$B$100,2,FALSE)),"") -> 
H57: 50 | J57: =IFERROR(IF(H57="","",VLOOKUP(H57,사원명부!$A$2:$B$100,2,FALSE)),"") -> 
H58: 51 | J58: =IFERROR(IF(H58="","",VLOOKUP(H58,사원명부!$A$2:$B$100,2,FALSE)),"") -> 
H59: 52 | J59: =IFERROR(IF(H59="","",VLOOKUP(H59,사원명부!$A$2:$B$100,2,FALSE)),"") -> 
H60: 53 | J60: =IFERROR(IF(H60="","",VLOOKUP(H60,사원명부!$A$2:$B$100,2,FALSE)),"") -> 
H61: 54 | J61: =IFERROR(IF(H61="","",VLOOKUP(H61,사원명부!$A$2:$B$100,2,FALSE)),"") -> 
H62: 55 | J62: =IFERROR(IF(H62="","",VLOOKUP(H62,사원명부!$A$2:$B$100,2,FALSE)),"") -> 
H63: 56 | J63: =IFERROR(IF(H63="","",VLOOKUP(H63,사원명부!$A$2:$B$100,2,FALSE)),"") -> 
H64: 57 | J64: =IFERROR(IF(H64="","",VLOOKUP(H64,사원명부!$A$2:$B$100,2,FALSE)),"") -> 
H65: 58 | J65: =IFERROR(IF(H65="","",VLOOKUP(H65,사원명부!$A$2:$B$100,2,FALSE)),"") -> 
H66: 59 | J66: =IFERROR(IF(H66="","",VLOOKUP(H66,사원명부!$A$2:$B$100,2,FALSE)),"") -> 
H67: 60 | J67: =IFERROR(IF(H67="","",VLOOKUP(H67,사원명부!$A$2:$B$100,2,FALSE)),"") -> 
H68: 61 | J68: =IFERROR(IF(H68="","",VLOOKUP(H68,사원명부!$A$2:$B$100,2,FALSE)),"") -> 
H69: 62 | J69: =IFERROR(IF(H69="","",VLOOKUP(H69,사원명부!$A$2:$B$100,2,FALSE)),"") -> 
H70: 63 | J70: =IFERROR(IF(H70="","",VLOOKUP(H70,사원명부!$A$2:$B$100,2,FALSE)),"") -> 
H71: 64 | J71: =IFERROR(IF(H71="","",VLOOKUP(H71,사원명부!$A$2:$B$100,2,FALSE)),"") -> 
H72: 65 | J72: =IFERROR(IF(H72="","",VLOOKUP(H72,사원명부!$A$2:$B$100,2,FALSE)),"") -> 
H73: 66 | J73: =IFERROR(IF(H73="","",VLOOKUP(H73,사원명부!$A$2:$B$100,2,FALSE)),"") -> 
H74: 67 | J74: =IFERROR(IF(H74="","",VLOOKUP(H74,사원명부!$A$2:$B$100,2,FALSE)),"") -> 
H75: 68 | J75: =IFERROR(IF(H75="","",VLOOKUP(H75,사원명부!$A$2:$B$100,2,FALSE)),"") -> 

Sheet 재직증명서
A1: 재 직 증 명 서
A4: 성 명 | B4: =IF(J5="없어요","",VLOOKUP($J$4,사원명부!$A$2:$AB$150,2)) -> 테스트2 | D4: 주민등록번호 | E4: =IF(J5="없어요","",VLOOKUP($J$4,사원명부!$A$2:$AB$150,4)) -> 680623-1****** | H4: 사원번호 | J4: 2
A5: 소 속 | B5: =IFBLANK(요양기관기초정보!D1) -> 팜오피스약국 | D5: 직 위 | E5: =IF(J5="없어요","",VLOOKUP($J$4,사원명부!$A$2:$AB$150,8)&" "&VLOOKUP($J$4,사원명부!$A$2:$AB$150,9)) -> 조제실 실장 | H5: 이 름 | J5: =IFERROR(IF($J$4="","",VLOOKUP(J4,사원명부!A2:B100,2,FALSE)),"없어요") -> 테스트2
A6: 입사년월일 | B6: =IF(J5="없어요","",VLOOKUP($J$4,사원명부!$A$2:$AB$150,11)) -> 2021-01-01
A7: 주 소 | B7: =IF(J5="없어요","",VLOOKUP($J$4,사원명부!$A$2:$AB$150,7)) -> 서울시 서대문구연세로 41 | N7: 용도 | P7: 금융기관제출용
H8: 1 | J8: =IFERROR(IF(H8="","",VLOOKUP(H8,사원명부!$A$2:$B$100,2,FALSE)),"") -> 테스트1 | N8: =IF(P8="","",1) -> 1 | P8: 금융기관제출용
H9: 2 | J9: =IFERROR(IF(H9="","",VLOOKUP(H9,사원명부!$A$2:$B$100,2,FALSE)),"") -> 테스트2 | N9: =IF(P9="","",N8+1) -> 2 | P9: 이직용
A10: 상기인은 현재 재직하고 있음을 증명합니다. | H10: 3 | J10: =IFERROR(IF(H10="","",VLOOKUP(H10,사원명부!$A$2:$B$100,2,FALSE)),"") ->  | N10: =IF(P10="","",N9+1) -> 
H11: 4 | J11: =IFERROR(IF(H11="","",VLOOKUP(H11,사원명부!$A$2:$B$100,2,FALSE)),"") -> 
B12: 용도 : | C12: =IF(P7="","",P7) -> 금융기관제출용 | H12: 5 | J12: =IFERROR(IF(H12="","",VLOOKUP(H12,사원명부!$A$2:$B$100,2,FALSE)),"") -> 
H13: 6 | J13: =IFERROR(IF(H13="","",VLOOKUP(H13,사원명부!$A$2:$B$100,2,FALSE)),"") -> 
H14: 7 | J14: =IFERROR(IF(H14="","",VLOOKUP(H14,사원명부!$A$2:$B$100,2,FALSE)),"") -> 
H15: 8 | J15: =IFERROR(IF(H15="","",VLOOKUP(H15,사원명부!$A$2:$B$100,2,FALSE)),"") -> 
H16: 9 | J16: =IFERROR(IF(H16="","",VLOOKUP(H16,사원명부!$A$2:$B$100,2,FALSE)),"") -> 
H17: 10 | J17: =IFERROR(IF(H17="","",VLOOKUP(H17,사원명부!$A$2:$B$100,2,FALSE)),"") -> 
A18: =TODAY() -> 2021-05-31 | H18: 11 | J18: =IFERROR(IF(H18="","",VLOOKUP(H18,사원명부!$A$2:$B$100,2,FALSE)),"") -> 
H19: 12 | J19: =IFERROR(IF(H19="","",VLOOKUP(H19,사원명부!$A$2:$B$100,2,FALSE)),"") -> 
D20: 업체명 : | E20: =IFBLANK(B5) -> 팜오피스약국 | H20: 13 | J20: =IFERROR(IF(H20="","",VLOOKUP(H20,사원명부!$A$2:$B$100,2,FALSE)),"") -> 
D21: 대표자 : | E21: =IFBLANK(요양기관기초정보!C6) -> 홍길동 | F21: (인) | H21: 14 | J21: =IFERROR(IF(H21="","",VLOOKUP(H21,사원명부!$A$2:$B$100,2,FALSE)),"") -> 
H22: 15 | J22: =IFERROR(IF(H22="","",VLOOKUP(H22,사원명부!$A$2:$B$100,2,FALSE)),"") -> 
H23: 16 | J23: =IFERROR(IF(H23="","",VLOOKUP(H23,사원명부!$A$2:$B$100,2,FALSE)),"") -> 
H24: 17 | J24: =IFERROR(IF(H24="","",VLOOKUP(H24,사원명부!$A$2:$B$100,2,FALSE)),"") -> 
H25: 18 | J25: =IFERROR(IF(H25="","",VLOOKUP(H25,사원명부!$A$2:$B$100,2,FALSE)),"") -> 
H26: 19 | J26: =IFERROR(IF(H26="","",VLOOKUP(H26,사원명부!$A$2:$B$100,2,FALSE)),"") -> 
H27: 20 | J27: =IFERROR(IF(H27="","",VLOOKUP(H27,사원명부!$A$2:$B$100,2,FALSE)),"") -> 
H28: 21 | J28: =IFERROR(IF(H28="","",VLOOKUP(H28,사원명부!$A$2:$B$100,2,FALSE)),"") -> 
H29: 22 | J29: =IFERROR(IF(H29="","",VLOOKUP(H29,사원명부!$A$2:$B$100,2,FALSE)),"") -> 
H30: 23 | J30: =IFERROR(IF(H30="","",VLOOKUP(H30,사원명부!$A$2:$B$100,2,FALSE)),"") -> 
H31: 24 | J31: =IFERROR(IF(H31="","",VLOOKUP(H31,사원명부!$A$2:$B$100,2,FALSE)),"") -> 
H32: 25 | J32: =IFERROR(IF(H32="","",VLOOKUP(H32,사원명부!$A$2:$B$100,2,FALSE)),"") -> 
H33: 26 | J33: =IFERROR(IF(H33="","",VLOOKUP(H33,사원명부!$A$2:$B$100,2,FALSE)),"") -> 
H34: 27 | J34: =IFERROR(IF(H34="","",VLOOKUP(H34,사원명부!$A$2:$B$100,2,FALSE)),"") -> 
H35: 28 | J35: =IFERROR(IF(H35="","",VLOOKUP(H35,사원명부!$A$2:$B$100,2,FALSE)),"") -> 
H36: 29 | J36: =IFERROR(IF(H36="","",VLOOKUP(H36,사원명부!$A$2:$B$100,2,FALSE)),"") -> 
H37: 30 | J37: =IFERROR(IF(H37="","",VLOOKUP(H37,사원명부!$A$2:$B$100,2,FALSE)),"") -> 
H38: 31 | J38: =IFERROR(IF(H38="","",VLOOKUP(H38,사원명부!$A$2:$B$100,2,FALSE)),"") -> 
H39: 32 | J39: =IFERROR(IF(H39="","",VLOOKUP(H39,사원명부!$A$2:$B$100,2,FALSE)),"") -> 
H40: 33 | J40: =IFERROR(IF(H40="","",VLOOKUP(H40,사원명부!$A$2:$B$100,2,FALSE)),"") -> 
H41: 34 | J41: =IFERROR(IF(H41="","",VLOOKUP(H41,사원명부!$A$2:$B$100,2,FALSE)),"") -> 
H42: 35 | J42: =IFERROR(IF(H42="","",VLOOKUP(H42,사원명부!$A$2:$B$100,2,FALSE)),"") -> 
H43: 36 | J43: =IFERROR(IF(H43="","",VLOOKUP(H43,사원명부!$A$2:$B$100,2,FALSE)),"") -> 
H44: 37 | J44: =IFERROR(IF(H44="","",VLOOKUP(H44,사원명부!$A$2:$B$100,2,FALSE)),"") -> 
H45: 38 | J45: =IFERROR(IF(H45="","",VLOOKUP(H45,사원명부!$A$2:$B$100,2,FALSE)),"") -> 
H46: 39 | J46: =IFERROR(IF(H46="","",VLOOKUP(H46,사원명부!$A$2:$B$100,2,FALSE)),"") -> 
H47: 40 | J47: =IFERROR(IF(H47="","",VLOOKUP(H47,사원명부!$A$2:$B$100,2,FALSE)),"") -> 
H48: 41 | J48: =IFERROR(IF(H48="","",VLOOKUP(H48,사원명부!$A$2:$B$100,2,FALSE)),"") -> 
H49: 42 | J49: =IFERROR(IF(H49="","",VLOOKUP(H49,사원명부!$A$2:$B$100,2,FALSE)),"") -> 
H50: 43 | J50: =IFERROR(IF(H50="","",VLOOKUP(H50,사원명부!$A$2:$B$100,2,FALSE)),"") -> 
H51: 44 | J51: =IFERROR(IF(H51="","",VLOOKUP(H51,사원명부!$A$2:$B$100,2,FALSE)),"") -> 
H52: 45 | J52: =IFERROR(IF(H52="","",VLOOKUP(H52,사원명부!$A$2:$B$100,2,FALSE)),"") -> 
H53: 46 | J53: =IFERROR(IF(H53="","",VLOOKUP(H53,사원명부!$A$2:$B$100,2,FALSE)),"") -> 
H54: 47 | J54: =IFERROR(IF(H54="","",VLOOKUP(H54,사원명부!$A$2:$B$100,2,FALSE)),"") -> 
H55: 48 | J55: =IFERROR(IF(H55="","",VLOOKUP(H55,사원명부!$A$2:$B$100,2,FALSE)),"") -> 
H56: 49 | J56: =IFERROR(IF(H56="","",VLOOKUP(H56,사원명부!$A$2:$B$100,2,FALSE)),"") -> 
H57: 50 | J57: =IFERROR(IF(H57="","",VLOOKUP(H57,사원명부!$A$2:$B$100,2,FALSE)),"") -> 
H58: 51 | J58: =IFERROR(IF(H58="","",VLOOKUP(H58,사원명부!$A$2:$B$100,2,FALSE)),"") -> 
H59: 52 | J59: =IFERROR(IF(H59="","",VLOOKUP(H59,사원명부!$A$2:$B$100,2,FALSE)),"") -> 
H60: 53 | J60: =IFERROR(IF(H60="","",VLOOKUP(H60,사원명부!$A$2:$B$100,2,FALSE)),"") -> 
H61: 54 | J61: =IFERROR(IF(H61="","",VLOOKUP(H61,사원명부!$A$2:$B$100,2,FALSE)),"") -> 
H62: 55 | J62: =IFERROR(IF(H62="","",VLOOKUP(H62,사원명부!$A$2:$B$100,2,FALSE)),"") -> 
H63: 56 | J63: =IFERROR(IF(H63="","",VLOOKUP(H63,사원명부!$A$2:$B$100,2,FALSE)),"") -> 
H64: 57 | J64: =IFERROR(IF(H64="","",VLOOKUP(H64,사원명부!$A$2:$B$100,2,FALSE)),"") -> 
H65: 58 | J65: =IFERROR(IF(H65="","",VLOOKUP(H65,사원명부!$A$2:$B$100,2,FALSE)),"") -> 
H66: 59 | J66: =IFERROR(IF(H66="","",VLOOKUP(H66,사원명부!$A$2:$B$100,2,FALSE)),"") -> 
H67: 60 | J67: =IFERROR(IF(H67="","",VLOOKUP(H67,사원명부!$A$2:$B$100,2,FALSE)),"") -> 
H68: 61 | J68: =IFERROR(IF(H68="","",VLOOKUP(H68,사원명부!$A$2:$B$100,2,FALSE)),"") -> 
H69: 62 | J69: =IFERROR(IF(H69="","",VLOOKUP(H69,사원명부!$A$2:$B$100,2,FALSE)),"") -> 
H70: 63 | J70: =IFERROR(IF(H70="","",VLOOKUP(H70,사원명부!$A$2:$B$100,2,FALSE)),"") -> 
H71: 64 | J71: =IFERROR(IF(H71="","",VLOOKUP(H71,사원명부!$A$2:$B$100,2,FALSE)),"") -> 
H72: 65 | J72: =IFERROR(IF(H72="","",VLOOKUP(H72,사원명부!$A$2:$B$100,2,FALSE)),"") -> 
H73: 66 | J73: =IFERROR(IF(H73="","",VLOOKUP(H73,사원명부!$A$2:$B$100,2,FALSE)),"") -> 
H74: 67 | J74: =IFERROR(IF(H74="","",VLOOKUP(H74,사원명부!$A$2:$B$100,2,FALSE)),"") -> 
H75: 68 | J75: =IFERROR(IF(H75="","",VLOOKUP(H75,사원명부!$A$2:$B$100,2,FALSE)),"") -> 

Sheet 위임장
A1: 위 임 장
A4: 대리인 (위임받은자) | B4: 이 름 | C4: =IF(J5="없어요","",VLOOKUP($J$4,사원명부!$A$2:$AB$150,2)) -> 테스트2 | H4: 사원번호 | J4: 2
B5: 주민등록번호 | C5: =IF(J5="없어요","",VLOOKUP($J$4,사원명부!$A$2:$AB$150,4)) -> 680623-1****** | H5: 이 름 | J5: =IFERROR(IF($J$4="","",VLOOKUP(J4,사원명부!A2:B100,2,FALSE)),"없어요") -> 테스트2
B6: 주 소 | C6: =IF(J5="없어요","",VLOOKUP($J$4,사원명부!$A$2:$AB$150,7)) -> 서울시 서대문구연세로 41
N7: 위임내용 | P7: 인감증명서발급
H8: 1 | J8: =IFERROR(IF(H8="","",VLOOKUP(H8,사원명부!$A$2:$B$100,2,FALSE)),"") -> 테스트1 | N8: =IF(P8="","",1) -> 1 | P8: 인감증명서발급
A9: 상기 대리인에게 아래업무에 대한 일체의 모든 권한을 위임합니다. | H9: 2 | J9: =IFERROR(IF(H9="","",VLOOKUP(H9,사원명부!$A$2:$B$100,2,FALSE)),"") -> 테스트2 | N9: =IF(P9="","",N8+1) -> 
H10: 3 | J10: =IFERROR(IF(H10="","",VLOOKUP(H10,사원명부!$A$2:$B$100,2,FALSE)),"") ->  | N10: =IF(P10="","",N9+1) -> 
B11: 위임내용 : | C11: =IFBLANK(P7) -> 인감증명서발급 | H11: 4 | J11: =IFERROR(IF(H11="","",VLOOKUP(H11,사원명부!$A$2:$B$100,2,FALSE)),"") -> 
H12: 5 | J12: =IFERROR(IF(H12="","",VLOOKUP(H12,사원명부!$A$2:$B$100,2,FALSE)),"") -> 
H13: 6 | J13: =IFERROR(IF(H13="","",VLOOKUP(H13,사원명부!$A$2:$B$100,2,FALSE)),"") -> 
A14: =TODAY() -> 2021-05-31 | H14: 7 | J14: =IFERROR(IF(H14="","",VLOOKUP(H14,사원명부!$A$2:$B$100,2,FALSE)),"") -> 
H15: 8 | J15: =IFERROR(IF(H15="","",VLOOKUP(H15,사원명부!$A$2:$B$100,2,FALSE)),"") -> 
H16: 9 | J16: =IFERROR(IF(H16="","",VLOOKUP(H16,사원명부!$A$2:$B$100,2,FALSE)),"") -> 
H17: 10 | J17: =IFERROR(IF(H17="","",VLOOKUP(H17,사원명부!$A$2:$B$100,2,FALSE)),"") -> 
C18: 업체명 : | D18: =IFBLANK(요양기관기초정보!D1) -> 팜오피스약국 | H18: 11 | J18: =IFERROR(IF(H18="","",VLOOKUP(H18,사원명부!$A$2:$B$100,2,FALSE)),"") -> 
C19: 대표자 : | D19: =IFBLANK(요양기관기초정보!C6)&"("&IFBLANK(요양기관기초정보!C7)&")" -> 홍길동(680623-1234567) | F19: 서명 또는 인 | H19: 12 | J19: =IFERROR(IF(H19="","",VLOOKUP(H19,사원명부!$A$2:$B$100,2,FALSE)),"") -> 
C20: 연락처 : | D20: =IFBLANK(요양기관기초정보!C10) -> 010-1234-5678 | H20: 13 | J20: =IFERROR(IF(H20="","",VLOOKUP(H20,사원명부!$A$2:$B$100,2,FALSE)),"") -> 
C21: 주 소 : | D21: =IFBLANK(요양기관기초정보!C11) -> 서울 서대문구 연세로 41 (창천동 78-14) | H21: 14 | J21: =IFERROR(IF(H21="","",VLOOKUP(H21,사원명부!$A$2:$B$100,2,FALSE)),"") -> 
H22: 15 | J22: =IFERROR(IF(H22="","",VLOOKUP(H22,사원명부!$A$2:$B$100,2,FALSE)),"") -> 
H23: 16 | J23: =IFERROR(IF(H23="","",VLOOKUP(H23,사원명부!$A$2:$B$100,2,FALSE)),"") -> 
H24: 17 | J24: =IFERROR(IF(H24="","",VLOOKUP(H24,사원명부!$A$2:$B$100,2,FALSE)),"") -> 
H25: 18 | J25: =IFERROR(IF(H25="","",VLOOKUP(H25,사원명부!$A$2:$B$100,2,FALSE)),"") -> 
H26: 19 | J26: =IFERROR(IF(H26="","",VLOOKUP(H26,사원명부!$A$2:$B$100,2,FALSE)),"") -> 
H27: 20 | J27: =IFERROR(IF(H27="","",VLOOKUP(H27,사원명부!$A$2:$B$100,2,FALSE)),"") -> 
H28: 21 | J28: =IFERROR(IF(H28="","",VLOOKUP(H28,사원명부!$A$2:$B$100,2,FALSE)),"") -> 
H29: 22 | J29: =IFERROR(IF(H29="","",VLOOKUP(H29,사원명부!$A$2:$B$100,2,FALSE)),"") -> 
H30: 23 | J30: =IFERROR(IF(H30="","",VLOOKUP(H30,사원명부!$A$2:$B$100,2,FALSE)),"") -> 
H31: 24 | J31: =IFERROR(IF(H31="","",VLOOKUP(H31,사원명부!$A$2:$B$100,2,FALSE)),"") -> 
H32: 25 | J32: =IFERROR(IF(H32="","",VLOOKUP(H32,사원명부!$A$2:$B$100,2,FALSE)),"") -> 
H33: 26 | J33: =IFERROR(IF(H33="","",VLOOKUP(H33,사원명부!$A$2:$B$100,2,FALSE)),"") -> 
H34: 27 | J34: =IFERROR(IF(H34="","",VLOOKUP(H34,사원명부!$A$2:$B$100,2,FALSE)),"") -> 
H35: 28 | J35: =IFERROR(IF(H35="","",VLOOKUP(H35,사원명부!$A$2:$B$100,2,FALSE)),"") -> 
H36: 29 | J36: =IFERROR(IF(H36="","",VLOOKUP(H36,사원명부!$A$2:$B$100,2,FALSE)),"") -> 
H37: 30 | J37: =IFERROR(IF(H37="","",VLOOKUP(H37,사원명부!$A$2:$B$100,2,FALSE)),"") -> 
H38: 31 | J38: =IFERROR(IF(H38="","",VLOOKUP(H38,사원명부!$A$2:$B$100,2,FALSE)),"") -> 
H39: 32 | J39: =IFERROR(IF(H39="","",VLOOKUP(H39,사원명부!$A$2:$B$100,2,FALSE)),"") -> 
H40: 33 | J40: =IFERROR(IF(H40="","",VLOOKUP(H40,사원명부!$A$2:$B$100,2,FALSE)),"") -> 
H41: 34 | J41: =IFERROR(IF(H41="","",VLOOKUP(H41,사원명부!$A$2:$B$100,2,FALSE)),"") -> 
H42: 35 | J42: =IFERROR(IF(H42="","",VLOOKUP(H42,사원명부!$A$2:$B$100,2,FALSE)),"") -> 
H43: 36 | J43: =IFERROR(IF(H43="","",VLOOKUP(H43,사원명부!$A$2:$B$100,2,FALSE)),"") -> 
H44: 37 | J44: =IFERROR(IF(H44="","",VLOOKUP(H44,사원명부!$A$2:$B$100,2,FALSE)),"") -> 
H45: 38 | J45: =IFERROR(IF(H45="","",VLOOKUP(H45,사원명부!$A$2:$B$100,2,FALSE)),"") -> 
H46: 39 | J46: =IFERROR(IF(H46="","",VLOOKUP(H46,사원명부!$A$2:$B$100,2,FALSE)),"") -> 
H47: 40 | J47: =IFERROR(IF(H47="","",VLOOKUP(H47,사원명부!$A$2:$B$100,2,FALSE)),"") -> 
H48: 41 | J48: =IFERROR(IF(H48="","",VLOOKUP(H48,사원명부!$A$2:$B$100,2,FALSE)),"") -> 
H49: 42 | J49: =IFERROR(IF(H49="","",VLOOKUP(H49,사원명부!$A$2:$B$100,2,FALSE)),"") -> 
H50: 43 | J50: =IFERROR(IF(H50="","",VLOOKUP(H50,사원명부!$A$2:$B$100,2,FALSE)),"") -> 
H51: 44 | J51: =IFERROR(IF(H51="","",VLOOKUP(H51,사원명부!$A$2:$B$100,2,FALSE)),"") -> 
H52: 45 | J52: =IFERROR(IF(H52="","",VLOOKUP(H52,사원명부!$A$2:$B$100,2,FALSE)),"") -> 
H53: 46 | J53: =IFERROR(IF(H53="","",VLOOKUP(H53,사원명부!$A$2:$B$100,2,FALSE)),"") -> 
H54: 47 | J54: =IFERROR(IF(H54="","",VLOOKUP(H54,사원명부!$A$2:$B$100,2,FALSE)),"") -> 
H55: 48 | J55: =IFERROR(IF(H55="","",VLOOKUP(H55,사원명부!$A$2:$B$100,2,FALSE)),"") -> 
H56: 49 | J56: =IFERROR(IF(H56="","",VLOOKUP(H56,사원명부!$A$2:$B$100,2,FALSE)),"") -> 
H57: 50 | J57: =IFERROR(IF(H57="","",VLOOKUP(H57,사원명부!$A$2:$B$100,2,FALSE)),"") -> 
H58: 51 | J58: =IFERROR(IF(H58="","",VLOOKUP(H58,사원명부!$A$2:$B$100,2,FALSE)),"") -> 
H59: 52 | J59: =IFERROR(IF(H59="","",VLOOKUP(H59,사원명부!$A$2:$B$100,2,FALSE)),"") -> 
H60: 53 | J60: =IFERROR(IF(H60="","",VLOOKUP(H60,사원명부!$A$2:$B$100,2,FALSE)),"") -> 
H61: 54 | J61: =IFERROR(IF(H61="","",VLOOKUP(H61,사원명부!$A$2:$B$100,2,FALSE)),"") -> 
H62: 55 | J62: =IFERROR(IF(H62="","",VLOOKUP(H62,사원명부!$A$2:$B$100,2,FALSE)),"") -> 
H63: 56 | J63: =IFERROR(IF(H63="","",VLOOKUP(H63,사원명부!$A$2:$B$100,2,FALSE)),"") -> 
H64: 57 | J64: =IFERROR(IF(H64="","",VLOOKUP(H64,사원명부!$A$2:$B$100,2,FALSE)),"") -> 
H65: 58 | J65: =IFERROR(IF(H65="","",VLOOKUP(H65,사원명부!$A$2:$B$100,2,FALSE)),"") -> 
H66: 59 | J66: =IFERROR(IF(H66="","",VLOOKUP(H66,사원명부!$A$2:$B$100,2,FALSE)),"") -> 
H67: 60 | J67: =IFERROR(IF(H67="","",VLOOKUP(H67,사원명부!$A$2:$B$100,2,FALSE)),"") -> 
H68: 61 | J68: =IFERROR(IF(H68="","",VLOOKUP(H68,사원명부!$A$2:$B$100,2,FALSE)),"") -> 
H69: 62 | J69: =IFERROR(IF(H69="","",VLOOKUP(H69,사원명부!$A$2:$B$100,2,FALSE)),"") -> 
H70: 63 | J70: =IFERROR(IF(H70="","",VLOOKUP(H70,사원명부!$A$2:$B$100,2,FALSE)),"") -> 
H71: 64 | J71: =IFERROR(IF(H71="","",VLOOKUP(H71,사원명부!$A$2:$B$100,2,FALSE)),"") -> 
H72: 65 | J72: =IFERROR(IF(H72="","",VLOOKUP(H72,사원명부!$A$2:$B$100,2,FALSE)),"") -> 
H73: 66 | J73: =IFERROR(IF(H73="","",VLOOKUP(H73,사원명부!$A$2:$B$100,2,FALSE)),"") -> 
H74: 67 | J74: =IFERROR(IF(H74="","",VLOOKUP(H74,사원명부!$A$2:$B$100,2,FALSE)),"") -> 
H75: 68 | J75: =IFERROR(IF(H75="","",VLOOKUP(H75,사원명부!$A$2:$B$100,2,FALSE)),"") -> 

Sheet 사직서
A1: 사직서
A4: 성 명 | B4: =IF(J5="없어요","",VLOOKUP($J$4,사원명부!$A$2:$AB$150,2)) -> 테스트2 | D4: 주민등록번호 | E4: =IF(J5="없어요","",VLOOKUP($J$4,사원명부!$A$2:$AB$150,4)) -> 680623-1****** | H4: 사원번호 | J4: 2
A5: 소 속 | B5: =IFBLANK(요양기관기초정보!D1) -> 팜오피스약국 | D5: 직 위 | E5: =IF(J5="없어요","",VLOOKUP($J$4,사원명부!$A$2:$AB$150,8)&" "&VLOOKUP($J$4,사원명부!$A$2:$AB$150,9)) -> 조제실 실장 | H5: 이 름 | J5: =IFERROR(IF($J$4="","",VLOOKUP(J4,사원명부!A2:B100,2,FALSE)),"없어요") -> 테스트2
A6: 연락처 | B6: =IF(J5="없어요","",VLOOKUP($J$4,사원명부!$A$2:$AB$150,6)) -> 010-2345-6789 | D6: 입사년월일 | E6: =IF(M5="없어요","",VLOOKUP($J$4,사원명부!$A$2:$AB$150,11)) -> 2021-01-01
A7: 주소 | B7: =IF(J5="없어요","",VLOOKUP($J$4,사원명부!$A$2:$AB$150,7)) -> 서울시 서대문구연세로 41 | N7: 사직사유 | P7: 이사
A8: 사유 | B8: =IFBLANK(P7) -> 이사 | H8: 1 | J8: =IFERROR(IF(H8="","",VLOOKUP(H8,사원명부!$A$2:$B$100,2,FALSE)),"") -> 테스트1 | N8: =IF(P8="","",1) -> 1 | P8: 이직
H9: 2 | J9: =IFERROR(IF(H9="","",VLOOKUP(H9,사원명부!$A$2:$B$100,2,FALSE)),"") -> 테스트2 | N9: =IF(P9="","",N8+1) -> 2 | P9: 질병 요양
H10: 3 | J10: =IFERROR(IF(H10="","",VLOOKUP(H10,사원명부!$A$2:$B$100,2,FALSE)),"") ->  | N10: =IF(P10="","",N9+1) -> 3 | P10: 이사
A11: * 서약 및 확인사항 | H11: 4 | J11: =IFERROR(IF(H11="","",VLOOKUP(H11,사원명부!$A$2:$B$100,2,FALSE)),"") -> 
A12: ①본인은 퇴직에 따른 사무 인수인계를 철저히 하여 퇴사 시까지 직무책임과 의무를 완수합니다. ②재직 시 업무상 지득한 회사의 제반 비밀사항을 타인에게 일체 누설하지 않겠습니다. ③각종 회사 비품 등을 퇴직일 전일까지 반환하겠습니다. ④기타 회사와 관련한 제반 사항은 회사규정에 의거 퇴직일 전일까지 처리하겠습니다. ⑤만일 본인이 상기 사항을 위반하였을 경우, 민형사상의 책임과 손해배상 의무를 지겠습니다. | H12: 5 | J12: =IFERROR(IF(H12="","",VLOOKUP(H12,사원명부!$A$2:$B$100,2,FALSE)),"") -> 
H13: 6 | J13: =IFERROR(IF(H13="","",VLOOKUP(H13,사원명부!$A$2:$B$100,2,FALSE)),"") -> 
H14: 7 | J14: =IFERROR(IF(H14="","",VLOOKUP(H14,사원명부!$A$2:$B$100,2,FALSE)),"") -> 
H15: 8 | J15: =IFERROR(IF(H15="","",VLOOKUP(H15,사원명부!$A$2:$B$100,2,FALSE)),"") -> 
H16: 9 | J16: =IFERROR(IF(H16="","",VLOOKUP(H16,사원명부!$A$2:$B$100,2,FALSE)),"") -> 
H17: 10 | J17: =IFERROR(IF(H17="","",VLOOKUP(H17,사원명부!$A$2:$B$100,2,FALSE)),"") -> 
D18: =TODAY() -> 2021-05-31 | H18: 11 | J18: =IFERROR(IF(H18="","",VLOOKUP(H18,사원명부!$A$2:$B$100,2,FALSE)),"") -> 
H19: 12 | J19: =IFERROR(IF(H19="","",VLOOKUP(H19,사원명부!$A$2:$B$100,2,FALSE)),"") -> 
